Workbook

Sheet Introduction
M11: MAINtenance, renewal and Improvement
M12: of rail transport iNfrastructure
M13: to reduce Economic and environmental impacts
H15: Abstract of the MAINLINE Project: Growth in demand for rail transportation across Europe is predicted to continue. Much of this growth will have to be accommodated on existing lines that contain old infrastructure. This demand will increase both the rate of deterioration of these elderly assets and the need for shorter line closures for maintenance or renewal interventions. The impact of these interventions must be minimized and will also need to take into account the need for lower economic and environmental impacts. New interventions will need to be developed along with additional tools to inform decision makers about the economic and environmental consequences of different intervention options being considered. MAINLINE proposes to address all these issues through a series of linked work packages that will target at least € 300m per year savings across Europe with a reduced environmental footprint in terms of embodied carbon and other environmental benefits. It will: - Apply new technologies to extend the life of elderly infrastructure - Improve degradation and structural models to develop more realistic life cycle cost and safety models - Investigate new construction methods for the replacement of obsolete infrastructure - Investigate monitoring techniques to complement or replace existing examination techniques - Develop management tools to assess whole life environmental and economic impact.
H36: Project funded by the EU 7th Framework Programme under call SST.2011.5.2-6 Cost-effective improvement of rail transport, infrastructure. Grant agreement no: 285121

Sheet TrackLCAT
B5: Plain Line Track Life Cycle Assessment Tool (LCAT)
B7: 1 | C7: LCAT Definition
B8: A | C8: Each LCAT is a forecasting tool that compares different maintenance and intervention strategies for the selected asset based on a life cycle evaluation. A Life-Cycle Assessment is ‘the comparison and
C9: and evaluation of the inputs/outputs and the potential environmental impacts of a system during its lifetime. Such a lifecycle evaluation attempts to quantify and model:
C10: - Direct economic costs
C11: - Availability (delay costs / user cost)
C12: - Environmental impact costs
B13: B | C13: For a more detailed explanation of the mode, the User is encouraged to reference the LCAT User Manual written under the ML D5.7 deliverable.
B15: 2 | C15: LCAT function
B30: 3 | C30: LCAT application
B31: A | C31: The Track LCAT does not have a length dimension; it can accommodate any length. The User may specify the appropriate length based on relevant cost information in the 'IntCost() sheets.
B33: 4 | C33: Deterioration modelling: Track Quality 'Q'
B34: A | C34: The MAINLINE mathematical approach, a non-linear, e-functional regression curve that is described in ML D2.3 and specifies that the track quality index deteriorates on the basis of the following exponential function:
C36: where:
C37: is the starting condition of the track, b is the deterioration rate and
C38: is the condition of the track at time t.
B40: B | C40: The exponent b (the deterioration rate) of the exponential function reflects the speed of the deterioration process over time (t) under different influences.
B42: C | C42: Track LCAT processess assessments for the following track characteristics:
C43: · Three types of sleepers
C44: · Five different transport loadings
C45: · Three different ballast types
C46: · Four different radius
C47: · One operational speed (up to 130 kmph but it can be extended to up to 160 kmph)
C48: · Two drainage conditions (good/poor)
C49: · Two sub-layer conditions (good/poor)
B51: 5 | C51: Summary

Sheet Flowchart
A1: MAINLINE | C1: Plain Track Model
B3: Model Flow Chart
C4: This shows the relationship between the sheets in this model.
C5: Click on a heading to go to that sheet.

Sheet Instructions
A1: MAINLINE | C1: =Flowchart!C1 -> Plain Track Model
B4: Background: | C4: MAINLINE: | D4: Work Package 5; Deliverable 5.5 - Life-cycle Assessment Tool
C5: File name: | D5: ML_D5.5_TrackModel_v12.00.xlsm
C6: Model ref: | D6: ML-D5.5 Plain Track Model
C7: Model version: | D7: 12
C8: Version date: | D8: 2014-09-15
C9: Function: | D9: This model was developed by the MAINLINE project to demonstrate the deteroration and intervention algorithms discovered in the MAINLINE work packages.
B12: INSTRUCTIONS: | D12: Instructions are given below for each sheet which requires some user input
B13: Sheet colours: | C13: NOTES | D13: Black tab sheets are general instructions and information about the model
C14: INPUT | D14: Blue tab are sheets for data input
C15: OUTPUT | D15: Purple tabs are output sheets
C16: INTV COST | D16: Green tabs are sheets for the user to calculate costs and environmental impacts of interventions
C17: ENV REFS | D17: Yellow tab is a sheet of environmantal reference data
C18: CALCULATION | D18: Red tabs are calculation sheets, which the user can see but does not need to change
B20: Cell colours: | C20: Data Input Cells | D20: All input cells are coloured light blue. Other cells cannot be changed.
D21: Click on any blue cell to see input instructions
D22: Detailed instructions regarding inputs are given on each sheet
B25: USER SHEETS:
B26: Information: | C26: Introduction | D26: Introduction to MAINLINE
C27: TrackLCAT | D27: Introduction to the Plain Line Track LCAT
C28: Flowchart | D28: Outline of data flow in the model, with dynamic links to sheets
C29: Instructions | D29: This sheet of instructions
B30: User inputs: | C30: TechNotes | D30: Some technical details about the model
C31: InputCondition | D31: Select the conditions which best describe the Track and its initial condition
C32: IntvTriggers | D32: This lists the interventions which may be used and their triggering mechanisms
C33: IntvChanges | D33: This sheet shows the ways in which the scores change after the interventions
C34: IntvCosts | D34: Enter the costs and environmental impacts of each intervention
C35: IntvCost (1)-(2) | D35: Build-up of costs and impacts for each intervention; there are 2 sheets, one for each intervention
C36: EnvImpacts | D36: Reference list of impacts of construction material and operations
B37: User outputs:
C38: Summary | D38: This shows a summary of the modelling results.
C39: OutputFinancial | D39: This shows a summary of the projected financial costs
C40: OutputEnv | D40: This shows a summary of the projected environmental impacts
C41: OutputOps | D41: This shows a summary of the projected operational impacts
C42: OutputCondition | D42: This shows a summary of the projected condition scores

Sheet TechNotes
A1: MAINLINE | C1: =Flowchart!C1 -> Plain Track Model
B3: Amendments: | C3: Version
B4: 2013-11-29 | C4: v01.00 | D4: Released for review
B5: 2013-12-20 | C5: v02.00 | D5: Amended after review
B6: 2014-04-22 | C6: v03.00 | D6: Addition of extra performance profile data
D7: Corresponding modification of worksheet "InputCondition" options
D8: Reprogramming of "Projection" worksheet to accommodate new data
D9: Various cosmetic and functional changes to support the new data and the switch to only two intervention types
B10: 2014-04-22 | C10: v04.00 | D10: Correction of order of option buttons on worksheet "InputCondition"
B11: 2014-05-20 | C11: v05.00 | D11: Revised performance profiles as per [140520 MAINLINE Track Profiles Extrapolation Explanation.xlsm]
D12: Addition of Warning message in results sheets for renewal <10 years (E2:F3 on each "Results" sheet)
D13: Modification of chart of condition (Q) over time
B14: 2014-07-11 | C14: v06.00 | D14: Modified to allow change in track behaviour only after after a tamping action has occurred
D15: Modified summary graph so that Q(end) doesn't include effect of deterioration
B16: 2014-07-30 | C16: v07.00 | D16: Revised performance profiles as per [140729 MAINLINE Track Profiles Extrapolation Explanation.xlsm]
B17: 2014-07-31 | C17: v08.00 | D17: Reprogramming of "Projection" worksheet to include new tamping rule
B18: 2014-08-06 | C18: v09.00 | D18: Reprogramming of "Projection" worksheet to include new renewal rule
B19: 2014-08-29 | C19: v10.00 | D19: Deterioration rates updated to take into account the non-influence of poor subsoil or/and drainage
B20: 2014-09-01 | C20: v11.00 | D20: Revised performance profiles as per [140830 MAINLINE Track Profiles Extrapolation Explanation.xlsm]
B21: 2014-09-15 | C21: v12.00 | D21: Changes in the LCC implemented. Residual value and initial investment costs added
B23: Function of Sheets:
C24: FlowChart | D24: Overview of the workings of the model
C25: Instructions | D25: Model origin, version, and general notes on use of the model
C26: TechNotes | D26: Some technical notes on the model and its workings
C27: InputCondition | D27: Input of initial condition of asset
C28: IntvTriggers | D28: Interventions and how they are triggered
C29: IntvChanges | D29: Changes to scores caused by interventions
C30: IntvCosts | D30: Intervention costs and environmental impacts and operational impacts
C31: IntvCost (1) | D31: Estimation of the costs and environmental impact of Intervention No 1 (in-situ tamping of ballast)
C32: IntvCost (2) | D32: Estimation of the costs and environmental impact of Intervention No 2 (renewal of track structure)
C33: DetRates | D33: Tables of deterioration data
C34: Projection | D34: Calculation of initial scores (from initial condition) and calculation of deterioration and interventions for 20 time periods of 5 years each
C35: Resullts | D35: Collation of results from Projection
C36: Summary | D36: Summary of the model run with key inputs and outputs
C37: OutputFinancial | D37: Summary of projected costs
C38: OutputEnv | D38: Summary of projected environmental impacts
C39: OutputOps | D39: Summary of projected operational impacts
C40: OutputCondition | D40: Output of projected asset condition
C41: EnvImpacts | D41: Reference list of Impacts of typical construction and maintenance activities and materials
B43: Technical notes: | C43: MAINLINE | D43: This model does not use VBA code or Macros
D44: This model uses Excel 'Form Control' objects and not ActiveX controls.
D45: Because the model uses 'Form Control' objects it is best stored as a macro file (.xlsm)

Sheet InputCondition
A1: MAINLINE | C1: =Flowchart!C1 -> Plain Track Model
C2: User Input
C6: Initial Track Condition
C7: Input of data which describes the status and condition of the track at the start of the assessment.
G10: Data is currently only available for up to 130 kph.
G14: Basalt, high-quality granite, siliceous material | L14: LA < 16 | N14: ''LA' refers to the Los Angeles test for stone.
G15: Granite, diabase, dolomite | L15: 16 < LA <23
G16: Limestone | L16: LA > 23

Sheet IntvTriggers
A1: MAINLINE | C1: =Flowchart!C1 -> Plain Track Model
C2: User Input
C6: Interventions
C7: Interventions can be triggered in a number of ways.
C8: Some can be programmed by the user, others rely on data which is already recorded within the model.
C9: Select which types of intervention should apply here:
C10: Only blue color cells may require user input
L12: Where Tamping does not cause 'Q' to be uplifted above Qult - Renewal will be triggered
L20: Where Tamping does not cause 'Q' to be uplifted above the trigger value - Renewal will be triggered
C25: User-specified Intervention Q Values | K25: User-Specified Intervention Timings
C26: Active: | D26: FALSE | K26: Active: | L26: FALSE
C27: Enter Q value at or below which interventions will be executed | K27: Interventions triggered by inputting an x into the relevant years
C28: Leave blank any scores that are not relevant | K28: Leave blank any years where no intervention is relevant
C29: Ref | D29: Intervention | G29: Track Quality Q | K29: Year | L29: 0 | M29: 1 | N29: 2 | O29: 3 | P29: 4 | Q29: 5 | R29: 6 | S29: 7 | T29: 8 | U29: 9 | V29: 10 | W29: 11 | X29: 12 | Y29: 13 | Z29: 14 | AA29: 15 | AB29: 16 | AC29: 17 | AD29: 18 | AE29: 19 | AF29: 20 | AG29: 21 | AH29: 22 | AI29: 23 | AJ29: 24 | AK29: 25 | AL29: 26 | AM29: 27 | AN29: 28 | AO29: 29 | AP29: 30 | AQ29: 31 | AR29: 32 | AS29: 33 | AT29: 34 | AU29: 35 | AV29: 36 | AW29: 37 | AX29: 38 | AY29: 39 | AZ29: 40 | BA29: 41 | BB29: 42 | BC29: 43 | BD29: 44 | BE29: 45 | BF29: 46 | BG29: 47 | BH29: 48 | BI29: 49 | BJ29: 50 | BK29: 51 | BL29: 52 | BM29: 53 | BN29: 54 | BO29: 55 | BP29: 56 | BQ29: 57 | BR29: 58 | BS29: 59 | BT29: 60 | BU29: 61 | BV29: 62 | BW29: 63 | BX29: 64 | BY29: 65 | BZ29: 66 | CA29: 67 | CB29: 68 | CC29: 69 | CD29: 70 | CE29: 71 | CF29: 72 | CG29: 73 | CH29: 74 | CI29: 75 | CJ29: 76 | CK29: 77 | CL29: 78 | CM29: 79 | CN29: 80 | CO29: 81 | CP29: 82 | CQ29: 83 | CR29: 84 | CS29: 85 | CT29: 86 | CU29: 87 | CV29: 88 | CW29: 89 | CX29: 90 | CY29: 91 | CZ29: 92 | DA29: 93 | DB29: 94 | DC29: 95 | DD29: 96 | DE29: 97 | DF29: 98 | DG29: 99 | DH29: 100 | DI29: 101 | DJ29: 102 | DK29: 103 | DL29: 104
C30: 1 | D30: In-situ tamping of ballast | G30: -12 | K30: Tamping
C31: 2 | D31: Renew track structure | G31: -15 | K31: Renewal | L31: x
C33: Notes:
B34: ● | C34: These trigger values relate to the deterioration mechanisms described in ML D2.2 and D2.3 reports
B35: ● | C35: Track quality 'Q' triggers should be negative values. They typically range between (-5,-25)
B36: ● | C36: Tamping 'Q' trigger score should be greater than renewal's one
B37: ● | C37: Track is assumed to be brand new on year 0
C38: =IF(AND(G30>0,D26),"'Q' Trigger values should be negative numbers. Please change 'Q' accordingly",IF(AND(G31>0,D26),"'Q' Trigger values should be negative numbers. Please change 'Q' accordingly","")) -> 
C39: =IF(AND(G30<G31,D26,G30<0,G31<0),"Tamping 'Q' trigger score should be greater than that of the renewal (reneal cannot be triggered earlier than tamping). Please check 'Q' values in G30:G31 cells.","") -> 

Sheet IntvChanges
A1: MAINLINE | C1: =Flowchart!C1 -> Plain Track Model
C2: User Input | O2: Concrete
O3: Concrete with Under Sleeper Pads
O4: Wooden
O5: Hard
C6: Intervention Changes | O6: Medium
C7: Enter the changes in scores (uplifts) due to the interventions. | O7: Soft
C8: Only blue color cells may require user input
C10: Tamping | E10: None required. | O10: Good
E11: Q' uplifts for tamping are pre-programmed into the model, based on field data. | O11: Poor
C13: Renewal | E13: Q' uplifts for renewal are pre-programmed into the model, based on field data.
E14: Otherwise, on renewal - replace with:
E16: Sleeper type | H16: Concrete with Under Sleeper Pads
E17: Ballast type | H17: Hard
E18: Sub-layer Condition | H18: Good
E19: Drainage Condition | H19: Good

Sheet IntvCosts
A1: MAINLINE | C1: =Flowchart!C1 -> Plain Track Model
C2: User Input
C6: Intervention Costs & Impacts
C7: Enter names of cost categories
C8: Enter any budget names and proportions
C9: Enter operational impacts of interventions
C10: Enter discount rate and cash equivalents of impacts
C11: Only blue color cells may require user input
F13: Costs by category [Euros] | L13: Costs by Budgets [%] | Q13: Environmental Impacts | V13: Operational Impact
E14: Name: | F14: Labour | G14: Plant | H14: Materials | I14: Tax | J14: TOTAL | L14: Maintenance | M14: Capital | N14: Operations | O14: Government | Q14: Carbon Dioxide equivalent | R14: User-defined impact (2) | S14: User-defined impact (3) | T14: Cash Equivalent | V14: Over-night possession [Nr] | W14: Day possessions [Nr] | X14: Speed restriction [days] | Y14: Total cash Equivalent
E15: Ref: | F15: Lab | G15: Plt | H15: Mnt | I15: Tax | L15: Mnt | M15: Cap | N15: Ops | O15: Gov | Q15: CO2e | R15: EI-2 | S15: EI-3 | T15: All | V15: Poss(N) | W15: Poss(D) | X15: TSR | Y15: All
E16: Unit: | F16: € | G16: € | H16: € | I16: € | J16: € | L16: % | M16: % | N16: % | O16: % | Q16: kg | R16: unit2 | S16: unit3 | T16: € | V16: Nr | W16: Nr | X16: Days | Y16: €
B17: Ref | C17: Intervention | F17: 0 | G17: 1 | H17: 2 | I17: 3 | Q17: 0 | R17: 1 | S17: 2
B18: 1 | C18: =IntvTriggers!D30 -> In-situ tamping of ballast | F18: =OFFSET(INDIRECT("'IntvCost ("&$B18&")'!"&$F$20),0,F$17) -> 10000 | G18: 2000 | H18: 2000 | I18: 3000 | J18: =SUM(F18:I18) -> 17000 | L18: =1-SUM(M18:O18) -> 0 | M18: 0.8 | N18: 0.15 | O18: 0.05 | Q18: =OFFSET(INDIRECT("'IntvCost ("&$B18&")'!"&$Q$20),0,Q$17) -> 421 | R18: 0 | S18: 0 | T18: =SUMPRODUCT(Q$21:S$21,Q18:S18) -> 421 | V18: 1 | Y18: =SUMPRODUCT(V18:X18,V$21:X$21) -> 1000
B19: 2 | C19: =IntvTriggers!D31 -> Renew track structure | F19: 205000 | G19: 500000 | H19: 5000 | I19: 20000 | J19: 730000 | L19: 1 | Q19: 296745.7 | R19: 0 | S19: 0 | T19: =SUMPRODUCT(Q$21:S$21,Q19:S19) -> 296745.7 | V19: 3 | X19: 2 | Y19: =SUMPRODUCT(V19:X19,V$21:X$21) -> 4000
F20: IntvCost1 | Q20: IntvEnvr1
O21: Cash equivalents of impacts | Q21: 1 | R21: 0.2 | S21: 0.3 | V21: 1000 | W21: 5000 | X21: 500
I23: Financial discount rate (pa) | J23: 0.023 | S23: Environmental discount rate (pa) | T23: 0.02

Sheet IntvCost (1)
A1: MAINLINE | C1: =Flowchart!C1 -> Plain Track Model
C2: Costs & Environment Impact of Intervention
C3: Enter costs and environmental impacts for this intervention
B4: Interv. No: | C4: =-VALUE(RIGHT(CELL("filename",A1),4)) -> 1
B5: Intervention: | C5: =IntvTriggers!D30 -> In-situ tamping of ballast
B6: Scale: | C6: ONE intervention treats: | D6: 1 | E6: km
D8: Financial Costs Estimate [Euros] | I8: Environamental Impact Assessment
C9: Item | D9: =IntvCosts!F14 -> Labour | E9: =IntvCosts!G14 -> Plant | F9: =IntvCosts!H14 -> Materials | G9: =IntvCosts!I14 -> Tax | H9: TOTAL | I9: Environmental Impact | J9: Usage | K9: Unit of usage | L9: =IntvCosts!Q14 -> Carbon Dioxide equivalent | M9: =IntvCosts!R14 -> User-defined impact (2) | N9: =IntvCosts!S14 -> User-defined impact (3) | O9: Notes on estimation
D10: € | E10: € | F10: € | G10: € | H10: € | L10: kg (CO2e) | M10: =IntvCosts!R16& " (" &IntvCosts!R15&")" -> unit2 (EI-2) | N10: =IntvCosts!S16& " (" &IntvCosts!S15&")" -> unit3 (EI-3)
C11: Tamping machine | D11: 6000 | E11: 2000 | F11: 2000 | G11: 2000 | H11: =SUM(D11:G11) -> 12000 | I11: Ballast tamper | J11: 1 | K11: =IF($I11<>"",VLOOKUP($I11,EnvImpacts!$G$14:$I$52,EnvImpacts!H$13,0),"-") -> km | L11: =IF($I11<>"",VLOOKUP($I11,EnvImpacts!$G$14:$I$52,EnvImpacts!I$13,0),"-") -> 153
C12: Other activities | D12: 4000 | G12: 1000 | H12: 5000 | I12: Diesel fuel | J12: 100 | K12: =IF($I12<>"",VLOOKUP($I12,EnvImpacts!$G$14:$I$52,EnvImpacts!H$13,0),"-") -> l | L12: =IF($I12<>"",VLOOKUP($I12,EnvImpacts!$G$14:$I$52,EnvImpacts!I$13,0),"-") -> 2.68
H13: 0 | K13: =IF($I13<>"",VLOOKUP($I13,EnvImpacts!$G$14:$I$52,EnvImpacts!H$13,0),"-") -> - | L13: =IF($I13<>"",VLOOKUP($I13,EnvImpacts!$G$14:$I$52,EnvImpacts!I$13,0),"-") -> -
H14: 0 | K14: =IF($I14<>"",VLOOKUP($I14,EnvImpacts!$G$14:$I$52,EnvImpacts!H$13,0),"-") -> - | L14: =IF($I14<>"",VLOOKUP($I14,EnvImpacts!$G$14:$I$52,EnvImpacts!I$13,0),"-") -> -
H15: 0 | K15: =IF($I15<>"",VLOOKUP($I15,EnvImpacts!$G$14:$I$52,EnvImpacts!H$13,0),"-") -> - | L15: =IF($I15<>"",VLOOKUP($I15,EnvImpacts!$G$14:$I$52,EnvImpacts!I$13,0),"-") -> -
H16: 0 | K16: =IF($I16<>"",VLOOKUP($I16,EnvImpacts!$G$14:$I$52,EnvImpacts!H$13,0),"-") -> - | L16: =IF($I16<>"",VLOOKUP($I16,EnvImpacts!$G$14:$I$52,EnvImpacts!I$13,0),"-") -> -
H17: 0 | K17: =IF($I17<>"",VLOOKUP($I17,EnvImpacts!$G$14:$I$52,EnvImpacts!H$13,0),"-") -> - | L17: =IF($I17<>"",VLOOKUP($I17,EnvImpacts!$G$14:$I$52,EnvImpacts!I$13,0),"-") -> -
H18: 0 | K18: =IF($I18<>"",VLOOKUP($I18,EnvImpacts!$G$14:$I$52,EnvImpacts!H$13,0),"-") -> - | L18: =IF($I18<>"",VLOOKUP($I18,EnvImpacts!$G$14:$I$52,EnvImpacts!I$13,0),"-") -> -
H19: 0 | K19: =IF($I19<>"",VLOOKUP($I19,EnvImpacts!$G$14:$I$52,EnvImpacts!H$13,0),"-") -> - | L19: =IF($I19<>"",VLOOKUP($I19,EnvImpacts!$G$14:$I$52,EnvImpacts!I$13,0),"-") -> -
H20: 0 | K20: =IF($I20<>"",VLOOKUP($I20,EnvImpacts!$G$14:$I$52,EnvImpacts!H$13,0),"-") -> - | L20: =IF($I20<>"",VLOOKUP($I20,EnvImpacts!$G$14:$I$52,EnvImpacts!I$13,0),"-") -> -
H21: 0 | K21: =IF($I21<>"",VLOOKUP($I21,EnvImpacts!$G$14:$I$52,EnvImpacts!H$13,0),"-") -> - | L21: =IF($I21<>"",VLOOKUP($I21,EnvImpacts!$G$14:$I$52,EnvImpacts!I$13,0),"-") -> -
H22: 0 | K22: =IF($I22<>"",VLOOKUP($I22,EnvImpacts!$G$14:$I$52,EnvImpacts!H$13,0),"-") -> - | L22: =IF($I22<>"",VLOOKUP($I22,EnvImpacts!$G$14:$I$52,EnvImpacts!I$13,0),"-") -> -
H23: 0 | K23: =IF($I23<>"",VLOOKUP($I23,EnvImpacts!$G$14:$I$52,EnvImpacts!H$13,0),"-") -> - | L23: =IF($I23<>"",VLOOKUP($I23,EnvImpacts!$G$14:$I$52,EnvImpacts!I$13,0),"-") -> -
H24: 0 | K24: =IF($I24<>"",VLOOKUP($I24,EnvImpacts!$G$14:$I$52,EnvImpacts!H$13,0),"-") -> - | L24: =IF($I24<>"",VLOOKUP($I24,EnvImpacts!$G$14:$I$52,EnvImpacts!I$13,0),"-") -> -
H25: 0 | K25: =IF($I25<>"",VLOOKUP($I25,EnvImpacts!$G$14:$I$52,EnvImpacts!H$13,0),"-") -> - | L25: =IF($I25<>"",VLOOKUP($I25,EnvImpacts!$G$14:$I$52,EnvImpacts!I$13,0),"-") -> -
H26: 0 | K26: =IF($I26<>"",VLOOKUP($I26,EnvImpacts!$G$14:$I$52,EnvImpacts!H$13,0),"-") -> - | L26: =IF($I26<>"",VLOOKUP($I26,EnvImpacts!$G$14:$I$52,EnvImpacts!I$13,0),"-") -> -
I27: User defined impacts
H28: =SUM(D28:G28) -> 0
H29: =SUM(D29:G29) -> 0
C31: Totals | D31: =SUM(D10:D30) -> 10000 | E31: =SUM(E10:E30) -> 2000 | F31: =SUM(F10:F30) -> 2000 | G31: =SUM(G10:G30) -> 3000 | H31: =SUM(H10:H30) -> 17000 | I31: Carried to 'IntvCosts' | L31: =SUMPRODUCT($J10:$J29,L10:L29) -> 421 | M31: =SUM(M10:M29) -> 0 | N31: =SUM(N10:N29) -> 0 | O31: Carried to 'IntvCosts'

Sheet IntvCost (2)
A1: MAINLINE | C1: =Flowchart!C1 -> Plain Track Model
C2: Costs & Environment Impact of Intervention
C3: Enter costs and environmental impacts for this intervention
B4: Interv. No: | C4: =-VALUE(RIGHT(CELL("filename",A1),4)) -> 2
B5: Intervention: | C5: =IntvTriggers!D31 -> Renew track structure
B6: Scale: | C6: ONE intervention treats: | D6: 1 | E6: km
D8: Financial Costs Estimate [Euros] | I8: Environamental Impact Assessment
C9: Item | D9: =IntvCosts!F14 -> Labour | E9: =IntvCosts!G14 -> Plant | F9: =IntvCosts!H14 -> Materials | G9: =IntvCosts!I14 -> Tax | H9: TOTAL | I9: Environmental Impact | J9: Usage | K9: Unit of usage | L9: =IntvCosts!Q14 -> Carbon Dioxide equivalent | M9: =IntvCosts!R14 -> User-defined impact (2) | N9: =IntvCosts!S14 -> User-defined impact (3) | O9: Notes on estimation
D10: € | E10: € | F10: € | G10: € | H10: € | L10: kg (CO2e) | M10: =IntvCosts!R16& " (" &IntvCosts!R15&")" -> unit2 (EI-2) | N10: =IntvCosts!S16& " (" &IntvCosts!S15&")" -> unit3 (EI-3)
C11: Relaying | D11: 5000 | E11: 500000 | F11: 5000 | G11: 10000 | H11: =SUM(D11:G11) -> 520000 | I11: Sleeper (concrete) | J11: 2000 | K11: =IF($I11<>"",VLOOKUP($I11,EnvImpacts!$G$14:$I$52,EnvImpacts!H$13,0),"-") -> each | L11: =IF($I11<>"",VLOOKUP($I11,EnvImpacts!$G$14:$I$52,EnvImpacts!I$13,0),"-") -> 21.57285
C12: Other activities | D12: 200000 | G12: 10000 | H12: 210000 | I12: Ballast | J12: 5000 | K12: =IF($I12<>"",VLOOKUP($I12,EnvImpacts!$G$14:$I$52,EnvImpacts!H$13,0),"-") -> m3 | L12: =IF($I12<>"",VLOOKUP($I12,EnvImpacts!$G$14:$I$52,EnvImpacts!I$13,0),"-") -> 50.72
H13: 0 | K13: =IF($I13<>"",VLOOKUP($I13,EnvImpacts!$G$14:$I$52,EnvImpacts!H$13,0),"-") -> - | L13: =IF($I13<>"",VLOOKUP($I13,EnvImpacts!$G$14:$I$52,EnvImpacts!I$13,0),"-") -> -
H14: 0 | K14: =IF($I14<>"",VLOOKUP($I14,EnvImpacts!$G$14:$I$52,EnvImpacts!H$13,0),"-") -> - | L14: =IF($I14<>"",VLOOKUP($I14,EnvImpacts!$G$14:$I$52,EnvImpacts!I$13,0),"-") -> -
H15: 0 | K15: =IF($I15<>"",VLOOKUP($I15,EnvImpacts!$G$14:$I$52,EnvImpacts!H$13,0),"-") -> - | L15: =IF($I15<>"",VLOOKUP($I15,EnvImpacts!$G$14:$I$52,EnvImpacts!I$13,0),"-") -> -
H16: 0 | K16: =IF($I16<>"",VLOOKUP($I16,EnvImpacts!$G$14:$I$52,EnvImpacts!H$13,0),"-") -> - | L16: =IF($I16<>"",VLOOKUP($I16,EnvImpacts!$G$14:$I$52,EnvImpacts!I$13,0),"-") -> -
H17: 0 | K17: =IF($I17<>"",VLOOKUP($I17,EnvImpacts!$G$14:$I$52,EnvImpacts!H$13,0),"-") -> - | L17: =IF($I17<>"",VLOOKUP($I17,EnvImpacts!$G$14:$I$52,EnvImpacts!I$13,0),"-") -> -
H18: 0 | K18: =IF($I18<>"",VLOOKUP($I18,EnvImpacts!$G$14:$I$52,EnvImpacts!H$13,0),"-") -> - | L18: =IF($I18<>"",VLOOKUP($I18,EnvImpacts!$G$14:$I$52,EnvImpacts!I$13,0),"-") -> -
H19: 0 | K19: =IF($I19<>"",VLOOKUP($I19,EnvImpacts!$G$14:$I$52,EnvImpacts!H$13,0),"-") -> - | L19: =IF($I19<>"",VLOOKUP($I19,EnvImpacts!$G$14:$I$52,EnvImpacts!I$13,0),"-") -> -
H20: 0 | K20: =IF($I20<>"",VLOOKUP($I20,EnvImpacts!$G$14:$I$52,EnvImpacts!H$13,0),"-") -> - | L20: =IF($I20<>"",VLOOKUP($I20,EnvImpacts!$G$14:$I$52,EnvImpacts!I$13,0),"-") -> -
H21: 0 | K21: =IF($I21<>"",VLOOKUP($I21,EnvImpacts!$G$14:$I$52,EnvImpacts!H$13,0),"-") -> - | L21: =IF($I21<>"",VLOOKUP($I21,EnvImpacts!$G$14:$I$52,EnvImpacts!I$13,0),"-") -> -
H22: 0 | K22: =IF($I22<>"",VLOOKUP($I22,EnvImpacts!$G$14:$I$52,EnvImpacts!H$13,0),"-") -> - | L22: =IF($I22<>"",VLOOKUP($I22,EnvImpacts!$G$14:$I$52,EnvImpacts!I$13,0),"-") -> -
H23: 0 | K23: =IF($I23<>"",VLOOKUP($I23,EnvImpacts!$G$14:$I$52,EnvImpacts!H$13,0),"-") -> - | L23: =IF($I23<>"",VLOOKUP($I23,EnvImpacts!$G$14:$I$52,EnvImpacts!I$13,0),"-") -> -
H24: 0 | K24: =IF($I24<>"",VLOOKUP($I24,EnvImpacts!$G$14:$I$52,EnvImpacts!H$13,0),"-") -> - | L24: =IF($I24<>"",VLOOKUP($I24,EnvImpacts!$G$14:$I$52,EnvImpacts!I$13,0),"-") -> -
H25: 0 | K25: =IF($I25<>"",VLOOKUP($I25,EnvImpacts!$G$14:$I$52,EnvImpacts!H$13,0),"-") -> - | L25: =IF($I25<>"",VLOOKUP($I25,EnvImpacts!$G$14:$I$52,EnvImpacts!I$13,0),"-") -> -
H26: 0 | K26: =IF($I26<>"",VLOOKUP($I26,EnvImpacts!$G$14:$I$52,EnvImpacts!H$13,0),"-") -> - | L26: =IF($I26<>"",VLOOKUP($I26,EnvImpacts!$G$14:$I$52,EnvImpacts!I$13,0),"-") -> -
I27: User defined impacts
H28: =SUM(D28:G28) -> 0
H29: =SUM(D29:G29) -> 0
C31: Totals | D31: =SUM(D10:D30) -> 205000 | E31: =SUM(E10:E30) -> 500000 | F31: =SUM(F10:F30) -> 5000 | G31: =SUM(G10:G30) -> 20000 | H31: =SUM(H10:H30) -> 730000 | I31: Carried to 'IntvCosts' | L31: =SUMPRODUCT($J10:$J29,L10:L29) -> 296745.7 | M31: =SUM(M10:M29) -> 0 | N31: =SUM(N10:N29) -> 0 | O31: Carried to 'IntvCosts'

Sheet DetRates
A1: MAINLINE | C1: =Flowchart!C1 -> Plain Track Model
C2: Track Deterioration Data
C6: Reference Values
U7: Maximum Number of Tamping Actions
D8: Operational Speed | F8: Traffic Loading | H8: Sleepers | J8: Ballast Hardness | L8: Minimum Radius | N8: Sub Layer Condition | P8: Drainage Condition | U8: Ballast Hardness
D9: Ref | E9: Name | F9: Ref | G9: Name | H9: Ref | I9: Name | J9: Ref | K9: Name | L9: Ref | M9: Name | N9: Ref | O9: Name | P9: Ref | Q9: Name | U9: Ref | V9: Name | W9: Max No.
D10: 1 | E10: <130mph | F10: 1 | G10: < 15,000 | H10: 1 | I10: Concrete | J10: 1 | K10: Hard | L10: 1 | M10: > 600 | N10: 1 | O10: Good | P10: 1 | Q10: Good | U10: 1 | V10: Hard | W10: 20
F11: 2 | G11: 15,000 - 30,000 | H11: 2 | I11: Concrete with USP | J11: 2 | K11: Medium | L11: 2 | M11: 400 < R < 600 | N11: 2 | O11: Poor | P11: 2 | Q11: Poor | U11: 2 | V11: Medium | W11: 15
F12: 3 | G12: 30,000 - 45,000 | H12: 3 | I12: Wooden | J12: 3 | K12: Soft | L12: 3 | M12: 300 < R < 400 | U12: 3 | V12: Soft | W12: 10
F13: 4 | G13: 45,000 - 65,000 | L13: 4 | M13: < 300
F14: 5 | G14: 65,000 - 100,000
C16: Deterioration Data
D17: Operational Speed | F17: Traffic Loading | H17: Sleepers | J17: Ballast Hardness | L17: Minimum Radius | N17: Sub Layer Condition | P17: Drainage Condition | R17: Age Range | U17: Data to be selected
B18: Lookup | C18: Row | D18: Ref | E18: Name | F18: Ref | G18: Name | H18: Ref | I18: Name | J18: Ref | K18: Name | L18: Ref | M18: Name | N18: Ref | O18: Name | P18: Ref | Q18: Name | R18: Range | S18: Start | T18: End | U18: Q0 | V18: bn | W18: dbn/dt | X18: Qn | Y18: dQn/dt | Z18: Qult | AA18: TSL | AB18: Ref
B19: =D19&F19&H19&J19&L19&N19&P19&"-"&S19 -> 1412111-0 | C19: 1 | D19: 1 | E19: <130mph | F19: 4 | G19: 45,000 - 65,000 | H19: 1 | I19: Concrete | J19: 2 | K19: Medium | L19: 1 | M19: > 600 | N19: 1 | O19: Good | P19: 1 | Q19: Good | R19: 0 to 10 | S19: 0 | T19: 10 | U19: -7 | V19: 0.2 | W19: 0 | X19: -8 | Y19: 0 | Z19: -12 | AA19: 50
B20: =D20&F20&H20&J20&L20&N20&P20&"-"&S20 -> 1412111-10 | C20: 2 | D20: 1 | E20: <130mph | F20: 4 | G20: 45,000 - 65,000 | H20: 1 | I20: Concrete | J20: 2 | K20: Medium | L20: 1 | M20: > 600 | N20: 1 | O20: Good | P20: 1 | Q20: Good | R20: 10 to 25 | S20: 10 | T20: 25 | U20: -7 | V20: 0.15 | W20: 0 | X20: -10 | Y20: 0 | Z20: -15 | AA20: 50
B21: 1412111-25 | C21: 3 | D21: 1 | E21: <130mph | F21: 4 | G21: 45,000 - 65,000 | H21: 1 | I21: Concrete | J21: 2 | K21: Medium | L21: 1 | M21: > 600 | N21: 1 | O21: Good | P21: 1 | Q21: Good | R21: 25 to 30 | S21: 25 | T21: 30 | U21: -7 | V21: 0.19 | W21: 0 | X21: -14 | Y21: 0 | Z21: -20 | AA21: 50
B22: 1412111-30 | C22: 4 | D22: 1 | E22: <130mph | F22: 4 | G22: 45,000 - 65,000 | H22: 1 | I22: Concrete | J22: 2 | K22: Medium | L22: 1 | M22: > 600 | N22: 1 | O22: Good | P22: 1 | Q22: Good | R22: Above 30 | S22: 30 | T22: 1000 | U22: -7 | V22: 0.19 | W22: 0 | X22: -20 | Y22: -0.5 | Z22: -25 | AA22: 50
B23: 1411111-0 | C23: 5 | D23: 1 | E23: <130mph | F23: 4 | G23: 45,000 - 65,000 | H23: 1 | I23: Concrete | J23: 1 | K23: Hard | L23: 1 | M23: > 600 | N23: 1 | O23: Good | P23: 1 | Q23: Good | R23: 0 to 10 | S23: 0 | T23: 10 | U23: -7 | V23: 0.14 | W23: 0 | X23: -7.2 | Y23: 0 | Z23: -12 | AA23: 50
B24: 1411111-10 | C24: 6 | D24: 1 | E24: <130mph | F24: 4 | G24: 45,000 - 65,000 | H24: 1 | I24: Concrete | J24: 1 | K24: Hard | L24: 1 | M24: > 600 | N24: 1 | O24: Good | P24: 1 | Q24: Good | R24: 10 to 25 | S24: 10 | T24: 25 | U24: -7 | V24: 0.105 | W24: 0 | X24: -9 | Y24: 0 | Z24: -15 | AA24: 50
B25: 1411111-25 | C25: 7 | D25: 1 | E25: <130mph | F25: 4 | G25: 45,000 - 65,000 | H25: 1 | I25: Concrete | J25: 1 | K25: Hard | L25: 1 | M25: > 600 | N25: 1 | O25: Good | P25: 1 | Q25: Good | R25: 25 to 30 | S25: 25 | T25: 30 | U25: -7 | V25: 0.133 | W25: 0 | X25: -12.6 | Y25: 0 | Z25: -20 | AA25: 50
B26: 1411111-30 | C26: 8 | D26: 1 | E26: <130mph | F26: 4 | G26: 45,000 - 65,000 | H26: 1 | I26: Concrete | J26: 1 | K26: Hard | L26: 1 | M26: > 600 | N26: 1 | O26: Good | P26: 1 | Q26: Good | R26: Above 30 | S26: 30 | T26: 1000 | U26: -7 | V26: 0.133 | W26: 0 | X26: -18 | Y26: -0.5 | Z26: -25 | AA26: 50
B27: 1413111-0 | C27: 9 | D27: 1 | E27: <130mph | F27: 4 | G27: 45,000 - 65,000 | H27: 1 | I27: Concrete | J27: 3 | K27: Soft | L27: 1 | M27: > 600 | N27: 1 | O27: Good | P27: 1 | Q27: Good | R27: 0 to 10 | S27: 0 | T27: 10 | U27: -7 | V27: 0.24 | W27: 0 | X27: -8.8 | Y27: 0 | Z27: -12 | AA27: 50
B28: 1413111-10 | C28: 10 | D28: 1 | E28: <130mph | F28: 4 | G28: 45,000 - 65,000 | H28: 1 | I28: Concrete | J28: 3 | K28: Soft | L28: 1 | M28: > 600 | N28: 1 | O28: Good | P28: 1 | Q28: Good | R28: 10 to 25 | S28: 10 | T28: 25 | U28: -7 | V28: 0.18 | W28: 0 | X28: -11 | Y28: 0 | Z28: -15 | AA28: 50
B29: 1413111-25 | C29: 11 | D29: 1 | E29: <130mph | F29: 4 | G29: 45,000 - 65,000 | H29: 1 | I29: Concrete | J29: 3 | K29: Soft | L29: 1 | M29: > 600 | N29: 1 | O29: Good | P29: 1 | Q29: Good | R29: 25 to 30 | S29: 25 | T29: 30 | U29: -7 | V29: 0.228 | W29: 0 | X29: -15.4 | Y29: 0 | Z29: -20 | AA29: 50
B30: 1413111-30 | C30: 12 | D30: 1 | E30: <130mph | F30: 4 | G30: 45,000 - 65,000 | H30: 1 | I30: Concrete | J30: 3 | K30: Soft | L30: 1 | M30: > 600 | N30: 1 | O30: Good | P30: 1 | Q30: Good | R30: Above 30 | S30: 30 | T30: 1000 | U30: -7 | V30: 0.228 | W30: 0 | X30: -22 | Y30: -0.5 | Z30: -25 | AA30: 50
B31: 1412121-0 | C31: 13 | D31: 1 | E31: <130mph | F31: 4 | G31: 45,000 - 65,000 | H31: 1 | I31: Concrete | J31: 2 | K31: Medium | L31: 1 | M31: > 600 | N31: 2 | O31: Poor | P31: 1 | Q31: Good | R31: 0 to 10 | S31: 0 | T31: 10 | U31: -7 | V31: 0.2 | W31: 0 | X31: -8 | Y31: 0 | Z31: -12 | AA31: 50
B32: 1412121-10 | C32: 14 | D32: 1 | E32: <130mph | F32: 4 | G32: 45,000 - 65,000 | H32: 1 | I32: Concrete | J32: 2 | K32: Medium | L32: 1 | M32: > 600 | N32: 2 | O32: Poor | P32: 1 | Q32: Good | R32: 10 to 25 | S32: 10 | T32: 25 | U32: -7 | V32: 0.18 | W32: 0 | X32: -11 | Y32: 0 | Z32: -15 | AA32: 50
B33: 1412121-25 | C33: 15 | D33: 1 | E33: <130mph | F33: 4 | G33: 45,000 - 65,000 | H33: 1 | I33: Concrete | J33: 2 | K33: Medium | L33: 1 | M33: > 600 | N33: 2 | O33: Poor | P33: 1 | Q33: Good | R33: 25 to 30 | S33: 25 | T33: 30 | U33: -7 | V33: 0.228 | W33: 0 | X33: -15.4 | Y33: 0 | Z33: -20 | AA33: 50
B34: 1412121-30 | C34: 16 | D34: 1 | E34: <130mph | F34: 4 | G34: 45,000 - 65,000 | H34: 1 | I34: Concrete | J34: 2 | K34: Medium | L34: 1 | M34: > 600 | N34: 2 | O34: Poor | P34: 1 | Q34: Good | R34: Above 30 | S34: 30 | T34: 1000 | U34: -7 | V34: 0.228 | W34: 0 | X34: -22 | Y34: -0.5 | Z34: -25 | AA34: 50
B35: 1411121-0 | C35: 17 | D35: 1 | E35: <130mph | F35: 4 | G35: 45,000 - 65,000 | H35: 1 | I35: Concrete | J35: 1 | K35: Hard | L35: 1 | M35: > 600 | N35: 2 | O35: Poor | P35: 1 | Q35: Good | R35: 0 to 10 | S35: 0 | T35: 10 | U35: -7 | V35: 0.14 | W35: 0 | X35: -7.2 | Y35: 0 | Z35: -12 | AA35: 50
B36: 1411121-10 | C36: 18 | D36: 1 | E36: <130mph | F36: 4 | G36: 45,000 - 65,000 | H36: 1 | I36: Concrete | J36: 1 | K36: Hard | L36: 1 | M36: > 600 | N36: 2 | O36: Poor | P36: 1 | Q36: Good | R36: 10 to 25 | S36: 10 | T36: 25 | U36: -7 | V36: 0.126 | W36: 0 | X36: -9.9 | Y36: 0 | Z36: -15 | AA36: 50
B37: 1411121-25 | C37: 19 | D37: 1 | E37: <130mph | F37: 4 | G37: 45,000 - 65,000 | H37: 1 | I37: Concrete | J37: 1 | K37: Hard | L37: 1 | M37: > 600 | N37: 2 | O37: Poor | P37: 1 | Q37: Good | R37: 25 to 30 | S37: 25 | T37: 30 | U37: -7 | V37: 0.1596 | W37: 0 | X37: -13.86 | Y37: 0 | Z37: -20 | AA37: 50
B38: 1411121-30 | C38: 20 | D38: 1 | E38: <130mph | F38: 4 | G38: 45,000 - 65,000 | H38: 1 | I38: Concrete | J38: 1 | K38: Hard | L38: 1 | M38: > 600 | N38: 2 | O38: Poor | P38: 1 | Q38: Good | R38: Above 30 | S38: 30 | T38: 1000 | U38: -7 | V38: 0.1596 | W38: 0 | X38: -19.8 | Y38: -0.5 | Z38: -25 | AA38: 50
B39: 1413121-0 | C39: 21 | D39: 1 | E39: <130mph | F39: 4 | G39: 45,000 - 65,000 | H39: 1 | I39: Concrete | J39: 3 | K39: Soft | L39: 1 | M39: > 600 | N39: 2 | O39: Poor | P39: 1 | Q39: Good | R39: 0 to 10 | S39: 0 | T39: 10 | U39: -7 | V39: 0.24 | W39: 0 | X39: -8.8 | Y39: 0 | Z39: -12 | AA39: 50
B40: 1413121-10 | C40: 22 | D40: 1 | E40: <130mph | F40: 4 | G40: 45,000 - 65,000 | H40: 1 | I40: Concrete | J40: 3 | K40: Soft | L40: 1 | M40: > 600 | N40: 2 | O40: Poor | P40: 1 | Q40: Good | R40: 10 to 25 | S40: 10 | T40: 25 | U40: -7 | V40: 0.216 | W40: 0 | X40: -12.1 | Y40: 0 | Z40: -15 | AA40: 50
B41: 1413121-25 | C41: 23 | D41: 1 | E41: <130mph | F41: 4 | G41: 45,000 - 65,000 | H41: 1 | I41: Concrete | J41: 3 | K41: Soft | L41: 1 | M41: > 600 | N41: 2 | O41: Poor | P41: 1 | Q41: Good | R41: 25 to 30 | S41: 25 | T41: 30 | U41: -7 | V41: 0.2736 | W41: 0 | X41: -16.94 | Y41: 0 | Z41: -20 | AA41: 50
B42: 1413121-30 | C42: 24 | D42: 1 | E42: <130mph | F42: 4 | G42: 45,000 - 65,000 | H42: 1 | I42: Concrete | J42: 3 | K42: Soft | L42: 1 | M42: > 600 | N42: 2 | O42: Poor | P42: 1 | Q42: Good | R42: Above 30 | S42: 30 | T42: 1000 | U42: -7 | V42: 0.2736 | W42: 0 | X42: -24.2 | Y42: -0.5 | Z42: -25 | AA42: 50
B43: 1412112-0 | C43: 25 | D43: 1 | E43: <130mph | F43: 4 | G43: 45,000 - 65,000 | H43: 1 | I43: Concrete | J43: 2 | K43: Medium | L43: 1 | M43: > 600 | N43: 1 | O43: Good | P43: 2 | Q43: Poor | R43: 0 to 10 | S43: 0 | T43: 10 | U43: -7 | V43: 0.2 | W43: 0 | X43: -8 | Y43: 0 | Z43: -12 | AA43: 50
B44: 1412112-10 | C44: 26 | D44: 1 | E44: <130mph | F44: 4 | G44: 45,000 - 65,000 | H44: 1 | I44: Concrete | J44: 2 | K44: Medium | L44: 1 | M44: > 600 | N44: 1 | O44: Good | P44: 2 | Q44: Poor | R44: 10 to 25 | S44: 10 | T44: 25 | U44: -7 | V44: 0.165 | W44: 0 | X44: -11 | Y44: 0 | Z44: -15 | AA44: 50
B45: 1412112-25 | C45: 27 | D45: 1 | E45: <130mph | F45: 4 | G45: 45,000 - 65,000 | H45: 1 | I45: Concrete | J45: 2 | K45: Medium | L45: 1 | M45: > 600 | N45: 1 | O45: Good | P45: 2 | Q45: Poor | R45: 25 to 30 | S45: 25 | T45: 30 | U45: -7 | V45: 0.209 | W45: 0 | X45: -15.4 | Y45: 0 | Z45: -20 | AA45: 50
B46: 1412112-30 | C46: 28 | D46: 1 | E46: <130mph | F46: 4 | G46: 45,000 - 65,000 | H46: 1 | I46: Concrete | J46: 2 | K46: Medium | L46: 1 | M46: > 600 | N46: 1 | O46: Good | P46: 2 | Q46: Poor | R46: Above 30 | S46: 30 | T46: 1000 | U46: -7 | V46: 0.209 | W46: 0 | X46: -22 | Y46: -0.5 | Z46: -25 | AA46: 50
B47: 1411112-0 | C47: 29 | D47: 1 | E47: <130mph | F47: 4 | G47: 45,000 - 65,000 | H47: 1 | I47: Concrete | J47: 1 | K47: Hard | L47: 1 | M47: > 600 | N47: 1 | O47: Good | P47: 2 | Q47: Poor | R47: 0 to 10 | S47: 0 | T47: 10 | U47: -7 | V47: 0.14 | W47: 0 | X47: -7.2 | Y47: 0 | Z47: -12 | AA47: 50
B48: 1411112-10 | C48: 30 | D48: 1 | E48: <130mph | F48: 4 | G48: 45,000 - 65,000 | H48: 1 | I48: Concrete | J48: 1 | K48: Hard | L48: 1 | M48: > 600 | N48: 1 | O48: Good | P48: 2 | Q48: Poor | R48: 10 to 25 | S48: 10 | T48: 25 | U48: -7 | V48: 0.1155 | W48: 0 | X48: -9.9 | Y48: 0 | Z48: -15 | AA48: 50
B49: 1411112-25 | C49: 31 | D49: 1 | E49: <130mph | F49: 4 | G49: 45,000 - 65,000 | H49: 1 | I49: Concrete | J49: 1 | K49: Hard | L49: 1 | M49: > 600 | N49: 1 | O49: Good | P49: 2 | Q49: Poor | R49: 25 to 30 | S49: 25 | T49: 30 | U49: -7 | V49: 0.1463 | W49: 0 | X49: -13.86 | Y49: 0 | Z49: -20 | AA49: 50
B50: 1411112-30 | C50: 32 | D50: 1 | E50: <130mph | F50: 4 | G50: 45,000 - 65,000 | H50: 1 | I50: Concrete | J50: 1 | K50: Hard | L50: 1 | M50: > 600 | N50: 1 | O50: Good | P50: 2 | Q50: Poor | R50: Above 30 | S50: 30 | T50: 1000 | U50: -7 | V50: 0.1463 | W50: 0 | X50: -19.8 | Y50: -0.5 | Z50: -25 | AA50: 50
B51: 1413112-0 | C51: 33 | D51: 1 | E51: <130mph | F51: 4 | G51: 45,000 - 65,000 | H51: 1 | I51: Concrete | J51: 3 | K51: Soft | L51: 1 | M51: > 600 | N51: 1 | O51: Good | P51: 2 | Q51: Poor | R51: 0 to 10 | S51: 0 | T51: 10 | U51: -7 | V51: 0.24 | W51: 0 | X51: -8.8 | Y51: 0 | Z51: -12 | AA51: 50
B52: 1413112-10 | C52: 34 | D52: 1 | E52: <130mph | F52: 4 | G52: 45,000 - 65,000 | H52: 1 | I52: Concrete | J52: 3 | K52: Soft | L52: 1 | M52: > 600 | N52: 1 | O52: Good | P52: 2 | Q52: Poor | R52: 10 to 25 | S52: 10 | T52: 25 | U52: -7 | V52: 0.198 | W52: 0 | X52: -12.1 | Y52: 0 | Z52: -15 | AA52: 50
B53: 1413112-25 | C53: 35 | D53: 1 | E53: <130mph | F53: 4 | G53: 45,000 - 65,000 | H53: 1 | I53: Concrete | J53: 3 | K53: Soft | L53: 1 | M53: > 600 | N53: 1 | O53: Good | P53: 2 | Q53: Poor | R53: 25 to 30 | S53: 25 | T53: 30 | U53: -7 | V53: 0.2508 | W53: 0 | X53: -16.94 | Y53: 0 | Z53: -20 | AA53: 50
B54: 1413112-30 | C54: 36 | D54: 1 | E54: <130mph | F54: 4 | G54: 45,000 - 65,000 | H54: 1 | I54: Concrete | J54: 3 | K54: Soft | L54: 1 | M54: > 600 | N54: 1 | O54: Good | P54: 2 | Q54: Poor | R54: Above 30 | S54: 30 | T54: 1000 | U54: -7 | V54: 0.2508 | W54: 0 | X54: -24.2 | Y54: -0.5 | Z54: -25 | AA54: 50
B55: 1412122-0 | C55: 37 | D55: 1 | E55: <130mph | F55: 4 | G55: 45,000 - 65,000 | H55: 1 | I55: Concrete | J55: 2 | K55: Medium | L55: 1 | M55: > 600 | N55: 2 | O55: Poor | P55: 2 | Q55: Poor | R55: 0 to 10 | S55: 0 | T55: 10 | U55: -7 | V55: 0.2 | W55: 0 | X55: -8 | Y55: 0 | Z55: -12 | AA55: 50
B56: 1412122-10 | C56: 38 | D56: 1 | E56: <130mph | F56: 4 | G56: 45,000 - 65,000 | H56: 1 | I56: Concrete | J56: 2 | K56: Medium | L56: 1 | M56: > 600 | N56: 2 | O56: Poor | P56: 2 | Q56: Poor | R56: 10 to 25 | S56: 10 | T56: 25 | U56: -7 | V56: 0.198 | W56: 0 | X56: -12.1 | Y56: 0 | Z56: -15 | AA56: 50
B57: 1412122-25 | C57: 39 | D57: 1 | E57: <130mph | F57: 4 | G57: 45,000 - 65,000 | H57: 1 | I57: Concrete | J57: 2 | K57: Medium | L57: 1 | M57: > 600 | N57: 2 | O57: Poor | P57: 2 | Q57: Poor | R57: 25 to 30 | S57: 25 | T57: 30 | U57: -7 | V57: 0.2508 | W57: 0 | X57: -16.94 | Y57: 0 | Z57: -20 | AA57: 50
B58: 1412122-30 | C58: 40 | D58: 1 | E58: <130mph | F58: 4 | G58: 45,000 - 65,000 | H58: 1 | I58: Concrete | J58: 2 | K58: Medium | L58: 1 | M58: > 600 | N58: 2 | O58: Poor | P58: 2 | Q58: Poor | R58: Above 30 | S58: 30 | T58: 1000 | U58: -7 | V58: 0.2508 | W58: 0 | X58: -24.2 | Y58: -0.5 | Z58: -25 | AA58: 50
B59: 1411122-0 | C59: 41 | D59: 1 | E59: <130mph | F59: 4 | G59: 45,000 - 65,000 | H59: 1 | I59: Concrete | J59: 1 | K59: Hard | L59: 1 | M59: > 600 | N59: 2 | O59: Poor | P59: 2 | Q59: Poor | R59: 0 to 10 | S59: 0 | T59: 10 | U59: -7 | V59: 0.14 | W59: 0 | X59: -7.2 | Y59: 0 | Z59: -12 | AA59: 50
B60: 1411122-10 | C60: 42 | D60: 1 | E60: <130mph | F60: 4 | G60: 45,000 - 65,000 | H60: 1 | I60: Concrete | J60: 1 | K60: Hard | L60: 1 | M60: > 600 | N60: 2 | O60: Poor | P60: 2 | Q60: Poor | R60: 10 to 25 | S60: 10 | T60: 25 | U60: -7 | V60: 0.1386 | W60: 0 | X60: -10.89 | Y60: 0 | Z60: -15 | AA60: 50
B61: 1411122-25 | C61: 43 | D61: 1 | E61: <130mph | F61: 4 | G61: 45,000 - 65,000 | H61: 1 | I61: Concrete | J61: 1 | K61: Hard | L61: 1 | M61: > 600 | N61: 2 | O61: Poor | P61: 2 | Q61: Poor | R61: 25 to 30 | S61: 25 | T61: 30 | U61: -7 | V61: 0.17556 | W61: 0 | X61: -15.246 | Y61: 0 | Z61: -20 | AA61: 50
B62: 1411122-30 | C62: 44 | D62: 1 | E62: <130mph | F62: 4 | G62: 45,000 - 65,000 | H62: 1 | I62: Concrete | J62: 1 | K62: Hard | L62: 1 | M62: > 600 | N62: 2 | O62: Poor | P62: 2 | Q62: Poor | R62: Above 30 | S62: 30 | T62: 1000 | U62: -7 | V62: 0.17556 | W62: 0 | X62: -21.78 | Y62: -0.5 | Z62: -25 | AA62: 50
B63: 1413122-0 | C63: 45 | D63: 1 | E63: <130mph | F63: 4 | G63: 45,000 - 65,000 | H63: 1 | I63: Concrete | J63: 3 | K63: Soft | L63: 1 | M63: > 600 | N63: 2 | O63: Poor | P63: 2 | Q63: Poor | R63: 0 to 10 | S63: 0 | T63: 10 | U63: -7 | V63: 0.24 | W63: 0 | X63: -8.8 | Y63: 0 | Z63: -12 | AA63: 50
B64: 1413122-10 | C64: 46 | D64: 1 | E64: <130mph | F64: 4 | G64: 45,000 - 65,000 | H64: 1 | I64: Concrete | J64: 3 | K64: Soft | L64: 1 | M64: > 600 | N64: 2 | O64: Poor | P64: 2 | Q64: Poor | R64: 10 to 25 | S64: 10 | T64: 25 | U64: -7 | V64: 0.2376 | W64: 0 | X64: -13.31 | Y64: 0 | Z64: -15 | AA64: 50
B65: 1413122-25 | C65: 47 | D65: 1 | E65: <130mph | F65: 4 | G65: 45,000 - 65,000 | H65: 1 | I65: Concrete | J65: 3 | K65: Soft | L65: 1 | M65: > 600 | N65: 2 | O65: Poor | P65: 2 | Q65: Poor | R65: 25 to 30 | S65: 25 | T65: 30 | U65: -7 | V65: 0.30096 | W65: 0 | X65: -18.634 | Y65: 0 | Z65: -20 | AA65: 50
B66: 1413122-30 | C66: 48 | D66: 1 | E66: <130mph | F66: 4 | G66: 45,000 - 65,000 | H66: 1 | I66: Concrete | J66: 3 | K66: Soft | L66: 1 | M66: > 600 | N66: 2 | O66: Poor | P66: 2 | Q66: Poor | R66: Above 30 | S66: 30 | T66: 1000 | U66: -7 | V66: 0.30096 | W66: 0 | X66: -26.62 | Y66: -0.5 | Z66: -25 | AA66: 50
B67: 1412211-0 | C67: 49 | D67: 1 | E67: <130mph | F67: 4 | G67: 45,000 - 65,000 | H67: 1 | I67: Concrete | J67: 2 | K67: Medium | L67: 2 | M67: 400 < R < 600 | N67: 1 | O67: Good | P67: 1 | Q67: Good | R67: 0 to 10 | S67: 0 | T67: 10 | U67: -7 | V67: 0.22 | W67: 0 | X67: -8 | Y67: 0 | Z67: -12 | AA67: 50
B68: 1412211-10 | C68: 50 | D68: 1 | E68: <130mph | F68: 4 | G68: 45,000 - 65,000 | H68: 1 | I68: Concrete | J68: 2 | K68: Medium | L68: 2 | M68: 400 < R < 600 | N68: 1 | O68: Good | P68: 1 | Q68: Good | R68: 10 to 25 | S68: 10 | T68: 25 | U68: -7 | V68: 0.165 | W68: 0 | X68: -10 | Y68: 0 | Z68: -15 | AA68: 50
B69: 1412211-25 | C69: 51 | D69: 1 | E69: <130mph | F69: 4 | G69: 45,000 - 65,000 | H69: 1 | I69: Concrete | J69: 2 | K69: Medium | L69: 2 | M69: 400 < R < 600 | N69: 1 | O69: Good | P69: 1 | Q69: Good | R69: 25 to 30 | S69: 25 | T69: 30 | U69: -7 | V69: 0.209 | W69: 0 | X69: -14 | Y69: 0 | Z69: -20 | AA69: 50
B70: 1412211-30 | C70: 52 | D70: 1 | E70: <130mph | F70: 4 | G70: 45,000 - 65,000 | H70: 1 | I70: Concrete | J70: 2 | K70: Medium | L70: 2 | M70: 400 < R < 600 | N70: 1 | O70: Good | P70: 1 | Q70: Good | R70: Above 30 | S70: 30 | T70: 1000 | U70: -7 | V70: 0.209 | W70: 0 | X70: -20 | Y70: -0.5 | Z70: -25 | AA70: 50
B71: 1411211-0 | C71: 53 | D71: 1 | E71: <130mph | F71: 4 | G71: 45,000 - 65,000 | H71: 1 | I71: Concrete | J71: 1 | K71: Hard | L71: 2 | M71: 400 < R < 600 | N71: 1 | O71: Good | P71: 1 | Q71: Good | R71: 0 to 10 | S71: 0 | T71: 10 | U71: -7 | V71: 0.154 | W71: 0 | X71: -7.2 | Y71: 0 | Z71: -12 | AA71: 50
B72: 1411211-10 | C72: 54 | D72: 1 | E72: <130mph | F72: 4 | G72: 45,000 - 65,000 | H72: 1 | I72: Concrete | J72: 1 | K72: Hard | L72: 2 | M72: 400 < R < 600 | N72: 1 | O72: Good | P72: 1 | Q72: Good | R72: 10 to 25 | S72: 10 | T72: 25 | U72: -7 | V72: 0.1155 | W72: 0 | X72: -9 | Y72: 0 | Z72: -15 | AA72: 50
B73: 1411211-25 | C73: 55 | D73: 1 | E73: <130mph | F73: 4 | G73: 45,000 - 65,000 | H73: 1 | I73: Concrete | J73: 1 | K73: Hard | L73: 2 | M73: 400 < R < 600 | N73: 1 | O73: Good | P73: 1 | Q73: Good | R73: 25 to 30 | S73: 25 | T73: 30 | U73: -7 | V73: 0.1463 | W73: 0 | X73: -12.6 | Y73: 0 | Z73: -20 | AA73: 50
B74: 1411211-30 | C74: 56 | D74: 1 | E74: <130mph | F74: 4 | G74: 45,000 - 65,000 | H74: 1 | I74: Concrete | J74: 1 | K74: Hard | L74: 2 | M74: 400 < R < 600 | N74: 1 | O74: Good | P74: 1 | Q74: Good | R74: Above 30 | S74: 30 | T74: 1000 | U74: -7 | V74: 0.1463 | W74: 0 | X74: -18 | Y74: -0.5 | Z74: -25 | AA74: 50
B75: 1413211-0 | C75: 57 | D75: 1 | E75: <130mph | F75: 4 | G75: 45,000 - 65,000 | H75: 1 | I75: Concrete | J75: 3 | K75: Soft | L75: 2 | M75: 400 < R < 600 | N75: 1 | O75: Good | P75: 1 | Q75: Good | R75: 0 to 10 | S75: 0 | T75: 10 | U75: -7 | V75: 0.264 | W75: 0 | X75: -8.8 | Y75: 0 | Z75: -12 | AA75: 50
B76: 1413211-10 | C76: 58 | D76: 1 | E76: <130mph | F76: 4 | G76: 45,000 - 65,000 | H76: 1 | I76: Concrete | J76: 3 | K76: Soft | L76: 2 | M76: 400 < R < 600 | N76: 1 | O76: Good | P76: 1 | Q76: Good | R76: 10 to 25 | S76: 10 | T76: 25 | U76: -7 | V76: 0.198 | W76: 0 | X76: -11 | Y76: 0 | Z76: -15 | AA76: 50
B77: 1413211-25 | C77: 59 | D77: 1 | E77: <130mph | F77: 4 | G77: 45,000 - 65,000 | H77: 1 | I77: Concrete | J77: 3 | K77: Soft | L77: 2 | M77: 400 < R < 600 | N77: 1 | O77: Good | P77: 1 | Q77: Good | R77: 25 to 30 | S77: 25 | T77: 30 | U77: -7 | V77: 0.2508 | W77: 0 | X77: -15.4 | Y77: 0 | Z77: -20 | AA77: 50
B78: 1413211-30 | C78: 60 | D78: 1 | E78: <130mph | F78: 4 | G78: 45,000 - 65,000 | H78: 1 | I78: Concrete | J78: 3 | K78: Soft | L78: 2 | M78: 400 < R < 600 | N78: 1 | O78: Good | P78: 1 | Q78: Good | R78: Above 30 | S78: 30 | T78: 1000 | U78: -7 | V78: 0.2508 | W78: 0 | X78: -22 | Y78: -0.5 | Z78: -25 | AA78: 50
B79: 1412221-0 | C79: 61 | D79: 1 | E79: <130mph | F79: 4 | G79: 45,000 - 65,000 | H79: 1 | I79: Concrete | J79: 2 | K79: Medium | L79: 2 | M79: 400 < R < 600 | N79: 2 | O79: Poor | P79: 1 | Q79: Good | R79: 0 to 10 | S79: 0 | T79: 10 | U79: -7 | V79: 0.22 | W79: 0 | X79: -8 | Y79: 0 | Z79: -12 | AA79: 50
B80: 1412221-10 | C80: 62 | D80: 1 | E80: <130mph | F80: 4 | G80: 45,000 - 65,000 | H80: 1 | I80: Concrete | J80: 2 | K80: Medium | L80: 2 | M80: 400 < R < 600 | N80: 2 | O80: Poor | P80: 1 | Q80: Good | R80: 10 to 25 | S80: 10 | T80: 25 | U80: -7 | V80: 0.198 | W80: 0 | X80: -11 | Y80: 0 | Z80: -15 | AA80: 50
B81: 1412221-25 | C81: 63 | D81: 1 | E81: <130mph | F81: 4 | G81: 45,000 - 65,000 | H81: 1 | I81: Concrete | J81: 2 | K81: Medium | L81: 2 | M81: 400 < R < 600 | N81: 2 | O81: Poor | P81: 1 | Q81: Good | R81: 25 to 30 | S81: 25 | T81: 30 | U81: -7 | V81: 0.2508 | W81: 0 | X81: -15.4 | Y81: 0 | Z81: -20 | AA81: 50
B82: 1412221-30 | C82: 64 | D82: 1 | E82: <130mph | F82: 4 | G82: 45,000 - 65,000 | H82: 1 | I82: Concrete | J82: 2 | K82: Medium | L82: 2 | M82: 400 < R < 600 | N82: 2 | O82: Poor | P82: 1 | Q82: Good | R82: Above 30 | S82: 30 | T82: 1000 | U82: -7 | V82: 0.2508 | W82: 0 | X82: -22 | Y82: -0.5 | Z82: -25 | AA82: 50
B83: 1411221-0 | C83: 65 | D83: 1 | E83: <130mph | F83: 4 | G83: 45,000 - 65,000 | H83: 1 | I83: Concrete | J83: 1 | K83: Hard | L83: 2 | M83: 400 < R < 600 | N83: 2 | O83: Poor | P83: 1 | Q83: Good | R83: 0 to 10 | S83: 0 | T83: 10 | U83: -7 | V83: 0.154 | W83: 0 | X83: -7.2 | Y83: 0 | Z83: -12 | AA83: 50
B84: =D84&F84&H84&J84&L84&N84&P84&"-"&S84 -> 1411221-10 | C84: 66 | D84: 1 | E84: <130mph | F84: 4 | G84: 45,000 - 65,000 | H84: 1 | I84: Concrete | J84: 1 | K84: Hard | L84: 2 | M84: 400 < R < 600 | N84: 2 | O84: Poor | P84: 1 | Q84: Good | R84: 10 to 25 | S84: 10 | T84: 25 | U84: -7 | V84: 0.1386 | W84: 0 | X84: -9.9 | Y84: 0 | Z84: -15 | AA84: 50
B85: 1411221-25 | C85: 67 | D85: 1 | E85: <130mph | F85: 4 | G85: 45,000 - 65,000 | H85: 1 | I85: Concrete | J85: 1 | K85: Hard | L85: 2 | M85: 400 < R < 600 | N85: 2 | O85: Poor | P85: 1 | Q85: Good | R85: 25 to 30 | S85: 25 | T85: 30 | U85: -7 | V85: 0.17556 | W85: 0 | X85: -13.86 | Y85: 0 | Z85: -20 | AA85: 50
B86: 1411221-30 | C86: 68 | D86: 1 | E86: <130mph | F86: 4 | G86: 45,000 - 65,000 | H86: 1 | I86: Concrete | J86: 1 | K86: Hard | L86: 2 | M86: 400 < R < 600 | N86: 2 | O86: Poor | P86: 1 | Q86: Good | R86: Above 30 | S86: 30 | T86: 1000 | U86: -7 | V86: 0.17556 | W86: 0 | X86: -19.8 | Y86: -0.5 | Z86: -25 | AA86: 50
B87: 1413221-0 | C87: 69 | D87: 1 | E87: <130mph | F87: 4 | G87: 45,000 - 65,000 | H87: 1 | I87: Concrete | J87: 3 | K87: Soft | L87: 2 | M87: 400 < R < 600 | N87: 2 | O87: Poor | P87: 1 | Q87: Good | R87: 0 to 10 | S87: 0 | T87: 10 | U87: -7 | V87: 0.264 | W87: 0 | X87: -8.8 | Y87: 0 | Z87: -12 | AA87: 50
B88: 1413221-10 | C88: 70 | D88: 1 | E88: <130mph | F88: 4 | G88: 45,000 - 65,000 | H88: 1 | I88: Concrete | J88: 3 | K88: Soft | L88: 2 | M88: 400 < R < 600 | N88: 2 | O88: Poor | P88: 1 | Q88: Good | R88: 10 to 25 | S88: 10 | T88: 25 | U88: -7 | V88: 0.2376 | W88: 0 | X88: -12.1 | Y88: 0 | Z88: -15 | AA88: 50
B89: 1413221-25 | C89: 71 | D89: 1 | E89: <130mph | F89: 4 | G89: 45,000 - 65,000 | H89: 1 | I89: Concrete | J89: 3 | K89: Soft | L89: 2 | M89: 400 < R < 600 | N89: 2 | O89: Poor | P89: 1 | Q89: Good | R89: 25 to 30 | S89: 25 | T89: 30 | U89: -7 | V89: 0.30096 | W89: 0 | X89: -16.94 | Y89: 0 | Z89: -20 | AA89: 50
B90: 1413221-30 | C90: 72 | D90: 1 | E90: <130mph | F90: 4 | G90: 45,000 - 65,000 | H90: 1 | I90: Concrete | J90: 3 | K90: Soft | L90: 2 | M90: 400 < R < 600 | N90: 2 | O90: Poor | P90: 1 | Q90: Good | R90: Above 30 | S90: 30 | T90: 1000 | U90: -7 | V90: 0.30096 | W90: 0 | X90: -24.2 | Y90: -0.5 | Z90: -25 | AA90: 50
B91: 1412212-0 | C91: 73 | D91: 1 | E91: <130mph | F91: 4 | G91: 45,000 - 65,000 | H91: 1 | I91: Concrete | J91: 2 | K91: Medium | L91: 2 | M91: 400 < R < 600 | N91: 1 | O91: Good | P91: 2 | Q91: Poor | R91: 0 to 10 | S91: 0 | T91: 10 | U91: -7 | V91: 0.22 | W91: 0 | X91: -8 | Y91: 0 | Z91: -12 | AA91: 50
B92: 1412212-10 | C92: 74 | D92: 1 | E92: <130mph | F92: 4 | G92: 45,000 - 65,000 | H92: 1 | I92: Concrete | J92: 2 | K92: Medium | L92: 2 | M92: 400 < R < 600 | N92: 1 | O92: Good | P92: 2 | Q92: Poor | R92: 10 to 25 | S92: 10 | T92: 25 | U92: -7 | V92: 0.1815 | W92: 0 | X92: -11 | Y92: 0 | Z92: -15 | AA92: 50
B93: 1412212-25 | C93: 75 | D93: 1 | E93: <130mph | F93: 4 | G93: 45,000 - 65,000 | H93: 1 | I93: Concrete | J93: 2 | K93: Medium | L93: 2 | M93: 400 < R < 600 | N93: 1 | O93: Good | P93: 2 | Q93: Poor | R93: 25 to 30 | S93: 25 | T93: 30 | U93: -7 | V93: 0.2299 | W93: 0 | X93: -15.4 | Y93: 0 | Z93: -20 | AA93: 50
B94: 1412212-30 | C94: 76 | D94: 1 | E94: <130mph | F94: 4 | G94: 45,000 - 65,000 | H94: 1 | I94: Concrete | J94: 2 | K94: Medium | L94: 2 | M94: 400 < R < 600 | N94: 1 | O94: Good | P94: 2 | Q94: Poor | R94: Above 30 | S94: 30 | T94: 1000 | U94: -7 | V94: 0.2299 | W94: 0 | X94: -22 | Y94: -0.5 | Z94: -25 | AA94: 50
B95: 1411212-0 | C95: 77 | D95: 1 | E95: <130mph | F95: 4 | G95: 45,000 - 65,000 | H95: 1 | I95: Concrete | J95: 1 | K95: Hard | L95: 2 | M95: 400 < R < 600 | N95: 1 | O95: Good | P95: 2 | Q95: Poor | R95: 0 to 10 | S95: 0 | T95: 10 | U95: -7 | V95: 0.154 | W95: 0 | X95: -7.2 | Y95: 0 | Z95: -12 | AA95: 50
B96: 1411212-10 | C96: 78 | D96: 1 | E96: <130mph | F96: 4 | G96: 45,000 - 65,000 | H96: 1 | I96: Concrete | J96: 1 | K96: Hard | L96: 2 | M96: 400 < R < 600 | N96: 1 | O96: Good | P96: 2 | Q96: Poor | R96: 10 to 25 | S96: 10 | T96: 25 | U96: -7 | V96: 0.12705 | W96: 0 | X96: -9.9 | Y96: 0 | Z96: -15 | AA96: 50
B97: 1411212-25 | C97: 79 | D97: 1 | E97: <130mph | F97: 4 | G97: 45,000 - 65,000 | H97: 1 | I97: Concrete | J97: 1 | K97: Hard | L97: 2 | M97: 400 < R < 600 | N97: 1 | O97: Good | P97: 2 | Q97: Poor | R97: 25 to 30 | S97: 25 | T97: 30 | U97: -7 | V97: 0.16093 | W97: 0 | X97: -13.86 | Y97: 0 | Z97: -20 | AA97: 50
B98: 1411212-30 | C98: 80 | D98: 1 | E98: <130mph | F98: 4 | G98: 45,000 - 65,000 | H98: 1 | I98: Concrete | J98: 1 | K98: Hard | L98: 2 | M98: 400 < R < 600 | N98: 1 | O98: Good | P98: 2 | Q98: Poor | R98: Above 30 | S98: 30 | T98: 1000 | U98: -7 | V98: 0.16093 | W98: 0 | X98: -19.8 | Y98: -0.5 | Z98: -25 | AA98: 50
B99: 1413212-0 | C99: 81 | D99: 1 | E99: <130mph | F99: 4 | G99: 45,000 - 65,000 | H99: 1 | I99: Concrete | J99: 3 | K99: Soft | L99: 2 | M99: 400 < R < 600 | N99: 1 | O99: Good | P99: 2 | Q99: Poor | R99: 0 to 10 | S99: 0 | T99: 10 | U99: -7 | V99: 0.264 | W99: 0 | X99: -8.8 | Y99: 0 | Z99: -12 | AA99: 50
B100: 1413212-10 | C100: 82 | D100: 1 | E100: <130mph | F100: 4 | G100: 45,000 - 65,000 | H100: 1 | I100: Concrete | J100: 3 | K100: Soft | L100: 2 | M100: 400 < R < 600 | N100: 1 | O100: Good | P100: 2 | Q100: Poor | R100: 10 to 25 | S100: 10 | T100: 25 | U100: -7 | V100: 0.2178 | W100: 0 | X100: -12.1 | Y100: 0 | Z100: -15 | AA100: 50
B101: 1413212-25 | C101: 83 | D101: 1 | E101: <130mph | F101: 4 | G101: 45,000 - 65,000 | H101: 1 | I101: Concrete | J101: 3 | K101: Soft | L101: 2 | M101: 400 < R < 600 | N101: 1 | O101: Good | P101: 2 | Q101: Poor | R101: 25 to 30 | S101: 25 | T101: 30 | U101: -7 | V101: 0.27588 | W101: 0 | X101: -16.94 | Y101: 0 | Z101: -20 | AA101: 50
B102: 1413212-30 | C102: 84 | D102: 1 | E102: <130mph | F102: 4 | G102: 45,000 - 65,000 | H102: 1 | I102: Concrete | J102: 3 | K102: Soft | L102: 2 | M102: 400 < R < 600 | N102: 1 | O102: Good | P102: 2 | Q102: Poor | R102: Above 30 | S102: 30 | T102: 1000 | U102: -7 | V102: 0.27588 | W102: 0 | X102: -24.2 | Y102: -0.5 | Z102: -25 | AA102: 50
B103: 1412222-0 | C103: 85 | D103: 1 | E103: <130mph | F103: 4 | G103: 45,000 - 65,000 | H103: 1 | I103: Concrete | J103: 2 | K103: Medium | L103: 2 | M103: 400 < R < 600 | N103: 2 | O103: Poor | P103: 2 | Q103: Poor | R103: 0 to 10 | S103: 0 | T103: 10 | U103: -7 | V103: 0.22 | W103: 0 | X103: -8 | Y103: 0 | Z103: -12 | AA103: 50
B104: 1412222-10 | C104: 86 | D104: 1 | E104: <130mph | F104: 4 | G104: 45,000 - 65,000 | H104: 1 | I104: Concrete | J104: 2 | K104: Medium | L104: 2 | M104: 400 < R < 600 | N104: 2 | O104: Poor | P104: 2 | Q104: Poor | R104: 10 to 25 | S104: 10 | T104: 25 | U104: -7 | V104: 0.2178 | W104: 0 | X104: -12.1 | Y104: 0 | Z104: -15 | AA104: 50
B105: 1412222-25 | C105: 87 | D105: 1 | E105: <130mph | F105: 4 | G105: 45,000 - 65,000 | H105: 1 | I105: Concrete | J105: 2 | K105: Medium | L105: 2 | M105: 400 < R < 600 | N105: 2 | O105: Poor | P105: 2 | Q105: Poor | R105: 25 to 30 | S105: 25 | T105: 30 | U105: -7 | V105: 0.27588 | W105: 0 | X105: -16.94 | Y105: 0 | Z105: -20 | AA105: 50
B106: 1412222-30 | C106: 88 | D106: 1 | E106: <130mph | F106: 4 | G106: 45,000 - 65,000 | H106: 1 | I106: Concrete | J106: 2 | K106: Medium | L106: 2 | M106: 400 < R < 600 | N106: 2 | O106: Poor | P106: 2 | Q106: Poor | R106: Above 30 | S106: 30 | T106: 1000 | U106: -7 | V106: 0.27588 | W106: 0 | X106: -24.2 | Y106: -0.5 | Z106: -25 | AA106: 50
B107: 1411222-0 | C107: 89 | D107: 1 | E107: <130mph | F107: 4 | G107: 45,000 - 65,000 | H107: 1 | I107: Concrete | J107: 1 | K107: Hard | L107: 2 | M107: 400 < R < 600 | N107: 2 | O107: Poor | P107: 2 | Q107: Poor | R107: 0 to 10 | S107: 0 | T107: 10 | U107: -7 | V107: 0.154 | W107: 0 | X107: -7.2 | Y107: 0 | Z107: -12 | AA107: 50
B108: 1411222-10 | C108: 90 | D108: 1 | E108: <130mph | F108: 4 | G108: 45,000 - 65,000 | H108: 1 | I108: Concrete | J108: 1 | K108: Hard | L108: 2 | M108: 400 < R < 600 | N108: 2 | O108: Poor | P108: 2 | Q108: Poor | R108: 10 to 25 | S108: 10 | T108: 25 | U108: -7 | V108: 0.15246 | W108: 0 | X108: -10.89 | Y108: 0 | Z108: -15 | AA108: 50
B109: 1411222-25 | C109: 91 | D109: 1 | E109: <130mph | F109: 4 | G109: 45,000 - 65,000 | H109: 1 | I109: Concrete | J109: 1 | K109: Hard | L109: 2 | M109: 400 < R < 600 | N109: 2 | O109: Poor | P109: 2 | Q109: Poor | R109: 25 to 30 | S109: 25 | T109: 30 | U109: -7 | V109: 0.193116 | W109: 0 | X109: -15.246 | Y109: 0 | Z109: -20 | AA109: 50
B110: 1411222-30 | C110: 92 | D110: 1 | E110: <130mph | F110: 4 | G110: 45,000 - 65,000 | H110: 1 | I110: Concrete | J110: 1 | K110: Hard | L110: 2 | M110: 400 < R < 600 | N110: 2 | O110: Poor | P110: 2 | Q110: Poor | R110: Above 30 | S110: 30 | T110: 1000 | U110: -7 | V110: 0.193116 | W110: 0 | X110: -21.78 | Y110: -0.5 | Z110: -25 | AA110: 50
B111: 1413222-0 | C111: 93 | D111: 1 | E111: <130mph | F111: 4 | G111: 45,000 - 65,000 | H111: 1 | I111: Concrete | J111: 3 | K111: Soft | L111: 2 | M111: 400 < R < 600 | N111: 2 | O111: Poor | P111: 2 | Q111: Poor | R111: 0 to 10 | S111: 0 | T111: 10 | U111: -7 | V111: 0.264 | W111: 0 | X111: -8.8 | Y111: 0 | Z111: -12 | AA111: 50
B112: 1413222-10 | C112: 94 | D112: 1 | E112: <130mph | F112: 4 | G112: 45,000 - 65,000 | H112: 1 | I112: Concrete | J112: 3 | K112: Soft | L112: 2 | M112: 400 < R < 600 | N112: 2 | O112: Poor | P112: 2 | Q112: Poor | R112: 10 to 25 | S112: 10 | T112: 25 | U112: -7 | V112: 0.26136 | W112: 0 | X112: -13.31 | Y112: 0 | Z112: -15 | AA112: 50
B113: 1413222-25 | C113: 95 | D113: 1 | E113: <130mph | F113: 4 | G113: 45,000 - 65,000 | H113: 1 | I113: Concrete | J113: 3 | K113: Soft | L113: 2 | M113: 400 < R < 600 | N113: 2 | O113: Poor | P113: 2 | Q113: Poor | R113: 25 to 30 | S113: 25 | T113: 30 | U113: -7 | V113: 0.331056 | W113: 0 | X113: -18.634 | Y113: 0 | Z113: -20 | AA113: 50
B114: 1413222-30 | C114: 96 | D114: 1 | E114: <130mph | F114: 4 | G114: 45,000 - 65,000 | H114: 1 | I114: Concrete | J114: 3 | K114: Soft | L114: 2 | M114: 400 < R < 600 | N114: 2 | O114: Poor | P114: 2 | Q114: Poor | R114: Above 30 | S114: 30 | T114: 1000 | U114: -7 | V114: 0.331056 | W114: 0 | X114: -26.62 | Y114: -0.5 | Z114: -25 | AA114: 50
B115: 1412311-0 | C115: 97 | D115: 1 | E115: <130mph | F115: 4 | G115: 45,000 - 65,000 | H115: 1 | I115: Concrete | J115: 2 | K115: Medium | L115: 3 | M115: 300 < R < 400 | N115: 1 | O115: Good | P115: 1 | Q115: Good | R115: 0 to 10 | S115: 0 | T115: 10 | U115: -7 | V115: 0.22 | W115: 0 | X115: -8 | Y115: 0 | Z115: -12 | AA115: 25
B116: 1412311-10 | C116: 98 | D116: 1 | E116: <130mph | F116: 4 | G116: 45,000 - 65,000 | H116: 1 | I116: Concrete | J116: 2 | K116: Medium | L116: 3 | M116: 300 < R < 400 | N116: 1 | O116: Good | P116: 1 | Q116: Good | R116: 10 to 25 | S116: 10 | T116: 25 | U116: -7 | V116: 0.165 | W116: 0 | X116: -10 | Y116: 0 | Z116: -15 | AA116: 25
B117: 1412311-25 | C117: 99 | D117: 1 | E117: <130mph | F117: 4 | G117: 45,000 - 65,000 | H117: 1 | I117: Concrete | J117: 2 | K117: Medium | L117: 3 | M117: 300 < R < 400 | N117: 1 | O117: Good | P117: 1 | Q117: Good | R117: 25 to 30 | S117: 25 | T117: 30 | U117: -7 | V117: 0.209 | W117: 0 | X117: -14 | Y117: 0 | Z117: -20 | AA117: 25
B118: 1412311-30 | C118: 100 | D118: 1 | E118: <130mph | F118: 4 | G118: 45,000 - 65,000 | H118: 1 | I118: Concrete | J118: 2 | K118: Medium | L118: 3 | M118: 300 < R < 400 | N118: 1 | O118: Good | P118: 1 | Q118: Good | R118: Above 30 | S118: 30 | T118: 1000 | U118: -7 | V118: 0.209 | W118: 0 | X118: -20 | Y118: -0.5 | Z118: -25 | AA118: 25
B119: 1411311-0 | C119: 101 | D119: 1 | E119: <130mph | F119: 4 | G119: 45,000 - 65,000 | H119: 1 | I119: Concrete | J119: 1 | K119: Hard | L119: 3 | M119: 300 < R < 400 | N119: 1 | O119: Good | P119: 1 | Q119: Good | R119: 0 to 10 | S119: 0 | T119: 10 | U119: -7 | V119: 0.154 | W119: 0 | X119: -7.2 | Y119: 0 | Z119: -12 | AA119: 25
B120: 1411311-10 | C120: 102 | D120: 1 | E120: <130mph | F120: 4 | G120: 45,000 - 65,000 | H120: 1 | I120: Concrete | J120: 1 | K120: Hard | L120: 3 | M120: 300 < R < 400 | N120: 1 | O120: Good | P120: 1 | Q120: Good | R120: 10 to 25 | S120: 10 | T120: 25 | U120: -7 | V120: 0.1155 | W120: 0 | X120: -9 | Y120: 0 | Z120: -15 | AA120: 25
B121: 1411311-25 | C121: 103 | D121: 1 | E121: <130mph | F121: 4 | G121: 45,000 - 65,000 | H121: 1 | I121: Concrete | J121: 1 | K121: Hard | L121: 3 | M121: 300 < R < 400 | N121: 1 | O121: Good | P121: 1 | Q121: Good | R121: 25 to 30 | S121: 25 | T121: 30 | U121: -7 | V121: 0.1463 | W121: 0 | X121: -12.6 | Y121: 0 | Z121: -20 | AA121: 25
B122: 1411311-30 | C122: 104 | D122: 1 | E122: <130mph | F122: 4 | G122: 45,000 - 65,000 | H122: 1 | I122: Concrete | J122: 1 | K122: Hard | L122: 3 | M122: 300 < R < 400 | N122: 1 | O122: Good | P122: 1 | Q122: Good | R122: Above 30 | S122: 30 | T122: 1000 | U122: -7 | V122: 0.1463 | W122: 0 | X122: -18 | Y122: -0.5 | Z122: -25 | AA122: 25
B123: 1413311-0 | C123: 105 | D123: 1 | E123: <130mph | F123: 4 | G123: 45,000 - 65,000 | H123: 1 | I123: Concrete | J123: 3 | K123: Soft | L123: 3 | M123: 300 < R < 400 | N123: 1 | O123: Good | P123: 1 | Q123: Good | R123: 0 to 10 | S123: 0 | T123: 10 | U123: -7 | V123: 0.264 | W123: 0 | X123: -8.8 | Y123: 0 | Z123: -12 | AA123: 25
B124: 1413311-10 | C124: 106 | D124: 1 | E124: <130mph | F124: 4 | G124: 45,000 - 65,000 | H124: 1 | I124: Concrete | J124: 3 | K124: Soft | L124: 3 | M124: 300 < R < 400 | N124: 1 | O124: Good | P124: 1 | Q124: Good | R124: 10 to 25 | S124: 10 | T124: 25 | U124: -7 | V124: 0.198 | W124: 0 | X124: -11 | Y124: 0 | Z124: -15 | AA124: 25
B125: 1413311-25 | C125: 107 | D125: 1 | E125: <130mph | F125: 4 | G125: 45,000 - 65,000 | H125: 1 | I125: Concrete | J125: 3 | K125: Soft | L125: 3 | M125: 300 < R < 400 | N125: 1 | O125: Good | P125: 1 | Q125: Good | R125: 25 to 30 | S125: 25 | T125: 30 | U125: -7 | V125: 0.2508 | W125: 0 | X125: -15.4 | Y125: 0 | Z125: -20 | AA125: 25
B126: 1413311-30 | C126: 108 | D126: 1 | E126: <130mph | F126: 4 | G126: 45,000 - 65,000 | H126: 1 | I126: Concrete | J126: 3 | K126: Soft | L126: 3 | M126: 300 < R < 400 | N126: 1 | O126: Good | P126: 1 | Q126: Good | R126: Above 30 | S126: 30 | T126: 1000 | U126: -7 | V126: 0.2508 | W126: 0 | X126: -22 | Y126: -0.5 | Z126: -25 | AA126: 25
B127: 1412321-0 | C127: 109 | D127: 1 | E127: <130mph | F127: 4 | G127: 45,000 - 65,000 | H127: 1 | I127: Concrete | J127: 2 | K127: Medium | L127: 3 | M127: 300 < R < 400 | N127: 2 | O127: Poor | P127: 1 | Q127: Good | R127: 0 to 10 | S127: 0 | T127: 10 | U127: -7 | V127: 0.22 | W127: 0 | X127: -8 | Y127: 0 | Z127: -12 | AA127: 25
B128: 1412321-10 | C128: 110 | D128: 1 | E128: <130mph | F128: 4 | G128: 45,000 - 65,000 | H128: 1 | I128: Concrete | J128: 2 | K128: Medium | L128: 3 | M128: 300 < R < 400 | N128: 2 | O128: Poor | P128: 1 | Q128: Good | R128: 10 to 25 | S128: 10 | T128: 25 | U128: -7 | V128: 0.198 | W128: 0 | X128: -11 | Y128: 0 | Z128: -15 | AA128: 25
B129: 1412321-25 | C129: 111 | D129: 1 | E129: <130mph | F129: 4 | G129: 45,000 - 65,000 | H129: 1 | I129: Concrete | J129: 2 | K129: Medium | L129: 3 | M129: 300 < R < 400 | N129: 2 | O129: Poor | P129: 1 | Q129: Good | R129: 25 to 30 | S129: 25 | T129: 30 | U129: -7 | V129: 0.2508 | W129: 0 | X129: -15.4 | Y129: 0 | Z129: -20 | AA129: 25
B130: 1412321-30 | C130: 112 | D130: 1 | E130: <130mph | F130: 4 | G130: 45,000 - 65,000 | H130: 1 | I130: Concrete | J130: 2 | K130: Medium | L130: 3 | M130: 300 < R < 400 | N130: 2 | O130: Poor | P130: 1 | Q130: Good | R130: Above 30 | S130: 30 | T130: 1000 | U130: -7 | V130: 0.2508 | W130: 0 | X130: -22 | Y130: -0.5 | Z130: -25 | AA130: 25
B131: 1411321-0 | C131: 113 | D131: 1 | E131: <130mph | F131: 4 | G131: 45,000 - 65,000 | H131: 1 | I131: Concrete | J131: 1 | K131: Hard | L131: 3 | M131: 300 < R < 400 | N131: 2 | O131: Poor | P131: 1 | Q131: Good | R131: 0 to 10 | S131: 0 | T131: 10 | U131: -7 | V131: 0.154 | W131: 0 | X131: -7.2 | Y131: 0 | Z131: -12 | AA131: 25
B132: 1411321-10 | C132: 114 | D132: 1 | E132: <130mph | F132: 4 | G132: 45,000 - 65,000 | H132: 1 | I132: Concrete | J132: 1 | K132: Hard | L132: 3 | M132: 300 < R < 400 | N132: 2 | O132: Poor | P132: 1 | Q132: Good | R132: 10 to 25 | S132: 10 | T132: 25 | U132: -7 | V132: 0.1386 | W132: 0 | X132: -9.9 | Y132: 0 | Z132: -15 | AA132: 25
B133: 1411321-25 | C133: 115 | D133: 1 | E133: <130mph | F133: 4 | G133: 45,000 - 65,000 | H133: 1 | I133: Concrete | J133: 1 | K133: Hard | L133: 3 | M133: 300 < R < 400 | N133: 2 | O133: Poor | P133: 1 | Q133: Good | R133: 25 to 30 | S133: 25 | T133: 30 | U133: -7 | V133: 0.17556 | W133: 0 | X133: -13.86 | Y133: 0 | Z133: -20 | AA133: 25
B134: 1411321-30 | C134: 116 | D134: 1 | E134: <130mph | F134: 4 | G134: 45,000 - 65,000 | H134: 1 | I134: Concrete | J134: 1 | K134: Hard | L134: 3 | M134: 300 < R < 400 | N134: 2 | O134: Poor | P134: 1 | Q134: Good | R134: Above 30 | S134: 30 | T134: 1000 | U134: -7 | V134: 0.17556 | W134: 0 | X134: -19.8 | Y134: -0.5 | Z134: -25 | AA134: 25
B135: 1413321-0 | C135: 117 | D135: 1 | E135: <130mph | F135: 4 | G135: 45,000 - 65,000 | H135: 1 | I135: Concrete | J135: 3 | K135: Soft | L135: 3 | M135: 300 < R < 400 | N135: 2 | O135: Poor | P135: 1 | Q135: Good | R135: 0 to 10 | S135: 0 | T135: 10 | U135: -7 | V135: 0.264 | W135: 0 | X135: -8.8 | Y135: 0 | Z135: -12 | AA135: 25
B136: 1413321-10 | C136: 118 | D136: 1 | E136: <130mph | F136: 4 | G136: 45,000 - 65,000 | H136: 1 | I136: Concrete | J136: 3 | K136: Soft | L136: 3 | M136: 300 < R < 400 | N136: 2 | O136: Poor | P136: 1 | Q136: Good | R136: 10 to 25 | S136: 10 | T136: 25 | U136: -7 | V136: 0.2376 | W136: 0 | X136: -12.1 | Y136: 0 | Z136: -15 | AA136: 25
B137: 1413321-25 | C137: 119 | D137: 1 | E137: <130mph | F137: 4 | G137: 45,000 - 65,000 | H137: 1 | I137: Concrete | J137: 3 | K137: Soft | L137: 3 | M137: 300 < R < 400 | N137: 2 | O137: Poor | P137: 1 | Q137: Good | R137: 25 to 30 | S137: 25 | T137: 30 | U137: -7 | V137: 0.30096 | W137: 0 | X137: -16.94 | Y137: 0 | Z137: -20 | AA137: 25
B138: 1413321-30 | C138: 120 | D138: 1 | E138: <130mph | F138: 4 | G138: 45,000 - 65,000 | H138: 1 | I138: Concrete | J138: 3 | K138: Soft | L138: 3 | M138: 300 < R < 400 | N138: 2 | O138: Poor | P138: 1 | Q138: Good | R138: Above 30 | S138: 30 | T138: 1000 | U138: -7 | V138: 0.30096 | W138: 0 | X138: -24.2 | Y138: -0.5 | Z138: -25 | AA138: 25
B139: 1412312-0 | C139: 121 | D139: 1 | E139: <130mph | F139: 4 | G139: 45,000 - 65,000 | H139: 1 | I139: Concrete | J139: 2 | K139: Medium | L139: 3 | M139: 300 < R < 400 | N139: 1 | O139: Good | P139: 2 | Q139: Poor | R139: 0 to 10 | S139: 0 | T139: 10 | U139: -7 | V139: 0.22 | W139: 0 | X139: -8 | Y139: 0 | Z139: -12 | AA139: 25
B140: 1412312-10 | C140: 122 | D140: 1 | E140: <130mph | F140: 4 | G140: 45,000 - 65,000 | H140: 1 | I140: Concrete | J140: 2 | K140: Medium | L140: 3 | M140: 300 < R < 400 | N140: 1 | O140: Good | P140: 2 | Q140: Poor | R140: 10 to 25 | S140: 10 | T140: 25 | U140: -7 | V140: 0.1815 | W140: 0 | X140: -11 | Y140: 0 | Z140: -15 | AA140: 25
B141: 1412312-25 | C141: 123 | D141: 1 | E141: <130mph | F141: 4 | G141: 45,000 - 65,000 | H141: 1 | I141: Concrete | J141: 2 | K141: Medium | L141: 3 | M141: 300 < R < 400 | N141: 1 | O141: Good | P141: 2 | Q141: Poor | R141: 25 to 30 | S141: 25 | T141: 30 | U141: -7 | V141: 0.2299 | W141: 0 | X141: -15.4 | Y141: 0 | Z141: -20 | AA141: 25
B142: 1412312-30 | C142: 124 | D142: 1 | E142: <130mph | F142: 4 | G142: 45,000 - 65,000 | H142: 1 | I142: Concrete | J142: 2 | K142: Medium | L142: 3 | M142: 300 < R < 400 | N142: 1 | O142: Good | P142: 2 | Q142: Poor | R142: Above 30 | S142: 30 | T142: 1000 | U142: -7 | V142: 0.2299 | W142: 0 | X142: -22 | Y142: -0.5 | Z142: -25 | AA142: 25
B143: 1411312-0 | C143: 125 | D143: 1 | E143: <130mph | F143: 4 | G143: 45,000 - 65,000 | H143: 1 | I143: Concrete | J143: 1 | K143: Hard | L143: 3 | M143: 300 < R < 400 | N143: 1 | O143: Good | P143: 2 | Q143: Poor | R143: 0 to 10 | S143: 0 | T143: 10 | U143: -7 | V143: 0.154 | W143: 0 | X143: -7.2 | Y143: 0 | Z143: -12 | AA143: 25
B144: 1411312-10 | C144: 126 | D144: 1 | E144: <130mph | F144: 4 | G144: 45,000 - 65,000 | H144: 1 | I144: Concrete | J144: 1 | K144: Hard | L144: 3 | M144: 300 < R < 400 | N144: 1 | O144: Good | P144: 2 | Q144: Poor | R144: 10 to 25 | S144: 10 | T144: 25 | U144: -7 | V144: 0.12705 | W144: 0 | X144: -9.9 | Y144: 0 | Z144: -15 | AA144: 25
B145: 1411312-25 | C145: 127 | D145: 1 | E145: <130mph | F145: 4 | G145: 45,000 - 65,000 | H145: 1 | I145: Concrete | J145: 1 | K145: Hard | L145: 3 | M145: 300 < R < 400 | N145: 1 | O145: Good | P145: 2 | Q145: Poor | R145: 25 to 30 | S145: 25 | T145: 30 | U145: -7 | V145: 0.16093 | W145: 0 | X145: -13.86 | Y145: 0 | Z145: -20 | AA145: 25
B146: 1411312-30 | C146: 128 | D146: 1 | E146: <130mph | F146: 4 | G146: 45,000 - 65,000 | H146: 1 | I146: Concrete | J146: 1 | K146: Hard | L146: 3 | M146: 300 < R < 400 | N146: 1 | O146: Good | P146: 2 | Q146: Poor | R146: Above 30 | S146: 30 | T146: 1000 | U146: -7 | V146: 0.16093 | W146: 0 | X146: -19.8 | Y146: -0.5 | Z146: -25 | AA146: 25
B147: 1413312-0 | C147: 129 | D147: 1 | E147: <130mph | F147: 4 | G147: 45,000 - 65,000 | H147: 1 | I147: Concrete | J147: 3 | K147: Soft | L147: 3 | M147: 300 < R < 400 | N147: 1 | O147: Good | P147: 2 | Q147: Poor | R147: 0 to 10 | S147: 0 | T147: 10 | U147: -7 | V147: 0.264 | W147: 0 | X147: -8.8 | Y147: 0 | Z147: -12 | AA147: 25
B148: =D148&F148&H148&J148&L148&N148&P148&"-"&S148 -> 1413312-10 | C148: 130 | D148: 1 | E148: <130mph | F148: 4 | G148: 45,000 - 65,000 | H148: 1 | I148: Concrete | J148: 3 | K148: Soft | L148: 3 | M148: 300 < R < 400 | N148: 1 | O148: Good | P148: 2 | Q148: Poor | R148: 10 to 25 | S148: 10 | T148: 25 | U148: -7 | V148: 0.2178 | W148: 0 | X148: -12.1 | Y148: 0 | Z148: -15 | AA148: 25
B149: 1413312-25 | C149: 131 | D149: 1 | E149: <130mph | F149: 4 | G149: 45,000 - 65,000 | H149: 1 | I149: Concrete | J149: 3 | K149: Soft | L149: 3 | M149: 300 < R < 400 | N149: 1 | O149: Good | P149: 2 | Q149: Poor | R149: 25 to 30 | S149: 25 | T149: 30 | U149: -7 | V149: 0.27588 | W149: 0 | X149: -16.94 | Y149: 0 | Z149: -20 | AA149: 25
B150: 1413312-30 | C150: 132 | D150: 1 | E150: <130mph | F150: 4 | G150: 45,000 - 65,000 | H150: 1 | I150: Concrete | J150: 3 | K150: Soft | L150: 3 | M150: 300 < R < 400 | N150: 1 | O150: Good | P150: 2 | Q150: Poor | R150: Above 30 | S150: 30 | T150: 1000 | U150: -7 | V150: 0.27588 | W150: 0 | X150: -24.2 | Y150: -0.5 | Z150: -25 | AA150: 25
B151: 1412322-0 | C151: 133 | D151: 1 | E151: <130mph | F151: 4 | G151: 45,000 - 65,000 | H151: 1 | I151: Concrete | J151: 2 | K151: Medium | L151: 3 | M151: 300 < R < 400 | N151: 2 | O151: Poor | P151: 2 | Q151: Poor | R151: 0 to 10 | S151: 0 | T151: 10 | U151: -7 | V151: 0.22 | W151: 0 | X151: -8 | Y151: 0 | Z151: -12 | AA151: 25
B152: 1412322-10 | C152: 134 | D152: 1 | E152: <130mph | F152: 4 | G152: 45,000 - 65,000 | H152: 1 | I152: Concrete | J152: 2 | K152: Medium | L152: 3 | M152: 300 < R < 400 | N152: 2 | O152: Poor | P152: 2 | Q152: Poor | R152: 10 to 25 | S152: 10 | T152: 25 | U152: -7 | V152: 0.2178 | W152: 0 | X152: -12.1 | Y152: 0 | Z152: -15 | AA152: 25
B153: 1412322-25 | C153: 135 | D153: 1 | E153: <130mph | F153: 4 | G153: 45,000 - 65,000 | H153: 1 | I153: Concrete | J153: 2 | K153: Medium | L153: 3 | M153: 300 < R < 400 | N153: 2 | O153: Poor | P153: 2 | Q153: Poor | R153: 25 to 30 | S153: 25 | T153: 30 | U153: -7 | V153: 0.27588 | W153: 0 | X153: -16.94 | Y153: 0 | Z153: -20 | AA153: 25
B154: 1412322-30 | C154: 136 | D154: 1 | E154: <130mph | F154: 4 | G154: 45,000 - 65,000 | H154: 1 | I154: Concrete | J154: 2 | K154: Medium | L154: 3 | M154: 300 < R < 400 | N154: 2 | O154: Poor | P154: 2 | Q154: Poor | R154: Above 30 | S154: 30 | T154: 1000 | U154: -7 | V154: 0.27588 | W154: 0 | X154: -24.2 | Y154: -0.5 | Z154: -25 | AA154: 25
B155: 1411322-0 | C155: 137 | D155: 1 | E155: <130mph | F155: 4 | G155: 45,000 - 65,000 | H155: 1 | I155: Concrete | J155: 1 | K155: Hard | L155: 3 | M155: 300 < R < 400 | N155: 2 | O155: Poor | P155: 2 | Q155: Poor | R155: 0 to 10 | S155: 0 | T155: 10 | U155: -7 | V155: 0.154 | W155: 0 | X155: -7.2 | Y155: 0 | Z155: -12 | AA155: 25
B156: 1411322-10 | C156: 138 | D156: 1 | E156: <130mph | F156: 4 | G156: 45,000 - 65,000 | H156: 1 | I156: Concrete | J156: 1 | K156: Hard | L156: 3 | M156: 300 < R < 400 | N156: 2 | O156: Poor | P156: 2 | Q156: Poor | R156: 10 to 25 | S156: 10 | T156: 25 | U156: -7 | V156: 0.15246 | W156: 0 | X156: -10.89 | Y156: 0 | Z156: -15 | AA156: 25
B157: 1411322-25 | C157: 139 | D157: 1 | E157: <130mph | F157: 4 | G157: 45,000 - 65,000 | H157: 1 | I157: Concrete | J157: 1 | K157: Hard | L157: 3 | M157: 300 < R < 400 | N157: 2 | O157: Poor | P157: 2 | Q157: Poor | R157: 25 to 30 | S157: 25 | T157: 30 | U157: -7 | V157: 0.193116 | W157: 0 | X157: -15.246 | Y157: 0 | Z157: -20 | AA157: 25
B158: 1411322-30 | C158: 140 | D158: 1 | E158: <130mph | F158: 4 | G158: 45,000 - 65,000 | H158: 1 | I158: Concrete | J158: 1 | K158: Hard | L158: 3 | M158: 300 < R < 400 | N158: 2 | O158: Poor | P158: 2 | Q158: Poor | R158: Above 30 | S158: 30 | T158: 1000 | U158: -7 | V158: 0.193116 | W158: 0 | X158: -21.78 | Y158: -0.5 | Z158: -25 | AA158: 25
B159: 1413322-0 | C159: 141 | D159: 1 | E159: <130mph | F159: 4 | G159: 45,000 - 65,000 | H159: 1 | I159: Concrete | J159: 3 | K159: Soft | L159: 3 | M159: 300 < R < 400 | N159: 2 | O159: Poor | P159: 2 | Q159: Poor | R159: 0 to 10 | S159: 0 | T159: 10 | U159: -7 | V159: 0.264 | W159: 0 | X159: -8.8 | Y159: 0 | Z159: -12 | AA159: 25
B160: 1413322-10 | C160: 142 | D160: 1 | E160: <130mph | F160: 4 | G160: 45,000 - 65,000 | H160: 1 | I160: Concrete | J160: 3 | K160: Soft | L160: 3 | M160: 300 < R < 400 | N160: 2 | O160: Poor | P160: 2 | Q160: Poor | R160: 10 to 25 | S160: 10 | T160: 25 | U160: -7 | V160: 0.26136 | W160: 0 | X160: -13.31 | Y160: 0 | Z160: -15 | AA160: 25
B161: 1413322-25 | C161: 143 | D161: 1 | E161: <130mph | F161: 4 | G161: 45,000 - 65,000 | H161: 1 | I161: Concrete | J161: 3 | K161: Soft | L161: 3 | M161: 300 < R < 400 | N161: 2 | O161: Poor | P161: 2 | Q161: Poor | R161: 25 to 30 | S161: 25 | T161: 30 | U161: -7 | V161: 0.331056 | W161: 0 | X161: -18.634 | Y161: 0 | Z161: -20 | AA161: 25
B162: 1413322-30 | C162: 144 | D162: 1 | E162: <130mph | F162: 4 | G162: 45,000 - 65,000 | H162: 1 | I162: Concrete | J162: 3 | K162: Soft | L162: 3 | M162: 300 < R < 400 | N162: 2 | O162: Poor | P162: 2 | Q162: Poor | R162: Above 30 | S162: 30 | T162: 1000 | U162: -7 | V162: 0.331056 | W162: 0 | X162: -26.62 | Y162: -0.5 | Z162: -25 | AA162: 25
B163: 1412411-0 | C163: 145 | D163: 1 | E163: <130mph | F163: 4 | G163: 45,000 - 65,000 | H163: 1 | I163: Concrete | J163: 2 | K163: Medium | L163: 4 | M163: < 300 | N163: 1 | O163: Good | P163: 1 | Q163: Good | R163: 0 to 10 | S163: 0 | T163: 10 | U163: -7 | V163: 0.3 | W163: 0 | X163: -8 | Y163: 0 | Z163: -12 | AA163: 20
B164: 1412411-10 | C164: 146 | D164: 1 | E164: <130mph | F164: 4 | G164: 45,000 - 65,000 | H164: 1 | I164: Concrete | J164: 2 | K164: Medium | L164: 4 | M164: < 300 | N164: 1 | O164: Good | P164: 1 | Q164: Good | R164: 10 to 25 | S164: 10 | T164: 25 | U164: -7 | V164: 0.225 | W164: 0 | X164: -10 | Y164: 0 | Z164: -15 | AA164: 20
B165: 1412411-25 | C165: 147 | D165: 1 | E165: <130mph | F165: 4 | G165: 45,000 - 65,000 | H165: 1 | I165: Concrete | J165: 2 | K165: Medium | L165: 4 | M165: < 300 | N165: 1 | O165: Good | P165: 1 | Q165: Good | R165: 25 to 30 | S165: 25 | T165: 30 | U165: -7 | V165: 0.285 | W165: 0 | X165: -14 | Y165: 0 | Z165: -20 | AA165: 20
B166: 1412411-30 | C166: 148 | D166: 1 | E166: <130mph | F166: 4 | G166: 45,000 - 65,000 | H166: 1 | I166: Concrete | J166: 2 | K166: Medium | L166: 4 | M166: < 300 | N166: 1 | O166: Good | P166: 1 | Q166: Good | R166: Above 30 | S166: 30 | T166: 1000 | U166: -7 | V166: 0.285 | W166: 0 | X166: -20 | Y166: -0.5 | Z166: -25 | AA166: 20
B167: 1411411-0 | C167: 149 | D167: 1 | E167: <130mph | F167: 4 | G167: 45,000 - 65,000 | H167: 1 | I167: Concrete | J167: 1 | K167: Hard | L167: 4 | M167: < 300 | N167: 1 | O167: Good | P167: 1 | Q167: Good | R167: 0 to 10 | S167: 0 | T167: 10 | U167: -7 | V167: 0.21 | W167: 0 | X167: -7.2 | Y167: 0 | Z167: -12 | AA167: 20
B168: 1411411-10 | C168: 150 | D168: 1 | E168: <130mph | F168: 4 | G168: 45,000 - 65,000 | H168: 1 | I168: Concrete | J168: 1 | K168: Hard | L168: 4 | M168: < 300 | N168: 1 | O168: Good | P168: 1 | Q168: Good | R168: 10 to 25 | S168: 10 | T168: 25 | U168: -7 | V168: 0.1575 | W168: 0 | X168: -9 | Y168: 0 | Z168: -15 | AA168: 20
B169: 1411411-25 | C169: 151 | D169: 1 | E169: <130mph | F169: 4 | G169: 45,000 - 65,000 | H169: 1 | I169: Concrete | J169: 1 | K169: Hard | L169: 4 | M169: < 300 | N169: 1 | O169: Good | P169: 1 | Q169: Good | R169: 25 to 30 | S169: 25 | T169: 30 | U169: -7 | V169: 0.1995 | W169: 0 | X169: -12.6 | Y169: 0 | Z169: -20 | AA169: 20
B170: 1411411-30 | C170: 152 | D170: 1 | E170: <130mph | F170: 4 | G170: 45,000 - 65,000 | H170: 1 | I170: Concrete | J170: 1 | K170: Hard | L170: 4 | M170: < 300 | N170: 1 | O170: Good | P170: 1 | Q170: Good | R170: Above 30 | S170: 30 | T170: 1000 | U170: -7 | V170: 0.1995 | W170: 0 | X170: -18 | Y170: -0.5 | Z170: -25 | AA170: 20
B171: 1413411-0 | C171: 153 | D171: 1 | E171: <130mph | F171: 4 | G171: 45,000 - 65,000 | H171: 1 | I171: Concrete | J171: 3 | K171: Soft | L171: 4 | M171: < 300 | N171: 1 | O171: Good | P171: 1 | Q171: Good | R171: 0 to 10 | S171: 0 | T171: 10 | U171: -7 | V171: 0.36 | W171: 0 | X171: -8.8 | Y171: 0 | Z171: -12 | AA171: 20
B172: 1413411-10 | C172: 154 | D172: 1 | E172: <130mph | F172: 4 | G172: 45,000 - 65,000 | H172: 1 | I172: Concrete | J172: 3 | K172: Soft | L172: 4 | M172: < 300 | N172: 1 | O172: Good | P172: 1 | Q172: Good | R172: 10 to 25 | S172: 10 | T172: 25 | U172: -7 | V172: 0.27 | W172: 0 | X172: -11 | Y172: 0 | Z172: -15 | AA172: 20
B173: 1413411-25 | C173: 155 | D173: 1 | E173: <130mph | F173: 4 | G173: 45,000 - 65,000 | H173: 1 | I173: Concrete | J173: 3 | K173: Soft | L173: 4 | M173: < 300 | N173: 1 | O173: Good | P173: 1 | Q173: Good | R173: 25 to 30 | S173: 25 | T173: 30 | U173: -7 | V173: 0.342 | W173: 0 | X173: -15.4 | Y173: 0 | Z173: -20 | AA173: 20
B174: 1413411-30 | C174: 156 | D174: 1 | E174: <130mph | F174: 4 | G174: 45,000 - 65,000 | H174: 1 | I174: Concrete | J174: 3 | K174: Soft | L174: 4 | M174: < 300 | N174: 1 | O174: Good | P174: 1 | Q174: Good | R174: Above 30 | S174: 30 | T174: 1000 | U174: -7 | V174: 0.342 | W174: 0 | X174: -22 | Y174: -0.5 | Z174: -25 | AA174: 20
B175: 1412421-0 | C175: 157 | D175: 1 | E175: <130mph | F175: 4 | G175: 45,000 - 65,000 | H175: 1 | I175: Concrete | J175: 2 | K175: Medium | L175: 4 | M175: < 300 | N175: 2 | O175: Poor | P175: 1 | Q175: Good | R175: 0 to 10 | S175: 0 | T175: 10 | U175: -7 | V175: 0.3 | W175: 0 | X175: -8 | Y175: 0 | Z175: -12 | AA175: 20
B176: 1412421-10 | C176: 158 | D176: 1 | E176: <130mph | F176: 4 | G176: 45,000 - 65,000 | H176: 1 | I176: Concrete | J176: 2 | K176: Medium | L176: 4 | M176: < 300 | N176: 2 | O176: Poor | P176: 1 | Q176: Good | R176: 10 to 25 | S176: 10 | T176: 25 | U176: -7 | V176: 0.27 | W176: 0 | X176: -11 | Y176: 0 | Z176: -15 | AA176: 20
B177: 1412421-25 | C177: 159 | D177: 1 | E177: <130mph | F177: 4 | G177: 45,000 - 65,000 | H177: 1 | I177: Concrete | J177: 2 | K177: Medium | L177: 4 | M177: < 300 | N177: 2 | O177: Poor | P177: 1 | Q177: Good | R177: 25 to 30 | S177: 25 | T177: 30 | U177: -7 | V177: 0.342 | W177: 0 | X177: -15.4 | Y177: 0 | Z177: -20 | AA177: 20
B178: 1412421-30 | C178: 160 | D178: 1 | E178: <130mph | F178: 4 | G178: 45,000 - 65,000 | H178: 1 | I178: Concrete | J178: 2 | K178: Medium | L178: 4 | M178: < 300 | N178: 2 | O178: Poor | P178: 1 | Q178: Good | R178: Above 30 | S178: 30 | T178: 1000 | U178: -7 | V178: 0.342 | W178: 0 | X178: -22 | Y178: -0.5 | Z178: -25 | AA178: 20
B179: 1411421-0 | C179: 161 | D179: 1 | E179: <130mph | F179: 4 | G179: 45,000 - 65,000 | H179: 1 | I179: Concrete | J179: 1 | K179: Hard | L179: 4 | M179: < 300 | N179: 2 | O179: Poor | P179: 1 | Q179: Good | R179: 0 to 10 | S179: 0 | T179: 10 | U179: -7 | V179: 0.21 | W179: 0 | X179: -7.2 | Y179: 0 | Z179: -12 | AA179: 20
B180: 1411421-10 | C180: 162 | D180: 1 | E180: <130mph | F180: 4 | G180: 45,000 - 65,000 | H180: 1 | I180: Concrete | J180: 1 | K180: Hard | L180: 4 | M180: < 300 | N180: 2 | O180: Poor | P180: 1 | Q180: Good | R180: 10 to 25 | S180: 10 | T180: 25 | U180: -7 | V180: 0.189 | W180: 0 | X180: -9.9 | Y180: 0 | Z180: -15 | AA180: 20
B181: 1411421-25 | C181: 163 | D181: 1 | E181: <130mph | F181: 4 | G181: 45,000 - 65,000 | H181: 1 | I181: Concrete | J181: 1 | K181: Hard | L181: 4 | M181: < 300 | N181: 2 | O181: Poor | P181: 1 | Q181: Good | R181: 25 to 30 | S181: 25 | T181: 30 | U181: -7 | V181: 0.2394 | W181: 0 | X181: -13.86 | Y181: 0 | Z181: -20 | AA181: 20
B182: 1411421-30 | C182: 164 | D182: 1 | E182: <130mph | F182: 4 | G182: 45,000 - 65,000 | H182: 1 | I182: Concrete | J182: 1 | K182: Hard | L182: 4 | M182: < 300 | N182: 2 | O182: Poor | P182: 1 | Q182: Good | R182: Above 30 | S182: 30 | T182: 1000 | U182: -7 | V182: 0.2394 | W182: 0 | X182: -19.8 | Y182: -0.5 | Z182: -25 | AA182: 20
B183: 1413421-0 | C183: 165 | D183: 1 | E183: <130mph | F183: 4 | G183: 45,000 - 65,000 | H183: 1 | I183: Concrete | J183: 3 | K183: Soft | L183: 4 | M183: < 300 | N183: 2 | O183: Poor | P183: 1 | Q183: Good | R183: 0 to 10 | S183: 0 | T183: 10 | U183: -7 | V183: 0.36 | W183: 0 | X183: -8.8 | Y183: 0 | Z183: -12 | AA183: 20
B184: 1413421-10 | C184: 166 | D184: 1 | E184: <130mph | F184: 4 | G184: 45,000 - 65,000 | H184: 1 | I184: Concrete | J184: 3 | K184: Soft | L184: 4 | M184: < 300 | N184: 2 | O184: Poor | P184: 1 | Q184: Good | R184: 10 to 25 | S184: 10 | T184: 25 | U184: -7 | V184: 0.324 | W184: 0 | X184: -12.1 | Y184: 0 | Z184: -15 | AA184: 20
B185: 1413421-25 | C185: 167 | D185: 1 | E185: <130mph | F185: 4 | G185: 45,000 - 65,000 | H185: 1 | I185: Concrete | J185: 3 | K185: Soft | L185: 4 | M185: < 300 | N185: 2 | O185: Poor | P185: 1 | Q185: Good | R185: 25 to 30 | S185: 25 | T185: 30 | U185: -7 | V185: 0.4104 | W185: 0 | X185: -16.94 | Y185: 0 | Z185: -20 | AA185: 20
B186: 1413421-30 | C186: 168 | D186: 1 | E186: <130mph | F186: 4 | G186: 45,000 - 65,000 | H186: 1 | I186: Concrete | J186: 3 | K186: Soft | L186: 4 | M186: < 300 | N186: 2 | O186: Poor | P186: 1 | Q186: Good | R186: Above 30 | S186: 30 | T186: 1000 | U186: -7 | V186: 0.4104 | W186: 0 | X186: -24.2 | Y186: -0.5 | Z186: -25 | AA186: 20
B187: 1412412-0 | C187: 169 | D187: 1 | E187: <130mph | F187: 4 | G187: 45,000 - 65,000 | H187: 1 | I187: Concrete | J187: 2 | K187: Medium | L187: 4 | M187: < 300 | N187: 1 | O187: Good | P187: 2 | Q187: Poor | R187: 0 to 10 | S187: 0 | T187: 10 | U187: -7 | V187: 0.3 | W187: 0 | X187: -8 | Y187: 0 | Z187: -12 | AA187: 20
B188: 1412412-10 | C188: 170 | D188: 1 | E188: <130mph | F188: 4 | G188: 45,000 - 65,000 | H188: 1 | I188: Concrete | J188: 2 | K188: Medium | L188: 4 | M188: < 300 | N188: 1 | O188: Good | P188: 2 | Q188: Poor | R188: 10 to 25 | S188: 10 | T188: 25 | U188: -7 | V188: 0.2475 | W188: 0 | X188: -11 | Y188: 0 | Z188: -15 | AA188: 20
B189: 1412412-25 | C189: 171 | D189: 1 | E189: <130mph | F189: 4 | G189: 45,000 - 65,000 | H189: 1 | I189: Concrete | J189: 2 | K189: Medium | L189: 4 | M189: < 300 | N189: 1 | O189: Good | P189: 2 | Q189: Poor | R189: 25 to 30 | S189: 25 | T189: 30 | U189: -7 | V189: 0.3135 | W189: 0 | X189: -15.4 | Y189: 0 | Z189: -20 | AA189: 20
B190: 1412412-30 | C190: 172 | D190: 1 | E190: <130mph | F190: 4 | G190: 45,000 - 65,000 | H190: 1 | I190: Concrete | J190: 2 | K190: Medium | L190: 4 | M190: < 300 | N190: 1 | O190: Good | P190: 2 | Q190: Poor | R190: Above 30 | S190: 30 | T190: 1000 | U190: -7 | V190: 0.3135 | W190: 0 | X190: -22 | Y190: -0.5 | Z190: -25 | AA190: 20
B191: 1411412-0 | C191: 173 | D191: 1 | E191: <130mph | F191: 4 | G191: 45,000 - 65,000 | H191: 1 | I191: Concrete | J191: 1 | K191: Hard | L191: 4 | M191: < 300 | N191: 1 | O191: Good | P191: 2 | Q191: Poor | R191: 0 to 10 | S191: 0 | T191: 10 | U191: -7 | V191: 0.21 | W191: 0 | X191: -7.2 | Y191: 0 | Z191: -12 | AA191: 20
B192: 1411412-10 | C192: 174 | D192: 1 | E192: <130mph | F192: 4 | G192: 45,000 - 65,000 | H192: 1 | I192: Concrete | J192: 1 | K192: Hard | L192: 4 | M192: < 300 | N192: 1 | O192: Good | P192: 2 | Q192: Poor | R192: 10 to 25 | S192: 10 | T192: 25 | U192: -7 | V192: 0.17325 | W192: 0 | X192: -9.9 | Y192: 0 | Z192: -15 | AA192: 20
B193: 1411412-25 | C193: 175 | D193: 1 | E193: <130mph | F193: 4 | G193: 45,000 - 65,000 | H193: 1 | I193: Concrete | J193: 1 | K193: Hard | L193: 4 | M193: < 300 | N193: 1 | O193: Good | P193: 2 | Q193: Poor | R193: 25 to 30 | S193: 25 | T193: 30 | U193: -7 | V193: 0.21945 | W193: 0 | X193: -13.86 | Y193: 0 | Z193: -20 | AA193: 20
B194: 1411412-30 | C194: 176 | D194: 1 | E194: <130mph | F194: 4 | G194: 45,000 - 65,000 | H194: 1 | I194: Concrete | J194: 1 | K194: Hard | L194: 4 | M194: < 300 | N194: 1 | O194: Good | P194: 2 | Q194: Poor | R194: Above 30 | S194: 30 | T194: 1000 | U194: -7 | V194: 0.21945 | W194: 0 | X194: -19.8 | Y194: -0.5 | Z194: -25 | AA194: 20
B195: 1413412-0 | C195: 177 | D195: 1 | E195: <130mph | F195: 4 | G195: 45,000 - 65,000 | H195: 1 | I195: Concrete | J195: 3 | K195: Soft | L195: 4 | M195: < 300 | N195: 1 | O195: Good | P195: 2 | Q195: Poor | R195: 0 to 10 | S195: 0 | T195: 10 | U195: -7 | V195: 0.36 | W195: 0 | X195: -8.8 | Y195: 0 | Z195: -12 | AA195: 20
B196: 1413412-10 | C196: 178 | D196: 1 | E196: <130mph | F196: 4 | G196: 45,000 - 65,000 | H196: 1 | I196: Concrete | J196: 3 | K196: Soft | L196: 4 | M196: < 300 | N196: 1 | O196: Good | P196: 2 | Q196: Poor | R196: 10 to 25 | S196: 10 | T196: 25 | U196: -7 | V196: 0.297 | W196: 0 | X196: -12.1 | Y196: 0 | Z196: -15 | AA196: 20
B197: 1413412-25 | C197: 179 | D197: 1 | E197: <130mph | F197: 4 | G197: 45,000 - 65,000 | H197: 1 | I197: Concrete | J197: 3 | K197: Soft | L197: 4 | M197: < 300 | N197: 1 | O197: Good | P197: 2 | Q197: Poor | R197: 25 to 30 | S197: 25 | T197: 30 | U197: -7 | V197: 0.3762 | W197: 0 | X197: -16.94 | Y197: 0 | Z197: -20 | AA197: 20
B198: 1413412-30 | C198: 180 | D198: 1 | E198: <130mph | F198: 4 | G198: 45,000 - 65,000 | H198: 1 | I198: Concrete | J198: 3 | K198: Soft | L198: 4 | M198: < 300 | N198: 1 | O198: Good | P198: 2 | Q198: Poor | R198: Above 30 | S198: 30 | T198: 1000 | U198: -7 | V198: 0.3762 | W198: 0 | X198: -24.2 | Y198: -0.5 | Z198: -25 | AA198: 20
B199: 1412422-0 | C199: 181 | D199: 1 | E199: <130mph | F199: 4 | G199: 45,000 - 65,000 | H199: 1 | I199: Concrete | J199: 2 | K199: Medium | L199: 4 | M199: < 300 | N199: 2 | O199: Poor | P199: 2 | Q199: Poor | R199: 0 to 10 | S199: 0 | T199: 10 | U199: -7 | V199: 0.3 | W199: 0 | X199: -8 | Y199: 0 | Z199: -12 | AA199: 20
B200: 1412422-10 | C200: 182 | D200: 1 | E200: <130mph | F200: 4 | G200: 45,000 - 65,000 | H200: 1 | I200: Concrete | J200: 2 | K200: Medium | L200: 4 | M200: < 300 | N200: 2 | O200: Poor | P200: 2 | Q200: Poor | R200: 10 to 25 | S200: 10 | T200: 25 | U200: -7 | V200: 0.297 | W200: 0 | X200: -12.1 | Y200: 0 | Z200: -15 | AA200: 20
B201: 1412422-25 | C201: 183 | D201: 1 | E201: <130mph | F201: 4 | G201: 45,000 - 65,000 | H201: 1 | I201: Concrete | J201: 2 | K201: Medium | L201: 4 | M201: < 300 | N201: 2 | O201: Poor | P201: 2 | Q201: Poor | R201: 25 to 30 | S201: 25 | T201: 30 | U201: -7 | V201: 0.3762 | W201: 0 | X201: -16.94 | Y201: 0 | Z201: -20 | AA201: 20
B202: 1412422-30 | C202: 184 | D202: 1 | E202: <130mph | F202: 4 | G202: 45,000 - 65,000 | H202: 1 | I202: Concrete | J202: 2 | K202: Medium | L202: 4 | M202: < 300 | N202: 2 | O202: Poor | P202: 2 | Q202: Poor | R202: Above 30 | S202: 30 | T202: 1000 | U202: -7 | V202: 0.3762 | W202: 0 | X202: -24.2 | Y202: -0.5 | Z202: -25 | AA202: 20
B203: 1411422-0 | C203: 185 | D203: 1 | E203: <130mph | F203: 4 | G203: 45,000 - 65,000 | H203: 1 | I203: Concrete | J203: 1 | K203: Hard | L203: 4 | M203: < 300 | N203: 2 | O203: Poor | P203: 2 | Q203: Poor | R203: 0 to 10 | S203: 0 | T203: 10 | U203: -7 | V203: 0.21 | W203: 0 | X203: -7.2 | Y203: 0 | Z203: -12 | AA203: 20
B204: 1411422-10 | C204: 186 | D204: 1 | E204: <130mph | F204: 4 | G204: 45,000 - 65,000 | H204: 1 | I204: Concrete | J204: 1 | K204: Hard | L204: 4 | M204: < 300 | N204: 2 | O204: Poor | P204: 2 | Q204: Poor | R204: 10 to 25 | S204: 10 | T204: 25 | U204: -7 | V204: 0.2079 | W204: 0 | X204: -10.89 | Y204: 0 | Z204: -15 | AA204: 20
... 2934 more rows

Sheet Projection
A1: MAINLINE | C1: =Flowchart!C1 -> Plain Track Model
C2: Projection of Track Condition Over Time | R2: On Replacement - Lookups
R4: Sleepers | U4: Ballast | X4: Sub Layer | AA4: Drainage
R5: Concrete | S5: 1 | U5: Hard | V5: 1 | X5: Good | Y5: 1 | AA5: Good | AB5: 1
R6: Concrete with Under Sleeper Pads | S6: 2 | U6: Medium | V6: 2 | X6: Poor | Y6: 2 | AA6: Poor | AB6: 2
R7: Wooden | S7: 3 | U7: Soft | V7: 3
C9: Reference Values | R9: Lookup Reference after Renewal | V9: =$C$17&$E$17&$G$18&$I$18&$K$17&$M$18&$O$18&"-"&0 -> 1421111-0
C10: Operational Speed | E10: Traffic Loading | G10: Sleepers | I10: Ballast Hardness | K10: Minimum Radius | M10: Sub Layer Condition | O10: Drainage Condition | R10: Row Reference after Renewal | V10: =VLOOKUP(V9,DetRates!$B$19:$C$3186,2,FALSE) -> 967 | AZ10: Summary Residual Value Table
C11: Ref | D11: Name | E11: Ref | F11: Name | G11: Ref | H11: Name | I11: Ref | J11: Name | K11: Ref | L11: Name | M11: Ref | N11: Name | O11: Ref | P11: Name | R11: Q after Renewal | V11: =VLOOKUP($V10,DetRates!$C$19:$AA$3186,19,FALSE) -> -6 | AZ11: Total financial cost | BC11: =IntvCosts!J19 -> 730000
C12: 1 | D12: <130mph | E12: 1 | F12: < 15,000 | G12: 1 | H12: Concrete | I12: 1 | J12: Hard | K12: 1 | L12: > 600 | M12: 1 | N12: Good | O12: 1 | P12: Good | AZ12: Total number of renewals | BC12: =MAX(BB24:BB128) -> 3
E13: 2 | F13: 15,000 - 30,000 | G13: 2 | H13: Concrete with USP | I13: 2 | J13: Medium | K13: 2 | L13: 400 < R < 600 | M13: 2 | N13: Poor | O13: 2 | P13: Poor | T13: No. of Tamping Interventions | U13: Max No .of Tamping Interventions | V13: Time in Age Range | W13: Q at Start of Time Step | X13: Deterioration Index | Y13: Q after deterioration | Z13: Q after Tamping | AA13: Intervention Types | AQ13: Renewal Triggered (adjusted) | AR13: Tamping Triggered (adjusted) | AS13: Q after deterioration, Tamping and Renewal | AT13: Tamping Interventions | AU13: Renewal Interventions | AZ13: Service life (cycle of previous year) | BC13: =VLOOKUP(100000,BD24:BD128,1) -> 52
E14: 3 | F14: 30,000 - 45,000 | G14: 3 | H14: Wooden | I14: 3 | J14: Soft | K14: 3 | L14: 300 < R < 400 | AA14: Active? | AE14: Active? | AG14: Active? | AH14: Active? | AI14: Active? | AJ14: Active? | AK14: Renewal Triggered (initial) | AL14: Tamping Triggered (initial) | AM14: Q after Tamping does not exceed Qult? | AN14: Q after Tamping does not exceed Q trigger value? | AO14: Renewal triggered as Tamping but Q threshold not exceeded | AP14: Active? | AZ14: Year of last renewal | BC14: =VLOOKUP(10000,AY24:BA128,3,1) -> 87
E15: 4 | F15: 45,000 - 65,000 | K15: 4 | L15: < 300 | AA15: =IntvTriggers!L26 -> FALSE | AE15: =IntvTriggers!D26 -> FALSE | AG15: TRUE | AH15: TRUE | AI15: TRUE | AJ15: TRUE | AP15: TRUE | AZ15: Period of last renewal | BC15: =INT($BC$14/C$21+1) -> 18
E16: 5 | F16: 65,000 - 100,000 | AA16: Interventions from User Timings | AE16: Interventions from User Q Values | AG16: Renewal where no. of Tampings exceeds maximum | AH16: Renewal triggered by Technical Service Life expired | AI16: Tamping triggered by Qult | AJ16: Tamping triggered every 10 years, if no other intervention is applied on this interval | AP16: Renewal triggered if tamping applied two consecutive years, after first 20 yrs | AZ16: Residual value | BC16: =IF(BC13>(104-BC14),-(BC11/BC13)*(BC13-(104-BC14)),0) -> -491346.1538
B17: Starting Values: | C17: 1 | E17: 4 | G17: 1 | I17: 2 | K17: 1 | M17: 1 | O17: 1 | AZ17: Discounted rate | BC17: =HLOOKUP($BC$15,Results!G15:AA81,67,2) -> 0.1447341898
B18: On Replacement: | C18: Same | E18: Same | G18: =VLOOKUP(IntvChanges!H16,Projection!$R$5:$S$7,2,FALSE) -> 2 | I18: =VLOOKUP(IntvChanges!H17,Projection!$U$5:$V$7,2,FALSE) -> 1 | K18: Same | M18: =VLOOKUP(IntvChanges!H18,Projection!$X$5:$Y$6,2,FALSE) -> 1 | O18: =VLOOKUP(IntvChanges!H19,Projection!$AA$5:$AB$6,2,FALSE) -> 1 | AZ18: Discounted Residual value | BC18: =BC16*BC17 -> -71114.58751
AE19: Renewal | AF19: Tamping
C20: Projection | AE20: Value
B21: Year | C21: =Results!$G$13 -> 5 | D21: Track Age since Renewal | E21: Sleepers | F21: Ballast | G21: Sub-Layer | H21: Drainage | I21: Lookup - DetRates | AE21: =IntvTriggers!G31 -> -15 | AF21: =IntvTriggers!G30 -> -12 | AZ21: Residual Value calculation
C22: Period | I22: Lookup | J22: Row | K22: 17 | L22: 18 | M22: 19 | N22: 20 | O22: 21 | P22: 22 | Q22: 23 | R22: 24 | S22: 25 | AA22: Tamping | AC22: Renewal | AE22: Input nonblank? | AZ22: Active? | BA22: Year | BB22: No. of renewals | BC22: Service life (cycle) | BF22: Renewal triggered as Tamping but Q threshold not exceeded
D23: Age | K23: Start | L23: End | M23: Q0 | N23: bn | O23: dbn/dt | P23: Qn | Q23: dQn/dt | R23: Qult | S23: TSL | T23: Nt | U23: Ntmax | V23: t1 | W23: Qs | X23: bn' | Y23: Qe | Z23: Qt | AA23: Input | AB23: Occur? | AC23: Input | AD23: Occur? | AE23: =NOT(ISBLANK(IntvTriggers!G31)) -> TRUE | AF23: =NOT(ISBLANK(IntvTriggers!G30)) -> TRUE | AG23: Nt > NTmax | AH23: Age > TSL | AI23: Qe < Qult | AW23: Q (Start) | AX23: Q (End) | BF23: First 10 years:
B24: 0 | C24: =INT(B24/C$21+1) -> 1 | D24: 0 | E24: =G17 -> 1 | F24: =I17 -> 2 | G24: =M17 -> 1 | H24: =O17 -> 1 | I24: =$C$17&$E$17&E24&F24&$K$17&G24&H24&"-"&D24 -> 1412111-0 | J24: =VLOOKUP(I24,DetRates!$B$19:$C$3186,2,FALSE) -> 1 | K24: =VLOOKUP($J24,DetRates!$C$19:$AA$3186,K$22,FALSE) -> 0 | L24: =VLOOKUP($J24,DetRates!$C$19:$AA$3186,L$22,FALSE) -> 10 | M24: =VLOOKUP($J24,DetRates!$C$19:$AA$3186,M$22,FALSE) -> -7 | N24: =VLOOKUP($J24,DetRates!$C$19:$AA$3186,N$22,FALSE) -> 0.2 | O24: =VLOOKUP($J24,DetRates!$C$19:$AA$3186,O$22,FALSE) -> 0 | P24: =VLOOKUP($J24,DetRates!$C$19:$AA$3186,P$22,FALSE) -> -8 | Q24: =VLOOKUP($J24,DetRates!$C$19:$AA$3186,Q$22,FALSE) -> 0 | R24: =VLOOKUP($J24,DetRates!$C$19:$AA$3186,R$22,FALSE) -> -12 | S24: =VLOOKUP($J24,DetRates!$C$19:$AA$3186,S$22,FALSE) -> 50 | T24: 0 | U24: =VLOOKUP(F24,DetRates!$U$10:$W$12,3,FALSE) -> 15 | V24: 0 | W24: =M24 -> -7 | X24: =N24+O24*V24 -> 0.2 | Y24: =W24*EXP(X24) -> -8.549819307 | Z24: =P24+Q24*V24 -> -8 | AA24: =TRANSPOSE(IntvTriggers!L30:DL30) -> 0 | AB24: =AND($AA$15,(AA24="x")) -> FALSE | AC24: =TRANSPOSE(IntvTriggers!L31:DL31) -> x | AD24: =AND(AC24="x") -> TRUE | AE24: =AND(AE$23,$AE$15,$W24<=AE$21) -> FALSE | AF24: =AND(AF$23,$AE$15,$W24<=AF$21) -> FALSE | AG24: =AND($AG$15,T24>U24) -> FALSE | AH24: =AND($AH$15,D24>S24) -> FALSE | AI24: =AND($AI$15,Y24<R24) -> FALSE | AJ24: =IF(B24<11,FALSE,IF(AND(SUM(AT14:AT23)<1,NOT(AJ23),SUM(AU14:AU23)=0,$AJ$15),TRUE,FALSE)) -> FALSE | AK24: =OR(AD24,AE24,AG24,AH24) -> TRUE | AL24: =IF(AK24,FALSE,OR(AB24,AF24,AI24,AJ24)) -> FALSE | AM24: =AND($AI$15,Z24<R24) -> FALSE | AN24: =AND($AE$15,Z24<$AF$21) -> FALSE | AO24: =AND(AL24,OR(AM24,AN24)) -> FALSE | AP24: =IF(D24<21,FALSE,IF(AND(T23<T24,T23<>0,AL24,$AP$15),TRUE,FALSE)) -> FALSE | AQ24: =OR(AK24,AO24,AP24) -> TRUE | AR24: =IF(AQ24,FALSE,AL24) -> FALSE | AS24: =IF(AQ24,$V$11,IF(AR24,Z24,Y24)) -> -6 | AT24: =AR24*1 -> 0 | AU24: =AQ24*1 -> 1 | AW24: =W24 -> -7 | AX24: =Y24 -> -8.549819307 | AY24: =IF(AZ24,1,"") -> 1 | AZ24: =AND(AU24) -> TRUE | BA24: =B24 -> 0 | BB24: 1 | BC24: 0 | BD24: =IF(AZ24,BC24,"") -> 0 | BF24: =OR(AO24:AO33) -> FALSE
B25: =B24+1 -> 1 | C25: 1 | D25: =IF(B25=1,D24+1,IF(AQ24,0,D24+1)) -> 1 | E25: =IF(B25>1,IF($AQ24,G$18,E24),$E$24) -> 1 | F25: =IF(B25>1,IF($AQ24,I$18,F24),$F$24) -> 2 | G25: =IF(B25>1,IF($AQ24,M$18,G24),$G$24) -> 1 | H25: =IF(B25>1,IF($AQ24,O$18,H24),$H$24) -> 1 | I25: =$C$17&$E$17&E25&F25&$K$17&G25&H25&"-"&D25 -> 1412111-1 | J25: =IF(ISNA(VLOOKUP(I25,DetRates!$B$19:$C$3186,2,FALSE)),J24,VLOOKUP(I25,DetRates!$B$19:$C$3186,2,FALSE)) -> 1 | K25: =VLOOKUP($J25,DetRates!$C$19:$AA$3186,K$22,FALSE) -> 0 | L25: =VLOOKUP($J25,DetRates!$C$19:$AA$3186,L$22,FALSE) -> 10 | M25: =IF($T25<>$T24,VLOOKUP($J25,DetRates!$C$19:$AA$3186,M$22,FALSE),M24) -> -7 | N25: =IF($T25<>$T24,VLOOKUP($J25,DetRates!$C$19:$AA$3186,N$22,FALSE),N24) -> 0.2 | O25: =IF($T25<>$T24,VLOOKUP($J25,DetRates!$C$19:$AA$3186,O$22,FALSE),O24) -> 0 | P25: =IF($T25<>$T24,VLOOKUP($J25,DetRates!$C$19:$AA$3186,P$22,FALSE),P24) -> -8 | Q25: =IF(AND(D25>29,T25>2,T25<>T24,E25<>3),VLOOKUP($J25,DetRates!$C$19:$AA$3186,Q$22),IF(T25<>T24,VLOOKUP($J25,DetRates!$C$19:$AA$3186,Q$22),Q24)) -> 0 | R25: =IF($T25<>$T24,VLOOKUP($J25,DetRates!$C$19:$AA$3186,R$22,FALSE),R24) -> -12 | S25: =IF($T25<>$T24,VLOOKUP($J25,DetRates!$C$19:$AA$3186,S$22,FALSE),S24) -> 50 | T25: =IF(AQ24,0,IF(AR24,T24+1,T24)) -> 0 | U25: =VLOOKUP(F25,DetRates!$U$10:$W$12,3,FALSE) -> 15 | V25: =IF(J24=J25,V24+1,0) -> 1 | W25: =AS24 -> -6 | X25: =IF((N25+O25*V25)<=0,X24,(N25+O25*V25)) -> 0.2 | Y25: =W25*EXP(X25) -> -7.328416549 | Z25: -8 | AA25: 0 | AB25: FALSE | AC25: 0 | AD25: =AND($AA$15,(AC25="x")) -> FALSE | AE25: FALSE | AF25: FALSE | AG25: =AND($AG$15,T25>U25) -> FALSE | AH25: FALSE | AI25: FALSE | AJ25: =IF(B24<11,FALSE,IF(AND(SUM(AT15:AT24)<1,NOT(AJ24),SUM(AU15:AU24)=0,$AJ$15),TRUE,FALSE)) -> FALSE | AK25: =OR(AD25,AE25,AG25,AH25) -> FALSE | AL25: =IF(AK25,FALSE,OR(AB25,AF25,AI25,AJ25)) -> FALSE | AM25: FALSE | AN25: =AND($AE$15,Z25<$AF$21) -> FALSE | AO25: =AND(AL25,OR(AM25,AN25)) -> FALSE | AP25: =IF(D25<21,FALSE,IF(AND(T24<T25,T24<>0,AL25,$AP$15),TRUE,FALSE)) -> FALSE | AQ25: =OR(AK25,AO25,AP25) -> FALSE | AR25: FALSE | AS25: =IF(AQ25,$V$11,IF(AR25,Z25,Y25)) -> -7.328416549 | AT25: 0 | AU25: =AQ25*1 -> 0 | AW25: =W25 -> -6 | AX25: =Y25 -> -7.328416549 | AY25: =IF(AZ25,1,"") ->  | AZ25: FALSE | BA25: =B25 -> 1 | BB25: =IF(AZ25,BB24+1,BB24) -> 1 | BC25: =IF(NOT(AZ24),BC24+1,1) -> 1
B26: =B25+1 -> 2 | C26: 1 | D26: =IF(B26=1,D25+1,IF(AQ25,0,D25+1)) -> 2 | E26: =IF(B26>1,IF($AQ25,G$18,E25),$E$24) -> 1 | F26: =IF(B26>1,IF($AQ25,I$18,F25),$F$24) -> 2 | G26: =IF(B26>1,IF($AQ25,M$18,G25),$G$24) -> 1 | H26: =IF(B26>1,IF($AQ25,O$18,H25),$H$24) -> 1 | I26: =$C$17&$E$17&E26&F26&$K$17&G26&H26&"-"&D26 -> 1412111-2 | J26: =IF(ISNA(VLOOKUP(I26,DetRates!$B$19:$C$3186,2,FALSE)),J25,VLOOKUP(I26,DetRates!$B$19:$C$3186,2,FALSE)) -> 1 | K26: =VLOOKUP($J26,DetRates!$C$19:$AA$3186,K$22,FALSE) -> 0 | L26: =VLOOKUP($J26,DetRates!$C$19:$AA$3186,L$22,FALSE) -> 10 | M26: =IF($T26<>$T25,VLOOKUP($J26,DetRates!$C$19:$AA$3186,M$22,FALSE),M25) -> -7 | N26: =IF($T26<>$T25,VLOOKUP($J26,DetRates!$C$19:$AA$3186,N$22,FALSE),N25) -> 0.2 | O26: =IF($T26<>$T25,VLOOKUP($J26,DetRates!$C$19:$AA$3186,O$22,FALSE),O25) -> 0 | P26: =IF($T26<>$T25,VLOOKUP($J26,DetRates!$C$19:$AA$3186,P$22,FALSE),P25) -> -8 | Q26: =IF(AND(D26>29,T26>2,T26<>T25,E26<>3),VLOOKUP($J26,DetRates!$C$19:$AA$3186,Q$22),IF(T26<>T25,VLOOKUP($J26,DetRates!$C$19:$AA$3186,Q$22),Q25)) -> 0 | R26: =IF($T26<>$T25,VLOOKUP($J26,DetRates!$C$19:$AA$3186,R$22,FALSE),R25) -> -12 | S26: =IF($T26<>$T25,VLOOKUP($J26,DetRates!$C$19:$AA$3186,S$22,FALSE),S25) -> 50 | T26: 0 | U26: =VLOOKUP(F26,DetRates!$U$10:$W$12,3,FALSE) -> 15 | V26: 2 | W26: =AS25 -> -7.328416549 | X26: 0.2 | Y26: -8.950948186 | Z26: -8 | AA26: 0 | AB26: FALSE | AC26: 0 | AD26: FALSE | AE26: FALSE | AF26: FALSE | AG26: FALSE | AH26: FALSE | AI26: FALSE | AJ26: =IF(B25<11,FALSE,IF(AND(SUM(AT16:AT25)<1,NOT(AJ25),SUM(AU16:AU25)=0,$AJ$15),TRUE,FALSE)) -> FALSE | AK26: FALSE | AL26: =IF(AK26,FALSE,OR(AB26,AF26,AI26,AJ26)) -> FALSE | AM26: FALSE | AN26: FALSE | AO26: FALSE | AP26: =IF(D26<21,FALSE,IF(AND(T25<T26,T25<>0,AL26,$AP$15),TRUE,FALSE)) -> FALSE | AQ26: =OR(AK26,AO26,AP26) -> FALSE | AR26: FALSE | AS26: -8.950948186 | AT26: 0 | AU26: 0 | AW26: -7.328416549 | AX26: -8.950948186 | AZ26: FALSE | BA26: 2 | BB26: 1 | BC26: 2 | BF26: If "TRUE", error message:
B27: 3 | C27: 1 | D27: 3 | E27: 1 | F27: 2 | G27: 1 | H27: =IF(B27>1,IF($AQ26,O$18,H26),$H$24) -> 1 | I27: =$C$17&$E$17&E27&F27&$K$17&G27&H27&"-"&D27 -> 1412111-3 | J27: =IF(ISNA(VLOOKUP(I27,DetRates!$B$19:$C$3186,2,FALSE)),J26,VLOOKUP(I27,DetRates!$B$19:$C$3186,2,FALSE)) -> 1 | K27: =VLOOKUP($J27,DetRates!$C$19:$AA$3186,K$22,FALSE) -> 0 | L27: =VLOOKUP($J27,DetRates!$C$19:$AA$3186,L$22,FALSE) -> 10 | M27: =IF($T27<>$T26,VLOOKUP($J27,DetRates!$C$19:$AA$3186,M$22,FALSE),M26) -> -7 | N27: =IF($T27<>$T26,VLOOKUP($J27,DetRates!$C$19:$AA$3186,N$22,FALSE),N26) -> 0.2 | O27: =IF($T27<>$T26,VLOOKUP($J27,DetRates!$C$19:$AA$3186,O$22,FALSE),O26) -> 0 | P27: =IF($T27<>$T26,VLOOKUP($J27,DetRates!$C$19:$AA$3186,P$22,FALSE),P26) -> -8 | Q27: =IF(AND(D27>29,T27>2,T27<>T26,E27<>3),VLOOKUP($J27,DetRates!$C$19:$AA$3186,Q$22),IF(T27<>T26,VLOOKUP($J27,DetRates!$C$19:$AA$3186,Q$22),Q26)) -> 0 | R27: =IF($T27<>$T26,VLOOKUP($J27,DetRates!$C$19:$AA$3186,R$22,FALSE),R26) -> -12 | S27: =IF($T27<>$T26,VLOOKUP($J27,DetRates!$C$19:$AA$3186,S$22,FALSE),S26) -> 50 | T27: 0 | U27: =VLOOKUP(F27,DetRates!$U$10:$W$12,3,FALSE) -> 15 | V27: 3 | W27: -8.950948186 | X27: 0.2 | Y27: -10.9327128 | Z27: -8 | AA27: 0 | AB27: FALSE | AC27: 0 | AD27: FALSE | AE27: FALSE | AF27: FALSE | AG27: FALSE | AH27: FALSE | AI27: FALSE | AJ27: FALSE | AK27: FALSE | AL27: =IF(AK27,FALSE,OR(AB27,AF27,AI27,AJ27)) -> FALSE | AM27: FALSE | AN27: FALSE | AO27: FALSE | AP27: FALSE | AQ27: FALSE | AR27: FALSE | AS27: -10.9327128 | AT27: 0 | AU27: 0 | AW27: -8.950948186 | AX27: -10.9327128 | AZ27: FALSE | BA27: 3 | BB27: 1 | BC27: 3 | BF27: Please review the situation of the selected track in detail.
B28: 4 | C28: 1 | D28: 4 | E28: 1 | F28: 2 | G28: 1 | H28: 1 | I28: 1412111-4 | J28: =IF(ISNA(VLOOKUP(I28,DetRates!$B$19:$C$3186,2,FALSE)),J27,VLOOKUP(I28,DetRates!$B$19:$C$3186,2,FALSE)) -> 1 | K28: =VLOOKUP($J28,DetRates!$C$19:$AA$3186,K$22,FALSE) -> 0 | L28: =VLOOKUP($J28,DetRates!$C$19:$AA$3186,L$22,FALSE) -> 10 | M28: =IF($T28<>$T27,VLOOKUP($J28,DetRates!$C$19:$AA$3186,M$22,FALSE),M27) -> -7 | N28: =IF($T28<>$T27,VLOOKUP($J28,DetRates!$C$19:$AA$3186,N$22,FALSE),N27) -> 0.2 | O28: =IF($T28<>$T27,VLOOKUP($J28,DetRates!$C$19:$AA$3186,O$22,FALSE),O27) -> 0 | P28: =IF($T28<>$T27,VLOOKUP($J28,DetRates!$C$19:$AA$3186,P$22,FALSE),P27) -> -8 | Q28: =IF(AND(D28>29,T28>2,T28<>T27,E28<>3),VLOOKUP($J28,DetRates!$C$19:$AA$3186,Q$22),IF(T28<>T27,VLOOKUP($J28,DetRates!$C$19:$AA$3186,Q$22),Q27)) -> 0 | R28: =IF($T28<>$T27,VLOOKUP($J28,DetRates!$C$19:$AA$3186,R$22,FALSE),R27) -> -12 | S28: =IF($T28<>$T27,VLOOKUP($J28,DetRates!$C$19:$AA$3186,S$22,FALSE),S27) -> 50 | T28: 0 | U28: =VLOOKUP(F28,DetRates!$U$10:$W$12,3,FALSE) -> 15 | V28: 4 | W28: -10.9327128 | X28: 0.2 | Y28: -13.35324557 | Z28: -8 | AA28: 0 | AB28: FALSE | AC28: 0 | AD28: FALSE | AE28: FALSE | AF28: FALSE | AG28: FALSE | AH28: FALSE | AI28: TRUE | AJ28: FALSE | AK28: FALSE | AL28: TRUE | AM28: FALSE | AN28: FALSE | AO28: FALSE | AP28: FALSE | AQ28: FALSE | AR28: TRUE | AS28: -8 | AT28: 1 | AU28: 0 | AW28: -10.9327128 | AX28: -13.35324557 | AZ28: FALSE | BA28: 4 | BB28: 1 | BC28: 4 | BF28: (the LCAT results may not be appropriate - Renewal is triggered in under 10 years due to insufficient Q uplift from Tamping)
B29: 5 | C29: 2 | D29: 5 | E29: 1 | F29: 2 | G29: 1 | H29: 1 | I29: 1412111-5 | J29: =IF(ISNA(VLOOKUP(I29,DetRates!$B$19:$C$3186,2,FALSE)),J28,VLOOKUP(I29,DetRates!$B$19:$C$3186,2,FALSE)) -> 1 | K29: =VLOOKUP($J29,DetRates!$C$19:$AA$3186,K$22,FALSE) -> 0 | L29: =VLOOKUP($J29,DetRates!$C$19:$AA$3186,L$22,FALSE) -> 10 | M29: =IF($T29<>$T28,VLOOKUP($J29,DetRates!$C$19:$AA$3186,M$22,FALSE),M28) -> -7 | N29: =IF($T29<>$T28,VLOOKUP($J29,DetRates!$C$19:$AA$3186,N$22,FALSE),N28) -> 0.2 | O29: =IF($T29<>$T28,VLOOKUP($J29,DetRates!$C$19:$AA$3186,O$22,FALSE),O28) -> 0 | P29: =IF($T29<>$T28,VLOOKUP($J29,DetRates!$C$19:$AA$3186,P$22,FALSE),P28) -> -8 | Q29: =IF(AND(D29>29,T29>2,T29<>T28,E29<>3),VLOOKUP($J29,DetRates!$C$19:$AA$3186,Q$22),IF(T29<>T28,VLOOKUP($J29,DetRates!$C$19:$AA$3186,Q$22),Q28)) -> 0 | R29: =IF($T29<>$T28,VLOOKUP($J29,DetRates!$C$19:$AA$3186,R$22,FALSE),R28) -> -12 | S29: =IF($T29<>$T28,VLOOKUP($J29,DetRates!$C$19:$AA$3186,S$22,FALSE),S28) -> 50 | T29: 1 | U29: =VLOOKUP(F29,DetRates!$U$10:$W$12,3,FALSE) -> 15 | V29: 5 | W29: -8 | X29: 0.2 | Y29: -9.771222065 | Z29: -8 | AA29: 0 | AB29: FALSE | AC29: 0 | AD29: FALSE | AE29: FALSE | AF29: FALSE | AG29: FALSE | AH29: FALSE | AI29: FALSE | AJ29: FALSE | AK29: FALSE | AL29: FALSE | AM29: FALSE | AN29: FALSE | AO29: FALSE | AP29: FALSE | AQ29: FALSE | AR29: FALSE | AS29: -9.771222065 | AT29: 0 | AU29: 0 | AW29: -8 | AX29: -9.771222065 | AZ29: FALSE | BA29: 5 | BB29: 1 | BC29: 5
B30: 6 | C30: 2 | D30: 6 | E30: 1 | F30: 2 | G30: 1 | H30: 1 | I30: 1412111-6 | J30: =IF(ISNA(VLOOKUP(I30,DetRates!$B$19:$C$3186,2,FALSE)),J29,VLOOKUP(I30,DetRates!$B$19:$C$3186,2,FALSE)) -> 1 | K30: =VLOOKUP($J30,DetRates!$C$19:$AA$3186,K$22,FALSE) -> 0 | L30: =VLOOKUP($J30,DetRates!$C$19:$AA$3186,L$22,FALSE) -> 10 | M30: =IF($T30<>$T29,VLOOKUP($J30,DetRates!$C$19:$AA$3186,M$22,FALSE),M29) -> -7 | N30: =IF($T30<>$T29,VLOOKUP($J30,DetRates!$C$19:$AA$3186,N$22,FALSE),N29) -> 0.2 | O30: =IF($T30<>$T29,VLOOKUP($J30,DetRates!$C$19:$AA$3186,O$22,FALSE),O29) -> 0 | P30: =IF($T30<>$T29,VLOOKUP($J30,DetRates!$C$19:$AA$3186,P$22,FALSE),P29) -> -8 | Q30: =IF(AND(D30>29,T30>2,T30<>T29,E30<>3),VLOOKUP($J30,DetRates!$C$19:$AA$3186,Q$22),IF(T30<>T29,VLOOKUP($J30,DetRates!$C$19:$AA$3186,Q$22),Q29)) -> 0 | R30: =IF($T30<>$T29,VLOOKUP($J30,DetRates!$C$19:$AA$3186,R$22,FALSE),R29) -> -12 | S30: =IF($T30<>$T29,VLOOKUP($J30,DetRates!$C$19:$AA$3186,S$22,FALSE),S29) -> 50 | T30: 1 | U30: =VLOOKUP(F30,DetRates!$U$10:$W$12,3,FALSE) -> 15 | V30: 6 | W30: -9.771222065 | X30: 0.2 | Y30: -11.93459758 | Z30: -8 | AA30: 0 | AB30: FALSE | AC30: 0 | AD30: FALSE | AE30: FALSE | AF30: FALSE | AG30: FALSE | AH30: FALSE | AI30: FALSE | AJ30: FALSE | AK30: FALSE | AL30: FALSE | AM30: FALSE | AN30: FALSE | AO30: FALSE | AP30: FALSE | AQ30: FALSE | AR30: FALSE | AS30: -11.93459758 | AT30: 0 | AU30: 0 | AW30: -9.771222065 | AX30: -11.93459758 | AZ30: FALSE | BA30: 6 | BB30: 1 | BC30: 6
B31: 7 | C31: 2 | D31: 7 | E31: 1 | F31: 2 | G31: 1 | H31: 1 | I31: 1412111-7 | J31: =IF(ISNA(VLOOKUP(I31,DetRates!$B$19:$C$3186,2,FALSE)),J30,VLOOKUP(I31,DetRates!$B$19:$C$3186,2,FALSE)) -> 1 | K31: =VLOOKUP($J31,DetRates!$C$19:$AA$3186,K$22,FALSE) -> 0 | L31: =VLOOKUP($J31,DetRates!$C$19:$AA$3186,L$22,FALSE) -> 10 | M31: =IF($T31<>$T30,VLOOKUP($J31,DetRates!$C$19:$AA$3186,M$22,FALSE),M30) -> -7 | N31: =IF($T31<>$T30,VLOOKUP($J31,DetRates!$C$19:$AA$3186,N$22,FALSE),N30) -> 0.2 | O31: =IF($T31<>$T30,VLOOKUP($J31,DetRates!$C$19:$AA$3186,O$22,FALSE),O30) -> 0 | P31: =IF($T31<>$T30,VLOOKUP($J31,DetRates!$C$19:$AA$3186,P$22,FALSE),P30) -> -8 | Q31: =IF(AND(D31>29,T31>2,T31<>T30,E31<>3),VLOOKUP($J31,DetRates!$C$19:$AA$3186,Q$22),IF(T31<>T30,VLOOKUP($J31,DetRates!$C$19:$AA$3186,Q$22),Q30)) -> 0 | R31: =IF($T31<>$T30,VLOOKUP($J31,DetRates!$C$19:$AA$3186,R$22,FALSE),R30) -> -12 | S31: =IF($T31<>$T30,VLOOKUP($J31,DetRates!$C$19:$AA$3186,S$22,FALSE),S30) -> 50 | T31: 1 | U31: =VLOOKUP(F31,DetRates!$U$10:$W$12,3,FALSE) -> 15 | V31: 7 | W31: -11.93459758 | X31: 0.2 | Y31: -14.5769504 | Z31: -8 | AA31: 0 | AB31: FALSE | AC31: 0 | AD31: FALSE | AE31: FALSE | AF31: FALSE | AG31: FALSE | AH31: FALSE | AI31: TRUE | AJ31: FALSE | AK31: FALSE | AL31: TRUE | AM31: FALSE | AN31: FALSE | AO31: =AND(AL31,OR(AM31,AN31)) -> FALSE | AP31: FALSE | AQ31: FALSE | AR31: =IF(AQ31,FALSE,AL31) -> TRUE | AS31: -8 | AT31: 1 | AU31: 0 | AW31: -11.93459758 | AX31: -14.5769504 | AZ31: FALSE | BA31: 7 | BB31: 1 | BC31: 7
B32: 8 | C32: 2 | D32: 8 | E32: 1 | F32: 2 | G32: 1 | H32: 1 | I32: 1412111-8 | J32: =IF(ISNA(VLOOKUP(I32,DetRates!$B$19:$C$3186,2,FALSE)),J31,VLOOKUP(I32,DetRates!$B$19:$C$3186,2,FALSE)) -> 1 | K32: =VLOOKUP($J32,DetRates!$C$19:$AA$3186,K$22,FALSE) -> 0 | L32: =VLOOKUP($J32,DetRates!$C$19:$AA$3186,L$22,FALSE) -> 10 | M32: =IF($T32<>$T31,VLOOKUP($J32,DetRates!$C$19:$AA$3186,M$22,FALSE),M31) -> -7 | N32: =IF($T32<>$T31,VLOOKUP($J32,DetRates!$C$19:$AA$3186,N$22,FALSE),N31) -> 0.2 | O32: =IF($T32<>$T31,VLOOKUP($J32,DetRates!$C$19:$AA$3186,O$22,FALSE),O31) -> 0 | P32: =IF($T32<>$T31,VLOOKUP($J32,DetRates!$C$19:$AA$3186,P$22,FALSE),P31) -> -8 | Q32: =IF(AND(D32>29,T32>2,T32<>T31,E32<>3),VLOOKUP($J32,DetRates!$C$19:$AA$3186,Q$22),IF(T32<>T31,VLOOKUP($J32,DetRates!$C$19:$AA$3186,Q$22),Q31)) -> 0 | R32: =IF($T32<>$T31,VLOOKUP($J32,DetRates!$C$19:$AA$3186,R$22,FALSE),R31) -> -12 | S32: =IF($T32<>$T31,VLOOKUP($J32,DetRates!$C$19:$AA$3186,S$22,FALSE),S31) -> 50 | T32: 2 | U32: =VLOOKUP(F32,DetRates!$U$10:$W$12,3,FALSE) -> 15 | V32: 8 | W32: =AS31 -> -8 | X32: 0.2 | Y32: -9.771222065 | Z32: -8 | AA32: 0 | AB32: FALSE | AC32: 0 | AD32: FALSE | AE32: FALSE | AF32: FALSE | AG32: FALSE | AH32: FALSE | AI32: FALSE | AJ32: FALSE | AK32: FALSE | AL32: FALSE | AM32: FALSE | AN32: FALSE | AO32: FALSE | AP32: FALSE | AQ32: FALSE | AR32: =IF(AQ32,FALSE,AL32) -> FALSE | AS32: -9.771222065 | AT32: 0 | AU32: 0 | AW32: -8 | AX32: -9.771222065 | AZ32: FALSE | BA32: 8 | BB32: 1 | BC32: 8
B33: 9 | C33: 2 | D33: 9 | E33: 1 | F33: 2 | G33: 1 | H33: 1 | I33: 1412111-9 | J33: =IF(ISNA(VLOOKUP(I33,DetRates!$B$19:$C$3186,2,FALSE)),J32,VLOOKUP(I33,DetRates!$B$19:$C$3186,2,FALSE)) -> 1 | K33: =VLOOKUP($J33,DetRates!$C$19:$AA$3186,K$22,FALSE) -> 0 | L33: =VLOOKUP($J33,DetRates!$C$19:$AA$3186,L$22,FALSE) -> 10 | M33: =IF($T33<>$T32,VLOOKUP($J33,DetRates!$C$19:$AA$3186,M$22,FALSE),M32) -> -7 | N33: =IF($T33<>$T32,VLOOKUP($J33,DetRates!$C$19:$AA$3186,N$22,FALSE),N32) -> 0.2 | O33: =IF($T33<>$T32,VLOOKUP($J33,DetRates!$C$19:$AA$3186,O$22,FALSE),O32) -> 0 | P33: =IF($T33<>$T32,VLOOKUP($J33,DetRates!$C$19:$AA$3186,P$22,FALSE),P32) -> -8 | Q33: =IF(AND(D33>29,T33>2,T33<>T32,E33<>3),VLOOKUP($J33,DetRates!$C$19:$AA$3186,Q$22),IF(T33<>T32,VLOOKUP($J33,DetRates!$C$19:$AA$3186,Q$22),Q32)) -> 0 | R33: =IF($T33<>$T32,VLOOKUP($J33,DetRates!$C$19:$AA$3186,R$22,FALSE),R32) -> -12 | S33: =IF($T33<>$T32,VLOOKUP($J33,DetRates!$C$19:$AA$3186,S$22,FALSE),S32) -> 50 | T33: 2 | U33: =VLOOKUP(F33,DetRates!$U$10:$W$12,3,FALSE) -> 15 | V33: 9 | W33: -9.771222065 | X33: 0.2 | Y33: -11.93459758 | Z33: -8 | AA33: 0 | AB33: FALSE | AC33: 0 | AD33: FALSE | AE33: FALSE | AF33: FALSE | AG33: FALSE | AH33: FALSE | AI33: FALSE | AJ33: FALSE | AK33: FALSE | AL33: FALSE | AM33: FALSE | AN33: FALSE | AO33: FALSE | AP33: FALSE | AQ33: FALSE | AR33: FALSE | AS33: -11.93459758 | AT33: 0 | AU33: 0 | AW33: -9.771222065 | AX33: -11.93459758 | AZ33: FALSE | BA33: 9 | BB33: 1 | BC33: 9
B34: 10 | C34: 3 | D34: 10 | E34: 1 | F34: 2 | G34: 1 | H34: 1 | I34: 1412111-10 | J34: =IF(ISNA(VLOOKUP(I34,DetRates!$B$19:$C$3186,2,FALSE)),J33,VLOOKUP(I34,DetRates!$B$19:$C$3186,2,FALSE)) -> 2 | K34: =VLOOKUP($J34,DetRates!$C$19:$AA$3186,K$22,FALSE) -> 10 | L34: =VLOOKUP($J34,DetRates!$C$19:$AA$3186,L$22,FALSE) -> 25 | M34: =IF($T34<>$T33,VLOOKUP($J34,DetRates!$C$19:$AA$3186,M$22,FALSE),M33) -> -7 | N34: =IF($T34<>$T33,VLOOKUP($J34,DetRates!$C$19:$AA$3186,N$22,FALSE),N33) -> 0.2 | O34: =IF($T34<>$T33,VLOOKUP($J34,DetRates!$C$19:$AA$3186,O$22,FALSE),O33) -> 0 | P34: =IF($T34<>$T33,VLOOKUP($J34,DetRates!$C$19:$AA$3186,P$22,FALSE),P33) -> -8 | Q34: =IF(AND(D34>29,T34>2,T34<>T33,E34<>3),VLOOKUP($J34,DetRates!$C$19:$AA$3186,Q$22),IF(T34<>T33,VLOOKUP($J34,DetRates!$C$19:$AA$3186,Q$22),Q33)) -> 0 | R34: =IF($T34<>$T33,VLOOKUP($J34,DetRates!$C$19:$AA$3186,R$22,FALSE),R33) -> -12 | S34: =IF($T34<>$T33,VLOOKUP($J34,DetRates!$C$19:$AA$3186,S$22,FALSE),S33) -> 50 | T34: 2 | U34: =VLOOKUP(F34,DetRates!$U$10:$W$12,3,FALSE) -> 15 | V34: 0 | W34: -11.93459758 | X34: 0.2 | Y34: -14.5769504 | Z34: -8 | AA34: 0 | AB34: FALSE | AC34: 0 | AD34: FALSE | AE34: FALSE | AF34: FALSE | AG34: FALSE | AH34: FALSE | AI34: TRUE | AJ34: FALSE | AK34: FALSE | AL34: TRUE | AM34: FALSE | AN34: FALSE | AO34: FALSE | AP34: FALSE | AQ34: FALSE | AR34: TRUE | AS34: -8 | AT34: 1 | AU34: 0 | AW34: -11.93459758 | AX34: -14.5769504 | AZ34: FALSE | BA34: 10 | BB34: 1 | BC34: 10
B35: 11 | C35: 3 | D35: 11 | E35: 1 | F35: 2 | G35: 1 | H35: 1 | I35: 1412111-11 | J35: =IF(ISNA(VLOOKUP(I35,DetRates!$B$19:$C$3186,2,FALSE)),J34,VLOOKUP(I35,DetRates!$B$19:$C$3186,2,FALSE)) -> 2 | K35: =VLOOKUP($J35,DetRates!$C$19:$AA$3186,K$22,FALSE) -> 10 | L35: =VLOOKUP($J35,DetRates!$C$19:$AA$3186,L$22,FALSE) -> 25 | M35: =IF($T35<>$T34,VLOOKUP($J35,DetRates!$C$19:$AA$3186,M$22,FALSE),M34) -> -7 | N35: =IF($T35<>$T34,VLOOKUP($J35,DetRates!$C$19:$AA$3186,N$22,FALSE),N34) -> 0.15 | O35: =IF($T35<>$T34,VLOOKUP($J35,DetRates!$C$19:$AA$3186,O$22,FALSE),O34) -> 0 | P35: =IF($T35<>$T34,VLOOKUP($J35,DetRates!$C$19:$AA$3186,P$22,FALSE),P34) -> -10 | Q35: =IF(AND(D35>29,T35>2,T35<>T34,E35<>3),VLOOKUP($J35,DetRates!$C$19:$AA$3186,Q$22),IF(T35<>T34,VLOOKUP($J35,DetRates!$C$19:$AA$3186,Q$22),Q34)) -> 0 | R35: =IF($T35<>$T34,VLOOKUP($J35,DetRates!$C$19:$AA$3186,R$22,FALSE),R34) -> -15 | S35: =IF($T35<>$T34,VLOOKUP($J35,DetRates!$C$19:$AA$3186,S$22,FALSE),S34) -> 50 | T35: 3 | U35: =VLOOKUP(F35,DetRates!$U$10:$W$12,3,FALSE) -> 15 | V35: 1 | W35: -8 | X35: 0.15 | Y35: -9.294673942 | Z35: -10 | AA35: 0 | AB35: FALSE | AC35: 0 | AD35: FALSE | AE35: FALSE | AF35: FALSE | AG35: FALSE | AH35: FALSE | AI35: FALSE | AJ35: FALSE | AK35: FALSE | AL35: FALSE | AM35: FALSE | AN35: FALSE | AO35: FALSE | AP35: FALSE | AQ35: FALSE | AR35: FALSE | AS35: -9.294673942 | AT35: 0 | AU35: 0 | AW35: -8 | AX35: -9.294673942 | AZ35: FALSE | BA35: 11 | BB35: 1 | BC35: 11
B36: 12 | C36: 3 | D36: 12 | E36: 1 | F36: 2 | G36: 1 | H36: 1 | I36: 1412111-12 | J36: =IF(ISNA(VLOOKUP(I36,DetRates!$B$19:$C$3186,2,FALSE)),J35,VLOOKUP(I36,DetRates!$B$19:$C$3186,2,FALSE)) -> 2 | K36: =VLOOKUP($J36,DetRates!$C$19:$AA$3186,K$22,FALSE) -> 10 | L36: =VLOOKUP($J36,DetRates!$C$19:$AA$3186,L$22,FALSE) -> 25 | M36: =IF($T36<>$T35,VLOOKUP($J36,DetRates!$C$19:$AA$3186,M$22,FALSE),M35) -> -7 | N36: =IF($T36<>$T35,VLOOKUP($J36,DetRates!$C$19:$AA$3186,N$22,FALSE),N35) -> 0.15 | O36: =IF($T36<>$T35,VLOOKUP($J36,DetRates!$C$19:$AA$3186,O$22,FALSE),O35) -> 0 | P36: =IF($T36<>$T35,VLOOKUP($J36,DetRates!$C$19:$AA$3186,P$22,FALSE),P35) -> -10 | Q36: =IF(AND(D36>29,T36>2,T36<>T35,E36<>3),VLOOKUP($J36,DetRates!$C$19:$AA$3186,Q$22),IF(T36<>T35,VLOOKUP($J36,DetRates!$C$19:$AA$3186,Q$22),Q35)) -> 0 | R36: =IF($T36<>$T35,VLOOKUP($J36,DetRates!$C$19:$AA$3186,R$22,FALSE),R35) -> -15 | S36: =IF($T36<>$T35,VLOOKUP($J36,DetRates!$C$19:$AA$3186,S$22,FALSE),S35) -> 50 | T36: 3 | U36: =VLOOKUP(F36,DetRates!$U$10:$W$12,3,FALSE) -> 15 | V36: 2 | W36: -9.294673942 | X36: 0.15 | Y36: -10.79887046 | Z36: -10 | AA36: 0 | AB36: FALSE | AC36: 0 | AD36: FALSE | AE36: FALSE | AF36: FALSE | AG36: FALSE | AH36: FALSE | AI36: FALSE | AJ36: FALSE | AK36: FALSE | AL36: FALSE | AM36: FALSE | AN36: FALSE | AO36: FALSE | AP36: FALSE | AQ36: FALSE | AR36: FALSE | AS36: -10.79887046 | AT36: 0 | AU36: 0 | AW36: -9.294673942 | AX36: -10.79887046 | AZ36: FALSE | BA36: 12 | BB36: 1 | BC36: 12
B37: 13 | C37: 3 | D37: 13 | E37: 1 | F37: 2 | G37: 1 | H37: 1 | I37: 1412111-13 | J37: =IF(ISNA(VLOOKUP(I37,DetRates!$B$19:$C$3186,2,FALSE)),J36,VLOOKUP(I37,DetRates!$B$19:$C$3186,2,FALSE)) -> 2 | K37: =VLOOKUP($J37,DetRates!$C$19:$AA$3186,K$22,FALSE) -> 10 | L37: =VLOOKUP($J37,DetRates!$C$19:$AA$3186,L$22,FALSE) -> 25 | M37: =IF($T37<>$T36,VLOOKUP($J37,DetRates!$C$19:$AA$3186,M$22,FALSE),M36) -> -7 | N37: =IF($T37<>$T36,VLOOKUP($J37,DetRates!$C$19:$AA$3186,N$22,FALSE),N36) -> 0.15 | O37: =IF($T37<>$T36,VLOOKUP($J37,DetRates!$C$19:$AA$3186,O$22,FALSE),O36) -> 0 | P37: =IF($T37<>$T36,VLOOKUP($J37,DetRates!$C$19:$AA$3186,P$22,FALSE),P36) -> -10 | Q37: =IF(AND(D37>29,T37>2,T37<>T36,E37<>3),VLOOKUP($J37,DetRates!$C$19:$AA$3186,Q$22),IF(T37<>T36,VLOOKUP($J37,DetRates!$C$19:$AA$3186,Q$22),Q36)) -> 0 | R37: =IF($T37<>$T36,VLOOKUP($J37,DetRates!$C$19:$AA$3186,R$22,FALSE),R36) -> -15 | S37: =IF($T37<>$T36,VLOOKUP($J37,DetRates!$C$19:$AA$3186,S$22,FALSE),S36) -> 50 | T37: 3 | U37: =VLOOKUP(F37,DetRates!$U$10:$W$12,3,FALSE) -> 15 | V37: 3 | W37: -10.79887046 | X37: 0.15 | Y37: -12.54649748 | Z37: -10 | AA37: 0 | AB37: FALSE | AC37: 0 | AD37: FALSE | AE37: FALSE | AF37: FALSE | AG37: FALSE | AH37: FALSE | AI37: FALSE | AJ37: FALSE | AK37: FALSE | AL37: FALSE | AM37: FALSE | AN37: FALSE | AO37: FALSE | AP37: FALSE | AQ37: FALSE | AR37: FALSE | AS37: -12.54649748 | AT37: 0 | AU37: 0 | AW37: =W37 -> -10.79887046 | AX37: -12.54649748 | AZ37: FALSE | BA37: 13 | BB37: 1 | BC37: 13
B38: 14 | C38: 3 | D38: 14 | E38: 1 | F38: 2 | G38: 1 | H38: 1 | I38: 1412111-14 | J38: =IF(ISNA(VLOOKUP(I38,DetRates!$B$19:$C$3186,2,FALSE)),J37,VLOOKUP(I38,DetRates!$B$19:$C$3186,2,FALSE)) -> 2 | K38: =VLOOKUP($J38,DetRates!$C$19:$AA$3186,K$22,FALSE) -> 10 | L38: =VLOOKUP($J38,DetRates!$C$19:$AA$3186,L$22,FALSE) -> 25 | M38: =IF($T38<>$T37,VLOOKUP($J38,DetRates!$C$19:$AA$3186,M$22,FALSE),M37) -> -7 | N38: =IF($T38<>$T37,VLOOKUP($J38,DetRates!$C$19:$AA$3186,N$22,FALSE),N37) -> 0.15 | O38: =IF($T38<>$T37,VLOOKUP($J38,DetRates!$C$19:$AA$3186,O$22,FALSE),O37) -> 0 | P38: =IF($T38<>$T37,VLOOKUP($J38,DetRates!$C$19:$AA$3186,P$22,FALSE),P37) -> -10 | Q38: =IF(AND(D38>29,T38>2,T38<>T37,E38<>3),VLOOKUP($J38,DetRates!$C$19:$AA$3186,Q$22),IF(T38<>T37,VLOOKUP($J38,DetRates!$C$19:$AA$3186,Q$22),Q37)) -> 0 | R38: =IF($T38<>$T37,VLOOKUP($J38,DetRates!$C$19:$AA$3186,R$22,FALSE),R37) -> -15 | S38: =IF($T38<>$T37,VLOOKUP($J38,DetRates!$C$19:$AA$3186,S$22,FALSE),S37) -> 50 | T38: 3 | U38: =VLOOKUP(F38,DetRates!$U$10:$W$12,3,FALSE) -> 15 | V38: 4 | W38: -12.54649748 | X38: 0.15 | Y38: -14.5769504 | Z38: -10 | AA38: 0 | AB38: FALSE | AC38: 0 | AD38: FALSE | AE38: FALSE | AF38: FALSE | AG38: FALSE | AH38: FALSE | AI38: FALSE | AJ38: FALSE | AK38: FALSE | AL38: FALSE | AM38: FALSE | AN38: FALSE | AO38: FALSE | AP38: FALSE | AQ38: FALSE | AR38: FALSE | AS38: -14.5769504 | AT38: 0 | AU38: 0 | AW38: -12.54649748 | AX38: -14.5769504 | AZ38: FALSE | BA38: 14 | BB38: 1 | BC38: 14
B39: 15 | C39: 4 | D39: 15 | E39: 1 | F39: 2 | G39: 1 | H39: 1 | I39: 1412111-15 | J39: =IF(ISNA(VLOOKUP(I39,DetRates!$B$19:$C$3186,2,FALSE)),J38,VLOOKUP(I39,DetRates!$B$19:$C$3186,2,FALSE)) -> 2 | K39: =VLOOKUP($J39,DetRates!$C$19:$AA$3186,K$22,FALSE) -> 10 | L39: =VLOOKUP($J39,DetRates!$C$19:$AA$3186,L$22,FALSE) -> 25 | M39: =IF($T39<>$T38,VLOOKUP($J39,DetRates!$C$19:$AA$3186,M$22,FALSE),M38) -> -7 | N39: =IF($T39<>$T38,VLOOKUP($J39,DetRates!$C$19:$AA$3186,N$22,FALSE),N38) -> 0.15 | O39: =IF($T39<>$T38,VLOOKUP($J39,DetRates!$C$19:$AA$3186,O$22,FALSE),O38) -> 0 | P39: =IF($T39<>$T38,VLOOKUP($J39,DetRates!$C$19:$AA$3186,P$22,FALSE),P38) -> -10 | Q39: =IF(AND(D39>29,T39>2,T39<>T38,E39<>3),VLOOKUP($J39,DetRates!$C$19:$AA$3186,Q$22),IF(T39<>T38,VLOOKUP($J39,DetRates!$C$19:$AA$3186,Q$22),Q38)) -> 0 | R39: =IF($T39<>$T38,VLOOKUP($J39,DetRates!$C$19:$AA$3186,R$22,FALSE),R38) -> -15 | S39: =IF($T39<>$T38,VLOOKUP($J39,DetRates!$C$19:$AA$3186,S$22,FALSE),S38) -> 50 | T39: 3 | U39: =VLOOKUP(F39,DetRates!$U$10:$W$12,3,FALSE) -> 15 | V39: 5 | W39: -14.5769504 | X39: 0.15 | Y39: -16.93600013 | Z39: -10 | AA39: 0 | AB39: FALSE | AC39: 0 | AD39: FALSE | AE39: FALSE | AF39: FALSE | AG39: FALSE | AH39: FALSE | AI39: TRUE | AJ39: FALSE | AK39: FALSE | AL39: TRUE | AM39: FALSE | AN39: FALSE | AO39: FALSE | AP39: FALSE | AQ39: FALSE | AR39: TRUE | AS39: -10 | AT39: 1 | AU39: 0 | AW39: -14.5769504 | AX39: -16.93600013 | AZ39: FALSE | BA39: 15 | BB39: 1 | BC39: 15
B40: 16 | C40: 4 | D40: 16 | E40: 1 | F40: 2 | G40: 1 | H40: 1 | I40: 1412111-16 | J40: =IF(ISNA(VLOOKUP(I40,DetRates!$B$19:$C$3186,2,FALSE)),J39,VLOOKUP(I40,DetRates!$B$19:$C$3186,2,FALSE)) -> 2 | K40: =VLOOKUP($J40,DetRates!$C$19:$AA$3186,K$22,FALSE) -> 10 | L40: =VLOOKUP($J40,DetRates!$C$19:$AA$3186,L$22,FALSE) -> 25 | M40: =IF($T40<>$T39,VLOOKUP($J40,DetRates!$C$19:$AA$3186,M$22,FALSE),M39) -> -7 | N40: =IF($T40<>$T39,VLOOKUP($J40,DetRates!$C$19:$AA$3186,N$22,FALSE),N39) -> 0.15 | O40: =IF($T40<>$T39,VLOOKUP($J40,DetRates!$C$19:$AA$3186,O$22,FALSE),O39) -> 0 | P40: =IF($T40<>$T39,VLOOKUP($J40,DetRates!$C$19:$AA$3186,P$22,FALSE),P39) -> -10 | Q40: =IF(AND(D40>29,T40>2,T40<>T39,E40<>3),VLOOKUP($J40,DetRates!$C$19:$AA$3186,Q$22),IF(T40<>T39,VLOOKUP($J40,DetRates!$C$19:$AA$3186,Q$22),Q39)) -> 0 | R40: =IF($T40<>$T39,VLOOKUP($J40,DetRates!$C$19:$AA$3186,R$22,FALSE),R39) -> -15 | S40: =IF($T40<>$T39,VLOOKUP($J40,DetRates!$C$19:$AA$3186,S$22,FALSE),S39) -> 50 | T40: 4 | U40: =VLOOKUP(F40,DetRates!$U$10:$W$12,3,FALSE) -> 15 | V40: 6 | W40: -10 | X40: 0.15 | Y40: -11.61834243 | Z40: -10 | AA40: 0 | AB40: FALSE | AC40: 0 | AD40: FALSE | AE40: FALSE | AF40: FALSE | AG40: FALSE | AH40: FALSE | AI40: FALSE | AJ40: FALSE | AK40: FALSE | AL40: FALSE | AM40: FALSE | AN40: FALSE | AO40: FALSE | AP40: FALSE | AQ40: FALSE | AR40: FALSE | AS40: -11.61834243 | AT40: 0 | AU40: 0 | AW40: -10 | AX40: -11.61834243 | AZ40: FALSE | BA40: 16 | BB40: 1 | BC40: 16
B41: 17 | C41: 4 | D41: 17 | E41: 1 | F41: 2 | G41: 1 | H41: 1 | I41: 1412111-17 | J41: =IF(ISNA(VLOOKUP(I41,DetRates!$B$19:$C$3186,2,FALSE)),J40,VLOOKUP(I41,DetRates!$B$19:$C$3186,2,FALSE)) -> 2 | K41: =VLOOKUP($J41,DetRates!$C$19:$AA$3186,K$22,FALSE) -> 10 | L41: =VLOOKUP($J41,DetRates!$C$19:$AA$3186,L$22,FALSE) -> 25 | M41: =IF($T41<>$T40,VLOOKUP($J41,DetRates!$C$19:$AA$3186,M$22,FALSE),M40) -> -7 | N41: =IF($T41<>$T40,VLOOKUP($J41,DetRates!$C$19:$AA$3186,N$22,FALSE),N40) -> 0.15 | O41: =IF($T41<>$T40,VLOOKUP($J41,DetRates!$C$19:$AA$3186,O$22,FALSE),O40) -> 0 | P41: =IF($T41<>$T40,VLOOKUP($J41,DetRates!$C$19:$AA$3186,P$22,FALSE),P40) -> -10 | Q41: =IF(AND(D41>29,T41>2,T41<>T40,E41<>3),VLOOKUP($J41,DetRates!$C$19:$AA$3186,Q$22),IF(T41<>T40,VLOOKUP($J41,DetRates!$C$19:$AA$3186,Q$22),Q40)) -> 0 | R41: =IF($T41<>$T40,VLOOKUP($J41,DetRates!$C$19:$AA$3186,R$22,FALSE),R40) -> -15 | S41: =IF($T41<>$T40,VLOOKUP($J41,DetRates!$C$19:$AA$3186,S$22,FALSE),S40) -> 50 | T41: 4 | U41: =VLOOKUP(F41,DetRates!$U$10:$W$12,3,FALSE) -> 15 | V41: 7 | W41: -11.61834243 | X41: 0.15 | Y41: -13.49858808 | Z41: -10 | AA41: 0 | AB41: FALSE | AC41: 0 | AD41: FALSE | AE41: FALSE | AF41: FALSE | AG41: FALSE | AH41: FALSE | AI41: FALSE | AJ41: FALSE | AK41: FALSE | AL41: FALSE | AM41: FALSE | AN41: FALSE | AO41: FALSE | AP41: FALSE | AQ41: FALSE | AR41: FALSE | AS41: -13.49858808 | AT41: 0 | AU41: 0 | AW41: -11.61834243 | AX41: -13.49858808 | AZ41: FALSE | BA41: 17 | BB41: 1 | BC41: 17
B42: 18 | C42: 4 | D42: 18 | E42: 1 | F42: 2 | G42: 1 | H42: 1 | I42: 1412111-18 | J42: =IF(ISNA(VLOOKUP(I42,DetRates!$B$19:$C$3186,2,FALSE)),J41,VLOOKUP(I42,DetRates!$B$19:$C$3186,2,FALSE)) -> 2 | K42: =VLOOKUP($J42,DetRates!$C$19:$AA$3186,K$22,FALSE) -> 10 | L42: =VLOOKUP($J42,DetRates!$C$19:$AA$3186,L$22,FALSE) -> 25 | M42: =IF($T42<>$T41,VLOOKUP($J42,DetRates!$C$19:$AA$3186,M$22,FALSE),M41) -> -7 | N42: =IF($T42<>$T41,VLOOKUP($J42,DetRates!$C$19:$AA$3186,N$22,FALSE),N41) -> 0.15 | O42: =IF($T42<>$T41,VLOOKUP($J42,DetRates!$C$19:$AA$3186,O$22,FALSE),O41) -> 0 | P42: =IF($T42<>$T41,VLOOKUP($J42,DetRates!$C$19:$AA$3186,P$22,FALSE),P41) -> -10 | Q42: =IF(AND(D42>29,T42>2,T42<>T41,E42<>3),VLOOKUP($J42,DetRates!$C$19:$AA$3186,Q$22),IF(T42<>T41,VLOOKUP($J42,DetRates!$C$19:$AA$3186,Q$22),Q41)) -> 0 | R42: =IF($T42<>$T41,VLOOKUP($J42,DetRates!$C$19:$AA$3186,R$22,FALSE),R41) -> -15 | S42: =IF($T42<>$T41,VLOOKUP($J42,DetRates!$C$19:$AA$3186,S$22,FALSE),S41) -> 50 | T42: 4 | U42: =VLOOKUP(F42,DetRates!$U$10:$W$12,3,FALSE) -> 15 | V42: 8 | W42: -13.49858808 | X42: 0.15 | Y42: -15.68312185 | Z42: -10 | AA42: 0 | AB42: FALSE | AC42: 0 | AD42: FALSE | AE42: FALSE | AF42: FALSE | AG42: FALSE | AH42: FALSE | AI42: TRUE | AJ42: FALSE | AK42: FALSE | AL42: TRUE | AM42: FALSE | AN42: FALSE | AO42: FALSE | AP42: FALSE | AQ42: FALSE | AR42: TRUE | AS42: -10 | AT42: 1 | AU42: 0 | AW42: -13.49858808 | AX42: -15.68312185 | AZ42: FALSE | BA42: 18 | BB42: 1 | BC42: 18
B43: 19 | C43: 4 | D43: 19 | E43: 1 | F43: 2 | G43: 1 | H43: 1 | I43: 1412111-19 | J43: =IF(ISNA(VLOOKUP(I43,DetRates!$B$19:$C$3186,2,FALSE)),J42,VLOOKUP(I43,DetRates!$B$19:$C$3186,2,FALSE)) -> 2 | K43: =VLOOKUP($J43,DetRates!$C$19:$AA$3186,K$22,FALSE) -> 10 | L43: =VLOOKUP($J43,DetRates!$C$19:$AA$3186,L$22,FALSE) -> 25 | M43: =IF($T43<>$T42,VLOOKUP($J43,DetRates!$C$19:$AA$3186,M$22,FALSE),M42) -> -7 | N43: =IF($T43<>$T42,VLOOKUP($J43,DetRates!$C$19:$AA$3186,N$22,FALSE),N42) -> 0.15 | O43: =IF($T43<>$T42,VLOOKUP($J43,DetRates!$C$19:$AA$3186,O$22,FALSE),O42) -> 0 | P43: =IF($T43<>$T42,VLOOKUP($J43,DetRates!$C$19:$AA$3186,P$22,FALSE),P42) -> -10 | Q43: =IF(AND(D43>29,T43>2,T43<>T42,E43<>3),VLOOKUP($J43,DetRates!$C$19:$AA$3186,Q$22),IF(T43<>T42,VLOOKUP($J43,DetRates!$C$19:$AA$3186,Q$22),Q42)) -> 0 | R43: =IF($T43<>$T42,VLOOKUP($J43,DetRates!$C$19:$AA$3186,R$22,FALSE),R42) -> -15 | S43: =IF($T43<>$T42,VLOOKUP($J43,DetRates!$C$19:$AA$3186,S$22,FALSE),S42) -> 50 | T43: 5 | U43: =VLOOKUP(F43,DetRates!$U$10:$W$12,3,FALSE) -> 15 | V43: 9 | W43: -10 | X43: 0.15 | Y43: -11.61834243 | Z43: -10 | AA43: 0 | AB43: FALSE | AC43: 0 | AD43: FALSE | AE43: FALSE | AF43: FALSE | AG43: FALSE | AH43: FALSE | AI43: FALSE | AJ43: FALSE | AK43: FALSE | AL43: FALSE | AM43: FALSE | AN43: FALSE | AO43: FALSE | AP43: FALSE | AQ43: FALSE | AR43: FALSE | AS43: -11.61834243 | AT43: 0 | AU43: 0 | AW43: -10 | AX43: -11.61834243 | AZ43: FALSE | BA43: 19 | BB43: 1 | BC43: 19
B44: 20 | C44: 5 | D44: 20 | E44: 1 | F44: 2 | G44: 1 | H44: 1 | I44: 1412111-20 | J44: =IF(ISNA(VLOOKUP(I44,DetRates!$B$19:$C$3186,2,FALSE)),J43,VLOOKUP(I44,DetRates!$B$19:$C$3186,2,FALSE)) -> 2 | K44: =VLOOKUP($J44,DetRates!$C$19:$AA$3186,K$22,FALSE) -> 10 | L44: =VLOOKUP($J44,DetRates!$C$19:$AA$3186,L$22,FALSE) -> 25 | M44: =IF($T44<>$T43,VLOOKUP($J44,DetRates!$C$19:$AA$3186,M$22,FALSE),M43) -> -7 | N44: =IF($T44<>$T43,VLOOKUP($J44,DetRates!$C$19:$AA$3186,N$22,FALSE),N43) -> 0.15 | O44: =IF($T44<>$T43,VLOOKUP($J44,DetRates!$C$19:$AA$3186,O$22,FALSE),O43) -> 0 | P44: =IF($T44<>$T43,VLOOKUP($J44,DetRates!$C$19:$AA$3186,P$22,FALSE),P43) -> -10 | Q44: =IF(AND(D44>29,T44>2,T44<>T43,E44<>3),VLOOKUP($J44,DetRates!$C$19:$AA$3186,Q$22),IF(T44<>T43,VLOOKUP($J44,DetRates!$C$19:$AA$3186,Q$22),Q43)) -> 0 | R44: =IF($T44<>$T43,VLOOKUP($J44,DetRates!$C$19:$AA$3186,R$22,FALSE),R43) -> -15 | S44: =IF($T44<>$T43,VLOOKUP($J44,DetRates!$C$19:$AA$3186,S$22,FALSE),S43) -> 50 | T44: 5 | U44: =VLOOKUP(F44,DetRates!$U$10:$W$12,3,FALSE) -> 15 | V44: 10 | W44: -11.61834243 | X44: 0.15 | Y44: -13.49858808 | Z44: -10 | AA44: 0 | AB44: FALSE | AC44: 0 | AD44: FALSE | AE44: =AND(AE$23,$AE$15,$W44<=AE$21) -> FALSE | AF44: FALSE | AG44: FALSE | AH44: FALSE | AI44: FALSE | AJ44: FALSE | AK44: FALSE | AL44: FALSE | AM44: FALSE | AN44: FALSE | AO44: FALSE | AP44: FALSE | AQ44: FALSE | AR44: FALSE | AS44: -13.49858808 | AT44: 0 | AU44: 0 | AW44: -11.61834243 | AX44: -13.49858808 | AZ44: FALSE | BA44: 20 | BB44: 1 | BC44: 20
B45: 21 | C45: 5 | D45: 21 | E45: 1 | F45: 2 | G45: 1 | H45: 1 | I45: 1412111-21 | J45: =IF(ISNA(VLOOKUP(I45,DetRates!$B$19:$C$3186,2,FALSE)),J44,VLOOKUP(I45,DetRates!$B$19:$C$3186,2,FALSE)) -> 2 | K45: =VLOOKUP($J45,DetRates!$C$19:$AA$3186,K$22,FALSE) -> 10 | L45: =VLOOKUP($J45,DetRates!$C$19:$AA$3186,L$22,FALSE) -> 25 | M45: =IF($T45<>$T44,VLOOKUP($J45,DetRates!$C$19:$AA$3186,M$22,FALSE),M44) -> -7 | N45: =IF($T45<>$T44,VLOOKUP($J45,DetRates!$C$19:$AA$3186,N$22,FALSE),N44) -> 0.15 | O45: =IF($T45<>$T44,VLOOKUP($J45,DetRates!$C$19:$AA$3186,O$22,FALSE),O44) -> 0 | P45: =IF($T45<>$T44,VLOOKUP($J45,DetRates!$C$19:$AA$3186,P$22,FALSE),P44) -> -10 | Q45: =IF(AND(D45>29,T45>2,T45<>T44,E45<>3),VLOOKUP($J45,DetRates!$C$19:$AA$3186,Q$22),IF(T45<>T44,VLOOKUP($J45,DetRates!$C$19:$AA$3186,Q$22),Q44)) -> 0 | R45: =IF($T45<>$T44,VLOOKUP($J45,DetRates!$C$19:$AA$3186,R$22,FALSE),R44) -> -15 | S45: =IF($T45<>$T44,VLOOKUP($J45,DetRates!$C$19:$AA$3186,S$22,FALSE),S44) -> 50 | T45: 5 | U45: =VLOOKUP(F45,DetRates!$U$10:$W$12,3,FALSE) -> 15 | V45: 11 | W45: -13.49858808 | X45: 0.15 | Y45: -15.68312185 | Z45: -10 | AA45: 0 | AB45: FALSE | AC45: 0 | AD45: FALSE | AE45: FALSE | AF45: FALSE | AG45: FALSE | AH45: FALSE | AI45: TRUE | AJ45: FALSE | AK45: FALSE | AL45: TRUE | AM45: FALSE | AN45: FALSE | AO45: FALSE | AP45: FALSE | AQ45: FALSE | AR45: TRUE | AS45: -10 | AT45: 1 | AU45: 0 | AW45: -13.49858808 | AX45: -15.68312185 | AZ45: FALSE | BA45: 21 | BB45: 1 | BC45: 21
B46: 22 | C46: 5 | D46: 22 | E46: 1 | F46: 2 | G46: 1 | H46: 1 | I46: 1412111-22 | J46: =IF(ISNA(VLOOKUP(I46,DetRates!$B$19:$C$3186,2,FALSE)),J45,VLOOKUP(I46,DetRates!$B$19:$C$3186,2,FALSE)) -> 2 | K46: =VLOOKUP($J46,DetRates!$C$19:$AA$3186,K$22,FALSE) -> 10 | L46: =VLOOKUP($J46,DetRates!$C$19:$AA$3186,L$22,FALSE) -> 25 | M46: =IF($T46<>$T45,VLOOKUP($J46,DetRates!$C$19:$AA$3186,M$22,FALSE),M45) -> -7 | N46: =IF($T46<>$T45,VLOOKUP($J46,DetRates!$C$19:$AA$3186,N$22,FALSE),N45) -> 0.15 | O46: =IF($T46<>$T45,VLOOKUP($J46,DetRates!$C$19:$AA$3186,O$22,FALSE),O45) -> 0 | P46: =IF($T46<>$T45,VLOOKUP($J46,DetRates!$C$19:$AA$3186,P$22,FALSE),P45) -> -10 | Q46: =IF(AND(D46>29,T46>2,T46<>T45,E46<>3),VLOOKUP($J46,DetRates!$C$19:$AA$3186,Q$22),IF(T46<>T45,VLOOKUP($J46,DetRates!$C$19:$AA$3186,Q$22),Q45)) -> 0 | R46: =IF($T46<>$T45,VLOOKUP($J46,DetRates!$C$19:$AA$3186,R$22,FALSE),R45) -> -15 | S46: =IF($T46<>$T45,VLOOKUP($J46,DetRates!$C$19:$AA$3186,S$22,FALSE),S45) -> 50 | T46: 6 | U46: =VLOOKUP(F46,DetRates!$U$10:$W$12,3,FALSE) -> 15 | V46: 12 | W46: -10 | X46: 0.15 | Y46: -11.61834243 | Z46: -10 | AA46: 0 | AB46: FALSE | AC46: 0 | AD46: FALSE | AE46: FALSE | AF46: FALSE | AG46: FALSE | AH46: FALSE | AI46: FALSE | AJ46: FALSE | AK46: =OR(AD46,AE46,AG46,AH46) -> FALSE | AL46: FALSE | AM46: FALSE | AN46: FALSE | AO46: FALSE | AP46: FALSE | AQ46: FALSE | AR46: FALSE | AS46: -11.61834243 | AT46: 0 | AU46: 0 | AW46: -10 | AX46: -11.61834243 | AZ46: FALSE | BA46: 22 | BB46: 1 | BC46: 22
B47: 23 | C47: 5 | D47: 23 | E47: 1 | F47: 2 | G47: 1 | H47: 1 | I47: 1412111-23 | J47: =IF(ISNA(VLOOKUP(I47,DetRates!$B$19:$C$3186,2,FALSE)),J46,VLOOKUP(I47,DetRates!$B$19:$C$3186,2,FALSE)) -> 2 | K47: =VLOOKUP($J47,DetRates!$C$19:$AA$3186,K$22,FALSE) -> 10 | L47: =VLOOKUP($J47,DetRates!$C$19:$AA$3186,L$22,FALSE) -> 25 | M47: =IF($T47<>$T46,VLOOKUP($J47,DetRates!$C$19:$AA$3186,M$22,FALSE),M46) -> -7 | N47: =IF($T47<>$T46,VLOOKUP($J47,DetRates!$C$19:$AA$3186,N$22,FALSE),N46) -> 0.15 | O47: =IF($T47<>$T46,VLOOKUP($J47,DetRates!$C$19:$AA$3186,O$22,FALSE),O46) -> 0 | P47: =IF($T47<>$T46,VLOOKUP($J47,DetRates!$C$19:$AA$3186,P$22,FALSE),P46) -> -10 | Q47: =IF(AND(D47>29,T47>2,T47<>T46,E47<>3),VLOOKUP($J47,DetRates!$C$19:$AA$3186,Q$22),IF(T47<>T46,VLOOKUP($J47,DetRates!$C$19:$AA$3186,Q$22),Q46)) -> 0 | R47: =IF($T47<>$T46,VLOOKUP($J47,DetRates!$C$19:$AA$3186,R$22,FALSE),R46) -> -15 | S47: =IF($T47<>$T46,VLOOKUP($J47,DetRates!$C$19:$AA$3186,S$22,FALSE),S46) -> 50 | T47: 6 | U47: =VLOOKUP(F47,DetRates!$U$10:$W$12,3,FALSE) -> 15 | V47: 13 | W47: -11.61834243 | X47: 0.15 | Y47: -13.49858808 | Z47: -10 | AA47: 0 | AB47: FALSE | AC47: 0 | AD47: FALSE | AE47: FALSE | AF47: FALSE | AG47: FALSE | AH47: FALSE | AI47: FALSE | AJ47: FALSE | AK47: FALSE | AL47: FALSE | AM47: FALSE | AN47: FALSE | AO47: FALSE | AP47: FALSE | AQ47: FALSE | AR47: FALSE | AS47: -13.49858808 | AT47: 0 | AU47: 0 | AW47: -11.61834243 | AX47: -13.49858808 | AZ47: FALSE | BA47: 23 | BB47: 1 | BC47: 23
B48: 24 | C48: 5 | D48: 24 | E48: 1 | F48: 2 | G48: 1 | H48: 1 | I48: 1412111-24 | J48: =IF(ISNA(VLOOKUP(I48,DetRates!$B$19:$C$3186,2,FALSE)),J47,VLOOKUP(I48,DetRates!$B$19:$C$3186,2,FALSE)) -> 2 | K48: =VLOOKUP($J48,DetRates!$C$19:$AA$3186,K$22,FALSE) -> 10 | L48: =VLOOKUP($J48,DetRates!$C$19:$AA$3186,L$22,FALSE) -> 25 | M48: =IF($T48<>$T47,VLOOKUP($J48,DetRates!$C$19:$AA$3186,M$22,FALSE),M47) -> -7 | N48: =IF($T48<>$T47,VLOOKUP($J48,DetRates!$C$19:$AA$3186,N$22,FALSE),N47) -> 0.15 | O48: =IF($T48<>$T47,VLOOKUP($J48,DetRates!$C$19:$AA$3186,O$22,FALSE),O47) -> 0 | P48: =IF($T48<>$T47,VLOOKUP($J48,DetRates!$C$19:$AA$3186,P$22,FALSE),P47) -> -10 | Q48: =IF(AND(D48>29,T48>2,T48<>T47,E48<>3),VLOOKUP($J48,DetRates!$C$19:$AA$3186,Q$22),IF(T48<>T47,VLOOKUP($J48,DetRates!$C$19:$AA$3186,Q$22),Q47)) -> 0 | R48: =IF($T48<>$T47,VLOOKUP($J48,DetRates!$C$19:$AA$3186,R$22,FALSE),R47) -> -15 | S48: =IF($T48<>$T47,VLOOKUP($J48,DetRates!$C$19:$AA$3186,S$22,FALSE),S47) -> 50 | T48: 6 | U48: =VLOOKUP(F48,DetRates!$U$10:$W$12,3,FALSE) -> 15 | V48: 14 | W48: -13.49858808 | X48: 0.15 | Y48: -15.68312185 | Z48: -10 | AA48: 0 | AB48: FALSE | AC48: 0 | AD48: FALSE | AE48: FALSE | AF48: FALSE | AG48: FALSE | AH48: FALSE | AI48: TRUE | AJ48: FALSE | AK48: FALSE | AL48: TRUE | AM48: FALSE | AN48: FALSE | AO48: FALSE | AP48: FALSE | AQ48: FALSE | AR48: TRUE | AS48: -10 | AT48: 1 | AU48: 0 | AW48: -13.49858808 | AX48: -15.68312185 | AZ48: FALSE | BA48: 24 | BB48: 1 | BC48: 24
B49: 25 | C49: 6 | D49: 25 | E49: 1 | F49: 2 | G49: 1 | H49: 1 | I49: 1412111-25 | J49: =IF(ISNA(VLOOKUP(I49,DetRates!$B$19:$C$3186,2,FALSE)),J48,VLOOKUP(I49,DetRates!$B$19:$C$3186,2,FALSE)) -> 3 | K49: =VLOOKUP($J49,DetRates!$C$19:$AA$3186,K$22,FALSE) -> 25 | L49: =VLOOKUP($J49,DetRates!$C$19:$AA$3186,L$22,FALSE) -> 30 | M49: =IF($T49<>$T48,VLOOKUP($J49,DetRates!$C$19:$AA$3186,M$22,FALSE),M48) -> -7 | N49: =IF($T49<>$T48,VLOOKUP($J49,DetRates!$C$19:$AA$3186,N$22,FALSE),N48) -> 0.19 | O49: =IF($T49<>$T48,VLOOKUP($J49,DetRates!$C$19:$AA$3186,O$22,FALSE),O48) -> 0 | P49: =IF($T49<>$T48,VLOOKUP($J49,DetRates!$C$19:$AA$3186,P$22,FALSE),P48) -> -14 | Q49: =IF(AND(D49>29,T49>2,T49<>T48,E49<>3),VLOOKUP($J49,DetRates!$C$19:$AA$3186,Q$22),IF(T49<>T48,VLOOKUP($J49,DetRates!$C$19:$AA$3186,Q$22),Q48)) -> 0 | R49: =IF($T49<>$T48,VLOOKUP($J49,DetRates!$C$19:$AA$3186,R$22,FALSE),R48) -> -20 | S49: =IF($T49<>$T48,VLOOKUP($J49,DetRates!$C$19:$AA$3186,S$22,FALSE),S48) -> 50 | T49: 7 | U49: =VLOOKUP(F49,DetRates!$U$10:$W$12,3,FALSE) -> 15 | V49: 0 | W49: -10 | X49: 0.19 | Y49: -12.09249598 | Z49: -14 | AA49: 0 | AB49: FALSE | AC49: 0 | AD49: FALSE | AE49: FALSE | AF49: FALSE | AG49: FALSE | AH49: FALSE | AI49: FALSE | AJ49: FALSE | AK49: FALSE | AL49: FALSE | AM49: FALSE | AN49: FALSE | AO49: FALSE | AP49: FALSE | AQ49: FALSE | AR49: =IF(AQ49,FALSE,AL49) -> FALSE | AS49: -12.09249598 | AT49: 0 | AU49: 0 | AW49: -10 | AX49: -12.09249598 | AZ49: FALSE | BA49: 25 | BB49: 1 | BC49: 25
B50: 26 | C50: 6 | D50: 26 | E50: 1 | F50: 2 | G50: 1 | H50: 1 | I50: 1412111-26 | J50: =IF(ISNA(VLOOKUP(I50,DetRates!$B$19:$C$3186,2,FALSE)),J49,VLOOKUP(I50,DetRates!$B$19:$C$3186,2,FALSE)) -> 3 | K50: =VLOOKUP($J50,DetRates!$C$19:$AA$3186,K$22,FALSE) -> 25 | L50: =VLOOKUP($J50,DetRates!$C$19:$AA$3186,L$22,FALSE) -> 30 | M50: =IF($T50<>$T49,VLOOKUP($J50,DetRates!$C$19:$AA$3186,M$22,FALSE),M49) -> -7 | N50: =IF($T50<>$T49,VLOOKUP($J50,DetRates!$C$19:$AA$3186,N$22,FALSE),N49) -> 0.19 | O50: =IF($T50<>$T49,VLOOKUP($J50,DetRates!$C$19:$AA$3186,O$22,FALSE),O49) -> 0 | P50: =IF($T50<>$T49,VLOOKUP($J50,DetRates!$C$19:$AA$3186,P$22,FALSE),P49) -> -14 | Q50: =IF(AND(D50>29,T50>2,T50<>T49,E50<>3),VLOOKUP($J50,DetRates!$C$19:$AA$3186,Q$22),IF(T50<>T49,VLOOKUP($J50,DetRates!$C$19:$AA$3186,Q$22),Q49)) -> 0 | R50: =IF($T50<>$T49,VLOOKUP($J50,DetRates!$C$19:$AA$3186,R$22,FALSE),R49) -> -20 | S50: =IF($T50<>$T49,VLOOKUP($J50,DetRates!$C$19:$AA$3186,S$22,FALSE),S49) -> 50 | T50: 7 | U50: =VLOOKUP(F50,DetRates!$U$10:$W$12,3,FALSE) -> 15 | V50: 1 | W50: -12.09249598 | X50: 0.19 | Y50: -14.62284589 | Z50: -14 | AA50: 0 | AB50: FALSE | AC50: 0 | AD50: FALSE | AE50: FALSE | AF50: FALSE | AG50: FALSE | AH50: FALSE | AI50: FALSE | AJ50: FALSE | AK50: FALSE | AL50: FALSE | AM50: FALSE | AN50: FALSE | AO50: FALSE | AP50: FALSE | AQ50: FALSE | AR50: FALSE | AS50: -14.62284589 | AT50: 0 | AU50: 0 | AW50: -12.09249598 | AX50: -14.62284589 | AZ50: FALSE | BA50: 26 | BB50: 1 | BC50: 26
B51: 27 | C51: =INT(B51/C$21+1) -> 6 | D51: 27 | E51: 1 | F51: 2 | G51: 1 | H51: 1 | I51: 1412111-27 | J51: =IF(ISNA(VLOOKUP(I51,DetRates!$B$19:$C$3186,2,FALSE)),J50,VLOOKUP(I51,DetRates!$B$19:$C$3186,2,FALSE)) -> 3 | K51: =VLOOKUP($J51,DetRates!$C$19:$AA$3186,K$22,FALSE) -> 25 | L51: =VLOOKUP($J51,DetRates!$C$19:$AA$3186,L$22,FALSE) -> 30 | M51: =IF($T51<>$T50,VLOOKUP($J51,DetRates!$C$19:$AA$3186,M$22,FALSE),M50) -> -7 | N51: =IF($T51<>$T50,VLOOKUP($J51,DetRates!$C$19:$AA$3186,N$22,FALSE),N50) -> 0.19 | O51: =IF($T51<>$T50,VLOOKUP($J51,DetRates!$C$19:$AA$3186,O$22,FALSE),O50) -> 0 | P51: =IF($T51<>$T50,VLOOKUP($J51,DetRates!$C$19:$AA$3186,P$22,FALSE),P50) -> -14 | Q51: =IF(AND(D51>29,T51>2,T51<>T50,E51<>3),VLOOKUP($J51,DetRates!$C$19:$AA$3186,Q$22),IF(T51<>T50,VLOOKUP($J51,DetRates!$C$19:$AA$3186,Q$22),Q50)) -> 0 | R51: =IF($T51<>$T50,VLOOKUP($J51,DetRates!$C$19:$AA$3186,R$22,FALSE),R50) -> -20 | S51: =IF($T51<>$T50,VLOOKUP($J51,DetRates!$C$19:$AA$3186,S$22,FALSE),S50) -> 50 | T51: 7 | U51: =VLOOKUP(F51,DetRates!$U$10:$W$12,3,FALSE) -> 15 | V51: 2 | W51: -14.62284589 | X51: 0.19 | Y51: -17.68267051 | Z51: -14 | AA51: 0 | AB51: FALSE | AC51: 0 | AD51: FALSE | AE51: FALSE | AF51: FALSE | AG51: FALSE | AH51: FALSE | AI51: FALSE | AJ51: FALSE | AK51: =OR(AD51,AE51,AG51,AH51) -> FALSE | AL51: FALSE | AM51: FALSE | AN51: FALSE | AO51: FALSE | AP51: FALSE | AQ51: =OR(AK51,AO51,AP51) -> FALSE | AR51: FALSE | AS51: -17.68267051 | AT51: 0 | AU51: 0 | AW51: -14.62284589 | AX51: -17.68267051 | AZ51: FALSE | BA51: 27 | BB51: 1 | BC51: 27
B52: 28 | C52: 6 | D52: 28 | E52: 1 | F52: 2 | G52: 1 | H52: 1 | I52: 1412111-28 | J52: =IF(ISNA(VLOOKUP(I52,DetRates!$B$19:$C$3186,2,FALSE)),J51,VLOOKUP(I52,DetRates!$B$19:$C$3186,2,FALSE)) -> 3 | K52: =VLOOKUP($J52,DetRates!$C$19:$AA$3186,K$22,FALSE) -> 25 | L52: =VLOOKUP($J52,DetRates!$C$19:$AA$3186,L$22,FALSE) -> 30 | M52: =IF($T52<>$T51,VLOOKUP($J52,DetRates!$C$19:$AA$3186,M$22,FALSE),M51) -> -7 | N52: =IF($T52<>$T51,VLOOKUP($J52,DetRates!$C$19:$AA$3186,N$22,FALSE),N51) -> 0.19 | O52: =IF($T52<>$T51,VLOOKUP($J52,DetRates!$C$19:$AA$3186,O$22,FALSE),O51) -> 0 | P52: =IF($T52<>$T51,VLOOKUP($J52,DetRates!$C$19:$AA$3186,P$22,FALSE),P51) -> -14 | Q52: =IF(AND(D52>29,T52>2,T52<>T51,E52<>3),VLOOKUP($J52,DetRates!$C$19:$AA$3186,Q$22),IF(T52<>T51,VLOOKUP($J52,DetRates!$C$19:$AA$3186,Q$22),Q51)) -> 0 | R52: =IF($T52<>$T51,VLOOKUP($J52,DetRates!$C$19:$AA$3186,R$22,FALSE),R51) -> -20 | S52: =IF($T52<>$T51,VLOOKUP($J52,DetRates!$C$19:$AA$3186,S$22,FALSE),S51) -> 50 | T52: 7 | U52: =VLOOKUP(F52,DetRates!$U$10:$W$12,3,FALSE) -> 15 | V52: 3 | W52: -17.68267051 | X52: 0.19 | Y52: -21.3827622 | Z52: -14 | AA52: 0 | AB52: FALSE | AC52: 0 | AD52: FALSE | AE52: FALSE | AF52: FALSE | AG52: FALSE | AH52: FALSE | AI52: TRUE | AJ52: FALSE | AK52: FALSE | AL52: TRUE | AM52: FALSE | AN52: FALSE | AO52: FALSE | AP52: FALSE | AQ52: FALSE | AR52: TRUE | AS52: -14 | AT52: 1 | AU52: 0 | AW52: -17.68267051 | AX52: -21.3827622 | AZ52: FALSE | BA52: 28 | BB52: 1 | BC52: 28
B53: 29 | C53: 6 | D53: 29 | E53: 1 | F53: 2 | G53: 1 | H53: 1 | I53: 1412111-29 | J53: =IF(ISNA(VLOOKUP(I53,DetRates!$B$19:$C$3186,2,FALSE)),J52,VLOOKUP(I53,DetRates!$B$19:$C$3186,2,FALSE)) -> 3 | K53: =VLOOKUP($J53,DetRates!$C$19:$AA$3186,K$22,FALSE) -> 25 | L53: =VLOOKUP($J53,DetRates!$C$19:$AA$3186,L$22,FALSE) -> 30 | M53: =IF($T53<>$T52,VLOOKUP($J53,DetRates!$C$19:$AA$3186,M$22,FALSE),M52) -> -7 | N53: =IF($T53<>$T52,VLOOKUP($J53,DetRates!$C$19:$AA$3186,N$22,FALSE),N52) -> 0.19 | O53: =IF($T53<>$T52,VLOOKUP($J53,DetRates!$C$19:$AA$3186,O$22,FALSE),O52) -> 0 | P53: =IF($T53<>$T52,VLOOKUP($J53,DetRates!$C$19:$AA$3186,P$22,FALSE),P52) -> -14 | Q53: =IF(AND(D53>29,T53>2,T53<>T52,E53<>3),VLOOKUP($J53,DetRates!$C$19:$AA$3186,Q$22),IF(T53<>T52,VLOOKUP($J53,DetRates!$C$19:$AA$3186,Q$22),Q52)) -> 0 | R53: =IF($T53<>$T52,VLOOKUP($J53,DetRates!$C$19:$AA$3186,R$22,FALSE),R52) -> -20 | S53: =IF($T53<>$T52,VLOOKUP($J53,DetRates!$C$19:$AA$3186,S$22,FALSE),S52) -> 50 | T53: 8 | U53: =VLOOKUP(F53,DetRates!$U$10:$W$12,3,FALSE) -> 15 | V53: 4 | W53: -14 | X53: 0.19 | Y53: -16.92949437 | Z53: -14 | AA53: 0 | AB53: FALSE | AC53: 0 | AD53: FALSE | AE53: FALSE | AF53: FALSE | AG53: FALSE | AH53: FALSE | AI53: FALSE | AJ53: FALSE | AK53: FALSE | AL53: FALSE | AM53: FALSE | AN53: FALSE | AO53: FALSE | AP53: FALSE | AQ53: FALSE | AR53: FALSE | AS53: -16.92949437 | AT53: 0 | AU53: 0 | AW53: -14 | AX53: -16.92949437 | AZ53: FALSE | BA53: 29 | BB53: 1 | BC53: 29
B54: 30 | C54: 7 | D54: 30 | E54: 1 | F54: 2 | G54: 1 | H54: 1 | I54: 1412111-30 | J54: =IF(ISNA(VLOOKUP(I54,DetRates!$B$19:$C$3186,2,FALSE)),J53,VLOOKUP(I54,DetRates!$B$19:$C$3186,2,FALSE)) -> 4 | K54: =VLOOKUP($J54,DetRates!$C$19:$AA$3186,K$22,FALSE) -> 30 | L54: =VLOOKUP($J54,DetRates!$C$19:$AA$3186,L$22,FALSE) -> 1000 | M54: =IF($T54<>$T53,VLOOKUP($J54,DetRates!$C$19:$AA$3186,M$22,FALSE),M53) -> -7 | N54: =IF($T54<>$T53,VLOOKUP($J54,DetRates!$C$19:$AA$3186,N$22,FALSE),N53) -> 0.19 | O54: =IF($T54<>$T53,VLOOKUP($J54,DetRates!$C$19:$AA$3186,O$22,FALSE),O53) -> 0 | P54: =IF($T54<>$T53,VLOOKUP($J54,DetRates!$C$19:$AA$3186,P$22,FALSE),P53) -> -14 | Q54: =IF(AND(D54>29,T54>2,T54<>T53,E54<>3),VLOOKUP($J54,DetRates!$C$19:$AA$3186,Q$22),IF(T54<>T53,VLOOKUP($J54,DetRates!$C$19:$AA$3186,Q$22),Q53)) -> 0 | R54: =IF($T54<>$T53,VLOOKUP($J54,DetRates!$C$19:$AA$3186,R$22,FALSE),R53) -> -20 | S54: =IF($T54<>$T53,VLOOKUP($J54,DetRates!$C$19:$AA$3186,S$22,FALSE),S53) -> 50 | T54: 8 | U54: =VLOOKUP(F54,DetRates!$U$10:$W$12,3,FALSE) -> 15 | V54: 0 | W54: -16.92949437 | X54: 0.19 | Y54: -20.47198425 | Z54: -14 | AA54: 0 | AB54: FALSE | AC54: 0 | AD54: FALSE | AE54: FALSE | AF54: FALSE | AG54: FALSE | AH54: FALSE | AI54: TRUE | AJ54: FALSE | AK54: FALSE | AL54: TRUE | AM54: FALSE | AN54: FALSE | AO54: FALSE | AP54: FALSE | AQ54: FALSE | AR54: TRUE | AS54: -14 | AT54: 1 | AU54: 0 | AW54: -16.92949437 | AX54: -20.47198425 | AZ54: FALSE | BA54: 30 | BB54: 1 | BC54: 30
B55: 31 | C55: 7 | D55: 31 | E55: 1 | F55: 2 | G55: 1 | H55: 1 | I55: 1412111-31 | J55: =IF(ISNA(VLOOKUP(I55,DetRates!$B$19:$C$3186,2,FALSE)),J54,VLOOKUP(I55,DetRates!$B$19:$C$3186,2,FALSE)) -> 4 | K55: =VLOOKUP($J55,DetRates!$C$19:$AA$3186,K$22,FALSE) -> 30 | L55: =VLOOKUP($J55,DetRates!$C$19:$AA$3186,L$22,FALSE) -> 1000 | M55: =IF($T55<>$T54,VLOOKUP($J55,DetRates!$C$19:$AA$3186,M$22,FALSE),M54) -> -7 | N55: =IF($T55<>$T54,VLOOKUP($J55,DetRates!$C$19:$AA$3186,N$22,FALSE),N54) -> 0.19 | O55: =IF($T55<>$T54,VLOOKUP($J55,DetRates!$C$19:$AA$3186,O$22,FALSE),O54) -> 0 | P55: =IF($T55<>$T54,VLOOKUP($J55,DetRates!$C$19:$AA$3186,P$22,FALSE),P54) -> -20 | Q55: =IF(AND(D55>29,T55>2,T55<>T54,E55<>3),VLOOKUP($J55,DetRates!$C$19:$AA$3186,Q$22),IF(T55<>T54,VLOOKUP($J55,DetRates!$C$19:$AA$3186,Q$22),Q54)) -> -0.5 | R55: =IF($T55<>$T54,VLOOKUP($J55,DetRates!$C$19:$AA$3186,R$22,FALSE),R54) -> -25 | S55: =IF($T55<>$T54,VLOOKUP($J55,DetRates!$C$19:$AA$3186,S$22,FALSE),S54) -> 50 | T55: 9 | U55: =VLOOKUP(F55,DetRates!$U$10:$W$12,3,FALSE) -> 15 | V55: 1 | W55: -14 | X55: 0.19 | Y55: -16.92949437 | Z55: -20.5 | AA55: 0 | AB55: FALSE | AC55: 0 | AD55: FALSE | AE55: FALSE | AF55: FALSE | AG55: FALSE | AH55: FALSE | AI55: FALSE | AJ55: FALSE | AK55: FALSE | AL55: FALSE | AM55: FALSE | AN55: FALSE | AO55: FALSE | AP55: FALSE | AQ55: FALSE | AR55: FALSE | AS55: -16.92949437 | AT55: 0 | AU55: 0 | AW55: -14 | AX55: -16.92949437 | AZ55: FALSE | BA55: 31 | BB55: 1 | BC55: 31
B56: 32 | C56: =INT(B56/C$21+1) -> 7 | D56: 32 | E56: 1 | F56: 2 | G56: 1 | H56: 1 | I56: =$C$17&$E$17&E56&F56&$K$17&G56&H56&"-"&D56 -> 1412111-32 | J56: =IF(ISNA(VLOOKUP(I56,DetRates!$B$19:$C$3186,2,FALSE)),J55,VLOOKUP(I56,DetRates!$B$19:$C$3186,2,FALSE)) -> 4 | K56: =VLOOKUP($J56,DetRates!$C$19:$AA$3186,K$22,FALSE) -> 30 | L56: =VLOOKUP($J56,DetRates!$C$19:$AA$3186,L$22,FALSE) -> 1000 | M56: =IF($T56<>$T55,VLOOKUP($J56,DetRates!$C$19:$AA$3186,M$22,FALSE),M55) -> -7 | N56: =IF($T56<>$T55,VLOOKUP($J56,DetRates!$C$19:$AA$3186,N$22,FALSE),N55) -> 0.19 | O56: =IF($T56<>$T55,VLOOKUP($J56,DetRates!$C$19:$AA$3186,O$22,FALSE),O55) -> 0 | P56: =IF($T56<>$T55,VLOOKUP($J56,DetRates!$C$19:$AA$3186,P$22,FALSE),P55) -> -20 | Q56: =IF(AND(D56>29,T56>2,T56<>T55,E56<>3),VLOOKUP($J56,DetRates!$C$19:$AA$3186,Q$22),IF(T56<>T55,VLOOKUP($J56,DetRates!$C$19:$AA$3186,Q$22),Q55)) -> -0.5 | R56: =IF($T56<>$T55,VLOOKUP($J56,DetRates!$C$19:$AA$3186,R$22,FALSE),R55) -> -25 | S56: =IF($T56<>$T55,VLOOKUP($J56,DetRates!$C$19:$AA$3186,S$22,FALSE),S55) -> 50 | T56: 9 | U56: =VLOOKUP(F56,DetRates!$U$10:$W$12,3,FALSE) -> 15 | V56: 2 | W56: -16.92949437 | X56: 0.19 | Y56: =W56*EXP(X56) -> -20.47198425 | Z56: =P56+Q56*V56 -> -21 | AA56: 0 | AB56: =AND($AA$15,(AA56="x")) -> FALSE | AC56: 0 | AD56: =AND($AA$15,(AC56="x")) -> FALSE | AE56: FALSE | AF56: FALSE | AG56: =AND($AG$15,T56>U56) -> FALSE | AH56: =AND($AH$15,D56>S56) -> FALSE | AI56: =AND($AI$15,Y56<R56) -> FALSE | AJ56: FALSE | AK56: FALSE | AL56: FALSE | AM56: =AND($AI$15,Z56<R56) -> FALSE | AN56: FALSE | AO56: FALSE | AP56: FALSE | AQ56: FALSE | AR56: FALSE | AS56: =IF(AQ56,$V$11,IF(AR56,Z56,Y56)) -> -20.47198425 | AT56: =AR56*1 -> 0 | AU56: 0 | AW56: -16.92949437 | AX56: -20.47198425 | AZ56: FALSE | BA56: 32 | BB56: 1 | BC56: 32 | BD56: =IF(AZ56,BC56,"") -> 
B57: 33 | C57: 7 | D57: 33 | E57: 1 | F57: 2 | G57: 1 | H57: 1 | I57: 1412111-33 | J57: =IF(ISNA(VLOOKUP(I57,DetRates!$B$19:$C$3186,2,FALSE)),J56,VLOOKUP(I57,DetRates!$B$19:$C$3186,2,FALSE)) -> 4 | K57: =VLOOKUP($J57,DetRates!$C$19:$AA$3186,K$22,FALSE) -> 30 | L57: =VLOOKUP($J57,DetRates!$C$19:$AA$3186,L$22,FALSE) -> 1000 | M57: =IF($T57<>$T56,VLOOKUP($J57,DetRates!$C$19:$AA$3186,M$22,FALSE),M56) -> -7 | N57: =IF($T57<>$T56,VLOOKUP($J57,DetRates!$C$19:$AA$3186,N$22,FALSE),N56) -> 0.19 | O57: =IF($T57<>$T56,VLOOKUP($J57,DetRates!$C$19:$AA$3186,O$22,FALSE),O56) -> 0 | P57: =IF($T57<>$T56,VLOOKUP($J57,DetRates!$C$19:$AA$3186,P$22,FALSE),P56) -> -20 | Q57: =IF(AND(D57>29,T57>2,T57<>T56,E57<>3),VLOOKUP($J57,DetRates!$C$19:$AA$3186,Q$22),IF(T57<>T56,VLOOKUP($J57,DetRates!$C$19:$AA$3186,Q$22),Q56)) -> -0.5 | R57: =IF($T57<>$T56,VLOOKUP($J57,DetRates!$C$19:$AA$3186,R$22,FALSE),R56) -> -25 | S57: =IF($T57<>$T56,VLOOKUP($J57,DetRates!$C$19:$AA$3186,S$22,FALSE),S56) -> 50 | T57: =IF(AQ56,0,IF(AR56,T56+1,T56)) -> 9 | U57: =VLOOKUP(F57,DetRates!$U$10:$W$12,3,FALSE) -> 15 | V57: =IF(J56=J57,V56+1,0) -> 3 | W57: -20.47198425 | X57: =IF((N57+O57*V57)<=0,X56,(N57+O57*V57)) -> 0.19 | Y57: -24.75573872 | Z57: -21.5 | AA57: 0 | AB57: FALSE | AC57: 0 | AD57: FALSE | AE57: FALSE | AF57: FALSE | AG57: FALSE | AH57: FALSE | AI57: FALSE | AJ57: FALSE | AK57: FALSE | AL57: FALSE | AM57: FALSE | AN57: FALSE | AO57: FALSE | AP57: FALSE | AQ57: FALSE | AR57: FALSE | AS57: -24.75573872 | AT57: 0 | AU57: 0 | AW57: -20.47198425 | AX57: -24.75573872 | AZ57: FALSE | BA57: 33 | BB57: =IF(AZ57,BB56+1,BB56) -> 1 | BC57: =IF(NOT(AZ56),BC56+1,1) -> 33
B58: 34 | C58: 7 | D58: 34 | E58: 1 | F58: 2 | G58: 1 | H58: 1 | I58: 1412111-34 | J58: =IF(ISNA(VLOOKUP(I58,DetRates!$B$19:$C$3186,2,FALSE)),J57,VLOOKUP(I58,DetRates!$B$19:$C$3186,2,FALSE)) -> 4 | K58: =VLOOKUP($J58,DetRates!$C$19:$AA$3186,K$22,FALSE) -> 30 | L58: =VLOOKUP($J58,DetRates!$C$19:$AA$3186,L$22,FALSE) -> 1000 | M58: =IF($T58<>$T57,VLOOKUP($J58,DetRates!$C$19:$AA$3186,M$22,FALSE),M57) -> -7 | N58: =IF($T58<>$T57,VLOOKUP($J58,DetRates!$C$19:$AA$3186,N$22,FALSE),N57) -> 0.19 | O58: =IF($T58<>$T57,VLOOKUP($J58,DetRates!$C$19:$AA$3186,O$22,FALSE),O57) -> 0 | P58: =IF($T58<>$T57,VLOOKUP($J58,DetRates!$C$19:$AA$3186,P$22,FALSE),P57) -> -20 | Q58: =IF(AND(D58>29,T58>2,T58<>T57,E58<>3),VLOOKUP($J58,DetRates!$C$19:$AA$3186,Q$22),IF(T58<>T57,VLOOKUP($J58,DetRates!$C$19:$AA$3186,Q$22),Q57)) -> -0.5 | R58: =IF($T58<>$T57,VLOOKUP($J58,DetRates!$C$19:$AA$3186,R$22,FALSE),R57) -> -25 | S58: =IF($T58<>$T57,VLOOKUP($J58,DetRates!$C$19:$AA$3186,S$22,FALSE),S57) -> 50 | T58: 9 | U58: =VLOOKUP(F58,DetRates!$U$10:$W$12,3,FALSE) -> 15 | V58: 4 | W58: -24.75573872 | X58: 0.19 | Y58: -29.93586709 | Z58: -22 | AA58: 0 | AB58: FALSE | AC58: 0 | AD58: FALSE | AE58: FALSE | AF58: FALSE | AG58: FALSE | AH58: FALSE | AI58: TRUE | AJ58: FALSE | AK58: FALSE | AL58: TRUE | AM58: FALSE | AN58: FALSE | AO58: FALSE | AP58: FALSE | AQ58: FALSE | AR58: TRUE | AS58: -22 | AT58: 1 | AU58: 0 | AW58: -24.75573872 | AX58: -29.93586709 | AZ58: FALSE | BA58: 34 | BB58: 1 | BC58: 34
B59: 35 | C59: 8 | D59: 35 | E59: 1 | F59: 2 | G59: 1 | H59: 1 | I59: 1412111-35 | J59: =IF(ISNA(VLOOKUP(I59,DetRates!$B$19:$C$3186,2,FALSE)),J58,VLOOKUP(I59,DetRates!$B$19:$C$3186,2,FALSE)) -> 4 | K59: =VLOOKUP($J59,DetRates!$C$19:$AA$3186,K$22,FALSE) -> 30 | L59: =VLOOKUP($J59,DetRates!$C$19:$AA$3186,L$22,FALSE) -> 1000 | M59: =IF($T59<>$T58,VLOOKUP($J59,DetRates!$C$19:$AA$3186,M$22,FALSE),M58) -> -7 | N59: =IF($T59<>$T58,VLOOKUP($J59,DetRates!$C$19:$AA$3186,N$22,FALSE),N58) -> 0.19 | O59: =IF($T59<>$T58,VLOOKUP($J59,DetRates!$C$19:$AA$3186,O$22,FALSE),O58) -> 0 | P59: =IF($T59<>$T58,VLOOKUP($J59,DetRates!$C$19:$AA$3186,P$22,FALSE),P58) -> -20 | Q59: =IF(AND(D59>29,T59>2,T59<>T58,E59<>3),VLOOKUP($J59,DetRates!$C$19:$AA$3186,Q$22),IF(T59<>T58,VLOOKUP($J59,DetRates!$C$19:$AA$3186,Q$22),Q58)) -> -0.5 | R59: =IF($T59<>$T58,VLOOKUP($J59,DetRates!$C$19:$AA$3186,R$22,FALSE),R58) -> -25 | S59: =IF($T59<>$T58,VLOOKUP($J59,DetRates!$C$19:$AA$3186,S$22,FALSE),S58) -> 50 | T59: 10 | U59: =VLOOKUP(F59,DetRates!$U$10:$W$12,3,FALSE) -> 15 | V59: 5 | W59: -22 | X59: 0.19 | Y59: -26.60349115 | Z59: -22.5 | AA59: 0 | AB59: FALSE | AC59: 0 | AD59: FALSE | AE59: FALSE | AF59: FALSE | AG59: FALSE | AH59: FALSE | AI59: TRUE | AJ59: FALSE | AK59: FALSE | AL59: TRUE | AM59: FALSE | AN59: FALSE | AO59: FALSE | AP59: TRUE | AQ59: TRUE | AR59: FALSE | AS59: -6 | AT59: 0 | AU59: 1 | AW59: -22 | AX59: -26.60349115 | AY59: 1 | AZ59: TRUE | BA59: 35 | BB59: 2 | BC59: 35 | BD59: 35
B60: 36 | C60: 8 | D60: 0 | E60: 2 | F60: 1 | G60: 1 | H60: 1 | I60: 1421111-0 | J60: =IF(ISNA(VLOOKUP(I60,DetRates!$B$19:$C$3186,2,FALSE)),J59,VLOOKUP(I60,DetRates!$B$19:$C$3186,2,FALSE)) -> 967 | K60: =VLOOKUP($J60,DetRates!$C$19:$AA$3186,K$22,FALSE) -> 0 | L60: =VLOOKUP($J60,DetRates!$C$19:$AA$3186,L$22,FALSE) -> 10 | M60: =IF($T60<>$T59,VLOOKUP($J60,DetRates!$C$19:$AA$3186,M$22,FALSE),M59) -> -6 | N60: =IF($T60<>$T59,VLOOKUP($J60,DetRates!$C$19:$AA$3186,N$22,FALSE),N59) -> 0.084 | O60: =IF($T60<>$T59,VLOOKUP($J60,DetRates!$C$19:$AA$3186,O$22,FALSE),O59) -> 0 | P60: =IF($T60<>$T59,VLOOKUP($J60,DetRates!$C$19:$AA$3186,P$22,FALSE),P59) -> -6.75 | Q60: =IF(AND(D60>29,T60>2,T60<>T59,E60<>3),VLOOKUP($J60,DetRates!$C$19:$AA$3186,Q$22),IF(T60<>T59,VLOOKUP($J60,DetRates!$C$19:$AA$3186,Q$22),Q59)) -> 0 | R60: =IF($T60<>$T59,VLOOKUP($J60,DetRates!$C$19:$AA$3186,R$22,FALSE),R59) -> -12 | S60: =IF($T60<>$T59,VLOOKUP($J60,DetRates!$C$19:$AA$3186,S$22,FALSE),S59) -> 50 | T60: 0 | U60: =VLOOKUP(F60,DetRates!$U$10:$W$12,3,FALSE) -> 20 | V60: 0 | W60: -6 | X60: 0.084 | Y60: -6.525773363 | Z60: -6.75 | AA60: 0 | AB60: FALSE | AC60: 0 | AD60: FALSE | AE60: FALSE | AF60: FALSE | AG60: FALSE | AH60: FALSE | AI60: FALSE | AJ60: FALSE | AK60: FALSE | AL60: FALSE | AM60: FALSE | AN60: FALSE | AO60: FALSE | AP60: FALSE | AQ60: FALSE | AR60: FALSE | AS60: -6.525773363 | AT60: 0 | AU60: 0 | AW60: -6 | AX60: -6.525773363 | AZ60: FALSE | BA60: 36 | BB60: 2 | BC60: 1
B61: 37 | C61: 8 | D61: 1 | E61: 2 | F61: 1 | G61: 1 | H61: 1 | I61: 1421111-1 | J61: =IF(ISNA(VLOOKUP(I61,DetRates!$B$19:$C$3186,2,FALSE)),J60,VLOOKUP(I61,DetRates!$B$19:$C$3186,2,FALSE)) -> 967 | K61: =VLOOKUP($J61,DetRates!$C$19:$AA$3186,K$22,FALSE) -> 0 | L61: =VLOOKUP($J61,DetRates!$C$19:$AA$3186,L$22,FALSE) -> 10 | M61: =IF($T61<>$T60,VLOOKUP($J61,DetRates!$C$19:$AA$3186,M$22,FALSE),M60) -> -6 | N61: =IF($T61<>$T60,VLOOKUP($J61,DetRates!$C$19:$AA$3186,N$22,FALSE),N60) -> 0.084 | O61: =IF($T61<>$T60,VLOOKUP($J61,DetRates!$C$19:$AA$3186,O$22,FALSE),O60) -> 0 | P61: =IF($T61<>$T60,VLOOKUP($J61,DetRates!$C$19:$AA$3186,P$22,FALSE),P60) -> -6.75 | Q61: =IF(AND(D61>29,T61>2,T61<>T60,E61<>3),VLOOKUP($J61,DetRates!$C$19:$AA$3186,Q$22),IF(T61<>T60,VLOOKUP($J61,DetRates!$C$19:$AA$3186,Q$22),Q60)) -> 0 | R61: =IF($T61<>$T60,VLOOKUP($J61,DetRates!$C$19:$AA$3186,R$22,FALSE),R60) -> -12 | S61: =IF($T61<>$T60,VLOOKUP($J61,DetRates!$C$19:$AA$3186,S$22,FALSE),S60) -> 50 | T61: 0 | U61: =VLOOKUP(F61,DetRates!$U$10:$W$12,3,FALSE) -> 20 | V61: 1 | W61: -6.525773363 | X61: 0.084 | Y61: -7.097619664 | Z61: -6.75 | AA61: 0 | AB61: FALSE | AC61: 0 | AD61: FALSE | AE61: FALSE | AF61: FALSE | AG61: FALSE | AH61: FALSE | AI61: FALSE | AJ61: FALSE | AK61: FALSE | AL61: FALSE | AM61: FALSE | AN61: FALSE | AO61: FALSE | AP61: FALSE | AQ61: FALSE | AR61: FALSE | AS61: -7.097619664 | AT61: 0 | AU61: 0 | AW61: -6.525773363 | AX61: -7.097619664 | AZ61: FALSE | BA61: 37 | BB61: 2 | BC61: 2
B62: 38 | C62: 8 | D62: 2 | E62: 2 | F62: 1 | G62: 1 | H62: 1 | I62: 1421111-2 | J62: =IF(ISNA(VLOOKUP(I62,DetRates!$B$19:$C$3186,2,FALSE)),J61,VLOOKUP(I62,DetRates!$B$19:$C$3186,2,FALSE)) -> 967 | K62: =VLOOKUP($J62,DetRates!$C$19:$AA$3186,K$22,FALSE) -> 0 | L62: =VLOOKUP($J62,DetRates!$C$19:$AA$3186,L$22,FALSE) -> 10 | M62: =IF($T62<>$T61,VLOOKUP($J62,DetRates!$C$19:$AA$3186,M$22,FALSE),M61) -> -6 | N62: =IF($T62<>$T61,VLOOKUP($J62,DetRates!$C$19:$AA$3186,N$22,FALSE),N61) -> 0.084 | O62: =IF($T62<>$T61,VLOOKUP($J62,DetRates!$C$19:$AA$3186,O$22,FALSE),O61) -> 0 | P62: =IF($T62<>$T61,VLOOKUP($J62,DetRates!$C$19:$AA$3186,P$22,FALSE),P61) -> -6.75 | Q62: =IF(AND(D62>29,T62>2,T62<>T61,E62<>3),VLOOKUP($J62,DetRates!$C$19:$AA$3186,Q$22),IF(T62<>T61,VLOOKUP($J62,DetRates!$C$19:$AA$3186,Q$22),Q61)) -> 0 | R62: =IF($T62<>$T61,VLOOKUP($J62,DetRates!$C$19:$AA$3186,R$22,FALSE),R61) -> -12 | S62: =IF($T62<>$T61,VLOOKUP($J62,DetRates!$C$19:$AA$3186,S$22,FALSE),S61) -> 50 | T62: 0 | U62: =VLOOKUP(F62,DetRates!$U$10:$W$12,3,FALSE) -> 20 | V62: 2 | W62: -7.097619664 | X62: 0.084 | Y62: -7.719576224 | Z62: -6.75 | AA62: 0 | AB62: FALSE | AC62: 0 | AD62: FALSE | AE62: FALSE | AF62: FALSE | AG62: FALSE | AH62: FALSE | AI62: FALSE | AJ62: FALSE | AK62: FALSE | AL62: FALSE | AM62: FALSE | AN62: FALSE | AO62: FALSE | AP62: FALSE | AQ62: FALSE | AR62: FALSE | AS62: -7.719576224 | AT62: 0 | AU62: 0 | AW62: -7.097619664 | AX62: -7.719576224 | AZ62: FALSE | BA62: 38 | BB62: 2 | BC62: 3
B63: 39 | C63: 8 | D63: 3 | E63: 2 | F63: 1 | G63: 1 | H63: 1 | I63: 1421111-3 | J63: =IF(ISNA(VLOOKUP(I63,DetRates!$B$19:$C$3186,2,FALSE)),J62,VLOOKUP(I63,DetRates!$B$19:$C$3186,2,FALSE)) -> 967 | K63: =VLOOKUP($J63,DetRates!$C$19:$AA$3186,K$22,FALSE) -> 0 | L63: =VLOOKUP($J63,DetRates!$C$19:$AA$3186,L$22,FALSE) -> 10 | M63: =IF($T63<>$T62,VLOOKUP($J63,DetRates!$C$19:$AA$3186,M$22,FALSE),M62) -> -6 | N63: =IF($T63<>$T62,VLOOKUP($J63,DetRates!$C$19:$AA$3186,N$22,FALSE),N62) -> 0.084 | O63: =IF($T63<>$T62,VLOOKUP($J63,DetRates!$C$19:$AA$3186,O$22,FALSE),O62) -> 0 | P63: =IF($T63<>$T62,VLOOKUP($J63,DetRates!$C$19:$AA$3186,P$22,FALSE),P62) -> -6.75 | Q63: =IF(AND(D63>29,T63>2,T63<>T62,E63<>3),VLOOKUP($J63,DetRates!$C$19:$AA$3186,Q$22),IF(T63<>T62,VLOOKUP($J63,DetRates!$C$19:$AA$3186,Q$22),Q62)) -> 0 | R63: =IF($T63<>$T62,VLOOKUP($J63,DetRates!$C$19:$AA$3186,R$22,FALSE),R62) -> -12 | S63: =IF($T63<>$T62,VLOOKUP($J63,DetRates!$C$19:$AA$3186,S$22,FALSE),S62) -> 50 | T63: 0 | U63: =VLOOKUP(F63,DetRates!$U$10:$W$12,3,FALSE) -> 20 | V63: 3 | W63: -7.719576224 | X63: 0.084 | Y63: -8.396034149 | Z63: -6.75 | AA63: 0 | AB63: FALSE | AC63: 0 | AD63: FALSE | AE63: FALSE | AF63: FALSE | AG63: FALSE | AH63: FALSE | AI63: FALSE | AJ63: FALSE | AK63: FALSE | AL63: FALSE | AM63: FALSE | AN63: FALSE | AO63: FALSE | AP63: FALSE | AQ63: FALSE | AR63: FALSE | AS63: -8.396034149 | AT63: 0 | AU63: 0 | AW63: -7.719576224 | AX63: -8.396034149 | AZ63: FALSE | BA63: 39 | BB63: 2 | BC63: 4
B64: 40 | C64: 9 | D64: 4 | E64: 2 | F64: 1 | G64: 1 | H64: 1 | I64: 1421111-4 | J64: =IF(ISNA(VLOOKUP(I64,DetRates!$B$19:$C$3186,2,FALSE)),J63,VLOOKUP(I64,DetRates!$B$19:$C$3186,2,FALSE)) -> 967 | K64: =VLOOKUP($J64,DetRates!$C$19:$AA$3186,K$22,FALSE) -> 0 | L64: =VLOOKUP($J64,DetRates!$C$19:$AA$3186,L$22,FALSE) -> 10 | M64: =IF($T64<>$T63,VLOOKUP($J64,DetRates!$C$19:$AA$3186,M$22,FALSE),M63) -> -6 | N64: =IF($T64<>$T63,VLOOKUP($J64,DetRates!$C$19:$AA$3186,N$22,FALSE),N63) -> 0.084 | O64: =IF($T64<>$T63,VLOOKUP($J64,DetRates!$C$19:$AA$3186,O$22,FALSE),O63) -> 0 | P64: =IF($T64<>$T63,VLOOKUP($J64,DetRates!$C$19:$AA$3186,P$22,FALSE),P63) -> -6.75 | Q64: =IF(AND(D64>29,T64>2,T64<>T63,E64<>3),VLOOKUP($J64,DetRates!$C$19:$AA$3186,Q$22),IF(T64<>T63,VLOOKUP($J64,DetRates!$C$19:$AA$3186,Q$22),Q63)) -> 0 | R64: =IF($T64<>$T63,VLOOKUP($J64,DetRates!$C$19:$AA$3186,R$22,FALSE),R63) -> -12 | S64: =IF($T64<>$T63,VLOOKUP($J64,DetRates!$C$19:$AA$3186,S$22,FALSE),S63) -> 50 | T64: 0 | U64: =VLOOKUP(F64,DetRates!$U$10:$W$12,3,FALSE) -> 20 | V64: 4 | W64: -8.396034149 | X64: 0.084 | Y64: -9.131769334 | Z64: -6.75 | AA64: 0 | AB64: FALSE | AC64: 0 | AD64: FALSE | AE64: =AND(AE$23,$AE$15,$W64<=AE$21) -> FALSE | AF64: FALSE | AG64: FALSE | AH64: FALSE | AI64: FALSE | AJ64: FALSE | AK64: FALSE | AL64: FALSE | AM64: FALSE | AN64: FALSE | AO64: FALSE | AP64: FALSE | AQ64: FALSE | AR64: FALSE | AS64: -9.131769334 | AT64: 0 | AU64: 0 | AW64: -8.396034149 | AX64: -9.131769334 | AZ64: FALSE | BA64: 40 | BB64: 2 | BC64: 5
B65: 41 | C65: 9 | D65: 5 | E65: 2 | F65: 1 | G65: 1 | H65: 1 | I65: 1421111-5 | J65: =IF(ISNA(VLOOKUP(I65,DetRates!$B$19:$C$3186,2,FALSE)),J64,VLOOKUP(I65,DetRates!$B$19:$C$3186,2,FALSE)) -> 967 | K65: =VLOOKUP($J65,DetRates!$C$19:$AA$3186,K$22,FALSE) -> 0 | L65: =VLOOKUP($J65,DetRates!$C$19:$AA$3186,L$22,FALSE) -> 10 | M65: =IF($T65<>$T64,VLOOKUP($J65,DetRates!$C$19:$AA$3186,M$22,FALSE),M64) -> -6 | N65: =IF($T65<>$T64,VLOOKUP($J65,DetRates!$C$19:$AA$3186,N$22,FALSE),N64) -> 0.084 | O65: =IF($T65<>$T64,VLOOKUP($J65,DetRates!$C$19:$AA$3186,O$22,FALSE),O64) -> 0 | P65: =IF($T65<>$T64,VLOOKUP($J65,DetRates!$C$19:$AA$3186,P$22,FALSE),P64) -> -6.75 | Q65: =IF(AND(D65>29,T65>2,T65<>T64,E65<>3),VLOOKUP($J65,DetRates!$C$19:$AA$3186,Q$22),IF(T65<>T64,VLOOKUP($J65,DetRates!$C$19:$AA$3186,Q$22),Q64)) -> 0 | R65: =IF($T65<>$T64,VLOOKUP($J65,DetRates!$C$19:$AA$3186,R$22,FALSE),R64) -> -12 | S65: =IF($T65<>$T64,VLOOKUP($J65,DetRates!$C$19:$AA$3186,S$22,FALSE),S64) -> 50 | T65: 0 | U65: =VLOOKUP(F65,DetRates!$U$10:$W$12,3,FALSE) -> 20 | V65: 5 | W65: -9.131769334 | X65: 0.084 | Y65: -9.931976179 | Z65: -6.75 | AA65: 0 | AB65: FALSE | AC65: 0 | AD65: FALSE | AE65: FALSE | AF65: FALSE | AG65: FALSE | AH65: FALSE | AI65: FALSE | AJ65: FALSE | AK65: FALSE | AL65: FALSE | AM65: FALSE | AN65: FALSE | AO65: FALSE | AP65: FALSE | AQ65: FALSE | AR65: FALSE | AS65: -9.931976179 | AT65: 0 | AU65: 0 | AW65: -9.131769334 | AX65: -9.931976179 | AZ65: FALSE | BA65: 41 | BB65: 2 | BC65: 6
B66: 42 | C66: 9 | D66: 6 | E66: 2 | F66: 1 | G66: 1 | H66: 1 | I66: 1421111-6 | J66: =IF(ISNA(VLOOKUP(I66,DetRates!$B$19:$C$3186,2,FALSE)),J65,VLOOKUP(I66,DetRates!$B$19:$C$3186,2,FALSE)) -> 967 | K66: =VLOOKUP($J66,DetRates!$C$19:$AA$3186,K$22,FALSE) -> 0 | L66: =VLOOKUP($J66,DetRates!$C$19:$AA$3186,L$22,FALSE) -> 10 | M66: =IF($T66<>$T65,VLOOKUP($J66,DetRates!$C$19:$AA$3186,M$22,FALSE),M65) -> -6 | N66: =IF($T66<>$T65,VLOOKUP($J66,DetRates!$C$19:$AA$3186,N$22,FALSE),N65) -> 0.084 | O66: =IF($T66<>$T65,VLOOKUP($J66,DetRates!$C$19:$AA$3186,O$22,FALSE),O65) -> 0 | P66: =IF($T66<>$T65,VLOOKUP($J66,DetRates!$C$19:$AA$3186,P$22,FALSE),P65) -> -6.75 | Q66: =IF(AND(D66>29,T66>2,T66<>T65,E66<>3),VLOOKUP($J66,DetRates!$C$19:$AA$3186,Q$22),IF(T66<>T65,VLOOKUP($J66,DetRates!$C$19:$AA$3186,Q$22),Q65)) -> 0 | R66: =IF($T66<>$T65,VLOOKUP($J66,DetRates!$C$19:$AA$3186,R$22,FALSE),R65) -> -12 | S66: =IF($T66<>$T65,VLOOKUP($J66,DetRates!$C$19:$AA$3186,S$22,FALSE),S65) -> 50 | T66: 0 | U66: =VLOOKUP(F66,DetRates!$U$10:$W$12,3,FALSE) -> 20 | V66: 6 | W66: -9.931976179 | X66: 0.084 | Y66: -10.80230426 | Z66: -6.75 | AA66: 0 | AB66: FALSE | AC66: 0 | AD66: FALSE | AE66: FALSE | AF66: FALSE | AG66: FALSE | AH66: FALSE | AI66: FALSE | AJ66: FALSE | AK66: FALSE | AL66: FALSE | AM66: FALSE | AN66: FALSE | AO66: FALSE | AP66: FALSE | AQ66: FALSE | AR66: FALSE | AS66: -10.80230426 | AT66: 0 | AU66: 0 | AW66: -9.931976179 | AX66: -10.80230426 | AZ66: FALSE | BA66: 42 | BB66: 2 | BC66: 7
B67: 43 | C67: 9 | D67: 7 | E67: 2 | F67: 1 | G67: 1 | H67: 1 | I67: 1421111-7 | J67: =IF(ISNA(VLOOKUP(I67,DetRates!$B$19:$C$3186,2,FALSE)),J66,VLOOKUP(I67,DetRates!$B$19:$C$3186,2,FALSE)) -> 967 | K67: =VLOOKUP($J67,DetRates!$C$19:$AA$3186,K$22,FALSE) -> 0 | L67: =VLOOKUP($J67,DetRates!$C$19:$AA$3186,L$22,FALSE) -> 10 | M67: =IF($T67<>$T66,VLOOKUP($J67,DetRates!$C$19:$AA$3186,M$22,FALSE),M66) -> -6 | N67: =IF($T67<>$T66,VLOOKUP($J67,DetRates!$C$19:$AA$3186,N$22,FALSE),N66) -> 0.084 | O67: =IF($T67<>$T66,VLOOKUP($J67,DetRates!$C$19:$AA$3186,O$22,FALSE),O66) -> 0 | P67: =IF($T67<>$T66,VLOOKUP($J67,DetRates!$C$19:$AA$3186,P$22,FALSE),P66) -> -6.75 | Q67: =IF(AND(D67>29,T67>2,T67<>T66,E67<>3),VLOOKUP($J67,DetRates!$C$19:$AA$3186,Q$22),IF(T67<>T66,VLOOKUP($J67,DetRates!$C$19:$AA$3186,Q$22),Q66)) -> 0 | R67: =IF($T67<>$T66,VLOOKUP($J67,DetRates!$C$19:$AA$3186,R$22,FALSE),R66) -> -12 | S67: =IF($T67<>$T66,VLOOKUP($J67,DetRates!$C$19:$AA$3186,S$22,FALSE),S66) -> 50 | T67: 0 | U67: =VLOOKUP(F67,DetRates!$U$10:$W$12,3,FALSE) -> 20 | V67: 7 | W67: -10.80230426 | X67: 0.084 | Y67: -11.74889824 | Z67: -6.75 | AA67: 0 | AB67: FALSE | AC67: 0 | AD67: FALSE | AE67: FALSE | AF67: FALSE | AG67: FALSE | AH67: FALSE | AI67: FALSE | AJ67: FALSE | AK67: FALSE | AL67: FALSE | AM67: FALSE | AN67: FALSE | AO67: FALSE | AP67: FALSE | AQ67: FALSE | AR67: FALSE | AS67: -11.74889824 | AT67: 0 | AU67: 0 | AW67: -10.80230426 | AX67: -11.74889824 | AZ67: FALSE | BA67: 43 | BB67: 2 | BC67: 8
B68: 44 | C68: 9 | D68: 8 | E68: 2 | F68: 1 | G68: 1 | H68: 1 | I68: 1421111-8 | J68: =IF(ISNA(VLOOKUP(I68,DetRates!$B$19:$C$3186,2,FALSE)),J67,VLOOKUP(I68,DetRates!$B$19:$C$3186,2,FALSE)) -> 967 | K68: =VLOOKUP($J68,DetRates!$C$19:$AA$3186,K$22,FALSE) -> 0 | L68: =VLOOKUP($J68,DetRates!$C$19:$AA$3186,L$22,FALSE) -> 10 | M68: =IF($T68<>$T67,VLOOKUP($J68,DetRates!$C$19:$AA$3186,M$22,FALSE),M67) -> -6 | N68: =IF($T68<>$T67,VLOOKUP($J68,DetRates!$C$19:$AA$3186,N$22,FALSE),N67) -> 0.084 | O68: =IF($T68<>$T67,VLOOKUP($J68,DetRates!$C$19:$AA$3186,O$22,FALSE),O67) -> 0 | P68: =IF($T68<>$T67,VLOOKUP($J68,DetRates!$C$19:$AA$3186,P$22,FALSE),P67) -> -6.75 | Q68: =IF(AND(D68>29,T68>2,T68<>T67,E68<>3),VLOOKUP($J68,DetRates!$C$19:$AA$3186,Q$22),IF(T68<>T67,VLOOKUP($J68,DetRates!$C$19:$AA$3186,Q$22),Q67)) -> 0 | R68: =IF($T68<>$T67,VLOOKUP($J68,DetRates!$C$19:$AA$3186,R$22,FALSE),R67) -> -12 | S68: =IF($T68<>$T67,VLOOKUP($J68,DetRates!$C$19:$AA$3186,S$22,FALSE),S67) -> 50 | T68: 0 | U68: =VLOOKUP(F68,DetRates!$U$10:$W$12,3,FALSE) -> 20 | V68: 8 | W68: -11.74889824 | X68: 0.084 | Y68: -12.77844119 | Z68: -6.75 | AA68: 0 | AB68: FALSE | AC68: 0 | AD68: FALSE | AE68: FALSE | AF68: FALSE | AG68: FALSE | AH68: FALSE | AI68: TRUE | AJ68: FALSE | AK68: FALSE | AL68: TRUE | AM68: FALSE | AN68: FALSE | AO68: FALSE | AP68: FALSE | AQ68: FALSE | AR68: TRUE | AS68: -6.75 | AT68: 1 | AU68: 0 | AW68: -11.74889824 | AX68: -12.77844119 | AZ68: FALSE | BA68: 44 | BB68: 2 | BC68: 9
B69: 45 | C69: 10 | D69: 9 | E69: 2 | F69: 1 | G69: 1 | H69: 1 | I69: 1421111-9 | J69: =IF(ISNA(VLOOKUP(I69,DetRates!$B$19:$C$3186,2,FALSE)),J68,VLOOKUP(I69,DetRates!$B$19:$C$3186,2,FALSE)) -> 967 | K69: =VLOOKUP($J69,DetRates!$C$19:$AA$3186,K$22,FALSE) -> 0 | L69: =VLOOKUP($J69,DetRates!$C$19:$AA$3186,L$22,FALSE) -> 10 | M69: =IF($T69<>$T68,VLOOKUP($J69,DetRates!$C$19:$AA$3186,M$22,FALSE),M68) -> -6 | N69: =IF($T69<>$T68,VLOOKUP($J69,DetRates!$C$19:$AA$3186,N$22,FALSE),N68) -> 0.084 | O69: =IF($T69<>$T68,VLOOKUP($J69,DetRates!$C$19:$AA$3186,O$22,FALSE),O68) -> 0 | P69: =IF($T69<>$T68,VLOOKUP($J69,DetRates!$C$19:$AA$3186,P$22,FALSE),P68) -> -6.75 | Q69: =IF(AND(D69>29,T69>2,T69<>T68,E69<>3),VLOOKUP($J69,DetRates!$C$19:$AA$3186,Q$22),IF(T69<>T68,VLOOKUP($J69,DetRates!$C$19:$AA$3186,Q$22),Q68)) -> 0 | R69: =IF($T69<>$T68,VLOOKUP($J69,DetRates!$C$19:$AA$3186,R$22,FALSE),R68) -> -12 | S69: =IF($T69<>$T68,VLOOKUP($J69,DetRates!$C$19:$AA$3186,S$22,FALSE),S68) -> 50 | T69: 1 | U69: =VLOOKUP(F69,DetRates!$U$10:$W$12,3,FALSE) -> 20 | V69: 9 | W69: -6.75 | X69: 0.084 | Y69: -7.341495033 | Z69: -6.75 | AA69: 0 | AB69: FALSE | AC69: 0 | AD69: FALSE | AE69: FALSE | AF69: FALSE | AG69: FALSE | AH69: FALSE | AI69: FALSE | AJ69: FALSE | AK69: FALSE | AL69: FALSE | AM69: FALSE | AN69: FALSE | AO69: FALSE | AP69: FALSE | AQ69: FALSE | AR69: FALSE | AS69: -7.341495033 | AT69: 0 | AU69: 0 | AW69: -6.75 | AX69: -7.341495033 | AZ69: FALSE | BA69: 45 | BB69: 2 | BC69: 10
B70: 46 | C70: 10 | D70: 10 | E70: 2 | F70: 1 | G70: 1 | H70: 1 | I70: 1421111-10 | J70: =IF(ISNA(VLOOKUP(I70,DetRates!$B$19:$C$3186,2,FALSE)),J69,VLOOKUP(I70,DetRates!$B$19:$C$3186,2,FALSE)) -> 968 | K70: =VLOOKUP($J70,DetRates!$C$19:$AA$3186,K$22,FALSE) -> 10 | L70: =VLOOKUP($J70,DetRates!$C$19:$AA$3186,L$22,FALSE) -> 20 | M70: =IF($T70<>$T69,VLOOKUP($J70,DetRates!$C$19:$AA$3186,M$22,FALSE),M69) -> -6 | N70: =IF($T70<>$T69,VLOOKUP($J70,DetRates!$C$19:$AA$3186,N$22,FALSE),N69) -> 0.084 | O70: =IF($T70<>$T69,VLOOKUP($J70,DetRates!$C$19:$AA$3186,O$22,FALSE),O69) -> 0 | P70: =IF($T70<>$T69,VLOOKUP($J70,DetRates!$C$19:$AA$3186,P$22,FALSE),P69) -> -6.75 | Q70: =IF(AND(D70>29,T70>2,T70<>T69,E70<>3),VLOOKUP($J70,DetRates!$C$19:$AA$3186,Q$22),IF(T70<>T69,VLOOKUP($J70,DetRates!$C$19:$AA$3186,Q$22),Q69)) -> 0 | R70: =IF($T70<>$T69,VLOOKUP($J70,DetRates!$C$19:$AA$3186,R$22,FALSE),R69) -> -12 | S70: =IF($T70<>$T69,VLOOKUP($J70,DetRates!$C$19:$AA$3186,S$22,FALSE),S69) -> 50 | T70: 1 | U70: =VLOOKUP(F70,DetRates!$U$10:$W$12,3,FALSE) -> 20 | V70: 0 | W70: -7.341495033 | X70: 0.084 | Y70: -7.984822122 | Z70: -6.75 | AA70: 0 | AB70: FALSE | AC70: 0 | AD70: FALSE | AE70: FALSE | AF70: FALSE | AG70: FALSE | AH70: FALSE | AI70: FALSE | AJ70: FALSE | AK70: FALSE | AL70: FALSE | AM70: FALSE | AN70: FALSE | AO70: FALSE | AP70: FALSE | AQ70: FALSE | AR70: FALSE | AS70: -7.984822122 | AT70: 0 | AU70: 0 | AW70: -7.341495033 | AX70: -7.984822122 | AZ70: FALSE | BA70: 46 | BB70: 2 | BC70: 11
B71: 47 | C71: 10 | D71: 11 | E71: 2 | F71: 1 | G71: 1 | H71: 1 | I71: 1421111-11 | J71: =IF(ISNA(VLOOKUP(I71,DetRates!$B$19:$C$3186,2,FALSE)),J70,VLOOKUP(I71,DetRates!$B$19:$C$3186,2,FALSE)) -> 968 | K71: =VLOOKUP($J71,DetRates!$C$19:$AA$3186,K$22,FALSE) -> 10 | L71: =VLOOKUP($J71,DetRates!$C$19:$AA$3186,L$22,FALSE) -> 20 | M71: =IF($T71<>$T70,VLOOKUP($J71,DetRates!$C$19:$AA$3186,M$22,FALSE),M70) -> -6 | N71: =IF($T71<>$T70,VLOOKUP($J71,DetRates!$C$19:$AA$3186,N$22,FALSE),N70) -> 0.084 | O71: =IF($T71<>$T70,VLOOKUP($J71,DetRates!$C$19:$AA$3186,O$22,FALSE),O70) -> 0 | P71: =IF($T71<>$T70,VLOOKUP($J71,DetRates!$C$19:$AA$3186,P$22,FALSE),P70) -> -6.75 | Q71: =IF(AND(D71>29,T71>2,T71<>T70,E71<>3),VLOOKUP($J71,DetRates!$C$19:$AA$3186,Q$22),IF(T71<>T70,VLOOKUP($J71,DetRates!$C$19:$AA$3186,Q$22),Q70)) -> 0 | R71: =IF($T71<>$T70,VLOOKUP($J71,DetRates!$C$19:$AA$3186,R$22,FALSE),R70) -> -12 | S71: =IF($T71<>$T70,VLOOKUP($J71,DetRates!$C$19:$AA$3186,S$22,FALSE),S70) -> 50 | T71: 1 | U71: =VLOOKUP(F71,DetRates!$U$10:$W$12,3,FALSE) -> 20 | V71: 1 | W71: -7.984822122 | X71: 0.084 | Y71: -8.684523252 | Z71: -6.75 | AA71: 0 | AB71: FALSE | AC71: 0 | AD71: FALSE | AE71: FALSE | AF71: FALSE | AG71: FALSE | AH71: FALSE | AI71: FALSE | AJ71: FALSE | AK71: FALSE | AL71: FALSE | AM71: FALSE | AN71: FALSE | AO71: FALSE | AP71: =IF(D71<21,FALSE,IF(AND(T70<T71,T70<>0,AL71,$AP$15),TRUE,FALSE)) -> FALSE | AQ71: FALSE | AR71: FALSE | AS71: -8.684523252 | AT71: 0 | AU71: 0 | AW71: -7.984822122 | AX71: -8.684523252 | AZ71: FALSE | BA71: 47 | BB71: 2 | BC71: 12
B72: 48 | C72: 10 | D72: 12 | E72: 2 | F72: 1 | G72: 1 | H72: 1 | I72: 1421111-12 | J72: =IF(ISNA(VLOOKUP(I72,DetRates!$B$19:$C$3186,2,FALSE)),J71,VLOOKUP(I72,DetRates!$B$19:$C$3186,2,FALSE)) -> 968 | K72: =VLOOKUP($J72,DetRates!$C$19:$AA$3186,K$22,FALSE) -> 10 | L72: =VLOOKUP($J72,DetRates!$C$19:$AA$3186,L$22,FALSE) -> 20 | M72: =IF($T72<>$T71,VLOOKUP($J72,DetRates!$C$19:$AA$3186,M$22,FALSE),M71) -> -6 | N72: =IF($T72<>$T71,VLOOKUP($J72,DetRates!$C$19:$AA$3186,N$22,FALSE),N71) -> 0.084 | O72: =IF($T72<>$T71,VLOOKUP($J72,DetRates!$C$19:$AA$3186,O$22,FALSE),O71) -> 0 | P72: =IF($T72<>$T71,VLOOKUP($J72,DetRates!$C$19:$AA$3186,P$22,FALSE),P71) -> -6.75 | Q72: =IF(AND(D72>29,T72>2,T72<>T71,E72<>3),VLOOKUP($J72,DetRates!$C$19:$AA$3186,Q$22),IF(T72<>T71,VLOOKUP($J72,DetRates!$C$19:$AA$3186,Q$22),Q71)) -> 0 | R72: =IF($T72<>$T71,VLOOKUP($J72,DetRates!$C$19:$AA$3186,R$22,FALSE),R71) -> -12 | S72: =IF($T72<>$T71,VLOOKUP($J72,DetRates!$C$19:$AA$3186,S$22,FALSE),S71) -> 50 | T72: 1 | U72: =VLOOKUP(F72,DetRates!$U$10:$W$12,3,FALSE) -> 20 | V72: 2 | W72: -8.684523252 | X72: 0.084 | Y72: -9.445538417 | Z72: -6.75 | AA72: 0 | AB72: FALSE | AC72: 0 | AD72: FALSE | AE72: FALSE | AF72: FALSE | AG72: FALSE | AH72: FALSE | AI72: FALSE | AJ72: FALSE | AK72: FALSE | AL72: FALSE | AM72: FALSE | AN72: FALSE | AO72: FALSE | AP72: FALSE | AQ72: FALSE | AR72: FALSE | AS72: -9.445538417 | AT72: 0 | AU72: 0 | AW72: -8.684523252 | AX72: -9.445538417 | AZ72: FALSE | BA72: 48 | BB72: 2 | BC72: 13
B73: 49 | C73: 10 | D73: 13 | E73: 2 | F73: 1 | G73: 1 | H73: 1 | I73: 1421111-13 | J73: =IF(ISNA(VLOOKUP(I73,DetRates!$B$19:$C$3186,2,FALSE)),J72,VLOOKUP(I73,DetRates!$B$19:$C$3186,2,FALSE)) -> 968 | K73: =VLOOKUP($J73,DetRates!$C$19:$AA$3186,K$22,FALSE) -> 10 | L73: =VLOOKUP($J73,DetRates!$C$19:$AA$3186,L$22,FALSE) -> 20 | M73: =IF($T73<>$T72,VLOOKUP($J73,DetRates!$C$19:$AA$3186,M$22,FALSE),M72) -> -6 | N73: =IF($T73<>$T72,VLOOKUP($J73,DetRates!$C$19:$AA$3186,N$22,FALSE),N72) -> 0.084 | O73: =IF($T73<>$T72,VLOOKUP($J73,DetRates!$C$19:$AA$3186,O$22,FALSE),O72) -> 0 | P73: =IF($T73<>$T72,VLOOKUP($J73,DetRates!$C$19:$AA$3186,P$22,FALSE),P72) -> -6.75 | Q73: =IF(AND(D73>29,T73>2,T73<>T72,E73<>3),VLOOKUP($J73,DetRates!$C$19:$AA$3186,Q$22),IF(T73<>T72,VLOOKUP($J73,DetRates!$C$19:$AA$3186,Q$22),Q72)) -> 0 | R73: =IF($T73<>$T72,VLOOKUP($J73,DetRates!$C$19:$AA$3186,R$22,FALSE),R72) -> -12 | S73: =IF($T73<>$T72,VLOOKUP($J73,DetRates!$C$19:$AA$3186,S$22,FALSE),S72) -> 50 | T73: 1 | U73: =VLOOKUP(F73,DetRates!$U$10:$W$12,3,FALSE) -> 20 | V73: 3 | W73: -9.445538417 | X73: 0.084 | Y73: -10.2732405 | Z73: -6.75 | AA73: 0 | AB73: FALSE | AC73: 0 | AD73: FALSE | AE73: FALSE | AF73: FALSE | AG73: FALSE | AH73: FALSE | AI73: FALSE | AJ73: FALSE | AK73: FALSE | AL73: FALSE | AM73: FALSE | AN73: FALSE | AO73: FALSE | AP73: FALSE | AQ73: FALSE | AR73: FALSE | AS73: -10.2732405 | AT73: 0 | AU73: 0 | AW73: -9.445538417 | AX73: -10.2732405 | AZ73: FALSE | BA73: 49 | BB73: 2 | BC73: 14
B74: 50 | C74: 11 | D74: 14 | E74: 2 | F74: 1 | G74: 1 | H74: 1 | I74: 1421111-14 | J74: =IF(ISNA(VLOOKUP(I74,DetRates!$B$19:$C$3186,2,FALSE)),J73,VLOOKUP(I74,DetRates!$B$19:$C$3186,2,FALSE)) -> 968 | K74: =VLOOKUP($J74,DetRates!$C$19:$AA$3186,K$22,FALSE) -> 10 | L74: =VLOOKUP($J74,DetRates!$C$19:$AA$3186,L$22,FALSE) -> 20 | M74: =IF($T74<>$T73,VLOOKUP($J74,DetRates!$C$19:$AA$3186,M$22,FALSE),M73) -> -6 | N74: =IF($T74<>$T73,VLOOKUP($J74,DetRates!$C$19:$AA$3186,N$22,FALSE),N73) -> 0.084 | O74: =IF($T74<>$T73,VLOOKUP($J74,DetRates!$C$19:$AA$3186,O$22,FALSE),O73) -> 0 | P74: =IF($T74<>$T73,VLOOKUP($J74,DetRates!$C$19:$AA$3186,P$22,FALSE),P73) -> -6.75 | Q74: =IF(AND(D74>29,T74>2,T74<>T73,E74<>3),VLOOKUP($J74,DetRates!$C$19:$AA$3186,Q$22),IF(T74<>T73,VLOOKUP($J74,DetRates!$C$19:$AA$3186,Q$22),Q73)) -> 0 | R74: =IF($T74<>$T73,VLOOKUP($J74,DetRates!$C$19:$AA$3186,R$22,FALSE),R73) -> -12 | S74: =IF($T74<>$T73,VLOOKUP($J74,DetRates!$C$19:$AA$3186,S$22,FALSE),S73) -> 50 | T74: 1 | U74: =VLOOKUP(F74,DetRates!$U$10:$W$12,3,FALSE) -> 20 | V74: 4 | W74: -10.2732405 | X74: 0.084 | Y74: -11.1734732 | Z74: -6.75 | AA74: 0 | AB74: FALSE | AC74: 0 | AD74: FALSE | AE74: FALSE | AF74: FALSE | AG74: FALSE | AH74: FALSE | AI74: FALSE | AJ74: FALSE | AK74: FALSE | AL74: FALSE | AM74: FALSE | AN74: FALSE | AO74: FALSE | AP74: FALSE | AQ74: FALSE | AR74: FALSE | AS74: -11.1734732 | AT74: 0 | AU74: 0 | AW74: -10.2732405 | AX74: -11.1734732 | AZ74: FALSE | BA74: 50 | BB74: 2 | BC74: 15
B75: 51 | C75: 11 | D75: 15 | E75: 2 | F75: 1 | G75: 1 | H75: 1 | I75: 1421111-15 | J75: =IF(ISNA(VLOOKUP(I75,DetRates!$B$19:$C$3186,2,FALSE)),J74,VLOOKUP(I75,DetRates!$B$19:$C$3186,2,FALSE)) -> 968 | K75: =VLOOKUP($J75,DetRates!$C$19:$AA$3186,K$22,FALSE) -> 10 | L75: =VLOOKUP($J75,DetRates!$C$19:$AA$3186,L$22,FALSE) -> 20 | M75: =IF($T75<>$T74,VLOOKUP($J75,DetRates!$C$19:$AA$3186,M$22,FALSE),M74) -> -6 | N75: =IF($T75<>$T74,VLOOKUP($J75,DetRates!$C$19:$AA$3186,N$22,FALSE),N74) -> 0.084 | O75: =IF($T75<>$T74,VLOOKUP($J75,DetRates!$C$19:$AA$3186,O$22,FALSE),O74) -> 0 | P75: =IF($T75<>$T74,VLOOKUP($J75,DetRates!$C$19:$AA$3186,P$22,FALSE),P74) -> -6.75 | Q75: =IF(AND(D75>29,T75>2,T75<>T74,E75<>3),VLOOKUP($J75,DetRates!$C$19:$AA$3186,Q$22),IF(T75<>T74,VLOOKUP($J75,DetRates!$C$19:$AA$3186,Q$22),Q74)) -> 0 | R75: =IF($T75<>$T74,VLOOKUP($J75,DetRates!$C$19:$AA$3186,R$22,FALSE),R74) -> -12 | S75: =IF($T75<>$T74,VLOOKUP($J75,DetRates!$C$19:$AA$3186,S$22,FALSE),S74) -> 50 | T75: 1 | U75: =VLOOKUP(F75,DetRates!$U$10:$W$12,3,FALSE) -> 20 | V75: 5 | W75: -11.1734732 | X75: 0.084 | Y75: -12.1525923 | Z75: -6.75 | AA75: 0 | AB75: FALSE | AC75: 0 | AD75: FALSE | AE75: FALSE | AF75: FALSE | AG75: FALSE | AH75: FALSE | AI75: TRUE | AJ75: FALSE | AK75: FALSE | AL75: TRUE | AM75: FALSE | AN75: FALSE | AO75: FALSE | AP75: FALSE | AQ75: FALSE | AR75: TRUE | AS75: -6.75 | AT75: 1 | AU75: 0 | AW75: -11.1734732 | AX75: -12.1525923 | AZ75: FALSE | BA75: 51 | BB75: 2 | BC75: 16
B76: 52 | C76: 11 | D76: 16 | E76: 2 | F76: 1 | G76: 1 | H76: 1 | I76: 1421111-16 | J76: =IF(ISNA(VLOOKUP(I76,DetRates!$B$19:$C$3186,2,FALSE)),J75,VLOOKUP(I76,DetRates!$B$19:$C$3186,2,FALSE)) -> 968 | K76: =VLOOKUP($J76,DetRates!$C$19:$AA$3186,K$22,FALSE) -> 10 | L76: =VLOOKUP($J76,DetRates!$C$19:$AA$3186,L$22,FALSE) -> 20 | M76: =IF($T76<>$T75,VLOOKUP($J76,DetRates!$C$19:$AA$3186,M$22,FALSE),M75) -> -6 | N76: =IF($T76<>$T75,VLOOKUP($J76,DetRates!$C$19:$AA$3186,N$22,FALSE),N75) -> 0.063 | O76: =IF($T76<>$T75,VLOOKUP($J76,DetRates!$C$19:$AA$3186,O$22,FALSE),O75) -> 0 | P76: =IF($T76<>$T75,VLOOKUP($J76,DetRates!$C$19:$AA$3186,P$22,FALSE),P75) -> -7.2 | Q76: =IF(AND(D76>29,T76>2,T76<>T75,E76<>3),VLOOKUP($J76,DetRates!$C$19:$AA$3186,Q$22),IF(T76<>T75,VLOOKUP($J76,DetRates!$C$19:$AA$3186,Q$22),Q75)) -> 0 | R76: =IF($T76<>$T75,VLOOKUP($J76,DetRates!$C$19:$AA$3186,R$22,FALSE),R75) -> -15 | S76: =IF($T76<>$T75,VLOOKUP($J76,DetRates!$C$19:$AA$3186,S$22,FALSE),S75) -> 50 | T76: 2 | U76: =VLOOKUP(F76,DetRates!$U$10:$W$12,3,FALSE) -> 20 | V76: 6 | W76: -6.75 | X76: 0.063 | Y76: -7.188931165 | Z76: -7.2 | AA76: 0 | AB76: FALSE | AC76: 0 | AD76: FALSE | AE76: FALSE | AF76: FALSE | AG76: FALSE | AH76: FALSE | AI76: FALSE | AJ76: FALSE | AK76: FALSE | AL76: FALSE | AM76: FALSE | AN76: FALSE | AO76: FALSE | AP76: FALSE | AQ76: FALSE | AR76: FALSE | AS76: -7.188931165 | AT76: 0 | AU76: 0 | AW76: -6.75 | AX76: -7.188931165 | AZ76: FALSE | BA76: 52 | BB76: 2 | BC76: 17
B77: 53 | C77: 11 | D77: 17 | E77: 2 | F77: 1 | G77: 1 | H77: 1 | I77: 1421111-17 | J77: =IF(ISNA(VLOOKUP(I77,DetRates!$B$19:$C$3186,2,FALSE)),J76,VLOOKUP(I77,DetRates!$B$19:$C$3186,2,FALSE)) -> 968 | K77: =VLOOKUP($J77,DetRates!$C$19:$AA$3186,K$22,FALSE) -> 10 | L77: =VLOOKUP($J77,DetRates!$C$19:$AA$3186,L$22,FALSE) -> 20 | M77: =IF($T77<>$T76,VLOOKUP($J77,DetRates!$C$19:$AA$3186,M$22,FALSE),M76) -> -6 | N77: =IF($T77<>$T76,VLOOKUP($J77,DetRates!$C$19:$AA$3186,N$22,FALSE),N76) -> 0.063 | O77: =IF($T77<>$T76,VLOOKUP($J77,DetRates!$C$19:$AA$3186,O$22,FALSE),O76) -> 0 | P77: =IF($T77<>$T76,VLOOKUP($J77,DetRates!$C$19:$AA$3186,P$22,FALSE),P76) -> -7.2 | Q77: =IF(AND(D77>29,T77>2,T77<>T76,E77<>3),VLOOKUP($J77,DetRates!$C$19:$AA$3186,Q$22),IF(T77<>T76,VLOOKUP($J77,DetRates!$C$19:$AA$3186,Q$22),Q76)) -> 0 | R77: =IF($T77<>$T76,VLOOKUP($J77,DetRates!$C$19:$AA$3186,R$22,FALSE),R76) -> -15 | S77: =IF($T77<>$T76,VLOOKUP($J77,DetRates!$C$19:$AA$3186,S$22,FALSE),S76) -> 50 | T77: 2 | U77: =VLOOKUP(F77,DetRates!$U$10:$W$12,3,FALSE) -> 20 | V77: 7 | W77: -7.188931165 | X77: 0.063 | Y77: -7.656404636 | Z77: -7.2 | AA77: 0 | AB77: FALSE | AC77: 0 | AD77: FALSE | AE77: FALSE | AF77: FALSE | AG77: FALSE | AH77: FALSE | AI77: FALSE | AJ77: FALSE | AK77: FALSE | AL77: FALSE | AM77: FALSE | AN77: FALSE | AO77: FALSE | AP77: FALSE | AQ77: FALSE | AR77: FALSE | AS77: -7.656404636 | AT77: 0 | AU77: 0 | AW77: -7.188931165 | AX77: -7.656404636 | AZ77: FALSE | BA77: 53 | BB77: 2 | BC77: 18
B78: 54 | C78: 11 | D78: 18 | E78: 2 | F78: 1 | G78: 1 | H78: 1 | I78: 1421111-18 | J78: =IF(ISNA(VLOOKUP(I78,DetRates!$B$19:$C$3186,2,FALSE)),J77,VLOOKUP(I78,DetRates!$B$19:$C$3186,2,FALSE)) -> 968 | K78: =VLOOKUP($J78,DetRates!$C$19:$AA$3186,K$22,FALSE) -> 10 | L78: =VLOOKUP($J78,DetRates!$C$19:$AA$3186,L$22,FALSE) -> 20 | M78: =IF($T78<>$T77,VLOOKUP($J78,DetRates!$C$19:$AA$3186,M$22,FALSE),M77) -> -6 | N78: =IF($T78<>$T77,VLOOKUP($J78,DetRates!$C$19:$AA$3186,N$22,FALSE),N77) -> 0.063 | O78: =IF($T78<>$T77,VLOOKUP($J78,DetRates!$C$19:$AA$3186,O$22,FALSE),O77) -> 0 | P78: =IF($T78<>$T77,VLOOKUP($J78,DetRates!$C$19:$AA$3186,P$22,FALSE),P77) -> -7.2 | Q78: =IF(AND(D78>29,T78>2,T78<>T77,E78<>3),VLOOKUP($J78,DetRates!$C$19:$AA$3186,Q$22),IF(T78<>T77,VLOOKUP($J78,DetRates!$C$19:$AA$3186,Q$22),Q77)) -> 0 | R78: =IF($T78<>$T77,VLOOKUP($J78,DetRates!$C$19:$AA$3186,R$22,FALSE),R77) -> -15 | S78: =IF($T78<>$T77,VLOOKUP($J78,DetRates!$C$19:$AA$3186,S$22,FALSE),S77) -> 50 | T78: 2 | U78: =VLOOKUP(F78,DetRates!$U$10:$W$12,3,FALSE) -> 20 | V78: 8 | W78: -7.656404636 | X78: 0.063 | Y78: -8.154276429 | Z78: -7.2 | AA78: 0 | AB78: FALSE | AC78: 0 | AD78: FALSE | AE78: FALSE | AF78: FALSE | AG78: FALSE | AH78: FALSE | AI78: FALSE | AJ78: FALSE | AK78: FALSE | AL78: FALSE | AM78: FALSE | AN78: FALSE | AO78: FALSE | AP78: FALSE | AQ78: FALSE | AR78: FALSE | AS78: -8.154276429 | AT78: 0 | AU78: 0 | AW78: -7.656404636 | AX78: -8.154276429 | AZ78: FALSE | BA78: 54 | BB78: 2 | BC78: 19
B79: 55 | C79: 12 | D79: 19 | E79: 2 | F79: 1 | G79: 1 | H79: 1 | I79: 1421111-19 | J79: =IF(ISNA(VLOOKUP(I79,DetRates!$B$19:$C$3186,2,FALSE)),J78,VLOOKUP(I79,DetRates!$B$19:$C$3186,2,FALSE)) -> 968 | K79: =VLOOKUP($J79,DetRates!$C$19:$AA$3186,K$22,FALSE) -> 10 | L79: =VLOOKUP($J79,DetRates!$C$19:$AA$3186,L$22,FALSE) -> 20 | M79: =IF($T79<>$T78,VLOOKUP($J79,DetRates!$C$19:$AA$3186,M$22,FALSE),M78) -> -6 | N79: =IF($T79<>$T78,VLOOKUP($J79,DetRates!$C$19:$AA$3186,N$22,FALSE),N78) -> 0.063 | O79: =IF($T79<>$T78,VLOOKUP($J79,DetRates!$C$19:$AA$3186,O$22,FALSE),O78) -> 0 | P79: =IF($T79<>$T78,VLOOKUP($J79,DetRates!$C$19:$AA$3186,P$22,FALSE),P78) -> -7.2 | Q79: =IF(AND(D79>29,T79>2,T79<>T78,E79<>3),VLOOKUP($J79,DetRates!$C$19:$AA$3186,Q$22),IF(T79<>T78,VLOOKUP($J79,DetRates!$C$19:$AA$3186,Q$22),Q78)) -> 0 | R79: =IF($T79<>$T78,VLOOKUP($J79,DetRates!$C$19:$AA$3186,R$22,FALSE),R78) -> -15 | S79: =IF($T79<>$T78,VLOOKUP($J79,DetRates!$C$19:$AA$3186,S$22,FALSE),S78) -> 50 | T79: 2 | U79: =VLOOKUP(F79,DetRates!$U$10:$W$12,3,FALSE) -> 20 | V79: 9 | W79: -8.154276429 | X79: 0.063 | Y79: -8.684523252 | Z79: -7.2 | AA79: 0 | AB79: FALSE | AC79: 0 | AD79: FALSE | AE79: FALSE | AF79: FALSE | AG79: FALSE | AH79: FALSE | AI79: FALSE | AJ79: FALSE | AK79: FALSE | AL79: FALSE | AM79: FALSE | AN79: FALSE | AO79: FALSE | AP79: FALSE | AQ79: FALSE | AR79: FALSE | AS79: -8.684523252 | AT79: 0 | AU79: 0 | AW79: -8.154276429 | AX79: -8.684523252 | AZ79: FALSE | BA79: 55 | BB79: 2 | BC79: 20
B80: 56 | C80: 12 | D80: 20 | E80: 2 | F80: 1 | G80: 1 | H80: 1 | I80: 1421111-20 | J80: =IF(ISNA(VLOOKUP(I80,DetRates!$B$19:$C$3186,2,FALSE)),J79,VLOOKUP(I80,DetRates!$B$19:$C$3186,2,FALSE)) -> 969 | K80: =VLOOKUP($J80,DetRates!$C$19:$AA$3186,K$22,FALSE) -> 20 | L80: =VLOOKUP($J80,DetRates!$C$19:$AA$3186,L$22,FALSE) -> 30 | M80: =IF($T80<>$T79,VLOOKUP($J80,DetRates!$C$19:$AA$3186,M$22,FALSE),M79) -> -6 | N80: =IF($T80<>$T79,VLOOKUP($J80,DetRates!$C$19:$AA$3186,N$22,FALSE),N79) -> 0.063 | O80: =IF($T80<>$T79,VLOOKUP($J80,DetRates!$C$19:$AA$3186,O$22,FALSE),O79) -> 0 | P80: =IF($T80<>$T79,VLOOKUP($J80,DetRates!$C$19:$AA$3186,P$22,FALSE),P79) -> -7.2 | Q80: =IF(AND(D80>29,T80>2,T80<>T79,E80<>3),VLOOKUP($J80,DetRates!$C$19:$AA$3186,Q$22),IF(T80<>T79,VLOOKUP($J80,DetRates!$C$19:$AA$3186,Q$22),Q79)) -> 0 | R80: =IF($T80<>$T79,VLOOKUP($J80,DetRates!$C$19:$AA$3186,R$22,FALSE),R79) -> -15 | S80: =IF($T80<>$T79,VLOOKUP($J80,DetRates!$C$19:$AA$3186,S$22,FALSE),S79) -> 50 | T80: 2 | U80: =VLOOKUP(F80,DetRates!$U$10:$W$12,3,FALSE) -> 20 | V80: 0 | W80: -8.684523252 | X80: 0.063 | Y80: -9.249250349 | Z80: -7.2 | AA80: 0 | AB80: FALSE | AC80: 0 | AD80: FALSE | AE80: FALSE | AF80: FALSE | AG80: FALSE | AH80: FALSE | AI80: FALSE | AJ80: FALSE | AK80: FALSE | AL80: FALSE | AM80: FALSE | AN80: FALSE | AO80: FALSE | AP80: FALSE | AQ80: FALSE | AR80: FALSE | AS80: -9.249250349 | AT80: 0 | AU80: 0 | AW80: -8.684523252 | AX80: -9.249250349 | AZ80: FALSE | BA80: 56 | BB80: 2 | BC80: 21
B81: 57 | C81: 12 | D81: 21 | E81: 2 | F81: 1 | G81: 1 | H81: 1 | I81: 1421111-21 | J81: =IF(ISNA(VLOOKUP(I81,DetRates!$B$19:$C$3186,2,FALSE)),J80,VLOOKUP(I81,DetRates!$B$19:$C$3186,2,FALSE)) -> 969 | K81: =VLOOKUP($J81,DetRates!$C$19:$AA$3186,K$22,FALSE) -> 20 | L81: =VLOOKUP($J81,DetRates!$C$19:$AA$3186,L$22,FALSE) -> 30 | M81: =IF($T81<>$T80,VLOOKUP($J81,DetRates!$C$19:$AA$3186,M$22,FALSE),M80) -> -6 | N81: =IF($T81<>$T80,VLOOKUP($J81,DetRates!$C$19:$AA$3186,N$22,FALSE),N80) -> 0.063 | O81: =IF($T81<>$T80,VLOOKUP($J81,DetRates!$C$19:$AA$3186,O$22,FALSE),O80) -> 0 | P81: =IF($T81<>$T80,VLOOKUP($J81,DetRates!$C$19:$AA$3186,P$22,FALSE),P80) -> -7.2 | Q81: =IF(AND(D81>29,T81>2,T81<>T80,E81<>3),VLOOKUP($J81,DetRates!$C$19:$AA$3186,Q$22),IF(T81<>T80,VLOOKUP($J81,DetRates!$C$19:$AA$3186,Q$22),Q80)) -> 0 | R81: =IF($T81<>$T80,VLOOKUP($J81,DetRates!$C$19:$AA$3186,R$22,FALSE),R80) -> -15 | S81: =IF($T81<>$T80,VLOOKUP($J81,DetRates!$C$19:$AA$3186,S$22,FALSE),S80) -> 50 | T81: 2 | U81: =VLOOKUP(F81,DetRates!$U$10:$W$12,3,FALSE) -> 20 | V81: 1 | W81: -9.249250349 | X81: 0.063 | Y81: -9.850699864 | Z81: -7.2 | AA81: 0 | AB81: FALSE | AC81: 0 | AD81: FALSE | AE81: FALSE | AF81: FALSE | AG81: FALSE | AH81: FALSE | AI81: FALSE | AJ81: FALSE | AK81: FALSE | AL81: FALSE | AM81: FALSE | AN81: FALSE | AO81: FALSE | AP81: FALSE | AQ81: FALSE | AR81: FALSE | AS81: -9.850699864 | AT81: 0 | AU81: 0 | AW81: -9.249250349 | AX81: -9.850699864 | AZ81: FALSE | BA81: 57 | BB81: 2 | BC81: 22
B82: 58 | C82: 12 | D82: 22 | E82: 2 | F82: 1 | G82: 1 | H82: 1 | I82: 1421111-22 | J82: =IF(ISNA(VLOOKUP(I82,DetRates!$B$19:$C$3186,2,FALSE)),J81,VLOOKUP(I82,DetRates!$B$19:$C$3186,2,FALSE)) -> 969 | K82: =VLOOKUP($J82,DetRates!$C$19:$AA$3186,K$22,FALSE) -> 20 | L82: =VLOOKUP($J82,DetRates!$C$19:$AA$3186,L$22,FALSE) -> 30 | M82: =IF($T82<>$T81,VLOOKUP($J82,DetRates!$C$19:$AA$3186,M$22,FALSE),M81) -> -6 | N82: =IF($T82<>$T81,VLOOKUP($J82,DetRates!$C$19:$AA$3186,N$22,FALSE),N81) -> 0.063 | O82: =IF($T82<>$T81,VLOOKUP($J82,DetRates!$C$19:$AA$3186,O$22,FALSE),O81) -> 0 | P82: =IF($T82<>$T81,VLOOKUP($J82,DetRates!$C$19:$AA$3186,P$22,FALSE),P81) -> -7.2 | Q82: =IF(AND(D82>29,T82>2,T82<>T81,E82<>3),VLOOKUP($J82,DetRates!$C$19:$AA$3186,Q$22),IF(T82<>T81,VLOOKUP($J82,DetRates!$C$19:$AA$3186,Q$22),Q81)) -> 0 | R82: =IF($T82<>$T81,VLOOKUP($J82,DetRates!$C$19:$AA$3186,R$22,FALSE),R81) -> -15 | S82: =IF($T82<>$T81,VLOOKUP($J82,DetRates!$C$19:$AA$3186,S$22,FALSE),S81) -> 50 | T82: 2 | U82: =VLOOKUP(F82,DetRates!$U$10:$W$12,3,FALSE) -> 20 | V82: 2 | W82: -9.850699864 | X82: 0.063 | Y82: -10.49125974 | Z82: -7.2 | AA82: 0 | AB82: FALSE | AC82: 0 | AD82: FALSE | AE82: FALSE | AF82: FALSE | AG82: FALSE | AH82: FALSE | AI82: FALSE | AJ82: FALSE | AK82: FALSE | AL82: FALSE | AM82: FALSE | AN82: FALSE | AO82: FALSE | AP82: FALSE | AQ82: FALSE | AR82: FALSE | AS82: -10.49125974 | AT82: 0 | AU82: 0 | AW82: -9.850699864 | AX82: -10.49125974 | AZ82: FALSE | BA82: 58 | BB82: 2 | BC82: 23
B83: 59 | C83: 12 | D83: 23 | E83: 2 | F83: 1 | G83: 1 | H83: 1 | I83: 1421111-23 | J83: =IF(ISNA(VLOOKUP(I83,DetRates!$B$19:$C$3186,2,FALSE)),J82,VLOOKUP(I83,DetRates!$B$19:$C$3186,2,FALSE)) -> 969 | K83: =VLOOKUP($J83,DetRates!$C$19:$AA$3186,K$22,FALSE) -> 20 | L83: =VLOOKUP($J83,DetRates!$C$19:$AA$3186,L$22,FALSE) -> 30 | M83: =IF($T83<>$T82,VLOOKUP($J83,DetRates!$C$19:$AA$3186,M$22,FALSE),M82) -> -6 | N83: =IF($T83<>$T82,VLOOKUP($J83,DetRates!$C$19:$AA$3186,N$22,FALSE),N82) -> 0.063 | O83: =IF($T83<>$T82,VLOOKUP($J83,DetRates!$C$19:$AA$3186,O$22,FALSE),O82) -> 0 | P83: =IF($T83<>$T82,VLOOKUP($J83,DetRates!$C$19:$AA$3186,P$22,FALSE),P82) -> -7.2 | Q83: =IF(AND(D83>29,T83>2,T83<>T82,E83<>3),VLOOKUP($J83,DetRates!$C$19:$AA$3186,Q$22),IF(T83<>T82,VLOOKUP($J83,DetRates!$C$19:$AA$3186,Q$22),Q82)) -> 0 | R83: =IF($T83<>$T82,VLOOKUP($J83,DetRates!$C$19:$AA$3186,R$22,FALSE),R82) -> -15 | S83: =IF($T83<>$T82,VLOOKUP($J83,DetRates!$C$19:$AA$3186,S$22,FALSE),S82) -> 50 | T83: 2 | U83: =VLOOKUP(F83,DetRates!$U$10:$W$12,3,FALSE) -> 20 | V83: 3 | W83: -10.49125974 | X83: 0.063 | Y83: -11.1734732 | Z83: -7.2 | AA83: 0 | AB83: FALSE | AC83: 0 | AD83: FALSE | AE83: FALSE | AF83: FALSE | AG83: FALSE | AH83: FALSE | AI83: FALSE | AJ83: FALSE | AK83: FALSE | AL83: FALSE | AM83: FALSE | AN83: FALSE | AO83: FALSE | AP83: FALSE | AQ83: FALSE | AR83: FALSE | AS83: -11.1734732 | AT83: 0 | AU83: 0 | AW83: -10.49125974 | AX83: -11.1734732 | AZ83: FALSE | BA83: 59 | BB83: 2 | BC83: 24
B84: 60 | C84: 13 | D84: 24 | E84: 2 | F84: 1 | G84: 1 | H84: 1 | I84: 1421111-24 | J84: =IF(ISNA(VLOOKUP(I84,DetRates!$B$19:$C$3186,2,FALSE)),J83,VLOOKUP(I84,DetRates!$B$19:$C$3186,2,FALSE)) -> 969 | K84: =VLOOKUP($J84,DetRates!$C$19:$AA$3186,K$22,FALSE) -> 20 | L84: =VLOOKUP($J84,DetRates!$C$19:$AA$3186,L$22,FALSE) -> 30 | M84: =IF($T84<>$T83,VLOOKUP($J84,DetRates!$C$19:$AA$3186,M$22,FALSE),M83) -> -6 | N84: =IF($T84<>$T83,VLOOKUP($J84,DetRates!$C$19:$AA$3186,N$22,FALSE),N83) -> 0.063 | O84: =IF($T84<>$T83,VLOOKUP($J84,DetRates!$C$19:$AA$3186,O$22,FALSE),O83) -> 0 | P84: =IF($T84<>$T83,VLOOKUP($J84,DetRates!$C$19:$AA$3186,P$22,FALSE),P83) -> -7.2 | Q84: =IF(AND(D84>29,T84>2,T84<>T83,E84<>3),VLOOKUP($J84,DetRates!$C$19:$AA$3186,Q$22),IF(T84<>T83,VLOOKUP($J84,DetRates!$C$19:$AA$3186,Q$22),Q83)) -> 0 | R84: =IF($T84<>$T83,VLOOKUP($J84,DetRates!$C$19:$AA$3186,R$22,FALSE),R83) -> -15 | S84: =IF($T84<>$T83,VLOOKUP($J84,DetRates!$C$19:$AA$3186,S$22,FALSE),S83) -> 50 | T84: 2 | U84: =VLOOKUP(F84,DetRates!$U$10:$W$12,3,FALSE) -> 20 | V84: 4 | W84: -11.1734732 | X84: 0.063 | Y84: -11.90004885 | Z84: -7.2 | AA84: 0 | AB84: FALSE | AC84: 0 | AD84: FALSE | AE84: =AND(AE$23,$AE$15,$W84<=AE$21) -> FALSE | AF84: FALSE | AG84: FALSE | AH84: FALSE | AI84: FALSE | AJ84: FALSE | AK84: FALSE | AL84: FALSE | AM84: FALSE | AN84: FALSE | AO84: FALSE | AP84: FALSE | AQ84: FALSE | AR84: FALSE | AS84: -11.90004885 | AT84: 0 | AU84: 0 | AW84: -11.1734732 | AX84: -11.90004885 | AZ84: FALSE | BA84: 60 | BB84: 2 | BC84: 25
B85: 61 | C85: 13 | D85: 25 | E85: 2 | F85: 1 | G85: 1 | H85: 1 | I85: 1421111-25 | J85: =IF(ISNA(VLOOKUP(I85,DetRates!$B$19:$C$3186,2,FALSE)),J84,VLOOKUP(I85,DetRates!$B$19:$C$3186,2,FALSE)) -> 969 | K85: =VLOOKUP($J85,DetRates!$C$19:$AA$3186,K$22,FALSE) -> 20 | L85: =VLOOKUP($J85,DetRates!$C$19:$AA$3186,L$22,FALSE) -> 30 | M85: =IF($T85<>$T84,VLOOKUP($J85,DetRates!$C$19:$AA$3186,M$22,FALSE),M84) -> -6 | N85: =IF($T85<>$T84,VLOOKUP($J85,DetRates!$C$19:$AA$3186,N$22,FALSE),N84) -> 0.063 | O85: =IF($T85<>$T84,VLOOKUP($J85,DetRates!$C$19:$AA$3186,O$22,FALSE),O84) -> 0 | P85: =IF($T85<>$T84,VLOOKUP($J85,DetRates!$C$19:$AA$3186,P$22,FALSE),P84) -> -7.2 | Q85: =IF(AND(D85>29,T85>2,T85<>T84,E85<>3),VLOOKUP($J85,DetRates!$C$19:$AA$3186,Q$22),IF(T85<>T84,VLOOKUP($J85,DetRates!$C$19:$AA$3186,Q$22),Q84)) -> 0 | R85: =IF($T85<>$T84,VLOOKUP($J85,DetRates!$C$19:$AA$3186,R$22,FALSE),R84) -> -15 | S85: =IF($T85<>$T84,VLOOKUP($J85,DetRates!$C$19:$AA$3186,S$22,FALSE),S84) -> 50 | T85: 2 | U85: =VLOOKUP(F85,DetRates!$U$10:$W$12,3,FALSE) -> 20 | V85: 5 | W85: -11.90004885 | X85: 0.063 | Y85: -12.67387141 | Z85: -7.2 | AA85: 0 | AB85: FALSE | AC85: 0 | AD85: FALSE | AE85: FALSE | AF85: FALSE | AG85: FALSE | AH85: FALSE | AI85: FALSE | AJ85: FALSE | AK85: FALSE | AL85: FALSE | AM85: FALSE | AN85: FALSE | AO85: FALSE | AP85: FALSE | AQ85: FALSE | AR85: FALSE | AS85: -12.67387141 | AT85: 0 | AU85: 0 | AW85: -11.90004885 | AX85: -12.67387141 | AZ85: FALSE | BA85: 61 | BB85: 2 | BC85: 26
B86: 62 | C86: 13 | D86: 26 | E86: 2 | F86: 1 | G86: 1 | H86: 1 | I86: 1421111-26 | J86: =IF(ISNA(VLOOKUP(I86,DetRates!$B$19:$C$3186,2,FALSE)),J85,VLOOKUP(I86,DetRates!$B$19:$C$3186,2,FALSE)) -> 969 | K86: =VLOOKUP($J86,DetRates!$C$19:$AA$3186,K$22,FALSE) -> 20 | L86: =VLOOKUP($J86,DetRates!$C$19:$AA$3186,L$22,FALSE) -> 30 | M86: =IF($T86<>$T85,VLOOKUP($J86,DetRates!$C$19:$AA$3186,M$22,FALSE),M85) -> -6 | N86: =IF($T86<>$T85,VLOOKUP($J86,DetRates!$C$19:$AA$3186,N$22,FALSE),N85) -> 0.063 | O86: =IF($T86<>$T85,VLOOKUP($J86,DetRates!$C$19:$AA$3186,O$22,FALSE),O85) -> 0 | P86: =IF($T86<>$T85,VLOOKUP($J86,DetRates!$C$19:$AA$3186,P$22,FALSE),P85) -> -7.2 | Q86: =IF(AND(D86>29,T86>2,T86<>T85,E86<>3),VLOOKUP($J86,DetRates!$C$19:$AA$3186,Q$22),IF(T86<>T85,VLOOKUP($J86,DetRates!$C$19:$AA$3186,Q$22),Q85)) -> 0 | R86: =IF($T86<>$T85,VLOOKUP($J86,DetRates!$C$19:$AA$3186,R$22,FALSE),R85) -> -15 | S86: =IF($T86<>$T85,VLOOKUP($J86,DetRates!$C$19:$AA$3186,S$22,FALSE),S85) -> 50 | T86: 2 | U86: =VLOOKUP(F86,DetRates!$U$10:$W$12,3,FALSE) -> 20 | V86: 6 | W86: -12.67387141 | X86: 0.063 | Y86: -13.49801321 | Z86: -7.2 | AA86: 0 | AB86: FALSE | AC86: 0 | AD86: FALSE | AE86: FALSE | AF86: FALSE | AG86: FALSE | AH86: FALSE | AI86: FALSE | AJ86: TRUE | AK86: FALSE | AL86: TRUE | AM86: FALSE | AN86: FALSE | AO86: FALSE | AP86: FALSE | AQ86: FALSE | AR86: TRUE | AS86: -7.2 | AT86: 1 | AU86: 0 | AW86: -12.67387141 | AX86: -13.49801321 | AZ86: FALSE | BA86: 62 | BB86: 2 | BC86: 27
B87: 63 | C87: 13 | D87: 27 | E87: 2 | F87: 1 | G87: 1 | H87: 1 | I87: 1421111-27 | J87: =IF(ISNA(VLOOKUP(I87,DetRates!$B$19:$C$3186,2,FALSE)),J86,VLOOKUP(I87,DetRates!$B$19:$C$3186,2,FALSE)) -> 969 | K87: =VLOOKUP($J87,DetRates!$C$19:$AA$3186,K$22,FALSE) -> 20 | L87: =VLOOKUP($J87,DetRates!$C$19:$AA$3186,L$22,FALSE) -> 30 | M87: =IF($T87<>$T86,VLOOKUP($J87,DetRates!$C$19:$AA$3186,M$22,FALSE),M86) -> -6 | N87: =IF($T87<>$T86,VLOOKUP($J87,DetRates!$C$19:$AA$3186,N$22,FALSE),N86) -> 0.077 | O87: =IF($T87<>$T86,VLOOKUP($J87,DetRates!$C$19:$AA$3186,O$22,FALSE),O86) -> 0 | P87: =IF($T87<>$T86,VLOOKUP($J87,DetRates!$C$19:$AA$3186,P$22,FALSE),P86) -> -10.8 | Q87: =IF(AND(D87>29,T87>2,T87<>T86,E87<>3),VLOOKUP($J87,DetRates!$C$19:$AA$3186,Q$22),IF(T87<>T86,VLOOKUP($J87,DetRates!$C$19:$AA$3186,Q$22),Q86)) -> 0 | R87: =IF($T87<>$T86,VLOOKUP($J87,DetRates!$C$19:$AA$3186,R$22,FALSE),R86) -> -20 | S87: =IF($T87<>$T86,VLOOKUP($J87,DetRates!$C$19:$AA$3186,S$22,FALSE),S86) -> 50 | T87: 3 | U87: =VLOOKUP(F87,DetRates!$U$10:$W$12,3,FALSE) -> 20 | V87: 7 | W87: -7.2 | X87: 0.077 | Y87: -7.77630295 | Z87: -10.8 | AA87: 0 | AB87: FALSE | AC87: 0 | AD87: FALSE | AE87: FALSE | AF87: FALSE | AG87: FALSE | AH87: FALSE | AI87: FALSE | AJ87: FALSE | AK87: FALSE | AL87: FALSE | AM87: FALSE | AN87: FALSE | AO87: FALSE | AP87: FALSE | AQ87: FALSE | AR87: FALSE | AS87: -7.77630295 | AT87: 0 | AU87: 0 | AW87: -7.2 | AX87: -7.77630295 | AZ87: FALSE | BA87: 63 | BB87: 2 | BC87: 28
B88: 64 | C88: =INT(B88/C$21+1) -> 13 | D88: 28 | E88: 2 | F88: 1 | G88: 1 | H88: 1 | I88: =$C$17&$E$17&E88&F88&$K$17&G88&H88&"-"&D88 -> 1421111-28 | J88: =IF(ISNA(VLOOKUP(I88,DetRates!$B$19:$C$3186,2,FALSE)),J87,VLOOKUP(I88,DetRates!$B$19:$C$3186,2,FALSE)) -> 969 | K88: =VLOOKUP($J88,DetRates!$C$19:$AA$3186,K$22,FALSE) -> 20 | L88: =VLOOKUP($J88,DetRates!$C$19:$AA$3186,L$22,FALSE) -> 30 | M88: =IF($T88<>$T87,VLOOKUP($J88,DetRates!$C$19:$AA$3186,M$22,FALSE),M87) -> -6 | N88: =IF($T88<>$T87,VLOOKUP($J88,DetRates!$C$19:$AA$3186,N$22,FALSE),N87) -> 0.077 | O88: =IF($T88<>$T87,VLOOKUP($J88,DetRates!$C$19:$AA$3186,O$22,FALSE),O87) -> 0 | P88: =IF($T88<>$T87,VLOOKUP($J88,DetRates!$C$19:$AA$3186,P$22,FALSE),P87) -> -10.8 | Q88: =IF(AND(D88>29,T88>2,T88<>T87,E88<>3),VLOOKUP($J88,DetRates!$C$19:$AA$3186,Q$22),IF(T88<>T87,VLOOKUP($J88,DetRates!$C$19:$AA$3186,Q$22),Q87)) -> 0 | R88: =IF($T88<>$T87,VLOOKUP($J88,DetRates!$C$19:$AA$3186,R$22,FALSE),R87) -> -20 | S88: =IF($T88<>$T87,VLOOKUP($J88,DetRates!$C$19:$AA$3186,S$22,FALSE),S87) -> 50 | T88: 3 | U88: =VLOOKUP(F88,DetRates!$U$10:$W$12,3,FALSE) -> 20 | V88: 8 | W88: -7.77630295 | X88: 0.077 | Y88: =W88*EXP(X88) -> -8.398734385 | Z88: =P88+Q88*V88 -> -10.8 | AA88: 0 | AB88: =AND($AA$15,(AA88="x")) -> FALSE | AC88: 0 | AD88: =AND($AA$15,(AC88="x")) -> FALSE | AE88: FALSE | AF88: FALSE | AG88: =AND($AG$15,T88>U88) -> FALSE | AH88: =AND($AH$15,D88>S88) -> FALSE | AI88: =AND($AI$15,Y88<R88) -> FALSE | AJ88: FALSE | AK88: FALSE | AL88: FALSE | AM88: =AND($AI$15,Z88<R88) -> FALSE | AN88: FALSE | AO88: FALSE | AP88: FALSE | AQ88: FALSE | AR88: FALSE | AS88: =IF(AQ88,$V$11,IF(AR88,Z88,Y88)) -> -8.398734385 | AT88: =AR88*1 -> 0 | AU88: 0 | AW88: -7.77630295 | AX88: -8.398734385 | AZ88: FALSE | BA88: 64 | BB88: 2 | BC88: 29 | BD88: =IF(AZ88,BC88,"") -> 
B89: =B88+1 -> 65 | C89: 14 | D89: 29 | E89: 2 | F89: 1 | G89: 1 | H89: 1 | I89: 1421111-29 | J89: =IF(ISNA(VLOOKUP(I89,DetRates!$B$19:$C$3186,2,FALSE)),J88,VLOOKUP(I89,DetRates!$B$19:$C$3186,2,FALSE)) -> 969 | K89: =VLOOKUP($J89,DetRates!$C$19:$AA$3186,K$22,FALSE) -> 20 | L89: =VLOOKUP($J89,DetRates!$C$19:$AA$3186,L$22,FALSE) -> 30 | M89: =IF($T89<>$T88,VLOOKUP($J89,DetRates!$C$19:$AA$3186,M$22,FALSE),M88) -> -6 | N89: =IF($T89<>$T88,VLOOKUP($J89,DetRates!$C$19:$AA$3186,N$22,FALSE),N88) -> 0.077 | O89: =IF($T89<>$T88,VLOOKUP($J89,DetRates!$C$19:$AA$3186,O$22,FALSE),O88) -> 0 | P89: =IF($T89<>$T88,VLOOKUP($J89,DetRates!$C$19:$AA$3186,P$22,FALSE),P88) -> -10.8 | Q89: =IF(AND(D89>29,T89>2,T89<>T88,E89<>3),VLOOKUP($J89,DetRates!$C$19:$AA$3186,Q$22),IF(T89<>T88,VLOOKUP($J89,DetRates!$C$19:$AA$3186,Q$22),Q88)) -> 0 | R89: =IF($T89<>$T88,VLOOKUP($J89,DetRates!$C$19:$AA$3186,R$22,FALSE),R88) -> -20 | S89: =IF($T89<>$T88,VLOOKUP($J89,DetRates!$C$19:$AA$3186,S$22,FALSE),S88) -> 50 | T89: =IF(AQ88,0,IF(AR88,T88+1,T88)) -> 3 | U89: =VLOOKUP(F89,DetRates!$U$10:$W$12,3,FALSE) -> 20 | V89: =IF(J88=J89,V88+1,0) -> 9 | W89: -8.398734385 | X89: =IF((N89+O89*V89)<=0,X88,(N89+O89*V89)) -> 0.077 | Y89: -9.070986524 | Z89: -10.8 | AA89: 0 | AB89: FALSE | AC89: 0 | AD89: FALSE | AE89: FALSE | AF89: FALSE | AG89: FALSE | AH89: FALSE | AI89: FALSE | AJ89: FALSE | AK89: =OR(AD89,AE89,AG89,AH89) -> FALSE | AL89: FALSE | AM89: FALSE | AN89: =AND($AE$15,Z89<$AF$21) -> FALSE | AO89: FALSE | AP89: FALSE | AQ89: FALSE | AR89: FALSE | AS89: -9.070986524 | AT89: 0 | AU89: =AQ89*1 -> 0 | AW89: -8.398734385 | AX89: =Y89 -> -9.070986524 | AY89: =IF(AZ89,1,"") ->  | AZ89: =AND(AU89) -> FALSE | BA89: =B89 -> 65 | BB89: =IF(AZ89,BB88+1,BB88) -> 2 | BC89: =IF(NOT(AZ88),BC88+1,1) -> 30
B90: 66 | C90: 14 | D90: =IF(B90=1,D89+1,IF(AQ89,0,D89+1)) -> 30 | E90: =IF(B90>1,IF($AQ89,G$18,E89),$E$24) -> 2 | F90: =IF(B90>1,IF($AQ89,I$18,F89),$F$24) -> 1 | G90: =IF(B90>1,IF($AQ89,M$18,G89),$G$24) -> 1 | H90: =IF(B90>1,IF($AQ89,O$18,H89),$H$24) -> 1 | I90: 1421111-30 | J90: =IF(ISNA(VLOOKUP(I90,DetRates!$B$19:$C$3186,2,FALSE)),J89,VLOOKUP(I90,DetRates!$B$19:$C$3186,2,FALSE)) -> 970 | K90: =VLOOKUP($J90,DetRates!$C$19:$AA$3186,K$22,FALSE) -> 30 | L90: =VLOOKUP($J90,DetRates!$C$19:$AA$3186,L$22,FALSE) -> 40 | M90: =IF($T90<>$T89,VLOOKUP($J90,DetRates!$C$19:$AA$3186,M$22,FALSE),M89) -> -6 | N90: =IF($T90<>$T89,VLOOKUP($J90,DetRates!$C$19:$AA$3186,N$22,FALSE),N89) -> 0.077 | O90: =IF($T90<>$T89,VLOOKUP($J90,DetRates!$C$19:$AA$3186,O$22,FALSE),O89) -> 0 | P90: =IF($T90<>$T89,VLOOKUP($J90,DetRates!$C$19:$AA$3186,P$22,FALSE),P89) -> -10.8 | Q90: =IF(AND(D90>29,T90>2,T90<>T89,E90<>3),VLOOKUP($J90,DetRates!$C$19:$AA$3186,Q$22),IF(T90<>T89,VLOOKUP($J90,DetRates!$C$19:$AA$3186,Q$22),Q89)) -> 0 | R90: =IF($T90<>$T89,VLOOKUP($J90,DetRates!$C$19:$AA$3186,R$22,FALSE),R89) -> -20 | S90: =IF($T90<>$T89,VLOOKUP($J90,DetRates!$C$19:$AA$3186,S$22,FALSE),S89) -> 50 | T90: 3 | U90: =VLOOKUP(F90,DetRates!$U$10:$W$12,3,FALSE) -> 20 | V90: 0 | W90: -9.070986524 | X90: 0.077 | Y90: -9.79704712 | Z90: -10.8 | AA90: 0 | AB90: FALSE | AC90: 0 | AD90: FALSE | AE90: FALSE | AF90: FALSE | AG90: FALSE | AH90: FALSE | AI90: FALSE | AJ90: =IF(B89<11,FALSE,IF(AND(SUM(AT80:AT89)<1,NOT(AJ89),SUM(AU80:AU89)=0,$AJ$15),TRUE,FALSE)) -> FALSE | AK90: FALSE | AL90: =IF(AK90,FALSE,OR(AB90,AF90,AI90,AJ90)) -> FALSE | AM90: FALSE | AN90: FALSE | AO90: FALSE | AP90: =IF(D90<21,FALSE,IF(AND(T89<T90,T89<>0,AL90,$AP$15),TRUE,FALSE)) -> FALSE | AQ90: =OR(AK90,AO90,AP90) -> FALSE | AR90: FALSE | AS90: -9.79704712 | AT90: 0 | AU90: 0 | AW90: -9.070986524 | AX90: -9.79704712 | AZ90: FALSE | BA90: 66 | BB90: 2 | BC90: 31
B91: 67 | C91: 14 | D91: 31 | E91: 2 | F91: 1 | G91: 1 | H91: 1 | I91: 1421111-31 | J91: =IF(ISNA(VLOOKUP(I91,DetRates!$B$19:$C$3186,2,FALSE)),J90,VLOOKUP(I91,DetRates!$B$19:$C$3186,2,FALSE)) -> 970 | K91: =VLOOKUP($J91,DetRates!$C$19:$AA$3186,K$22,FALSE) -> 30 | L91: =VLOOKUP($J91,DetRates!$C$19:$AA$3186,L$22,FALSE) -> 40 | M91: =IF($T91<>$T90,VLOOKUP($J91,DetRates!$C$19:$AA$3186,M$22,FALSE),M90) -> -6 | N91: =IF($T91<>$T90,VLOOKUP($J91,DetRates!$C$19:$AA$3186,N$22,FALSE),N90) -> 0.077 | O91: =IF($T91<>$T90,VLOOKUP($J91,DetRates!$C$19:$AA$3186,O$22,FALSE),O90) -> 0 | P91: =IF($T91<>$T90,VLOOKUP($J91,DetRates!$C$19:$AA$3186,P$22,FALSE),P90) -> -10.8 | Q91: =IF(AND(D91>29,T91>2,T91<>T90,E91<>3),VLOOKUP($J91,DetRates!$C$19:$AA$3186,Q$22),IF(T91<>T90,VLOOKUP($J91,DetRates!$C$19:$AA$3186,Q$22),Q90)) -> 0 | R91: =IF($T91<>$T90,VLOOKUP($J91,DetRates!$C$19:$AA$3186,R$22,FALSE),R90) -> -20 | S91: =IF($T91<>$T90,VLOOKUP($J91,DetRates!$C$19:$AA$3186,S$22,FALSE),S90) -> 50 | T91: 3 | U91: =VLOOKUP(F91,DetRates!$U$10:$W$12,3,FALSE) -> 20 | V91: 1 | W91: -9.79704712 | X91: 0.077 | Y91: -10.58122311 | Z91: -10.8 | AA91: 0 | AB91: FALSE | AC91: 0 | AD91: FALSE | AE91: FALSE | AF91: FALSE | AG91: FALSE | AH91: FALSE | AI91: FALSE | AJ91: FALSE | AK91: FALSE | AL91: FALSE | AM91: FALSE | AN91: FALSE | AO91: FALSE | AP91: FALSE | AQ91: FALSE | AR91: FALSE | AS91: -10.58122311 | AT91: 0 | AU91: 0 | AW91: -9.79704712 | AX91: -10.58122311 | AZ91: FALSE | BA91: 67 | BB91: 2 | BC91: 32
B92: 68 | C92: 14 | D92: 32 | E92: 2 | F92: 1 | G92: 1 | H92: 1 | I92: 1421111-32 | J92: =IF(ISNA(VLOOKUP(I92,DetRates!$B$19:$C$3186,2,FALSE)),J91,VLOOKUP(I92,DetRates!$B$19:$C$3186,2,FALSE)) -> 970 | K92: =VLOOKUP($J92,DetRates!$C$19:$AA$3186,K$22,FALSE) -> 30 | L92: =VLOOKUP($J92,DetRates!$C$19:$AA$3186,L$22,FALSE) -> 40 | M92: =IF($T92<>$T91,VLOOKUP($J92,DetRates!$C$19:$AA$3186,M$22,FALSE),M91) -> -6 | N92: =IF($T92<>$T91,VLOOKUP($J92,DetRates!$C$19:$AA$3186,N$22,FALSE),N91) -> 0.077 | O92: =IF($T92<>$T91,VLOOKUP($J92,DetRates!$C$19:$AA$3186,O$22,FALSE),O91) -> 0 | P92: =IF($T92<>$T91,VLOOKUP($J92,DetRates!$C$19:$AA$3186,P$22,FALSE),P91) -> -10.8 | Q92: =IF(AND(D92>29,T92>2,T92<>T91,E92<>3),VLOOKUP($J92,DetRates!$C$19:$AA$3186,Q$22),IF(T92<>T91,VLOOKUP($J92,DetRates!$C$19:$AA$3186,Q$22),Q91)) -> 0 | R92: =IF($T92<>$T91,VLOOKUP($J92,DetRates!$C$19:$AA$3186,R$22,FALSE),R91) -> -20 | S92: =IF($T92<>$T91,VLOOKUP($J92,DetRates!$C$19:$AA$3186,S$22,FALSE),S91) -> 50 | T92: 3 | U92: =VLOOKUP(F92,DetRates!$U$10:$W$12,3,FALSE) -> 20 | V92: 2 | W92: -10.58122311 | X92: 0.077 | Y92: -11.42816618 | Z92: -10.8 | AA92: 0 | AB92: FALSE | AC92: 0 | AD92: FALSE | AE92: FALSE | AF92: FALSE | AG92: FALSE | AH92: FALSE | AI92: FALSE | AJ92: FALSE | AK92: FALSE | AL92: FALSE | AM92: FALSE | AN92: FALSE | AO92: FALSE | AP92: FALSE | AQ92: FALSE | AR92: FALSE | AS92: -11.42816618 | AT92: 0 | AU92: 0 | AW92: -10.58122311 | AX92: -11.42816618 | AZ92: FALSE | BA92: 68 | BB92: 2 | BC92: 33
B93: 69 | C93: 14 | D93: 33 | E93: 2 | F93: 1 | G93: 1 | H93: 1 | I93: 1421111-33 | J93: =IF(ISNA(VLOOKUP(I93,DetRates!$B$19:$C$3186,2,FALSE)),J92,VLOOKUP(I93,DetRates!$B$19:$C$3186,2,FALSE)) -> 970 | K93: =VLOOKUP($J93,DetRates!$C$19:$AA$3186,K$22,FALSE) -> 30 | L93: =VLOOKUP($J93,DetRates!$C$19:$AA$3186,L$22,FALSE) -> 40 | M93: =IF($T93<>$T92,VLOOKUP($J93,DetRates!$C$19:$AA$3186,M$22,FALSE),M92) -> -6 | N93: =IF($T93<>$T92,VLOOKUP($J93,DetRates!$C$19:$AA$3186,N$22,FALSE),N92) -> 0.077 | O93: =IF($T93<>$T92,VLOOKUP($J93,DetRates!$C$19:$AA$3186,O$22,FALSE),O92) -> 0 | P93: =IF($T93<>$T92,VLOOKUP($J93,DetRates!$C$19:$AA$3186,P$22,FALSE),P92) -> -10.8 | Q93: =IF(AND(D93>29,T93>2,T93<>T92,E93<>3),VLOOKUP($J93,DetRates!$C$19:$AA$3186,Q$22),IF(T93<>T92,VLOOKUP($J93,DetRates!$C$19:$AA$3186,Q$22),Q92)) -> 0 | R93: =IF($T93<>$T92,VLOOKUP($J93,DetRates!$C$19:$AA$3186,R$22,FALSE),R92) -> -20 | S93: =IF($T93<>$T92,VLOOKUP($J93,DetRates!$C$19:$AA$3186,S$22,FALSE),S92) -> 50 | T93: 3 | U93: =VLOOKUP(F93,DetRates!$U$10:$W$12,3,FALSE) -> 20 | V93: 3 | W93: -11.42816618 | X93: 0.077 | Y93: -12.34290033 | Z93: -10.8 | AA93: 0 | AB93: FALSE | AC93: 0 | AD93: FALSE | AE93: FALSE | AF93: FALSE | AG93: FALSE | AH93: FALSE | AI93: FALSE | AJ93: FALSE | AK93: FALSE | AL93: FALSE | AM93: FALSE | AN93: FALSE | AO93: FALSE | AP93: FALSE | AQ93: FALSE | AR93: FALSE | AS93: -12.34290033 | AT93: 0 | AU93: 0 | AW93: -11.42816618 | AX93: -12.34290033 | AZ93: FALSE | BA93: 69 | BB93: 2 | BC93: 34
B94: 70 | C94: 15 | D94: 34 | E94: 2 | F94: 1 | G94: 1 | H94: 1 | I94: 1421111-34 | J94: =IF(ISNA(VLOOKUP(I94,DetRates!$B$19:$C$3186,2,FALSE)),J93,VLOOKUP(I94,DetRates!$B$19:$C$3186,2,FALSE)) -> 970 | K94: =VLOOKUP($J94,DetRates!$C$19:$AA$3186,K$22,FALSE) -> 30 | L94: =VLOOKUP($J94,DetRates!$C$19:$AA$3186,L$22,FALSE) -> 40 | M94: =IF($T94<>$T93,VLOOKUP($J94,DetRates!$C$19:$AA$3186,M$22,FALSE),M93) -> -6 | N94: =IF($T94<>$T93,VLOOKUP($J94,DetRates!$C$19:$AA$3186,N$22,FALSE),N93) -> 0.077 | O94: =IF($T94<>$T93,VLOOKUP($J94,DetRates!$C$19:$AA$3186,O$22,FALSE),O93) -> 0 | P94: =IF($T94<>$T93,VLOOKUP($J94,DetRates!$C$19:$AA$3186,P$22,FALSE),P93) -> -10.8 | Q94: =IF(AND(D94>29,T94>2,T94<>T93,E94<>3),VLOOKUP($J94,DetRates!$C$19:$AA$3186,Q$22),IF(T94<>T93,VLOOKUP($J94,DetRates!$C$19:$AA$3186,Q$22),Q93)) -> 0 | R94: =IF($T94<>$T93,VLOOKUP($J94,DetRates!$C$19:$AA$3186,R$22,FALSE),R93) -> -20 | S94: =IF($T94<>$T93,VLOOKUP($J94,DetRates!$C$19:$AA$3186,S$22,FALSE),S93) -> 50 | T94: 3 | U94: =VLOOKUP(F94,DetRates!$U$10:$W$12,3,FALSE) -> 20 | V94: 4 | W94: -12.34290033 | X94: 0.077 | Y94: -13.33085171 | Z94: -10.8 | AA94: 0 | AB94: FALSE | AC94: 0 | AD94: FALSE | AE94: FALSE | AF94: FALSE | AG94: FALSE | AH94: FALSE | AI94: FALSE | AJ94: FALSE | AK94: FALSE | AL94: FALSE | AM94: FALSE | AN94: FALSE | AO94: FALSE | AP94: FALSE | AQ94: FALSE | AR94: FALSE | AS94: -13.33085171 | AT94: 0 | AU94: 0 | AW94: -12.34290033 | AX94: -13.33085171 | AZ94: FALSE | BA94: 70 | BB94: 2 | BC94: 35
B95: 71 | C95: 15 | D95: 35 | E95: 2 | F95: 1 | G95: 1 | H95: 1 | I95: 1421111-35 | J95: =IF(ISNA(VLOOKUP(I95,DetRates!$B$19:$C$3186,2,FALSE)),J94,VLOOKUP(I95,DetRates!$B$19:$C$3186,2,FALSE)) -> 970 | K95: =VLOOKUP($J95,DetRates!$C$19:$AA$3186,K$22,FALSE) -> 30 | L95: =VLOOKUP($J95,DetRates!$C$19:$AA$3186,L$22,FALSE) -> 40 | M95: =IF($T95<>$T94,VLOOKUP($J95,DetRates!$C$19:$AA$3186,M$22,FALSE),M94) -> -6 | N95: =IF($T95<>$T94,VLOOKUP($J95,DetRates!$C$19:$AA$3186,N$22,FALSE),N94) -> 0.077 | O95: =IF($T95<>$T94,VLOOKUP($J95,DetRates!$C$19:$AA$3186,O$22,FALSE),O94) -> 0 | P95: =IF($T95<>$T94,VLOOKUP($J95,DetRates!$C$19:$AA$3186,P$22,FALSE),P94) -> -10.8 | Q95: =IF(AND(D95>29,T95>2,T95<>T94,E95<>3),VLOOKUP($J95,DetRates!$C$19:$AA$3186,Q$22),IF(T95<>T94,VLOOKUP($J95,DetRates!$C$19:$AA$3186,Q$22),Q94)) -> 0 | R95: =IF($T95<>$T94,VLOOKUP($J95,DetRates!$C$19:$AA$3186,R$22,FALSE),R94) -> -20 | S95: =IF($T95<>$T94,VLOOKUP($J95,DetRates!$C$19:$AA$3186,S$22,FALSE),S94) -> 50 | T95: 3 | U95: =VLOOKUP(F95,DetRates!$U$10:$W$12,3,FALSE) -> 20 | V95: 5 | W95: =AS94 -> -13.33085171 | X95: 0.077 | Y95: -14.39788076 | Z95: -10.8 | AA95: 0 | AB95: FALSE | AC95: 0 | AD95: FALSE | AE95: FALSE | AF95: FALSE | AG95: FALSE | AH95: FALSE | AI95: FALSE | AJ95: FALSE | AK95: FALSE | AL95: FALSE | AM95: FALSE | AN95: FALSE | AO95: =AND(AL95,OR(AM95,AN95)) -> FALSE | AP95: FALSE | AQ95: FALSE | AR95: =IF(AQ95,FALSE,AL95) -> FALSE | AS95: -14.39788076 | AT95: 0 | AU95: 0 | AW95: -13.33085171 | AX95: -14.39788076 | AZ95: FALSE | BA95: 71 | BB95: 2 | BC95: 36
B96: 72 | C96: 15 | D96: 36 | E96: 2 | F96: 1 | G96: 1 | H96: 1 | I96: 1421111-36 | J96: =IF(ISNA(VLOOKUP(I96,DetRates!$B$19:$C$3186,2,FALSE)),J95,VLOOKUP(I96,DetRates!$B$19:$C$3186,2,FALSE)) -> 970 | K96: =VLOOKUP($J96,DetRates!$C$19:$AA$3186,K$22,FALSE) -> 30 | L96: =VLOOKUP($J96,DetRates!$C$19:$AA$3186,L$22,FALSE) -> 40 | M96: =IF($T96<>$T95,VLOOKUP($J96,DetRates!$C$19:$AA$3186,M$22,FALSE),M95) -> -6 | N96: =IF($T96<>$T95,VLOOKUP($J96,DetRates!$C$19:$AA$3186,N$22,FALSE),N95) -> 0.077 | O96: =IF($T96<>$T95,VLOOKUP($J96,DetRates!$C$19:$AA$3186,O$22,FALSE),O95) -> 0 | P96: =IF($T96<>$T95,VLOOKUP($J96,DetRates!$C$19:$AA$3186,P$22,FALSE),P95) -> -10.8 | Q96: =IF(AND(D96>29,T96>2,T96<>T95,E96<>3),VLOOKUP($J96,DetRates!$C$19:$AA$3186,Q$22),IF(T96<>T95,VLOOKUP($J96,DetRates!$C$19:$AA$3186,Q$22),Q95)) -> 0 | R96: =IF($T96<>$T95,VLOOKUP($J96,DetRates!$C$19:$AA$3186,R$22,FALSE),R95) -> -20 | S96: =IF($T96<>$T95,VLOOKUP($J96,DetRates!$C$19:$AA$3186,S$22,FALSE),S95) -> 50 | T96: 3 | U96: =VLOOKUP(F96,DetRates!$U$10:$W$12,3,FALSE) -> 20 | V96: 6 | W96: -14.39788076 | X96: 0.077 | Y96: -15.55031703 | Z96: -10.8 | AA96: 0 | AB96: FALSE | AC96: 0 | AD96: FALSE | AE96: FALSE | AF96: FALSE | AG96: FALSE | AH96: FALSE | AI96: FALSE | AJ96: FALSE | AK96: FALSE | AL96: FALSE | AM96: FALSE | AN96: FALSE | AO96: FALSE | AP96: FALSE | AQ96: FALSE | AR96: FALSE | AS96: -15.55031703 | AT96: 0 | AU96: 0 | AW96: -14.39788076 | AX96: -15.55031703 | AZ96: FALSE | BA96: 72 | BB96: 2 | BC96: 37
B97: 73 | C97: 15 | D97: 37 | E97: 2 | F97: 1 | G97: 1 | H97: 1 | I97: 1421111-37 | J97: =IF(ISNA(VLOOKUP(I97,DetRates!$B$19:$C$3186,2,FALSE)),J96,VLOOKUP(I97,DetRates!$B$19:$C$3186,2,FALSE)) -> 970 | K97: =VLOOKUP($J97,DetRates!$C$19:$AA$3186,K$22,FALSE) -> 30 | L97: =VLOOKUP($J97,DetRates!$C$19:$AA$3186,L$22,FALSE) -> 40 | M97: =IF($T97<>$T96,VLOOKUP($J97,DetRates!$C$19:$AA$3186,M$22,FALSE),M96) -> -6 | N97: =IF($T97<>$T96,VLOOKUP($J97,DetRates!$C$19:$AA$3186,N$22,FALSE),N96) -> 0.077 | O97: =IF($T97<>$T96,VLOOKUP($J97,DetRates!$C$19:$AA$3186,O$22,FALSE),O96) -> 0 | P97: =IF($T97<>$T96,VLOOKUP($J97,DetRates!$C$19:$AA$3186,P$22,FALSE),P96) -> -10.8 | Q97: =IF(AND(D97>29,T97>2,T97<>T96,E97<>3),VLOOKUP($J97,DetRates!$C$19:$AA$3186,Q$22),IF(T97<>T96,VLOOKUP($J97,DetRates!$C$19:$AA$3186,Q$22),Q96)) -> 0 | R97: =IF($T97<>$T96,VLOOKUP($J97,DetRates!$C$19:$AA$3186,R$22,FALSE),R96) -> -20 | S97: =IF($T97<>$T96,VLOOKUP($J97,DetRates!$C$19:$AA$3186,S$22,FALSE),S96) -> 50 | T97: 3 | U97: =VLOOKUP(F97,DetRates!$U$10:$W$12,3,FALSE) -> 20 | V97: 7 | W97: -15.55031703 | X97: 0.077 | Y97: -16.79499669 | Z97: -10.8 | AA97: 0 | AB97: FALSE | AC97: 0 | AD97: FALSE | AE97: FALSE | AF97: FALSE | AG97: FALSE | AH97: FALSE | AI97: FALSE | AJ97: TRUE | AK97: FALSE | AL97: TRUE | AM97: FALSE | AN97: FALSE | AO97: FALSE | AP97: FALSE | AQ97: FALSE | AR97: TRUE | AS97: -10.8 | AT97: 1 | AU97: 0 | AW97: -15.55031703 | AX97: -16.79499669 | AZ97: FALSE | BA97: 73 | BB97: 2 | BC97: 38
B98: 74 | C98: 15 | D98: 38 | E98: 2 | F98: 1 | G98: 1 | H98: 1 | I98: 1421111-38 | J98: =IF(ISNA(VLOOKUP(I98,DetRates!$B$19:$C$3186,2,FALSE)),J97,VLOOKUP(I98,DetRates!$B$19:$C$3186,2,FALSE)) -> 970 | K98: =VLOOKUP($J98,DetRates!$C$19:$AA$3186,K$22,FALSE) -> 30 | L98: =VLOOKUP($J98,DetRates!$C$19:$AA$3186,L$22,FALSE) -> 40 | M98: =IF($T98<>$T97,VLOOKUP($J98,DetRates!$C$19:$AA$3186,M$22,FALSE),M97) -> -6 | N98: =IF($T98<>$T97,VLOOKUP($J98,DetRates!$C$19:$AA$3186,N$22,FALSE),N97) -> 0.084 | O98: =IF($T98<>$T97,VLOOKUP($J98,DetRates!$C$19:$AA$3186,O$22,FALSE),O97) -> 0 | P98: =IF($T98<>$T97,VLOOKUP($J98,DetRates!$C$19:$AA$3186,P$22,FALSE),P97) -> -13.5 | Q98: =IF(AND(D98>29,T98>2,T98<>T97,E98<>3),VLOOKUP($J98,DetRates!$C$19:$AA$3186,Q$22),IF(T98<>T97,VLOOKUP($J98,DetRates!$C$19:$AA$3186,Q$22),Q97)) -> 0 | R98: =IF($T98<>$T97,VLOOKUP($J98,DetRates!$C$19:$AA$3186,R$22,FALSE),R97) -> -25 | S98: =IF($T98<>$T97,VLOOKUP($J98,DetRates!$C$19:$AA$3186,S$22,FALSE),S97) -> 50 | T98: 4 | U98: =VLOOKUP(F98,DetRates!$U$10:$W$12,3,FALSE) -> 20 | V98: 8 | W98: -10.8 | X98: 0.084 | Y98: -11.74639205 | Z98: -13.5 | AA98: 0 | AB98: FALSE | AC98: 0 | AD98: FALSE | AE98: FALSE | AF98: FALSE | AG98: FALSE | AH98: FALSE | AI98: FALSE | AJ98: FALSE | AK98: FALSE | AL98: FALSE | AM98: FALSE | AN98: FALSE | AO98: FALSE | AP98: FALSE | AQ98: FALSE | AR98: FALSE | AS98: -11.74639205 | AT98: 0 | AU98: 0 | AW98: -10.8 | AX98: -11.74639205 | AZ98: FALSE | BA98: 74 | BB98: 2 | BC98: 39
B99: 75 | C99: 16 | D99: 39 | E99: 2 | F99: 1 | G99: 1 | H99: 1 | I99: 1421111-39 | J99: =IF(ISNA(VLOOKUP(I99,DetRates!$B$19:$C$3186,2,FALSE)),J98,VLOOKUP(I99,DetRates!$B$19:$C$3186,2,FALSE)) -> 970 | K99: =VLOOKUP($J99,DetRates!$C$19:$AA$3186,K$22,FALSE) -> 30 | L99: =VLOOKUP($J99,DetRates!$C$19:$AA$3186,L$22,FALSE) -> 40 | M99: =IF($T99<>$T98,VLOOKUP($J99,DetRates!$C$19:$AA$3186,M$22,FALSE),M98) -> -6 | N99: =IF($T99<>$T98,VLOOKUP($J99,DetRates!$C$19:$AA$3186,N$22,FALSE),N98) -> 0.084 | O99: =IF($T99<>$T98,VLOOKUP($J99,DetRates!$C$19:$AA$3186,O$22,FALSE),O98) -> 0 | P99: =IF($T99<>$T98,VLOOKUP($J99,DetRates!$C$19:$AA$3186,P$22,FALSE),P98) -> -13.5 | Q99: =IF(AND(D99>29,T99>2,T99<>T98,E99<>3),VLOOKUP($J99,DetRates!$C$19:$AA$3186,Q$22),IF(T99<>T98,VLOOKUP($J99,DetRates!$C$19:$AA$3186,Q$22),Q98)) -> 0 | R99: =IF($T99<>$T98,VLOOKUP($J99,DetRates!$C$19:$AA$3186,R$22,FALSE),R98) -> -25 | S99: =IF($T99<>$T98,VLOOKUP($J99,DetRates!$C$19:$AA$3186,S$22,FALSE),S98) -> 50 | T99: 4 | U99: =VLOOKUP(F99,DetRates!$U$10:$W$12,3,FALSE) -> 20 | V99: 9 | W99: -11.74639205 | X99: 0.084 | Y99: -12.77571539 | Z99: -13.5 | AA99: 0 | AB99: FALSE | AC99: 0 | AD99: FALSE | AE99: FALSE | AF99: FALSE | AG99: FALSE | AH99: FALSE | AI99: FALSE | AJ99: FALSE | AK99: FALSE | AL99: FALSE | AM99: FALSE | AN99: FALSE | AO99: FALSE | AP99: FALSE | AQ99: FALSE | AR99: FALSE | AS99: -12.77571539 | AT99: 0 | AU99: 0 | AW99: -11.74639205 | AX99: -12.77571539 | AZ99: FALSE | BA99: 75 | BB99: 2 | BC99: 40
B100: 76 | C100: 16 | D100: 40 | E100: 2 | F100: 1 | G100: 1 | H100: 1 | I100: 1421111-40 | J100: =IF(ISNA(VLOOKUP(I100,DetRates!$B$19:$C$3186,2,FALSE)),J99,VLOOKUP(I100,DetRates!$B$19:$C$3186,2,FALSE)) -> 971 | K100: =VLOOKUP($J100,DetRates!$C$19:$AA$3186,K$22,FALSE) -> 40 | L100: =VLOOKUP($J100,DetRates!$C$19:$AA$3186,L$22,FALSE) -> 50 | M100: =IF($T100<>$T99,VLOOKUP($J100,DetRates!$C$19:$AA$3186,M$22,FALSE),M99) -> -6 | N100: =IF($T100<>$T99,VLOOKUP($J100,DetRates!$C$19:$AA$3186,N$22,FALSE),N99) -> 0.084 | O100: =IF($T100<>$T99,VLOOKUP($J100,DetRates!$C$19:$AA$3186,O$22,FALSE),O99) -> 0 | P100: =IF($T100<>$T99,VLOOKUP($J100,DetRates!$C$19:$AA$3186,P$22,FALSE),P99) -> -13.5 | Q100: =IF(AND(D100>29,T100>2,T100<>T99,E100<>3),VLOOKUP($J100,DetRates!$C$19:$AA$3186,Q$22),IF(T100<>T99,VLOOKUP($J100,DetRates!$C$19:$AA$3186,Q$22),Q99)) -> 0 | R100: =IF($T100<>$T99,VLOOKUP($J100,DetRates!$C$19:$AA$3186,R$22,FALSE),R99) -> -25 | S100: =IF($T100<>$T99,VLOOKUP($J100,DetRates!$C$19:$AA$3186,S$22,FALSE),S99) -> 50 | T100: 4 | U100: =VLOOKUP(F100,DetRates!$U$10:$W$12,3,FALSE) -> 20 | V100: 0 | W100: -12.77571539 | X100: 0.084 | Y100: -13.8952372 | Z100: -13.5 | AA100: 0 | AB100: FALSE | AC100: 0 | AD100: FALSE | AE100: FALSE | AF100: FALSE | AG100: FALSE | AH100: FALSE | AI100: FALSE | AJ100: FALSE | AK100: FALSE | AL100: FALSE | AM100: FALSE | AN100: FALSE | AO100: FALSE | AP100: FALSE | AQ100: FALSE | AR100: FALSE | AS100: -13.8952372 | AT100: 0 | AU100: 0 | AW100: -12.77571539 | AX100: -13.8952372 | AZ100: FALSE | BA100: 76 | BB100: 2 | BC100: 41
B101: 77 | C101: 16 | D101: 41 | E101: 2 | F101: 1 | G101: 1 | H101: 1 | I101: 1421111-41 | J101: =IF(ISNA(VLOOKUP(I101,DetRates!$B$19:$C$3186,2,FALSE)),J100,VLOOKUP(I101,DetRates!$B$19:$C$3186,2,FALSE)) -> 971 | K101: =VLOOKUP($J101,DetRates!$C$19:$AA$3186,K$22,FALSE) -> 40 | L101: =VLOOKUP($J101,DetRates!$C$19:$AA$3186,L$22,FALSE) -> 50 | M101: =IF($T101<>$T100,VLOOKUP($J101,DetRates!$C$19:$AA$3186,M$22,FALSE),M100) -> -6 | N101: =IF($T101<>$T100,VLOOKUP($J101,DetRates!$C$19:$AA$3186,N$22,FALSE),N100) -> 0.084 | O101: =IF($T101<>$T100,VLOOKUP($J101,DetRates!$C$19:$AA$3186,O$22,FALSE),O100) -> 0 | P101: =IF($T101<>$T100,VLOOKUP($J101,DetRates!$C$19:$AA$3186,P$22,FALSE),P100) -> -13.5 | Q101: =IF(AND(D101>29,T101>2,T101<>T100,E101<>3),VLOOKUP($J101,DetRates!$C$19:$AA$3186,Q$22),IF(T101<>T100,VLOOKUP($J101,DetRates!$C$19:$AA$3186,Q$22),Q100)) -> 0 | R101: =IF($T101<>$T100,VLOOKUP($J101,DetRates!$C$19:$AA$3186,R$22,FALSE),R100) -> -25 | S101: =IF($T101<>$T100,VLOOKUP($J101,DetRates!$C$19:$AA$3186,S$22,FALSE),S100) -> 50 | T101: 4 | U101: =VLOOKUP(F101,DetRates!$U$10:$W$12,3,FALSE) -> 20 | V101: 1 | W101: -13.8952372 | X101: 0.084 | Y101: -15.11286147 | Z101: -13.5 | AA101: 0 | AB101: FALSE | AC101: 0 | AD101: FALSE | AE101: FALSE | AF101: FALSE | AG101: FALSE | AH101: FALSE | AI101: FALSE | AJ101: FALSE | AK101: FALSE | AL101: FALSE | AM101: FALSE | AN101: FALSE | AO101: FALSE | AP101: FALSE | AQ101: FALSE | AR101: FALSE | AS101: -15.11286147 | AT101: 0 | AU101: 0 | AW101: =W101 -> -13.8952372 | AX101: -15.11286147 | AZ101: FALSE | BA101: 77 | BB101: 2 | BC101: 42
B102: 78 | C102: 16 | D102: 42 | E102: 2 | F102: 1 | G102: 1 | H102: 1 | I102: 1421111-42 | J102: =IF(ISNA(VLOOKUP(I102,DetRates!$B$19:$C$3186,2,FALSE)),J101,VLOOKUP(I102,DetRates!$B$19:$C$3186,2,FALSE)) -> 971 | K102: =VLOOKUP($J102,DetRates!$C$19:$AA$3186,K$22,FALSE) -> 40 | L102: =VLOOKUP($J102,DetRates!$C$19:$AA$3186,L$22,FALSE) -> 50 | M102: =IF($T102<>$T101,VLOOKUP($J102,DetRates!$C$19:$AA$3186,M$22,FALSE),M101) -> -6 | N102: =IF($T102<>$T101,VLOOKUP($J102,DetRates!$C$19:$AA$3186,N$22,FALSE),N101) -> 0.084 | O102: =IF($T102<>$T101,VLOOKUP($J102,DetRates!$C$19:$AA$3186,O$22,FALSE),O101) -> 0 | P102: =IF($T102<>$T101,VLOOKUP($J102,DetRates!$C$19:$AA$3186,P$22,FALSE),P101) -> -13.5 | Q102: =IF(AND(D102>29,T102>2,T102<>T101,E102<>3),VLOOKUP($J102,DetRates!$C$19:$AA$3186,Q$22),IF(T102<>T101,VLOOKUP($J102,DetRates!$C$19:$AA$3186,Q$22),Q101)) -> 0 | R102: =IF($T102<>$T101,VLOOKUP($J102,DetRates!$C$19:$AA$3186,R$22,FALSE),R101) -> -25 | S102: =IF($T102<>$T101,VLOOKUP($J102,DetRates!$C$19:$AA$3186,S$22,FALSE),S101) -> 50 | T102: 4 | U102: =VLOOKUP(F102,DetRates!$U$10:$W$12,3,FALSE) -> 20 | V102: 2 | W102: -15.11286147 | X102: 0.084 | Y102: -16.4371848 | Z102: -13.5 | AA102: 0 | AB102: FALSE | AC102: 0 | AD102: FALSE | AE102: FALSE | AF102: FALSE | AG102: FALSE | AH102: FALSE | AI102: FALSE | AJ102: FALSE | AK102: FALSE | AL102: FALSE | AM102: FALSE | AN102: FALSE | AO102: FALSE | AP102: FALSE | AQ102: FALSE | AR102: FALSE | AS102: -16.4371848 | AT102: 0 | AU102: 0 | AW102: -15.11286147 | AX102: -16.4371848 | AZ102: FALSE | BA102: 78 | BB102: 2 | BC102: 43
B103: 79 | C103: 16 | D103: 43 | E103: 2 | F103: 1 | G103: 1 | H103: 1 | I103: 1421111-43 | J103: =IF(ISNA(VLOOKUP(I103,DetRates!$B$19:$C$3186,2,FALSE)),J102,VLOOKUP(I103,DetRates!$B$19:$C$3186,2,FALSE)) -> 971 | K103: =VLOOKUP($J103,DetRates!$C$19:$AA$3186,K$22,FALSE) -> 40 | L103: =VLOOKUP($J103,DetRates!$C$19:$AA$3186,L$22,FALSE) -> 50 | M103: =IF($T103<>$T102,VLOOKUP($J103,DetRates!$C$19:$AA$3186,M$22,FALSE),M102) -> -6 | N103: =IF($T103<>$T102,VLOOKUP($J103,DetRates!$C$19:$AA$3186,N$22,FALSE),N102) -> 0.084 | O103: =IF($T103<>$T102,VLOOKUP($J103,DetRates!$C$19:$AA$3186,O$22,FALSE),O102) -> 0 | P103: =IF($T103<>$T102,VLOOKUP($J103,DetRates!$C$19:$AA$3186,P$22,FALSE),P102) -> -13.5 | Q103: =IF(AND(D103>29,T103>2,T103<>T102,E103<>3),VLOOKUP($J103,DetRates!$C$19:$AA$3186,Q$22),IF(T103<>T102,VLOOKUP($J103,DetRates!$C$19:$AA$3186,Q$22),Q102)) -> 0 | R103: =IF($T103<>$T102,VLOOKUP($J103,DetRates!$C$19:$AA$3186,R$22,FALSE),R102) -> -25 | S103: =IF($T103<>$T102,VLOOKUP($J103,DetRates!$C$19:$AA$3186,S$22,FALSE),S102) -> 50 | T103: 4 | U103: =VLOOKUP(F103,DetRates!$U$10:$W$12,3,FALSE) -> 20 | V103: 3 | W103: -16.4371848 | X103: 0.084 | Y103: -17.87755712 | Z103: -13.5 | AA103: 0 | AB103: FALSE | AC103: 0 | AD103: FALSE | AE103: FALSE | AF103: FALSE | AG103: FALSE | AH103: FALSE | AI103: FALSE | AJ103: FALSE | AK103: FALSE | AL103: FALSE | AM103: FALSE | AN103: FALSE | AO103: FALSE | AP103: FALSE | AQ103: FALSE | AR103: FALSE | AS103: -17.87755712 | AT103: 0 | AU103: 0 | AW103: -16.4371848 | AX103: -17.87755712 | AZ103: FALSE | BA103: 79 | BB103: 2 | BC103: 44
B104: 80 | C104: 17 | D104: 44 | E104: 2 | F104: 1 | G104: 1 | H104: 1 | I104: 1421111-44 | J104: =IF(ISNA(VLOOKUP(I104,DetRates!$B$19:$C$3186,2,FALSE)),J103,VLOOKUP(I104,DetRates!$B$19:$C$3186,2,FALSE)) -> 971 | K104: =VLOOKUP($J104,DetRates!$C$19:$AA$3186,K$22,FALSE) -> 40 | L104: =VLOOKUP($J104,DetRates!$C$19:$AA$3186,L$22,FALSE) -> 50 | M104: =IF($T104<>$T103,VLOOKUP($J104,DetRates!$C$19:$AA$3186,M$22,FALSE),M103) -> -6 | N104: =IF($T104<>$T103,VLOOKUP($J104,DetRates!$C$19:$AA$3186,N$22,FALSE),N103) -> 0.084 | O104: =IF($T104<>$T103,VLOOKUP($J104,DetRates!$C$19:$AA$3186,O$22,FALSE),O103) -> 0 | P104: =IF($T104<>$T103,VLOOKUP($J104,DetRates!$C$19:$AA$3186,P$22,FALSE),P103) -> -13.5 | Q104: =IF(AND(D104>29,T104>2,T104<>T103,E104<>3),VLOOKUP($J104,DetRates!$C$19:$AA$3186,Q$22),IF(T104<>T103,VLOOKUP($J104,DetRates!$C$19:$AA$3186,Q$22),Q103)) -> 0 | R104: =IF($T104<>$T103,VLOOKUP($J104,DetRates!$C$19:$AA$3186,R$22,FALSE),R103) -> -25 | S104: =IF($T104<>$T103,VLOOKUP($J104,DetRates!$C$19:$AA$3186,S$22,FALSE),S103) -> 50 | T104: 4 | U104: =VLOOKUP(F104,DetRates!$U$10:$W$12,3,FALSE) -> 20 | V104: 4 | W104: -17.87755712 | X104: 0.084 | Y104: -19.44414768 | Z104: -13.5 | AA104: 0 | AB104: FALSE | AC104: 0 | AD104: FALSE | AE104: =AND(AE$23,$AE$15,$W104<=AE$21) -> FALSE | AF104: FALSE | AG104: FALSE | AH104: FALSE | AI104: FALSE | AJ104: FALSE | AK104: FALSE | AL104: FALSE | AM104: FALSE | AN104: FALSE | AO104: FALSE | AP104: FALSE | AQ104: FALSE | AR104: FALSE | AS104: -19.44414768 | AT104: 0 | AU104: 0 | AW104: -17.87755712 | AX104: -19.44414768 | AZ104: FALSE | BA104: 80 | BB104: 2 | BC104: 45
B105: 81 | C105: 17 | D105: 45 | E105: 2 | F105: 1 | G105: 1 | H105: 1 | I105: 1421111-45 | J105: =IF(ISNA(VLOOKUP(I105,DetRates!$B$19:$C$3186,2,FALSE)),J104,VLOOKUP(I105,DetRates!$B$19:$C$3186,2,FALSE)) -> 971 | K105: =VLOOKUP($J105,DetRates!$C$19:$AA$3186,K$22,FALSE) -> 40 | L105: =VLOOKUP($J105,DetRates!$C$19:$AA$3186,L$22,FALSE) -> 50 | M105: =IF($T105<>$T104,VLOOKUP($J105,DetRates!$C$19:$AA$3186,M$22,FALSE),M104) -> -6 | N105: =IF($T105<>$T104,VLOOKUP($J105,DetRates!$C$19:$AA$3186,N$22,FALSE),N104) -> 0.084 | O105: =IF($T105<>$T104,VLOOKUP($J105,DetRates!$C$19:$AA$3186,O$22,FALSE),O104) -> 0 | P105: =IF($T105<>$T104,VLOOKUP($J105,DetRates!$C$19:$AA$3186,P$22,FALSE),P104) -> -13.5 | Q105: =IF(AND(D105>29,T105>2,T105<>T104,E105<>3),VLOOKUP($J105,DetRates!$C$19:$AA$3186,Q$22),IF(T105<>T104,VLOOKUP($J105,DetRates!$C$19:$AA$3186,Q$22),Q104)) -> 0 | R105: =IF($T105<>$T104,VLOOKUP($J105,DetRates!$C$19:$AA$3186,R$22,FALSE),R104) -> -25 | S105: =IF($T105<>$T104,VLOOKUP($J105,DetRates!$C$19:$AA$3186,S$22,FALSE),S104) -> 50 | T105: 4 | U105: =VLOOKUP(F105,DetRates!$U$10:$W$12,3,FALSE) -> 20 | V105: 5 | W105: -19.44414768 | X105: 0.084 | Y105: -21.14801683 | Z105: -13.5 | AA105: 0 | AB105: FALSE | AC105: 0 | AD105: FALSE | AE105: FALSE | AF105: FALSE | AG105: FALSE | AH105: FALSE | AI105: FALSE | AJ105: FALSE | AK105: FALSE | AL105: FALSE | AM105: FALSE | AN105: FALSE | AO105: FALSE | AP105: FALSE | AQ105: FALSE | AR105: FALSE | AS105: -21.14801683 | AT105: 0 | AU105: 0 | AW105: -19.44414768 | AX105: -21.14801683 | AZ105: FALSE | BA105: 81 | BB105: 2 | BC105: 46
B106: 82 | C106: 17 | D106: 46 | E106: 2 | F106: 1 | G106: 1 | H106: 1 | I106: 1421111-46 | J106: =IF(ISNA(VLOOKUP(I106,DetRates!$B$19:$C$3186,2,FALSE)),J105,VLOOKUP(I106,DetRates!$B$19:$C$3186,2,FALSE)) -> 971 | K106: =VLOOKUP($J106,DetRates!$C$19:$AA$3186,K$22,FALSE) -> 40 | L106: =VLOOKUP($J106,DetRates!$C$19:$AA$3186,L$22,FALSE) -> 50 | M106: =IF($T106<>$T105,VLOOKUP($J106,DetRates!$C$19:$AA$3186,M$22,FALSE),M105) -> -6 | N106: =IF($T106<>$T105,VLOOKUP($J106,DetRates!$C$19:$AA$3186,N$22,FALSE),N105) -> 0.084 | O106: =IF($T106<>$T105,VLOOKUP($J106,DetRates!$C$19:$AA$3186,O$22,FALSE),O105) -> 0 | P106: =IF($T106<>$T105,VLOOKUP($J106,DetRates!$C$19:$AA$3186,P$22,FALSE),P105) -> -13.5 | Q106: =IF(AND(D106>29,T106>2,T106<>T105,E106<>3),VLOOKUP($J106,DetRates!$C$19:$AA$3186,Q$22),IF(T106<>T105,VLOOKUP($J106,DetRates!$C$19:$AA$3186,Q$22),Q105)) -> 0 | R106: =IF($T106<>$T105,VLOOKUP($J106,DetRates!$C$19:$AA$3186,R$22,FALSE),R105) -> -25 | S106: =IF($T106<>$T105,VLOOKUP($J106,DetRates!$C$19:$AA$3186,S$22,FALSE),S105) -> 50 | T106: 4 | U106: =VLOOKUP(F106,DetRates!$U$10:$W$12,3,FALSE) -> 20 | V106: 6 | W106: -21.14801683 | X106: 0.084 | Y106: -23.00119415 | Z106: -13.5 | AA106: 0 | AB106: FALSE | AC106: 0 | AD106: FALSE | AE106: FALSE | AF106: FALSE | AG106: FALSE | AH106: FALSE | AI106: FALSE | AJ106: FALSE | AK106: FALSE | AL106: FALSE | AM106: FALSE | AN106: FALSE | AO106: FALSE | AP106: FALSE | AQ106: FALSE | AR106: FALSE | AS106: -23.00119415 | AT106: 0 | AU106: 0 | AW106: -21.14801683 | AX106: -23.00119415 | AZ106: FALSE | BA106: 82 | BB106: 2 | BC106: 47
B107: 83 | C107: 17 | D107: 47 | E107: 2 | F107: 1 | G107: 1 | H107: 1 | I107: 1421111-47 | J107: =IF(ISNA(VLOOKUP(I107,DetRates!$B$19:$C$3186,2,FALSE)),J106,VLOOKUP(I107,DetRates!$B$19:$C$3186,2,FALSE)) -> 971 | K107: =VLOOKUP($J107,DetRates!$C$19:$AA$3186,K$22,FALSE) -> 40 | L107: =VLOOKUP($J107,DetRates!$C$19:$AA$3186,L$22,FALSE) -> 50 | M107: =IF($T107<>$T106,VLOOKUP($J107,DetRates!$C$19:$AA$3186,M$22,FALSE),M106) -> -6 | N107: =IF($T107<>$T106,VLOOKUP($J107,DetRates!$C$19:$AA$3186,N$22,FALSE),N106) -> 0.084 | O107: =IF($T107<>$T106,VLOOKUP($J107,DetRates!$C$19:$AA$3186,O$22,FALSE),O106) -> 0 | P107: =IF($T107<>$T106,VLOOKUP($J107,DetRates!$C$19:$AA$3186,P$22,FALSE),P106) -> -13.5 | Q107: =IF(AND(D107>29,T107>2,T107<>T106,E107<>3),VLOOKUP($J107,DetRates!$C$19:$AA$3186,Q$22),IF(T107<>T106,VLOOKUP($J107,DetRates!$C$19:$AA$3186,Q$22),Q106)) -> 0 | R107: =IF($T107<>$T106,VLOOKUP($J107,DetRates!$C$19:$AA$3186,R$22,FALSE),R106) -> -25 | S107: =IF($T107<>$T106,VLOOKUP($J107,DetRates!$C$19:$AA$3186,S$22,FALSE),S106) -> 50 | T107: 4 | U107: =VLOOKUP(F107,DetRates!$U$10:$W$12,3,FALSE) -> 20 | V107: 7 | W107: -23.00119415 | X107: 0.084 | Y107: -25.01676335 | Z107: -13.5 | AA107: 0 | AB107: FALSE | AC107: 0 | AD107: FALSE | AE107: FALSE | AF107: FALSE | AG107: FALSE | AH107: FALSE | AI107: TRUE | AJ107: FALSE | AK107: FALSE | AL107: TRUE | AM107: FALSE | AN107: FALSE | AO107: FALSE | AP107: FALSE | AQ107: FALSE | AR107: TRUE | AS107: -13.5 | AT107: 1 | AU107: 0 | AW107: -23.00119415 | AX107: -25.01676335 | AZ107: FALSE | BA107: 83 | BB107: 2 | BC107: 48
B108: 84 | C108: 17 | D108: 48 | E108: 2 | F108: 1 | G108: 1 | H108: 1 | I108: 1421111-48 | J108: =IF(ISNA(VLOOKUP(I108,DetRates!$B$19:$C$3186,2,FALSE)),J107,VLOOKUP(I108,DetRates!$B$19:$C$3186,2,FALSE)) -> 971 | K108: =VLOOKUP($J108,DetRates!$C$19:$AA$3186,K$22,FALSE) -> 40 | L108: =VLOOKUP($J108,DetRates!$C$19:$AA$3186,L$22,FALSE) -> 50 | M108: =IF($T108<>$T107,VLOOKUP($J108,DetRates!$C$19:$AA$3186,M$22,FALSE),M107) -> -6 | N108: =IF($T108<>$T107,VLOOKUP($J108,DetRates!$C$19:$AA$3186,N$22,FALSE),N107) -> 0.091 | O108: =IF($T108<>$T107,VLOOKUP($J108,DetRates!$C$19:$AA$3186,O$22,FALSE),O107) -> 0 | P108: =IF($T108<>$T107,VLOOKUP($J108,DetRates!$C$19:$AA$3186,P$22,FALSE),P107) -> -16.2 | Q108: =IF(AND(D108>29,T108>2,T108<>T107,E108<>3),VLOOKUP($J108,DetRates!$C$19:$AA$3186,Q$22),IF(T108<>T107,VLOOKUP($J108,DetRates!$C$19:$AA$3186,Q$22),Q107)) -> 0 | R108: =IF($T108<>$T107,VLOOKUP($J108,DetRates!$C$19:$AA$3186,R$22,FALSE),R107) -> -25 | S108: =IF($T108<>$T107,VLOOKUP($J108,DetRates!$C$19:$AA$3186,S$22,FALSE),S107) -> 50 | T108: 5 | U108: =VLOOKUP(F108,DetRates!$U$10:$W$12,3,FALSE) -> 20 | V108: 8 | W108: -13.5 | X108: 0.091 | Y108: -14.78613157 | Z108: -16.2 | AA108: 0 | AB108: FALSE | AC108: 0 | AD108: FALSE | AE108: FALSE | AF108: FALSE | AG108: FALSE | AH108: FALSE | AI108: FALSE | AJ108: FALSE | AK108: FALSE | AL108: FALSE | AM108: FALSE | AN108: FALSE | AO108: FALSE | AP108: FALSE | AQ108: FALSE | AR108: FALSE | AS108: -14.78613157 | AT108: 0 | AU108: 0 | AW108: -13.5 | AX108: -14.78613157 | AZ108: FALSE | BA108: =B108 -> 84 | BB108: 2 | BC108: 49
B109: 85 | C109: 18 | D109: 49 | E109: 2 | F109: 1 | G109: 1 | H109: 1 | I109: 1421111-49 | J109: =IF(ISNA(VLOOKUP(I109,DetRates!$B$19:$C$3186,2,FALSE)),J108,VLOOKUP(I109,DetRates!$B$19:$C$3186,2,FALSE)) -> 971 | K109: =VLOOKUP($J109,DetRates!$C$19:$AA$3186,K$22,FALSE) -> 40 | L109: =VLOOKUP($J109,DetRates!$C$19:$AA$3186,L$22,FALSE) -> 50 | M109: =IF($T109<>$T108,VLOOKUP($J109,DetRates!$C$19:$AA$3186,M$22,FALSE),M108) -> -6 | N109: =IF($T109<>$T108,VLOOKUP($J109,DetRates!$C$19:$AA$3186,N$22,FALSE),N108) -> 0.091 | O109: =IF($T109<>$T108,VLOOKUP($J109,DetRates!$C$19:$AA$3186,O$22,FALSE),O108) -> 0 | P109: =IF($T109<>$T108,VLOOKUP($J109,DetRates!$C$19:$AA$3186,P$22,FALSE),P108) -> -16.2 | Q109: =IF(AND(D109>29,T109>2,T109<>T108,E109<>3),VLOOKUP($J109,DetRates!$C$19:$AA$3186,Q$22),IF(T109<>T108,VLOOKUP($J109,DetRates!$C$19:$AA$3186,Q$22),Q108)) -> 0 | R109: =IF($T109<>$T108,VLOOKUP($J109,DetRates!$C$19:$AA$3186,R$22,FALSE),R108) -> -25 | S109: =IF($T109<>$T108,VLOOKUP($J109,DetRates!$C$19:$AA$3186,S$22,FALSE),S108) -> 50 | T109: 5 | U109: =VLOOKUP(F109,DetRates!$U$10:$W$12,3,FALSE) -> 20 | V109: 9 | W109: -14.78613157 | X109: 0.091 | Y109: -16.19479162 | Z109: -16.2 | AA109: 0 | AB109: FALSE | AC109: 0 | AD109: FALSE | AE109: FALSE | AF109: FALSE | AG109: FALSE | AH109: FALSE | AI109: FALSE | AJ109: FALSE | AK109: FALSE | AL109: FALSE | AM109: FALSE | AN109: FALSE | AO109: FALSE | AP109: FALSE | AQ109: FALSE | AR109: FALSE | AS109: -16.19479162 | AT109: 0 | AU109: 0 | AW109: -14.78613157 | AX109: -16.19479162 | AZ109: FALSE | BA109: 85 | BB109: 2 | BC109: 50
B110: 86 | C110: 18 | D110: 50 | E110: 2 | F110: 1 | G110: 1 | H110: 1 | I110: 1421111-50 | J110: =IF(ISNA(VLOOKUP(I110,DetRates!$B$19:$C$3186,2,FALSE)),J109,VLOOKUP(I110,DetRates!$B$19:$C$3186,2,FALSE)) -> 972 | K110: =VLOOKUP($J110,DetRates!$C$19:$AA$3186,K$22,FALSE) -> 50 | L110: =VLOOKUP($J110,DetRates!$C$19:$AA$3186,L$22,FALSE) -> 1000 | M110: =IF($T110<>$T109,VLOOKUP($J110,DetRates!$C$19:$AA$3186,M$22,FALSE),M109) -> -6 | N110: =IF($T110<>$T109,VLOOKUP($J110,DetRates!$C$19:$AA$3186,N$22,FALSE),N109) -> 0.091 | O110: =IF($T110<>$T109,VLOOKUP($J110,DetRates!$C$19:$AA$3186,O$22,FALSE),O109) -> 0 | P110: =IF($T110<>$T109,VLOOKUP($J110,DetRates!$C$19:$AA$3186,P$22,FALSE),P109) -> -16.2 | Q110: =IF(AND(D110>29,T110>2,T110<>T109,E110<>3),VLOOKUP($J110,DetRates!$C$19:$AA$3186,Q$22),IF(T110<>T109,VLOOKUP($J110,DetRates!$C$19:$AA$3186,Q$22),Q109)) -> 0 | R110: =IF($T110<>$T109,VLOOKUP($J110,DetRates!$C$19:$AA$3186,R$22,FALSE),R109) -> -25 | S110: =IF($T110<>$T109,VLOOKUP($J110,DetRates!$C$19:$AA$3186,S$22,FALSE),S109) -> 50 | T110: 5 | U110: =VLOOKUP(F110,DetRates!$U$10:$W$12,3,FALSE) -> 20 | V110: 0 | W110: -16.19479162 | X110: 0.091 | Y110: -17.73765331 | Z110: -16.2 | AA110: 0 | AB110: FALSE | AC110: 0 | AD110: FALSE | AE110: FALSE | AF110: FALSE | AG110: FALSE | AH110: FALSE | AI110: FALSE | AJ110: FALSE | AK110: FALSE | AL110: FALSE | AM110: FALSE | AN110: FALSE | AO110: FALSE | AP110: FALSE | AQ110: FALSE | AR110: FALSE | AS110: -17.73765331 | AT110: 0 | AU110: 0 | AW110: -16.19479162 | AX110: -17.73765331 | AZ110: FALSE | BA110: 86 | BB110: 2 | BC110: 51
B111: 87 | C111: 18 | D111: 51 | E111: 2 | F111: 1 | G111: 1 | H111: 1 | I111: 1421111-51 | J111: =IF(ISNA(VLOOKUP(I111,DetRates!$B$19:$C$3186,2,FALSE)),J110,VLOOKUP(I111,DetRates!$B$19:$C$3186,2,FALSE)) -> 972 | K111: =VLOOKUP($J111,DetRates!$C$19:$AA$3186,K$22,FALSE) -> 50 | L111: =VLOOKUP($J111,DetRates!$C$19:$AA$3186,L$22,FALSE) -> 1000 | M111: =IF($T111<>$T110,VLOOKUP($J111,DetRates!$C$19:$AA$3186,M$22,FALSE),M110) -> -6 | N111: =IF($T111<>$T110,VLOOKUP($J111,DetRates!$C$19:$AA$3186,N$22,FALSE),N110) -> 0.091 | O111: =IF($T111<>$T110,VLOOKUP($J111,DetRates!$C$19:$AA$3186,O$22,FALSE),O110) -> 0 | P111: =IF($T111<>$T110,VLOOKUP($J111,DetRates!$C$19:$AA$3186,P$22,FALSE),P110) -> -16.2 | Q111: =IF(AND(D111>29,T111>2,T111<>T110,E111<>3),VLOOKUP($J111,DetRates!$C$19:$AA$3186,Q$22),IF(T111<>T110,VLOOKUP($J111,DetRates!$C$19:$AA$3186,Q$22),Q110)) -> 0 | R111: =IF($T111<>$T110,VLOOKUP($J111,DetRates!$C$19:$AA$3186,R$22,FALSE),R110) -> -25 | S111: =IF($T111<>$T110,VLOOKUP($J111,DetRates!$C$19:$AA$3186,S$22,FALSE),S110) -> 50 | T111: 5 | U111: =VLOOKUP(F111,DetRates!$U$10:$W$12,3,FALSE) -> 20 | V111: 1 | W111: -17.73765331 | X111: 0.091 | Y111: -19.42750189 | Z111: -16.2 | AA111: 0 | AB111: FALSE | AC111: 0 | AD111: FALSE | AE111: FALSE | AF111: FALSE | AG111: FALSE | AH111: TRUE | AI111: FALSE | AJ111: FALSE | AK111: TRUE | AL111: FALSE | AM111: FALSE | AN111: FALSE | AO111: FALSE | AP111: FALSE | AQ111: TRUE | AR111: FALSE | AS111: -6 | AT111: 0 | AU111: 1 | AW111: -17.73765331 | AX111: -19.42750189 | AY111: 1 | AZ111: TRUE | BA111: 87 | BB111: 3 | BC111: 52 | BD111: 52
B112: 88 | C112: 18 | D112: 0 | E112: 2 | F112: 1 | G112: 1 | H112: 1 | I112: 1421111-0 | J112: =IF(ISNA(VLOOKUP(I112,DetRates!$B$19:$C$3186,2,FALSE)),J111,VLOOKUP(I112,DetRates!$B$19:$C$3186,2,FALSE)) -> 967 | K112: =VLOOKUP($J112,DetRates!$C$19:$AA$3186,K$22,FALSE) -> 0 | L112: =VLOOKUP($J112,DetRates!$C$19:$AA$3186,L$22,FALSE) -> 10 | M112: =IF($T112<>$T111,VLOOKUP($J112,DetRates!$C$19:$AA$3186,M$22,FALSE),M111) -> -6 | N112: =IF($T112<>$T111,VLOOKUP($J112,DetRates!$C$19:$AA$3186,N$22,FALSE),N111) -> 0.084 | O112: =IF($T112<>$T111,VLOOKUP($J112,DetRates!$C$19:$AA$3186,O$22,FALSE),O111) -> 0 | P112: =IF($T112<>$T111,VLOOKUP($J112,DetRates!$C$19:$AA$3186,P$22,FALSE),P111) -> -6.75 | Q112: =IF(AND(D112>29,T112>2,T112<>T111,E112<>3),VLOOKUP($J112,DetRates!$C$19:$AA$3186,Q$22),IF(T112<>T111,VLOOKUP($J112,DetRates!$C$19:$AA$3186,Q$22),Q111)) -> 0 | R112: =IF($T112<>$T111,VLOOKUP($J112,DetRates!$C$19:$AA$3186,R$22,FALSE),R111) -> -12 | S112: =IF($T112<>$T111,VLOOKUP($J112,DetRates!$C$19:$AA$3186,S$22,FALSE),S111) -> 50 | T112: 0 | U112: =VLOOKUP(F112,DetRates!$U$10:$W$12,3,FALSE) -> 20 | V112: 0 | W112: -6 | X112: 0.084 | Y112: -6.525773363 | Z112: -6.75 | AA112: 0 | AB112: FALSE | AC112: 0 | AD112: FALSE | AE112: FALSE | AF112: FALSE | AG112: FALSE | AH112: FALSE | AI112: FALSE | AJ112: FALSE | AK112: FALSE | AL112: FALSE | AM112: FALSE | AN112: FALSE | AO112: FALSE | AP112: FALSE | AQ112: FALSE | AR112: FALSE | AS112: -6.525773363 | AT112: 0 | AU112: 0 | AW112: -6 | AX112: -6.525773363 | AZ112: FALSE | BA112: 88 | BB112: 3 | BC112: 1
B113: 89 | C113: 18 | D113: 1 | E113: 2 | F113: 1 | G113: 1 | H113: 1 | I113: 1421111-1 | J113: =IF(ISNA(VLOOKUP(I113,DetRates!$B$19:$C$3186,2,FALSE)),J112,VLOOKUP(I113,DetRates!$B$19:$C$3186,2,FALSE)) -> 967 | K113: =VLOOKUP($J113,DetRates!$C$19:$AA$3186,K$22,FALSE) -> 0 | L113: =VLOOKUP($J113,DetRates!$C$19:$AA$3186,L$22,FALSE) -> 10 | M113: =IF($T113<>$T112,VLOOKUP($J113,DetRates!$C$19:$AA$3186,M$22,FALSE),M112) -> -6 | N113: =IF($T113<>$T112,VLOOKUP($J113,DetRates!$C$19:$AA$3186,N$22,FALSE),N112) -> 0.084 | O113: =IF($T113<>$T112,VLOOKUP($J113,DetRates!$C$19:$AA$3186,O$22,FALSE),O112) -> 0 | P113: =IF($T113<>$T112,VLOOKUP($J113,DetRates!$C$19:$AA$3186,P$22,FALSE),P112) -> -6.75 | Q113: =IF(AND(D113>29,T113>2,T113<>T112,E113<>3),VLOOKUP($J113,DetRates!$C$19:$AA$3186,Q$22),IF(T113<>T112,VLOOKUP($J113,DetRates!$C$19:$AA$3186,Q$22),Q112)) -> 0 | R113: =IF($T113<>$T112,VLOOKUP($J113,DetRates!$C$19:$AA$3186,R$22,FALSE),R112) -> -12 | S113: =IF($T113<>$T112,VLOOKUP($J113,DetRates!$C$19:$AA$3186,S$22,FALSE),S112) -> 50 | T113: 0 | U113: =VLOOKUP(F113,DetRates!$U$10:$W$12,3,FALSE) -> 20 | V113: 1 | W113: -6.525773363 | X113: 0.084 | Y113: -7.097619664 | Z113: -6.75 | AA113: 0 | AB113: FALSE | AC113: 0 | AD113: FALSE | AE113: FALSE | AF113: FALSE | AG113: FALSE | AH113: FALSE | AI113: FALSE | AJ113: FALSE | AK113: FALSE | AL113: FALSE | AM113: FALSE | AN113: FALSE | AO113: FALSE | AP113: FALSE | AQ113: FALSE | AR113: FALSE | AS113: -7.097619664 | AT113: 0 | AU113: 0 | AW113: -6.525773363 | AX113: -7.097619664 | AZ113: FALSE | BA113: 89 | BB113: 3 | BC113: 2
B114: 90 | C114: 19 | D114: 2 | E114: 2 | F114: 1 | G114: 1 | H114: 1 | I114: 1421111-2 | J114: =IF(ISNA(VLOOKUP(I114,DetRates!$B$19:$C$3186,2,FALSE)),J113,VLOOKUP(I114,DetRates!$B$19:$C$3186,2,FALSE)) -> 967 | K114: =VLOOKUP($J114,DetRates!$C$19:$AA$3186,K$22,FALSE) -> 0 | L114: =VLOOKUP($J114,DetRates!$C$19:$AA$3186,L$22,FALSE) -> 10 | M114: =IF($T114<>$T113,VLOOKUP($J114,DetRates!$C$19:$AA$3186,M$22,FALSE),M113) -> -6 | N114: =IF($T114<>$T113,VLOOKUP($J114,DetRates!$C$19:$AA$3186,N$22,FALSE),N113) -> 0.084 | O114: =IF($T114<>$T113,VLOOKUP($J114,DetRates!$C$19:$AA$3186,O$22,FALSE),O113) -> 0 | P114: =IF($T114<>$T113,VLOOKUP($J114,DetRates!$C$19:$AA$3186,P$22,FALSE),P113) -> -6.75 | Q114: =IF(AND(D114>29,T114>2,T114<>T113,E114<>3),VLOOKUP($J114,DetRates!$C$19:$AA$3186,Q$22),IF(T114<>T113,VLOOKUP($J114,DetRates!$C$19:$AA$3186,Q$22),Q113)) -> 0 | R114: =IF($T114<>$T113,VLOOKUP($J114,DetRates!$C$19:$AA$3186,R$22,FALSE),R113) -> -12 | S114: =IF($T114<>$T113,VLOOKUP($J114,DetRates!$C$19:$AA$3186,S$22,FALSE),S113) -> 50 | T114: 0 | U114: =VLOOKUP(F114,DetRates!$U$10:$W$12,3,FALSE) -> 20 | V114: 2 | W114: -7.097619664 | X114: 0.084 | Y114: -7.719576224 | Z114: -6.75 | AA114: 0 | AB114: FALSE | AC114: 0 | AD114: FALSE | AE114: FALSE | AF114: FALSE | AG114: FALSE | AH114: FALSE | AI114: FALSE | AJ114: FALSE | AK114: FALSE | AL114: FALSE | AM114: FALSE | AN114: FALSE | AO114: FALSE | AP114: FALSE | AQ114: FALSE | AR114: FALSE | AS114: -7.719576224 | AT114: 0 | AU114: 0 | AW114: -7.097619664 | AX114: -7.719576224 | AZ114: FALSE | BA114: 90 | BB114: 3 | BC114: 3
B115: 91 | C115: 19 | D115: 3 | E115: 2 | F115: 1 | G115: 1 | H115: 1 | I115: 1421111-3 | J115: =IF(ISNA(VLOOKUP(I115,DetRates!$B$19:$C$3186,2,FALSE)),J114,VLOOKUP(I115,DetRates!$B$19:$C$3186,2,FALSE)) -> 967 | K115: =VLOOKUP($J115,DetRates!$C$19:$AA$3186,K$22,FALSE) -> 0 | L115: =VLOOKUP($J115,DetRates!$C$19:$AA$3186,L$22,FALSE) -> 10 | M115: =IF($T115<>$T114,VLOOKUP($J115,DetRates!$C$19:$AA$3186,M$22,FALSE),M114) -> -6 | N115: =IF($T115<>$T114,VLOOKUP($J115,DetRates!$C$19:$AA$3186,N$22,FALSE),N114) -> 0.084 | O115: =IF($T115<>$T114,VLOOKUP($J115,DetRates!$C$19:$AA$3186,O$22,FALSE),O114) -> 0 | P115: =IF($T115<>$T114,VLOOKUP($J115,DetRates!$C$19:$AA$3186,P$22,FALSE),P114) -> -6.75 | Q115: =IF(AND(D115>29,T115>2,T115<>T114,E115<>3),VLOOKUP($J115,DetRates!$C$19:$AA$3186,Q$22),IF(T115<>T114,VLOOKUP($J115,DetRates!$C$19:$AA$3186,Q$22),Q114)) -> 0 | R115: =IF($T115<>$T114,VLOOKUP($J115,DetRates!$C$19:$AA$3186,R$22,FALSE),R114) -> -12 | S115: =IF($T115<>$T114,VLOOKUP($J115,DetRates!$C$19:$AA$3186,S$22,FALSE),S114) -> 50 | T115: 0 | U115: =VLOOKUP(F115,DetRates!$U$10:$W$12,3,FALSE) -> 20 | V115: 3 | W115: -7.719576224 | X115: 0.084 | Y115: -8.396034149 | Z115: -6.75 | AA115: 0 | AB115: FALSE | AC115: 0 | AD115: FALSE | AE115: FALSE | AF115: FALSE | AG115: FALSE | AH115: FALSE | AI115: FALSE | AJ115: FALSE | AK115: FALSE | AL115: FALSE | AM115: FALSE | AN115: FALSE | AO115: FALSE | AP115: FALSE | AQ115: FALSE | AR115: FALSE | AS115: -8.396034149 | AT115: 0 | AU115: 0 | AW115: -7.719576224 | AX115: -8.396034149 | AZ115: FALSE | BA115: 91 | BB115: 3 | BC115: 4
B116: 92 | C116: =INT(B116/C$21+1) -> 19 | D116: 4 | E116: 2 | F116: 1 | G116: 1 | H116: 1 | I116: 1421111-4 | J116: =IF(ISNA(VLOOKUP(I116,DetRates!$B$19:$C$3186,2,FALSE)),J115,VLOOKUP(I116,DetRates!$B$19:$C$3186,2,FALSE)) -> 967 | K116: =VLOOKUP($J116,DetRates!$C$19:$AA$3186,K$22,FALSE) -> 0 | L116: =VLOOKUP($J116,DetRates!$C$19:$AA$3186,L$22,FALSE) -> 10 | M116: =IF($T116<>$T115,VLOOKUP($J116,DetRates!$C$19:$AA$3186,M$22,FALSE),M115) -> -6 | N116: =IF($T116<>$T115,VLOOKUP($J116,DetRates!$C$19:$AA$3186,N$22,FALSE),N115) -> 0.084 | O116: =IF($T116<>$T115,VLOOKUP($J116,DetRates!$C$19:$AA$3186,O$22,FALSE),O115) -> 0 | P116: =IF($T116<>$T115,VLOOKUP($J116,DetRates!$C$19:$AA$3186,P$22,FALSE),P115) -> -6.75 | Q116: =IF(AND(D116>29,T116>2,T116<>T115,E116<>3),VLOOKUP($J116,DetRates!$C$19:$AA$3186,Q$22),IF(T116<>T115,VLOOKUP($J116,DetRates!$C$19:$AA$3186,Q$22),Q115)) -> 0 | R116: =IF($T116<>$T115,VLOOKUP($J116,DetRates!$C$19:$AA$3186,R$22,FALSE),R115) -> -12 | S116: =IF($T116<>$T115,VLOOKUP($J116,DetRates!$C$19:$AA$3186,S$22,FALSE),S115) -> 50 | T116: 0 | U116: =VLOOKUP(F116,DetRates!$U$10:$W$12,3,FALSE) -> 20 | V116: 4 | W116: -8.396034149 | X116: 0.084 | Y116: -9.131769334 | Z116: -6.75 | AA116: 0 | AB116: FALSE | AC116: 0 | AD116: FALSE | AE116: FALSE | AF116: FALSE | AG116: FALSE | AH116: FALSE | AI116: FALSE | AJ116: FALSE | AK116: FALSE | AL116: FALSE | AM116: FALSE | AN116: FALSE | AO116: FALSE | AP116: FALSE | AQ116: FALSE | AR116: FALSE | AS116: -9.131769334 | AT116: 0 | AU116: 0 | AW116: -8.396034149 | AX116: -9.131769334 | AZ116: FALSE | BA116: 92 | BB116: 3 | BC116: 5
B117: 93 | C117: 19 | D117: 5 | E117: 2 | F117: 1 | G117: 1 | H117: 1 | I117: 1421111-5 | J117: =IF(ISNA(VLOOKUP(I117,DetRates!$B$19:$C$3186,2,FALSE)),J116,VLOOKUP(I117,DetRates!$B$19:$C$3186,2,FALSE)) -> 967 | K117: =VLOOKUP($J117,DetRates!$C$19:$AA$3186,K$22,FALSE) -> 0 | L117: =VLOOKUP($J117,DetRates!$C$19:$AA$3186,L$22,FALSE) -> 10 | M117: =IF($T117<>$T116,VLOOKUP($J117,DetRates!$C$19:$AA$3186,M$22,FALSE),M116) -> -6 | N117: =IF($T117<>$T116,VLOOKUP($J117,DetRates!$C$19:$AA$3186,N$22,FALSE),N116) -> 0.084 | O117: =IF($T117<>$T116,VLOOKUP($J117,DetRates!$C$19:$AA$3186,O$22,FALSE),O116) -> 0 | P117: =IF($T117<>$T116,VLOOKUP($J117,DetRates!$C$19:$AA$3186,P$22,FALSE),P116) -> -6.75 | Q117: =IF(AND(D117>29,T117>2,T117<>T116,E117<>3),VLOOKUP($J117,DetRates!$C$19:$AA$3186,Q$22),IF(T117<>T116,VLOOKUP($J117,DetRates!$C$19:$AA$3186,Q$22),Q116)) -> 0 | R117: =IF($T117<>$T116,VLOOKUP($J117,DetRates!$C$19:$AA$3186,R$22,FALSE),R116) -> -12 | S117: =IF($T117<>$T116,VLOOKUP($J117,DetRates!$C$19:$AA$3186,S$22,FALSE),S116) -> 50 | T117: 0 | U117: =VLOOKUP(F117,DetRates!$U$10:$W$12,3,FALSE) -> 20 | V117: 5 | W117: -9.131769334 | X117: 0.084 | Y117: -9.931976179 | Z117: -6.75 | AA117: 0 | AB117: FALSE | AC117: 0 | AD117: FALSE | AE117: FALSE | AF117: FALSE | AG117: FALSE | AH117: FALSE | AI117: FALSE | AJ117: FALSE | AK117: FALSE | AL117: FALSE | AM117: FALSE | AN117: FALSE | AO117: FALSE | AP117: FALSE | AQ117: FALSE | AR117: FALSE | AS117: -9.931976179 | AT117: 0 | AU117: 0 | AW117: -9.131769334 | AX117: -9.931976179 | AZ117: FALSE | BA117: 93 | BB117: 3 | BC117: 6
B118: 94 | C118: =INT(B118/C$21+1) -> 19 | D118: 6 | E118: 2 | F118: 1 | G118: 1 | H118: 1 | I118: 1421111-6 | J118: =IF(ISNA(VLOOKUP(I118,DetRates!$B$19:$C$3186,2,FALSE)),J117,VLOOKUP(I118,DetRates!$B$19:$C$3186,2,FALSE)) -> 967 | K118: =VLOOKUP($J118,DetRates!$C$19:$AA$3186,K$22,FALSE) -> 0 | L118: =VLOOKUP($J118,DetRates!$C$19:$AA$3186,L$22,FALSE) -> 10 | M118: =IF($T118<>$T117,VLOOKUP($J118,DetRates!$C$19:$AA$3186,M$22,FALSE),M117) -> -6 | N118: =IF($T118<>$T117,VLOOKUP($J118,DetRates!$C$19:$AA$3186,N$22,FALSE),N117) -> 0.084 | O118: =IF($T118<>$T117,VLOOKUP($J118,DetRates!$C$19:$AA$3186,O$22,FALSE),O117) -> 0 | P118: =IF($T118<>$T117,VLOOKUP($J118,DetRates!$C$19:$AA$3186,P$22,FALSE),P117) -> -6.75 | Q118: =IF(AND(D118>29,T118>2,T118<>T117,E118<>3),VLOOKUP($J118,DetRates!$C$19:$AA$3186,Q$22),IF(T118<>T117,VLOOKUP($J118,DetRates!$C$19:$AA$3186,Q$22),Q117)) -> 0 | R118: =IF($T118<>$T117,VLOOKUP($J118,DetRates!$C$19:$AA$3186,R$22,FALSE),R117) -> -12 | S118: =IF($T118<>$T117,VLOOKUP($J118,DetRates!$C$19:$AA$3186,S$22,FALSE),S117) -> 50 | T118: 0 | U118: =VLOOKUP(F118,DetRates!$U$10:$W$12,3,FALSE) -> 20 | V118: 6 | W118: -9.931976179 | X118: 0.084 | Y118: -10.80230426 | Z118: -6.75 | AA118: 0 | AB118: FALSE | AC118: 0 | AD118: FALSE | AE118: FALSE | AF118: FALSE | AG118: FALSE | AH118: FALSE | AI118: FALSE | AJ118: FALSE | AK118: FALSE | AL118: FALSE | AM118: FALSE | AN118: FALSE | AO118: FALSE | AP118: FALSE | AQ118: FALSE | AR118: FALSE | AS118: -10.80230426 | AT118: 0 | AU118: 0 | AW118: -9.931976179 | AX118: -10.80230426 | AZ118: FALSE | BA118: 94 | BB118: 3 | BC118: 7
B119: 95 | C119: 20 | D119: 7 | E119: 2 | F119: 1 | G119: 1 | H119: 1 | I119: 1421111-7 | J119: =IF(ISNA(VLOOKUP(I119,DetRates!$B$19:$C$3186,2,FALSE)),J118,VLOOKUP(I119,DetRates!$B$19:$C$3186,2,FALSE)) -> 967 | K119: =VLOOKUP($J119,DetRates!$C$19:$AA$3186,K$22,FALSE) -> 0 | L119: =VLOOKUP($J119,DetRates!$C$19:$AA$3186,L$22,FALSE) -> 10 | M119: =IF($T119<>$T118,VLOOKUP($J119,DetRates!$C$19:$AA$3186,M$22,FALSE),M118) -> -6 | N119: =IF($T119<>$T118,VLOOKUP($J119,DetRates!$C$19:$AA$3186,N$22,FALSE),N118) -> 0.084 | O119: =IF($T119<>$T118,VLOOKUP($J119,DetRates!$C$19:$AA$3186,O$22,FALSE),O118) -> 0 | P119: =IF($T119<>$T118,VLOOKUP($J119,DetRates!$C$19:$AA$3186,P$22,FALSE),P118) -> -6.75 | Q119: =IF(AND(D119>29,T119>2,T119<>T118,E119<>3),VLOOKUP($J119,DetRates!$C$19:$AA$3186,Q$22),IF(T119<>T118,VLOOKUP($J119,DetRates!$C$19:$AA$3186,Q$22),Q118)) -> 0 | R119: =IF($T119<>$T118,VLOOKUP($J119,DetRates!$C$19:$AA$3186,R$22,FALSE),R118) -> -12 | S119: =IF($T119<>$T118,VLOOKUP($J119,DetRates!$C$19:$AA$3186,S$22,FALSE),S118) -> 50 | T119: 0 | U119: =VLOOKUP(F119,DetRates!$U$10:$W$12,3,FALSE) -> 20 | V119: 7 | W119: -10.80230426 | X119: 0.084 | Y119: -11.74889824 | Z119: -6.75 | AA119: 0 | AB119: FALSE | AC119: 0 | AD119: FALSE | AE119: FALSE | AF119: FALSE | AG119: FALSE | AH119: FALSE | AI119: FALSE | AJ119: FALSE | AK119: FALSE | AL119: FALSE | AM119: FALSE | AN119: FALSE | AO119: FALSE | AP119: FALSE | AQ119: FALSE | AR119: FALSE | AS119: -11.74889824 | AT119: 0 | AU119: 0 | AW119: -10.80230426 | AX119: -11.74889824 | AZ119: FALSE | BA119: 95 | BB119: 3 | BC119: 8
B120: 96 | C120: =INT(B120/C$21+1) -> 20 | D120: 8 | E120: 2 | F120: 1 | G120: 1 | H120: 1 | I120: =$C$17&$E$17&E120&F120&$K$17&G120&H120&"-"&D120 -> 1421111-8 | J120: =IF(ISNA(VLOOKUP(I120,DetRates!$B$19:$C$3186,2,FALSE)),J119,VLOOKUP(I120,DetRates!$B$19:$C$3186,2,FALSE)) -> 967 | K120: =VLOOKUP($J120,DetRates!$C$19:$AA$3186,K$22,FALSE) -> 0 | L120: =VLOOKUP($J120,DetRates!$C$19:$AA$3186,L$22,FALSE) -> 10 | M120: =IF($T120<>$T119,VLOOKUP($J120,DetRates!$C$19:$AA$3186,M$22,FALSE),M119) -> -6 | N120: =IF($T120<>$T119,VLOOKUP($J120,DetRates!$C$19:$AA$3186,N$22,FALSE),N119) -> 0.084 | O120: =IF($T120<>$T119,VLOOKUP($J120,DetRates!$C$19:$AA$3186,O$22,FALSE),O119) -> 0 | P120: =IF($T120<>$T119,VLOOKUP($J120,DetRates!$C$19:$AA$3186,P$22,FALSE),P119) -> -6.75 | Q120: =IF(AND(D120>29,T120>2,T120<>T119,E120<>3),VLOOKUP($J120,DetRates!$C$19:$AA$3186,Q$22),IF(T120<>T119,VLOOKUP($J120,DetRates!$C$19:$AA$3186,Q$22),Q119)) -> 0 | R120: =IF($T120<>$T119,VLOOKUP($J120,DetRates!$C$19:$AA$3186,R$22,FALSE),R119) -> -12 | S120: =IF($T120<>$T119,VLOOKUP($J120,DetRates!$C$19:$AA$3186,S$22,FALSE),S119) -> 50 | T120: 0 | U120: =VLOOKUP(F120,DetRates!$U$10:$W$12,3,FALSE) -> 20 | V120: 8 | W120: -11.74889824 | X120: 0.084 | Y120: =W120*EXP(X120) -> -12.77844119 | Z120: =P120+Q120*V120 -> -6.75 | AA120: 0 | AB120: =AND($AA$15,(AA120="x")) -> FALSE | AC120: 0 | AD120: =AND($AA$15,(AC120="x")) -> FALSE | AE120: FALSE | AF120: FALSE | AG120: =AND($AG$15,T120>U120) -> FALSE | AH120: =AND($AH$15,D120>S120) -> FALSE | AI120: =AND($AI$15,Y120<R120) -> TRUE | AJ120: FALSE | AK120: FALSE | AL120: TRUE | AM120: =AND($AI$15,Z120<R120) -> FALSE | AN120: FALSE | AO120: FALSE | AP120: FALSE | AQ120: FALSE | AR120: TRUE | AS120: =IF(AQ120,$V$11,IF(AR120,Z120,Y120)) -> -6.75 | AT120: =AR120*1 -> 1 | AU120: 0 | AW120: -11.74889824 | AX120: -12.77844119 | AZ120: FALSE | BA120: 96 | BB120: 3 | BC120: 9 | BD120: =IF(AZ120,BC120,"") -> 
B121: 97 | C121: 20 | D121: =IF(B121=1,D120+1,IF(AQ120,0,D120+1)) -> 9 | E121: 2 | F121: 1 | G121: 1 | H121: 1 | I121: 1421111-9 | J121: =IF(ISNA(VLOOKUP(I121,DetRates!$B$19:$C$3186,2,FALSE)),J120,VLOOKUP(I121,DetRates!$B$19:$C$3186,2,FALSE)) -> 967 | K121: =VLOOKUP($J121,DetRates!$C$19:$AA$3186,K$22,FALSE) -> 0 | L121: =VLOOKUP($J121,DetRates!$C$19:$AA$3186,L$22,FALSE) -> 10 | M121: =IF($T121<>$T120,VLOOKUP($J121,DetRates!$C$19:$AA$3186,M$22,FALSE),M120) -> -6 | N121: =IF($T121<>$T120,VLOOKUP($J121,DetRates!$C$19:$AA$3186,N$22,FALSE),N120) -> 0.084 | O121: =IF($T121<>$T120,VLOOKUP($J121,DetRates!$C$19:$AA$3186,O$22,FALSE),O120) -> 0 | P121: =IF($T121<>$T120,VLOOKUP($J121,DetRates!$C$19:$AA$3186,P$22,FALSE),P120) -> -6.75 | Q121: =IF(AND(D121>29,T121>2,T121<>T120,E121<>3),VLOOKUP($J121,DetRates!$C$19:$AA$3186,Q$22),IF(T121<>T120,VLOOKUP($J121,DetRates!$C$19:$AA$3186,Q$22),Q120)) -> 0 | R121: =IF($T121<>$T120,VLOOKUP($J121,DetRates!$C$19:$AA$3186,R$22,FALSE),R120) -> -12 | S121: =IF($T121<>$T120,VLOOKUP($J121,DetRates!$C$19:$AA$3186,S$22,FALSE),S120) -> 50 | T121: =IF(AQ120,0,IF(AR120,T120+1,T120)) -> 1 | U121: =VLOOKUP(F121,DetRates!$U$10:$W$12,3,FALSE) -> 20 | V121: =IF(J120=J121,V120+1,0) -> 9 | W121: -6.75 | X121: =IF((N121+O121*V121)<=0,X120,(N121+O121*V121)) -> 0.084 | Y121: -7.341495033 | Z121: -6.75 | AA121: 0 | AB121: FALSE | AC121: 0 | AD121: FALSE | AE121: FALSE | AF121: FALSE | AG121: FALSE | AH121: FALSE | AI121: FALSE | AJ121: FALSE | AK121: FALSE | AL121: FALSE | AM121: FALSE | AN121: FALSE | AO121: FALSE | AP121: FALSE | AQ121: FALSE | AR121: FALSE | AS121: -7.341495033 | AT121: 0 | AU121: 0 | AW121: -6.75 | AX121: -7.341495033 | AZ121: FALSE | BA121: 97 | BB121: =IF(AZ121,BB120+1,BB120) -> 3 | BC121: =IF(NOT(AZ120),BC120+1,1) -> 10
B122: 98 | C122: 20 | D122: 10 | E122: 2 | F122: 1 | G122: 1 | H122: 1 | I122: 1421111-10 | J122: =IF(ISNA(VLOOKUP(I122,DetRates!$B$19:$C$3186,2,FALSE)),J121,VLOOKUP(I122,DetRates!$B$19:$C$3186,2,FALSE)) -> 968 | K122: =VLOOKUP($J122,DetRates!$C$19:$AA$3186,K$22,FALSE) -> 10 | L122: =VLOOKUP($J122,DetRates!$C$19:$AA$3186,L$22,FALSE) -> 20 | M122: =IF($T122<>$T121,VLOOKUP($J122,DetRates!$C$19:$AA$3186,M$22,FALSE),M121) -> -6 | N122: =IF($T122<>$T121,VLOOKUP($J122,DetRates!$C$19:$AA$3186,N$22,FALSE),N121) -> 0.084 | O122: =IF($T122<>$T121,VLOOKUP($J122,DetRates!$C$19:$AA$3186,O$22,FALSE),O121) -> 0 | P122: =IF($T122<>$T121,VLOOKUP($J122,DetRates!$C$19:$AA$3186,P$22,FALSE),P121) -> -6.75 | Q122: =IF(AND(D122>29,T122>2,T122<>T121,E122<>3),VLOOKUP($J122,DetRates!$C$19:$AA$3186,Q$22),IF(T122<>T121,VLOOKUP($J122,DetRates!$C$19:$AA$3186,Q$22),Q121)) -> 0 | R122: =IF($T122<>$T121,VLOOKUP($J122,DetRates!$C$19:$AA$3186,R$22,FALSE),R121) -> -12 | S122: =IF($T122<>$T121,VLOOKUP($J122,DetRates!$C$19:$AA$3186,S$22,FALSE),S121) -> 50 | T122: 1 | U122: =VLOOKUP(F122,DetRates!$U$10:$W$12,3,FALSE) -> 20 | V122: 0 | W122: -7.341495033 | X122: 0.084 | Y122: -7.984822122 | Z122: -6.75 | AA122: 0 | AB122: FALSE | AC122: 0 | AD122: FALSE | AE122: FALSE | AF122: FALSE | AG122: FALSE | AH122: FALSE | AI122: FALSE | AJ122: FALSE | AK122: FALSE | AL122: FALSE | AM122: FALSE | AN122: FALSE | AO122: FALSE | AP122: FALSE | AQ122: FALSE | AR122: FALSE | AS122: -7.984822122 | AT122: 0 | AU122: 0 | AW122: -7.341495033 | AX122: -7.984822122 | AZ122: FALSE | BA122: 98 | BB122: 3 | BC122: 11
B123: 99 | C123: 20 | D123: 11 | E123: 2 | F123: 1 | G123: 1 | H123: 1 | I123: 1421111-11 | J123: =IF(ISNA(VLOOKUP(I123,DetRates!$B$19:$C$3186,2,FALSE)),J122,VLOOKUP(I123,DetRates!$B$19:$C$3186,2,FALSE)) -> 968 | K123: =VLOOKUP($J123,DetRates!$C$19:$AA$3186,K$22,FALSE) -> 10 | L123: =VLOOKUP($J123,DetRates!$C$19:$AA$3186,L$22,FALSE) -> 20 | M123: =IF($T123<>$T122,VLOOKUP($J123,DetRates!$C$19:$AA$3186,M$22,FALSE),M122) -> -6 | N123: =IF($T123<>$T122,VLOOKUP($J123,DetRates!$C$19:$AA$3186,N$22,FALSE),N122) -> 0.084 | O123: =IF($T123<>$T122,VLOOKUP($J123,DetRates!$C$19:$AA$3186,O$22,FALSE),O122) -> 0 | P123: =IF($T123<>$T122,VLOOKUP($J123,DetRates!$C$19:$AA$3186,P$22,FALSE),P122) -> -6.75 | Q123: =IF(AND(D123>29,T123>2,T123<>T122,E123<>3),VLOOKUP($J123,DetRates!$C$19:$AA$3186,Q$22),IF(T123<>T122,VLOOKUP($J123,DetRates!$C$19:$AA$3186,Q$22),Q122)) -> 0 | R123: =IF($T123<>$T122,VLOOKUP($J123,DetRates!$C$19:$AA$3186,R$22,FALSE),R122) -> -12 | S123: =IF($T123<>$T122,VLOOKUP($J123,DetRates!$C$19:$AA$3186,S$22,FALSE),S122) -> 50 | T123: 1 | U123: =VLOOKUP(F123,DetRates!$U$10:$W$12,3,FALSE) -> 20 | V123: 1 | W123: -7.984822122 | X123: 0.084 | Y123: -8.684523252 | Z123: -6.75 | AA123: 0 | AB123: FALSE | AC123: 0 | AD123: FALSE | AE123: FALSE | AF123: FALSE | AG123: FALSE | AH123: FALSE | AI123: FALSE | AJ123: FALSE | AK123: FALSE | AL123: FALSE | AM123: FALSE | AN123: FALSE | AO123: FALSE | AP123: FALSE | AQ123: FALSE | AR123: FALSE | AS123: -8.684523252 | AT123: 0 | AU123: 0 | AW123: -7.984822122 | AX123: -8.684523252 | AZ123: FALSE | BA123: 99 | BB123: 3 | BC123: 12
B124: 100 | C124: 21 | D124: 12 | E124: 2 | F124: 1 | G124: 1 | H124: 1 | I124: 1421111-12 | J124: =IF(ISNA(VLOOKUP(I124,DetRates!$B$19:$C$3186,2,FALSE)),J123,VLOOKUP(I124,DetRates!$B$19:$C$3186,2,FALSE)) -> 968 | K124: =VLOOKUP($J124,DetRates!$C$19:$AA$3186,K$22,FALSE) -> 10 | L124: =VLOOKUP($J124,DetRates!$C$19:$AA$3186,L$22,FALSE) -> 20 | M124: =IF($T124<>$T123,VLOOKUP($J124,DetRates!$C$19:$AA$3186,M$22,FALSE),M123) -> -6 | N124: =IF($T124<>$T123,VLOOKUP($J124,DetRates!$C$19:$AA$3186,N$22,FALSE),N123) -> 0.084 | O124: =IF($T124<>$T123,VLOOKUP($J124,DetRates!$C$19:$AA$3186,O$22,FALSE),O123) -> 0 | P124: =IF($T124<>$T123,VLOOKUP($J124,DetRates!$C$19:$AA$3186,P$22,FALSE),P123) -> -6.75 | Q124: =IF(AND(D124>29,T124>2,T124<>T123,E124<>3),VLOOKUP($J124,DetRates!$C$19:$AA$3186,Q$22),IF(T124<>T123,VLOOKUP($J124,DetRates!$C$19:$AA$3186,Q$22),Q123)) -> 0 | R124: =IF($T124<>$T123,VLOOKUP($J124,DetRates!$C$19:$AA$3186,R$22,FALSE),R123) -> -12 | S124: =IF($T124<>$T123,VLOOKUP($J124,DetRates!$C$19:$AA$3186,S$22,FALSE),S123) -> 50 | T124: 1 | U124: =VLOOKUP(F124,DetRates!$U$10:$W$12,3,FALSE) -> 20 | V124: 2 | W124: -8.684523252 | X124: 0.084 | Y124: -9.445538417 | Z124: -6.75 | AA124: 0 | AB124: FALSE | AC124: 0 | AD124: FALSE | AE124: FALSE | AF124: FALSE | AG124: FALSE | AH124: FALSE | AI124: FALSE | AJ124: FALSE | AK124: FALSE | AL124: FALSE | AM124: FALSE | AN124: FALSE | AO124: FALSE | AP124: FALSE | AQ124: FALSE | AR124: FALSE | AS124: -9.445538417 | AT124: 0 | AU124: 0 | AW124: -8.684523252 | AX124: -9.445538417 | AZ124: FALSE | BA124: 100 | BB124: 3 | BC124: 13
B125: 101 | C125: 21 | D125: 13 | E125: 2 | F125: 1 | G125: 1 | H125: 1 | I125: 1421111-13 | J125: =IF(ISNA(VLOOKUP(I125,DetRates!$B$19:$C$3186,2,FALSE)),J124,VLOOKUP(I125,DetRates!$B$19:$C$3186,2,FALSE)) -> 968 | K125: =VLOOKUP($J125,DetRates!$C$19:$AA$3186,K$22,FALSE) -> 10 | L125: =VLOOKUP($J125,DetRates!$C$19:$AA$3186,L$22,FALSE) -> 20 | M125: =IF($T125<>$T124,VLOOKUP($J125,DetRates!$C$19:$AA$3186,M$22,FALSE),M124) -> -6 | N125: =IF($T125<>$T124,VLOOKUP($J125,DetRates!$C$19:$AA$3186,N$22,FALSE),N124) -> 0.084 | O125: =IF($T125<>$T124,VLOOKUP($J125,DetRates!$C$19:$AA$3186,O$22,FALSE),O124) -> 0 | P125: =IF($T125<>$T124,VLOOKUP($J125,DetRates!$C$19:$AA$3186,P$22,FALSE),P124) -> -6.75 | Q125: =IF(AND(D125>29,T125>2,T125<>T124,E125<>3),VLOOKUP($J125,DetRates!$C$19:$AA$3186,Q$22),IF(T125<>T124,VLOOKUP($J125,DetRates!$C$19:$AA$3186,Q$22),Q124)) -> 0 | R125: =IF($T125<>$T124,VLOOKUP($J125,DetRates!$C$19:$AA$3186,R$22,FALSE),R124) -> -12 | S125: =IF($T125<>$T124,VLOOKUP($J125,DetRates!$C$19:$AA$3186,S$22,FALSE),S124) -> 50 | T125: 1 | U125: =VLOOKUP(F125,DetRates!$U$10:$W$12,3,FALSE) -> 20 | V125: 3 | W125: -9.445538417 | X125: 0.084 | Y125: -10.2732405 | Z125: -6.75 | AA125: 0 | AB125: FALSE | AC125: 0 | AD125: FALSE | AE125: FALSE | AF125: FALSE | AG125: FALSE | AH125: FALSE | AI125: FALSE | AJ125: FALSE | AK125: FALSE | AL125: FALSE | AM125: FALSE | AN125: FALSE | AO125: FALSE | AP125: FALSE | AQ125: FALSE | AR125: FALSE | AS125: -10.2732405 | AT125: 0 | AU125: 0 | AW125: -9.445538417 | AX125: -10.2732405 | AZ125: FALSE | BA125: 101 | BB125: 3 | BC125: 14
B126: 102 | C126: 21 | D126: 14 | E126: 2 | F126: 1 | G126: 1 | H126: 1 | I126: 1421111-14 | J126: =IF(ISNA(VLOOKUP(I126,DetRates!$B$19:$C$3186,2,FALSE)),J125,VLOOKUP(I126,DetRates!$B$19:$C$3186,2,FALSE)) -> 968 | K126: =VLOOKUP($J126,DetRates!$C$19:$AA$3186,K$22,FALSE) -> 10 | L126: =VLOOKUP($J126,DetRates!$C$19:$AA$3186,L$22,FALSE) -> 20 | M126: =IF($T126<>$T125,VLOOKUP($J126,DetRates!$C$19:$AA$3186,M$22,FALSE),M125) -> -6 | N126: =IF($T126<>$T125,VLOOKUP($J126,DetRates!$C$19:$AA$3186,N$22,FALSE),N125) -> 0.084 | O126: =IF($T126<>$T125,VLOOKUP($J126,DetRates!$C$19:$AA$3186,O$22,FALSE),O125) -> 0 | P126: =IF($T126<>$T125,VLOOKUP($J126,DetRates!$C$19:$AA$3186,P$22,FALSE),P125) -> -6.75 | Q126: =IF(AND(D126>29,T126>2,T126<>T125,E126<>3),VLOOKUP($J126,DetRates!$C$19:$AA$3186,Q$22),IF(T126<>T125,VLOOKUP($J126,DetRates!$C$19:$AA$3186,Q$22),Q125)) -> 0 | R126: =IF($T126<>$T125,VLOOKUP($J126,DetRates!$C$19:$AA$3186,R$22,FALSE),R125) -> -12 | S126: =IF($T126<>$T125,VLOOKUP($J126,DetRates!$C$19:$AA$3186,S$22,FALSE),S125) -> 50 | T126: 1 | U126: =VLOOKUP(F126,DetRates!$U$10:$W$12,3,FALSE) -> 20 | V126: 4 | W126: -10.2732405 | X126: 0.084 | Y126: -11.1734732 | Z126: -6.75 | AA126: 0 | AB126: FALSE | AC126: 0 | AD126: FALSE | AE126: FALSE | AF126: FALSE | AG126: FALSE | AH126: FALSE | AI126: FALSE | AJ126: FALSE | AK126: FALSE | AL126: FALSE | AM126: FALSE | AN126: FALSE | AO126: FALSE | AP126: FALSE | AQ126: FALSE | AR126: FALSE | AS126: -11.1734732 | AT126: 0 | AU126: 0 | AW126: -10.2732405 | AX126: -11.1734732 | AZ126: FALSE | BA126: 102 | BB126: 3 | BC126: 15
B127: 103 | C127: 21 | D127: 15 | E127: 2 | F127: 1 | G127: 1 | H127: 1 | I127: 1421111-15 | J127: =IF(ISNA(VLOOKUP(I127,DetRates!$B$19:$C$3186,2,FALSE)),J126,VLOOKUP(I127,DetRates!$B$19:$C$3186,2,FALSE)) -> 968 | K127: =VLOOKUP($J127,DetRates!$C$19:$AA$3186,K$22,FALSE) -> 10 | L127: =VLOOKUP($J127,DetRates!$C$19:$AA$3186,L$22,FALSE) -> 20 | M127: =IF($T127<>$T126,VLOOKUP($J127,DetRates!$C$19:$AA$3186,M$22,FALSE),M126) -> -6 | N127: =IF($T127<>$T126,VLOOKUP($J127,DetRates!$C$19:$AA$3186,N$22,FALSE),N126) -> 0.084 | O127: =IF($T127<>$T126,VLOOKUP($J127,DetRates!$C$19:$AA$3186,O$22,FALSE),O126) -> 0 | P127: =IF($T127<>$T126,VLOOKUP($J127,DetRates!$C$19:$AA$3186,P$22,FALSE),P126) -> -6.75 | Q127: =IF(AND(D127>29,T127>2,T127<>T126,E127<>3),VLOOKUP($J127,DetRates!$C$19:$AA$3186,Q$22),IF(T127<>T126,VLOOKUP($J127,DetRates!$C$19:$AA$3186,Q$22),Q126)) -> 0 | R127: =IF($T127<>$T126,VLOOKUP($J127,DetRates!$C$19:$AA$3186,R$22,FALSE),R126) -> -12 | S127: =IF($T127<>$T126,VLOOKUP($J127,DetRates!$C$19:$AA$3186,S$22,FALSE),S126) -> 50 | T127: 1 | U127: =VLOOKUP(F127,DetRates!$U$10:$W$12,3,FALSE) -> 20 | V127: 5 | W127: -11.1734732 | X127: 0.084 | Y127: -12.1525923 | Z127: -6.75 | AA127: 0 | AB127: FALSE | AC127: 0 | AD127: FALSE | AE127: FALSE | AF127: FALSE | AG127: FALSE | AH127: FALSE | AI127: TRUE | AJ127: FALSE | AK127: FALSE | AL127: TRUE | AM127: FALSE | AN127: FALSE | AO127: FALSE | AP127: FALSE | AQ127: FALSE | AR127: TRUE | AS127: -6.75 | AT127: 1 | AU127: 0 | AW127: -11.1734732 | AX127: -12.1525923 | AZ127: FALSE | BA127: 103 | BB127: 3 | BC127: 16
B128: 104 | C128: 21 | D128: 16 | E128: 2 | F128: 1 | G128: 1 | H128: 1 | I128: 1421111-16 | J128: =IF(ISNA(VLOOKUP(I128,DetRates!$B$19:$C$3186,2,FALSE)),J127,VLOOKUP(I128,DetRates!$B$19:$C$3186,2,FALSE)) -> 968 | K128: =VLOOKUP($J128,DetRates!$C$19:$AA$3186,K$22,FALSE) -> 10 | L128: =VLOOKUP($J128,DetRates!$C$19:$AA$3186,L$22,FALSE) -> 20 | M128: =IF($T128<>$T127,VLOOKUP($J128,DetRates!$C$19:$AA$3186,M$22,FALSE),M127) -> -6 | N128: =IF($T128<>$T127,VLOOKUP($J128,DetRates!$C$19:$AA$3186,N$22,FALSE),N127) -> 0.063 | O128: =IF($T128<>$T127,VLOOKUP($J128,DetRates!$C$19:$AA$3186,O$22,FALSE),O127) -> 0 | P128: =IF($T128<>$T127,VLOOKUP($J128,DetRates!$C$19:$AA$3186,P$22,FALSE),P127) -> -7.2 | Q128: =IF(AND(D128>29,T128>2,T128<>T127,E128<>3),VLOOKUP($J128,DetRates!$C$19:$AA$3186,Q$22),IF(T128<>T127,VLOOKUP($J128,DetRates!$C$19:$AA$3186,Q$22),Q127)) -> 0 | R128: =IF($T128<>$T127,VLOOKUP($J128,DetRates!$C$19:$AA$3186,R$22,FALSE),R127) -> -15 | S128: =IF($T128<>$T127,VLOOKUP($J128,DetRates!$C$19:$AA$3186,S$22,FALSE),S127) -> 50 | T128: 2 | U128: =VLOOKUP(F128,DetRates!$U$10:$W$12,3,FALSE) -> 20 | V128: 6 | W128: -6.75 | X128: 0.063 | Y128: -7.188931165 | Z128: -7.2 | AA128: 0 | AB128: FALSE | AC128: 0 | AD128: FALSE | AE128: FALSE | AF128: FALSE | AG128: FALSE | AH128: FALSE | AI128: FALSE | AJ128: FALSE | AK128: FALSE | AL128: FALSE | AM128: FALSE | AN128: FALSE | AO128: FALSE | AP128: FALSE | AQ128: FALSE | AR128: FALSE | AS128: -7.188931165 | AT128: 0 | AU128: 0 | AW128: -6.75 | AX128: -7.188931165 | AZ128: FALSE | BA128: 104 | BB128: 3 | BC128: 17
AS130: Summary
AS131: Count of Interventions
AS132: Period | AT132: Tamping | AU132: Renewal | AV132: Start year | AW132: Qstart | AX132: Last year | AY132: Qend
AS133: 1 | AT133: =SUMIF($C$24:$C$128,$AS133,AT$24:AT$128) -> 1 | AU133: =SUMIF($C$24:$C$128,$AS133,AU$24:AU$128) -> 1 | AV133: 0 | AW133: =VLOOKUP(AV133,$B$24:$AS$128,22,FALSE) -> -7 | AX133: 4 | AY133: =VLOOKUP(AX133,$B$24:$AS$128,44,FALSE) -> -8
AS134: =AS133+1 -> 2 | AT134: 1 | AU134: 0 | AV134: =AV133+5 -> 5 | AW134: =VLOOKUP(AV134,$B$24:$AS$128,22,FALSE) -> -8 | AX134: =AX133+5 -> 9 | AY134: =VLOOKUP(AX134,$B$24:$AS$128,44,FALSE) -> -11.93459758
AS135: =AS134+1 -> 3 | AT135: 1 | AU135: 0 | AV135: =AV134+5 -> 10 | AW135: =VLOOKUP(AV135,$B$24:$AS$128,22,FALSE) -> -11.93459758 | AX135: 14 | AY135: =VLOOKUP(AX135,$B$24:$AS$128,44,FALSE) -> -14.5769504
AS136: 4 | AT136: 2 | AU136: 0 | AV136: 15 | AW136: =VLOOKUP(AV136,$B$24:$AS$128,22,FALSE) -> -14.5769504 | AX136: 19 | AY136: =VLOOKUP(AX136,$B$24:$AS$128,44,FALSE) -> -11.61834243
AS137: 5 | AT137: 2 | AU137: 0 | AV137: 20 | AW137: -11.61834243 | AX137: 24 | AY137: -10
AS138: 6 | AT138: 1 | AU138: 0 | AV138: 25 | AW138: -10 | AX138: 29 | AY138: =VLOOKUP(AX138,$B$24:$AS$128,44,FALSE) -> -16.92949437
AS139: 7 | AT139: 2 | AU139: 0 | AV139: 30 | AW139: -16.92949437 | AX139: 34 | AY139: -22
AS140: 8 | AT140: 0 | AU140: 1 | AV140: 35 | AW140: -22 | AX140: 39 | AY140: -8.396034149
AS141: 9 | AT141: 1 | AU141: 0 | AV141: 40 | AW141: -8.396034149 | AX141: 44 | AY141: -6.75
AS142: 10 | AT142: 0 | AU142: 0 | AV142: 45 | AW142: -6.75 | AX142: 49 | AY142: -10.2732405
AS143: 11 | AT143: 1 | AU143: 0 | AV143: 50 | AW143: -10.2732405 | AX143: 54 | AY143: -8.154276429
AS144: 12 | AT144: 0 | AU144: 0 | AV144: 55 | AW144: -8.154276429 | AX144: 59 | AY144: -11.1734732
AS145: 13 | AT145: 1 | AU145: 0 | AV145: 60 | AW145: -11.1734732 | AX145: 64 | AY145: -8.398734385
AS146: 14 | AT146: 0 | AU146: 0 | AV146: 65 | AW146: -8.398734385 | AX146: 69 | AY146: -12.34290033
AS147: 15 | AT147: 1 | AU147: 0 | AV147: 70 | AW147: -12.34290033 | AX147: 74 | AY147: -11.74639205
AS148: 16 | AT148: 0 | AU148: 0 | AV148: 75 | AW148: -11.74639205 | AX148: 79 | AY148: -17.87755712
AS149: 17 | AT149: 1 | AU149: 0 | AV149: 80 | AW149: -17.87755712 | AX149: 84 | AY149: -14.78613157
AS150: 18 | AT150: 0 | AU150: 1 | AV150: 85 | AW150: -14.78613157 | AX150: 89 | AY150: -7.097619664
AS151: 19 | AT151: 0 | AU151: 0 | AV151: 90 | AW151: -7.097619664 | AX151: 94 | AY151: -10.80230426
AS152: 20 | AT152: 1 | AU152: 0 | AV152: 95 | AW152: -10.80230426 | AX152: 99 | AY152: -8.684523252
AS153: 21 | AT153: 1 | AU153: 0 | AV153: 100 | AW153: -8.684523252 | AX153: 104 | AY153: -7.188931165

Sheet Results
A1: MAINLINE | C1: =Flowchart!C1 -> Plain Track Model
C2: Summary of Projected Values
C8: Reference Values
C9: This sheet shows the collation of results from the Projection with additional cost and impact evaluation.
C10: Data from here is carried to the output sheets
C11: There is no user input on this sheet.
F13: Duration: | G13: 5
C14: Intervention schedule | F14: Years: | G14: =TEXT(1,"00") &"-"& TEXT(G13,"00") -> 01-05 | H14: =TEXT(LEFT(G14,2)+$G13,"00") &"-"& TEXT(RIGHT(G14,2)+$G13,"00") -> 06-10 | I14: =TEXT(LEFT(H14,2)+$G13,"00") &"-"& TEXT(RIGHT(H14,2)+$G13,"00") -> 11-15 | J14: 16-20 | K14: 21-25 | L14: 26-30 | M14: 31-35 | N14: 36-40 | O14: 41-45 | P14: 46-50 | Q14: 51-55 | R14: 56-60 | S14: 61-65 | T14: 66-70 | U14: 71-75 | V14: 76-80 | W14: 81-85 | X14: 86-90 | Y14: 91-95 | Z14: 96-100 | AA14: 101-05
F15: Period: | G15: 1 | H15: =G15+1 -> 2 | I15: 3 | J15: 4 | K15: 5 | L15: 6 | M15: 7 | N15: 8 | O15: 9 | P15: 10 | Q15: 11 | R15: 12 | S15: 13 | T15: 14 | U15: 15 | V15: 16 | W15: 17 | X15: 18 | Y15: 19 | Z15: 20 | AA15: 21
C16: Intv. | D16: Name | AC16: Total
C17: 1 | D17: =IntvTriggers!D30 -> In-situ tamping of ballast | G17: =TRANSPOSE(Projection!AT133:AT153) -> 1 | H17: 1 | I17: 1 | J17: 2 | K17: 2 | L17: 1 | M17: 2 | N17: 0 | O17: 1 | P17: 0 | Q17: 1 | R17: 0 | S17: 1 | T17: 0 | U17: 1 | V17: 0 | W17: 1 | X17: 0 | Y17: 0 | Z17: 1 | AA17: 1 | AC17: =SUM(G17:AA17) -> 17
C18: 2 | D18: =IntvTriggers!D31 -> Renew track structure | G18: =TRANSPOSE(Projection!AU133:AU153) -> 1 | H18: 0 | I18: 0 | J18: 0 | K18: 0 | L18: 0 | M18: 0 | N18: 1 | O18: 0 | P18: 0 | Q18: 0 | R18: 0 | S18: 0 | T18: 0 | U18: 0 | V18: 0 | W18: 0 | X18: 1 | Y18: 0 | Z18: 0 | AA18: 0 | AC18: 3
AH19: Track Residual Value
C20: Costs by Intervention | AE20: Cash | AF20: Discounted | AG20: 0 | AH20: Cash | AI20: Discounted
C21: =C$17 -> 1 | D21: =D$17 -> In-situ tamping of ballast | G21: =G17*IntvCosts!$J18 -> 17000 | H21: =H17*IntvCosts!$J18 -> 17000 | I21: =I17*IntvCosts!$J18 -> 17000 | J21: =J17*IntvCosts!$J18 -> 34000 | K21: =K17*IntvCosts!$J18 -> 34000 | L21: =L17*IntvCosts!$J18 -> 17000 | M21: =M17*IntvCosts!$J18 -> 34000 | N21: =N17*IntvCosts!$J18 -> 0 | O21: =O17*IntvCosts!$J18 -> 17000 | P21: =P17*IntvCosts!$J18 -> 0 | Q21: =Q17*IntvCosts!$J18 -> 17000 | R21: =R17*IntvCosts!$J18 -> 0 | S21: =S17*IntvCosts!$J18 -> 17000 | T21: =T17*IntvCosts!$J18 -> 0 | U21: =U17*IntvCosts!$J18 -> 17000 | V21: =V17*IntvCosts!$J18 -> 0 | W21: =W17*IntvCosts!$J18 -> 17000 | X21: =X17*IntvCosts!$J18 -> 0 | Y21: =Y17*IntvCosts!$J18 -> 0 | Z21: =Z17*IntvCosts!$J18 -> 17000 | AA21: =AA17*IntvCosts!$J18 -> 17000 | AE21: =SUM(G21:AA21) -> 289000 | AF21: =SUMPRODUCT(G21:AA21,OFFSET(G$81:AA$81,AG$20,0)) -> 144850.8952 | AH21: =Projection!BC16 -> -491346.1538 | AI21: =Projection!BC18 -> -71114.58751
C22: =C$18 -> 2 | D22: =D$18 -> Renew track structure | G22: =G18*IntvCosts!$J19 -> 730000 | H22: =H18*IntvCosts!$J19 -> 0 | I22: =I18*IntvCosts!$J19 -> 0 | J22: =J18*IntvCosts!$J19 -> 0 | K22: =K18*IntvCosts!$J19 -> 0 | L22: =L18*IntvCosts!$J19 -> 0 | M22: =M18*IntvCosts!$J19 -> 0 | N22: =N18*IntvCosts!$J19 -> 730000 | O22: =O18*IntvCosts!$J19 -> 0 | P22: =P18*IntvCosts!$J19 -> 0 | Q22: =Q18*IntvCosts!$J19 -> 0 | R22: =R18*IntvCosts!$J19 -> 0 | S22: =S18*IntvCosts!$J19 -> 0 | T22: =T18*IntvCosts!$J19 -> 0 | U22: =U18*IntvCosts!$J19 -> 0 | V22: =V18*IntvCosts!$J19 -> 0 | W22: =W18*IntvCosts!$J19 -> 0 | X22: =X18*IntvCosts!$J19 -> 730000 | Y22: =Y18*IntvCosts!$J19 -> 0 | Z22: =Z18*IntvCosts!$J19 -> 0 | AA22: =AA18*IntvCosts!$J19 -> 0 | AE22: =SUM(G22:AA22) -> 2190000 | AF22: =SUMPRODUCT(G22:AA22,OFFSET(G$81:AA$81,AG$20,0)) -> 1165019.619
D23: Financial | F23: Total | G23: =SUM(G21:G22) -> 747000 | H23: 17000 | I23: 17000 | J23: 34000 | K23: 34000 | L23: 17000 | M23: 34000 | N23: 730000 | O23: 17000 | P23: 0 | Q23: 17000 | R23: 0 | S23: 17000 | T23: 0 | U23: 17000 | V23: 0 | W23: 17000 | X23: 730000 | Y23: 0 | Z23: 17000 | AA23: =SUM(AA21:AA22) -> 17000 | AE23: =SUM(AE21:AE22) -> 2479000 | AF23: =SUM(AF21:AF22) -> 1309870.514
C25: Costs by Category
C26: 1 | D26: =INDEX(IntvCosts!$F$14:$I$15,1,$C26) -> Labour | F26: =INDEX(IntvCosts!$F$14:$I$15,2,$C26) -> Lab | G26: =SUMPRODUCT(G$17:G$18,OFFSET(IntvCosts!$F$18:$F$19,0,$C26-1)) -> 215000 | H26: =SUMPRODUCT(H$17:H$18,OFFSET(IntvCosts!$F$18:$F$19,0,$C26-1)) -> 10000 | I26: =SUMPRODUCT(I$17:I$18,OFFSET(IntvCosts!$F$18:$F$19,0,$C26-1)) -> 10000 | J26: =SUMPRODUCT(J$17:J$18,OFFSET(IntvCosts!$F$18:$F$19,0,$C26-1)) -> 20000 | K26: =SUMPRODUCT(K$17:K$18,OFFSET(IntvCosts!$F$18:$F$19,0,$C26-1)) -> 20000 | L26: =SUMPRODUCT(L$17:L$18,OFFSET(IntvCosts!$F$18:$F$19,0,$C26-1)) -> 10000 | M26: =SUMPRODUCT(M$17:M$18,OFFSET(IntvCosts!$F$18:$F$19,0,$C26-1)) -> 20000 | N26: =SUMPRODUCT(N$17:N$18,OFFSET(IntvCosts!$F$18:$F$19,0,$C26-1)) -> 205000 | O26: =SUMPRODUCT(O$17:O$18,OFFSET(IntvCosts!$F$18:$F$19,0,$C26-1)) -> 10000 | P26: =SUMPRODUCT(P$17:P$18,OFFSET(IntvCosts!$F$18:$F$19,0,$C26-1)) -> 0 | Q26: =SUMPRODUCT(Q$17:Q$18,OFFSET(IntvCosts!$F$18:$F$19,0,$C26-1)) -> 10000 | R26: =SUMPRODUCT(R$17:R$18,OFFSET(IntvCosts!$F$18:$F$19,0,$C26-1)) -> 0 | S26: =SUMPRODUCT(S$17:S$18,OFFSET(IntvCosts!$F$18:$F$19,0,$C26-1)) -> 10000 | T26: =SUMPRODUCT(T$17:T$18,OFFSET(IntvCosts!$F$18:$F$19,0,$C26-1)) -> 0 | U26: =SUMPRODUCT(U$17:U$18,OFFSET(IntvCosts!$F$18:$F$19,0,$C26-1)) -> 10000 | V26: =SUMPRODUCT(V$17:V$18,OFFSET(IntvCosts!$F$18:$F$19,0,$C26-1)) -> 0 | W26: =SUMPRODUCT(W$17:W$18,OFFSET(IntvCosts!$F$18:$F$19,0,$C26-1)) -> 10000 | X26: =SUMPRODUCT(X$17:X$18,OFFSET(IntvCosts!$F$18:$F$19,0,$C26-1)) -> 205000 | Y26: =SUMPRODUCT(Y$17:Y$18,OFFSET(IntvCosts!$F$18:$F$19,0,$C26-1)) -> 0 | Z26: =SUMPRODUCT(Z$17:Z$18,OFFSET(IntvCosts!$F$18:$F$19,0,$C26-1)) -> 10000 | AA26: =SUMPRODUCT(AA$17:AA$18,OFFSET(IntvCosts!$F$18:$F$19,0,$C26-1)) -> 10000 | AE26: =SUM(G26:AA26) -> 785000 | AF26: =SUMPRODUCT(G26:AA26,OFFSET(G$81:AA$81,AG$20,0)) -> 412369.4526
C27: 2 | D27: =INDEX(IntvCosts!$F$14:$I$15,1,$C27) -> Plant | F27: =INDEX(IntvCosts!$F$14:$I$15,2,$C27) -> Plt | G27: =SUMPRODUCT(G$17:G$18,OFFSET(IntvCosts!$F$18:$F$19,0,$C27-1)) -> 502000 | H27: =SUMPRODUCT(H$17:H$18,OFFSET(IntvCosts!$F$18:$F$19,0,$C27-1)) -> 2000 | I27: =SUMPRODUCT(I$17:I$18,OFFSET(IntvCosts!$F$18:$F$19,0,$C27-1)) -> 2000 | J27: =SUMPRODUCT(J$17:J$18,OFFSET(IntvCosts!$F$18:$F$19,0,$C27-1)) -> 4000 | K27: =SUMPRODUCT(K$17:K$18,OFFSET(IntvCosts!$F$18:$F$19,0,$C27-1)) -> 4000 | L27: =SUMPRODUCT(L$17:L$18,OFFSET(IntvCosts!$F$18:$F$19,0,$C27-1)) -> 2000 | M27: =SUMPRODUCT(M$17:M$18,OFFSET(IntvCosts!$F$18:$F$19,0,$C27-1)) -> 4000 | N27: =SUMPRODUCT(N$17:N$18,OFFSET(IntvCosts!$F$18:$F$19,0,$C27-1)) -> 500000 | O27: =SUMPRODUCT(O$17:O$18,OFFSET(IntvCosts!$F$18:$F$19,0,$C27-1)) -> 2000 | P27: =SUMPRODUCT(P$17:P$18,OFFSET(IntvCosts!$F$18:$F$19,0,$C27-1)) -> 0 | Q27: =SUMPRODUCT(Q$17:Q$18,OFFSET(IntvCosts!$F$18:$F$19,0,$C27-1)) -> 2000 | R27: =SUMPRODUCT(R$17:R$18,OFFSET(IntvCosts!$F$18:$F$19,0,$C27-1)) -> 0 | S27: =SUMPRODUCT(S$17:S$18,OFFSET(IntvCosts!$F$18:$F$19,0,$C27-1)) -> 2000 | T27: =SUMPRODUCT(T$17:T$18,OFFSET(IntvCosts!$F$18:$F$19,0,$C27-1)) -> 0 | U27: =SUMPRODUCT(U$17:U$18,OFFSET(IntvCosts!$F$18:$F$19,0,$C27-1)) -> 2000 | V27: =SUMPRODUCT(V$17:V$18,OFFSET(IntvCosts!$F$18:$F$19,0,$C27-1)) -> 0 | W27: =SUMPRODUCT(W$17:W$18,OFFSET(IntvCosts!$F$18:$F$19,0,$C27-1)) -> 2000 | X27: =SUMPRODUCT(X$17:X$18,OFFSET(IntvCosts!$F$18:$F$19,0,$C27-1)) -> 500000 | Y27: =SUMPRODUCT(Y$17:Y$18,OFFSET(IntvCosts!$F$18:$F$19,0,$C27-1)) -> 0 | Z27: =SUMPRODUCT(Z$17:Z$18,OFFSET(IntvCosts!$F$18:$F$19,0,$C27-1)) -> 2000 | AA27: =SUMPRODUCT(AA$17:AA$18,OFFSET(IntvCosts!$F$18:$F$19,0,$C27-1)) -> 2000 | AE27: =SUM(G27:AA27) -> 1534000 | AF27: =SUMPRODUCT(G27:AA27,OFFSET(G$81:AA$81,AG$20,0)) -> 814999.9247
C28: 3 | D28: =INDEX(IntvCosts!$F$14:$I$15,1,$C28) -> Materials | F28: =INDEX(IntvCosts!$F$14:$I$15,2,$C28) -> Mnt | G28: =SUMPRODUCT(G$17:G$18,OFFSET(IntvCosts!$F$18:$F$19,0,$C28-1)) -> 7000 | H28: =SUMPRODUCT(H$17:H$18,OFFSET(IntvCosts!$F$18:$F$19,0,$C28-1)) -> 2000 | I28: =SUMPRODUCT(I$17:I$18,OFFSET(IntvCosts!$F$18:$F$19,0,$C28-1)) -> 2000 | J28: =SUMPRODUCT(J$17:J$18,OFFSET(IntvCosts!$F$18:$F$19,0,$C28-1)) -> 4000 | K28: =SUMPRODUCT(K$17:K$18,OFFSET(IntvCosts!$F$18:$F$19,0,$C28-1)) -> 4000 | L28: =SUMPRODUCT(L$17:L$18,OFFSET(IntvCosts!$F$18:$F$19,0,$C28-1)) -> 2000 | M28: =SUMPRODUCT(M$17:M$18,OFFSET(IntvCosts!$F$18:$F$19,0,$C28-1)) -> 4000 | N28: =SUMPRODUCT(N$17:N$18,OFFSET(IntvCosts!$F$18:$F$19,0,$C28-1)) -> 5000 | O28: =SUMPRODUCT(O$17:O$18,OFFSET(IntvCosts!$F$18:$F$19,0,$C28-1)) -> 2000 | P28: =SUMPRODUCT(P$17:P$18,OFFSET(IntvCosts!$F$18:$F$19,0,$C28-1)) -> 0 | Q28: =SUMPRODUCT(Q$17:Q$18,OFFSET(IntvCosts!$F$18:$F$19,0,$C28-1)) -> 2000 | R28: =SUMPRODUCT(R$17:R$18,OFFSET(IntvCosts!$F$18:$F$19,0,$C28-1)) -> 0 | S28: =SUMPRODUCT(S$17:S$18,OFFSET(IntvCosts!$F$18:$F$19,0,$C28-1)) -> 2000 | T28: =SUMPRODUCT(T$17:T$18,OFFSET(IntvCosts!$F$18:$F$19,0,$C28-1)) -> 0 | U28: =SUMPRODUCT(U$17:U$18,OFFSET(IntvCosts!$F$18:$F$19,0,$C28-1)) -> 2000 | V28: =SUMPRODUCT(V$17:V$18,OFFSET(IntvCosts!$F$18:$F$19,0,$C28-1)) -> 0 | W28: =SUMPRODUCT(W$17:W$18,OFFSET(IntvCosts!$F$18:$F$19,0,$C28-1)) -> 2000 | X28: =SUMPRODUCT(X$17:X$18,OFFSET(IntvCosts!$F$18:$F$19,0,$C28-1)) -> 5000 | Y28: =SUMPRODUCT(Y$17:Y$18,OFFSET(IntvCosts!$F$18:$F$19,0,$C28-1)) -> 0 | Z28: =SUMPRODUCT(Z$17:Z$18,OFFSET(IntvCosts!$F$18:$F$19,0,$C28-1)) -> 2000 | AA28: =SUMPRODUCT(AA$17:AA$18,OFFSET(IntvCosts!$F$18:$F$19,0,$C28-1)) -> 2000 | AE28: =SUM(G28:AA28) -> 49000 | AF28: =SUMPRODUCT(G28:AA28,OFFSET(G$81:AA$81,AG$20,0)) -> 25020.86822
C29: 4 | D29: =INDEX(IntvCosts!$F$14:$I$15,1,$C29) -> Tax | F29: =INDEX(IntvCosts!$F$14:$I$15,2,$C29) -> Tax | G29: =SUMPRODUCT(G$17:G$18,OFFSET(IntvCosts!$F$18:$F$19,0,$C29-1)) -> 23000 | H29: =SUMPRODUCT(H$17:H$18,OFFSET(IntvCosts!$F$18:$F$19,0,$C29-1)) -> 3000 | I29: =SUMPRODUCT(I$17:I$18,OFFSET(IntvCosts!$F$18:$F$19,0,$C29-1)) -> 3000 | J29: =SUMPRODUCT(J$17:J$18,OFFSET(IntvCosts!$F$18:$F$19,0,$C29-1)) -> 6000 | K29: =SUMPRODUCT(K$17:K$18,OFFSET(IntvCosts!$F$18:$F$19,0,$C29-1)) -> 6000 | L29: =SUMPRODUCT(L$17:L$18,OFFSET(IntvCosts!$F$18:$F$19,0,$C29-1)) -> 3000 | M29: =SUMPRODUCT(M$17:M$18,OFFSET(IntvCosts!$F$18:$F$19,0,$C29-1)) -> 6000 | N29: =SUMPRODUCT(N$17:N$18,OFFSET(IntvCosts!$F$18:$F$19,0,$C29-1)) -> 20000 | O29: =SUMPRODUCT(O$17:O$18,OFFSET(IntvCosts!$F$18:$F$19,0,$C29-1)) -> 3000 | P29: =SUMPRODUCT(P$17:P$18,OFFSET(IntvCosts!$F$18:$F$19,0,$C29-1)) -> 0 | Q29: =SUMPRODUCT(Q$17:Q$18,OFFSET(IntvCosts!$F$18:$F$19,0,$C29-1)) -> 3000 | R29: =SUMPRODUCT(R$17:R$18,OFFSET(IntvCosts!$F$18:$F$19,0,$C29-1)) -> 0 | S29: =SUMPRODUCT(S$17:S$18,OFFSET(IntvCosts!$F$18:$F$19,0,$C29-1)) -> 3000 | T29: =SUMPRODUCT(T$17:T$18,OFFSET(IntvCosts!$F$18:$F$19,0,$C29-1)) -> 0 | U29: =SUMPRODUCT(U$17:U$18,OFFSET(IntvCosts!$F$18:$F$19,0,$C29-1)) -> 3000 | V29: =SUMPRODUCT(V$17:V$18,OFFSET(IntvCosts!$F$18:$F$19,0,$C29-1)) -> 0 | W29: =SUMPRODUCT(W$17:W$18,OFFSET(IntvCosts!$F$18:$F$19,0,$C29-1)) -> 3000 | X29: =SUMPRODUCT(X$17:X$18,OFFSET(IntvCosts!$F$18:$F$19,0,$C29-1)) -> 20000 | Y29: =SUMPRODUCT(Y$17:Y$18,OFFSET(IntvCosts!$F$18:$F$19,0,$C29-1)) -> 0 | Z29: =SUMPRODUCT(Z$17:Z$18,OFFSET(IntvCosts!$F$18:$F$19,0,$C29-1)) -> 3000 | AA29: =SUMPRODUCT(AA$17:AA$18,OFFSET(IntvCosts!$F$18:$F$19,0,$C29-1)) -> 3000 | AE29: =SUM(G29:AA29) -> 111000 | AF29: =SUMPRODUCT(G29:AA29,OFFSET(G$81:AA$81,AG$20,0)) -> 57480.26841
D30: Financial | F30: Total | G30: =SUM(G26:G29) -> 747000 | H30: 17000 | I30: 17000 | J30: 34000 | K30: 34000 | L30: 17000 | M30: 34000 | N30: 730000 | O30: 17000 | P30: 0 | Q30: 17000 | R30: 0 | S30: 17000 | T30: 0 | U30: 17000 | V30: 0 | W30: 17000 | X30: 730000 | Y30: 0 | Z30: 17000 | AA30: 17000 | AE30: =SUM(AE26:AE29) -> 2479000 | AF30: =SUM(AF26:AF29) -> 1309870.514
C32: Costs by Budget
C33: 1 | D33: =INDEX(IntvCosts!$L$14:$O$15,1,$C33) -> Maintenance | F33: =INDEX(IntvCosts!$L$14:$O$15,2,$C33) -> Mnt | G33: =SUMPRODUCT(G$21:G$22,OFFSET(IntvCosts!$L$18:$L$19,0,$C33-1)) -> 730000 | H33: =SUMPRODUCT(H$21:H$22,OFFSET(IntvCosts!$L$18:$L$19,0,$C33-1)) -> 0 | I33: =SUMPRODUCT(I$21:I$22,OFFSET(IntvCosts!$L$18:$L$19,0,$C33-1)) -> 0 | J33: =SUMPRODUCT(J$21:J$22,OFFSET(IntvCosts!$L$18:$L$19,0,$C33-1)) -> 0 | K33: =SUMPRODUCT(K$21:K$22,OFFSET(IntvCosts!$L$18:$L$19,0,$C33-1)) -> 0 | L33: =SUMPRODUCT(L$21:L$22,OFFSET(IntvCosts!$L$18:$L$19,0,$C33-1)) -> 0 | M33: =SUMPRODUCT(M$21:M$22,OFFSET(IntvCosts!$L$18:$L$19,0,$C33-1)) -> 0 | N33: =SUMPRODUCT(N$21:N$22,OFFSET(IntvCosts!$L$18:$L$19,0,$C33-1)) -> 730000 | O33: =SUMPRODUCT(O$21:O$22,OFFSET(IntvCosts!$L$18:$L$19,0,$C33-1)) -> 0 | P33: =SUMPRODUCT(P$21:P$22,OFFSET(IntvCosts!$L$18:$L$19,0,$C33-1)) -> 0 | Q33: =SUMPRODUCT(Q$21:Q$22,OFFSET(IntvCosts!$L$18:$L$19,0,$C33-1)) -> 0 | R33: =SUMPRODUCT(R$21:R$22,OFFSET(IntvCosts!$L$18:$L$19,0,$C33-1)) -> 0 | S33: =SUMPRODUCT(S$21:S$22,OFFSET(IntvCosts!$L$18:$L$19,0,$C33-1)) -> 0 | T33: =SUMPRODUCT(T$21:T$22,OFFSET(IntvCosts!$L$18:$L$19,0,$C33-1)) -> 0 | U33: =SUMPRODUCT(U$21:U$22,OFFSET(IntvCosts!$L$18:$L$19,0,$C33-1)) -> 0 | V33: =SUMPRODUCT(V$21:V$22,OFFSET(IntvCosts!$L$18:$L$19,0,$C33-1)) -> 0 | W33: =SUMPRODUCT(W$21:W$22,OFFSET(IntvCosts!$L$18:$L$19,0,$C33-1)) -> 0 | X33: =SUMPRODUCT(X$21:X$22,OFFSET(IntvCosts!$L$18:$L$19,0,$C33-1)) -> 730000 | Y33: =SUMPRODUCT(Y$21:Y$22,OFFSET(IntvCosts!$L$18:$L$19,0,$C33-1)) -> 0 | Z33: =SUMPRODUCT(Z$21:Z$22,OFFSET(IntvCosts!$L$18:$L$19,0,$C33-1)) -> 0 | AA33: =SUMPRODUCT(AA$21:AA$22,OFFSET(IntvCosts!$L$18:$L$19,0,$C33-1)) -> 0 | AE33: =SUM(G33:AA33) -> 2190000 | AF33: =SUMPRODUCT(G33:AA33,OFFSET(G$81:AA$81,AG$20,0)) -> 1165019.619
C34: 2 | D34: =INDEX(IntvCosts!$L$14:$O$15,1,$C34) -> Capital | F34: =INDEX(IntvCosts!$L$14:$O$15,2,$C34) -> Cap | G34: =SUMPRODUCT(G$21:G$22,OFFSET(IntvCosts!$L$18:$L$19,0,$C34-1)) -> 13600 | H34: =SUMPRODUCT(H$21:H$22,OFFSET(IntvCosts!$L$18:$L$19,0,$C34-1)) -> 13600 | I34: =SUMPRODUCT(I$21:I$22,OFFSET(IntvCosts!$L$18:$L$19,0,$C34-1)) -> 13600 | J34: =SUMPRODUCT(J$21:J$22,OFFSET(IntvCosts!$L$18:$L$19,0,$C34-1)) -> 27200 | K34: =SUMPRODUCT(K$21:K$22,OFFSET(IntvCosts!$L$18:$L$19,0,$C34-1)) -> 27200 | L34: =SUMPRODUCT(L$21:L$22,OFFSET(IntvCosts!$L$18:$L$19,0,$C34-1)) -> 13600 | M34: =SUMPRODUCT(M$21:M$22,OFFSET(IntvCosts!$L$18:$L$19,0,$C34-1)) -> 27200 | N34: =SUMPRODUCT(N$21:N$22,OFFSET(IntvCosts!$L$18:$L$19,0,$C34-1)) -> 0 | O34: =SUMPRODUCT(O$21:O$22,OFFSET(IntvCosts!$L$18:$L$19,0,$C34-1)) -> 13600 | P34: =SUMPRODUCT(P$21:P$22,OFFSET(IntvCosts!$L$18:$L$19,0,$C34-1)) -> 0 | Q34: =SUMPRODUCT(Q$21:Q$22,OFFSET(IntvCosts!$L$18:$L$19,0,$C34-1)) -> 13600 | R34: =SUMPRODUCT(R$21:R$22,OFFSET(IntvCosts!$L$18:$L$19,0,$C34-1)) -> 0 | S34: =SUMPRODUCT(S$21:S$22,OFFSET(IntvCosts!$L$18:$L$19,0,$C34-1)) -> 13600 | T34: =SUMPRODUCT(T$21:T$22,OFFSET(IntvCosts!$L$18:$L$19,0,$C34-1)) -> 0 | U34: =SUMPRODUCT(U$21:U$22,OFFSET(IntvCosts!$L$18:$L$19,0,$C34-1)) -> 13600 | V34: =SUMPRODUCT(V$21:V$22,OFFSET(IntvCosts!$L$18:$L$19,0,$C34-1)) -> 0 | W34: =SUMPRODUCT(W$21:W$22,OFFSET(IntvCosts!$L$18:$L$19,0,$C34-1)) -> 13600 | X34: =SUMPRODUCT(X$21:X$22,OFFSET(IntvCosts!$L$18:$L$19,0,$C34-1)) -> 0 | Y34: =SUMPRODUCT(Y$21:Y$22,OFFSET(IntvCosts!$L$18:$L$19,0,$C34-1)) -> 0 | Z34: =SUMPRODUCT(Z$21:Z$22,OFFSET(IntvCosts!$L$18:$L$19,0,$C34-1)) -> 13600 | AA34: =SUMPRODUCT(AA$21:AA$22,OFFSET(IntvCosts!$L$18:$L$19,0,$C34-1)) -> 13600 | AE34: =SUM(G34:AA34) -> 231200 | AF34: =SUMPRODUCT(G34:AA34,OFFSET(G$81:AA$81,AG$20,0)) -> 115880.7162
C35: 3 | D35: =INDEX(IntvCosts!$L$14:$O$15,1,$C35) -> Operations | F35: =INDEX(IntvCosts!$L$14:$O$15,2,$C35) -> Ops | G35: =SUMPRODUCT(G$21:G$22,OFFSET(IntvCosts!$L$18:$L$19,0,$C35-1)) -> 2550 | H35: =SUMPRODUCT(H$21:H$22,OFFSET(IntvCosts!$L$18:$L$19,0,$C35-1)) -> 2550 | I35: =SUMPRODUCT(I$21:I$22,OFFSET(IntvCosts!$L$18:$L$19,0,$C35-1)) -> 2550 | J35: =SUMPRODUCT(J$21:J$22,OFFSET(IntvCosts!$L$18:$L$19,0,$C35-1)) -> 5100 | K35: =SUMPRODUCT(K$21:K$22,OFFSET(IntvCosts!$L$18:$L$19,0,$C35-1)) -> 5100 | L35: =SUMPRODUCT(L$21:L$22,OFFSET(IntvCosts!$L$18:$L$19,0,$C35-1)) -> 2550 | M35: =SUMPRODUCT(M$21:M$22,OFFSET(IntvCosts!$L$18:$L$19,0,$C35-1)) -> 5100 | N35: =SUMPRODUCT(N$21:N$22,OFFSET(IntvCosts!$L$18:$L$19,0,$C35-1)) -> 0 | O35: =SUMPRODUCT(O$21:O$22,OFFSET(IntvCosts!$L$18:$L$19,0,$C35-1)) -> 2550 | P35: =SUMPRODUCT(P$21:P$22,OFFSET(IntvCosts!$L$18:$L$19,0,$C35-1)) -> 0 | Q35: =SUMPRODUCT(Q$21:Q$22,OFFSET(IntvCosts!$L$18:$L$19,0,$C35-1)) -> 2550 | R35: =SUMPRODUCT(R$21:R$22,OFFSET(IntvCosts!$L$18:$L$19,0,$C35-1)) -> 0 | S35: =SUMPRODUCT(S$21:S$22,OFFSET(IntvCosts!$L$18:$L$19,0,$C35-1)) -> 2550 | T35: =SUMPRODUCT(T$21:T$22,OFFSET(IntvCosts!$L$18:$L$19,0,$C35-1)) -> 0 | U35: =SUMPRODUCT(U$21:U$22,OFFSET(IntvCosts!$L$18:$L$19,0,$C35-1)) -> 2550 | V35: =SUMPRODUCT(V$21:V$22,OFFSET(IntvCosts!$L$18:$L$19,0,$C35-1)) -> 0 | W35: =SUMPRODUCT(W$21:W$22,OFFSET(IntvCosts!$L$18:$L$19,0,$C35-1)) -> 2550 | X35: =SUMPRODUCT(X$21:X$22,OFFSET(IntvCosts!$L$18:$L$19,0,$C35-1)) -> 0 | Y35: =SUMPRODUCT(Y$21:Y$22,OFFSET(IntvCosts!$L$18:$L$19,0,$C35-1)) -> 0 | Z35: =SUMPRODUCT(Z$21:Z$22,OFFSET(IntvCosts!$L$18:$L$19,0,$C35-1)) -> 2550 | AA35: =SUMPRODUCT(AA$21:AA$22,OFFSET(IntvCosts!$L$18:$L$19,0,$C35-1)) -> 2550 | AE35: =SUM(G35:AA35) -> 43350 | AF35: =SUMPRODUCT(G35:AA35,OFFSET(G$81:AA$81,AG$20,0)) -> 21727.63428
C36: 4 | D36: =INDEX(IntvCosts!$L$14:$O$15,1,$C36) -> Government | F36: =INDEX(IntvCosts!$L$14:$O$15,2,$C36) -> Gov | G36: =SUMPRODUCT(G$21:G$22,OFFSET(IntvCosts!$L$18:$L$19,0,$C36-1)) -> 850 | H36: =SUMPRODUCT(H$21:H$22,OFFSET(IntvCosts!$L$18:$L$19,0,$C36-1)) -> 850 | I36: =SUMPRODUCT(I$21:I$22,OFFSET(IntvCosts!$L$18:$L$19,0,$C36-1)) -> 850 | J36: =SUMPRODUCT(J$21:J$22,OFFSET(IntvCosts!$L$18:$L$19,0,$C36-1)) -> 1700 | K36: =SUMPRODUCT(K$21:K$22,OFFSET(IntvCosts!$L$18:$L$19,0,$C36-1)) -> 1700 | L36: =SUMPRODUCT(L$21:L$22,OFFSET(IntvCosts!$L$18:$L$19,0,$C36-1)) -> 850 | M36: =SUMPRODUCT(M$21:M$22,OFFSET(IntvCosts!$L$18:$L$19,0,$C36-1)) -> 1700 | N36: =SUMPRODUCT(N$21:N$22,OFFSET(IntvCosts!$L$18:$L$19,0,$C36-1)) -> 0 | O36: =SUMPRODUCT(O$21:O$22,OFFSET(IntvCosts!$L$18:$L$19,0,$C36-1)) -> 850 | P36: =SUMPRODUCT(P$21:P$22,OFFSET(IntvCosts!$L$18:$L$19,0,$C36-1)) -> 0 | Q36: =SUMPRODUCT(Q$21:Q$22,OFFSET(IntvCosts!$L$18:$L$19,0,$C36-1)) -> 850 | R36: =SUMPRODUCT(R$21:R$22,OFFSET(IntvCosts!$L$18:$L$19,0,$C36-1)) -> 0 | S36: =SUMPRODUCT(S$21:S$22,OFFSET(IntvCosts!$L$18:$L$19,0,$C36-1)) -> 850 | T36: =SUMPRODUCT(T$21:T$22,OFFSET(IntvCosts!$L$18:$L$19,0,$C36-1)) -> 0 | U36: =SUMPRODUCT(U$21:U$22,OFFSET(IntvCosts!$L$18:$L$19,0,$C36-1)) -> 850 | V36: =SUMPRODUCT(V$21:V$22,OFFSET(IntvCosts!$L$18:$L$19,0,$C36-1)) -> 0 | W36: =SUMPRODUCT(W$21:W$22,OFFSET(IntvCosts!$L$18:$L$19,0,$C36-1)) -> 850 | X36: =SUMPRODUCT(X$21:X$22,OFFSET(IntvCosts!$L$18:$L$19,0,$C36-1)) -> 0 | Y36: =SUMPRODUCT(Y$21:Y$22,OFFSET(IntvCosts!$L$18:$L$19,0,$C36-1)) -> 0 | Z36: =SUMPRODUCT(Z$21:Z$22,OFFSET(IntvCosts!$L$18:$L$19,0,$C36-1)) -> 850 | AA36: =SUMPRODUCT(AA$21:AA$22,OFFSET(IntvCosts!$L$18:$L$19,0,$C36-1)) -> 850 | AE36: =SUM(G36:AA36) -> 14450 | AF36: =SUMPRODUCT(G36:AA36,OFFSET(G$81:AA$81,AG$20,0)) -> 7242.544761
D37: Financial | F37: Total | G37: =SUM(G33:G36) -> 747000 | H37: 17000 | I37: 17000 | J37: 34000 | K37: 34000 | L37: 17000 | M37: 34000 | N37: 730000 | O37: 17000 | P37: 0 | Q37: 17000 | R37: 0 | S37: 17000 | T37: 0 | U37: 17000 | V37: 0 | W37: 17000 | X37: 730000 | Y37: 0 | Z37: 17000 | AA37: 17000 | AE37: =SUM(AE33:AE36) -> 2479000 | AF37: =SUM(AF33:AF36) -> 1309870.514
C40: Environmental Impacts
G41: =IntvCosts!Q14&" ["&IntvCosts!Q16&"]" -> Carbon Dioxide equivalent [kg] | AC41: =OFFSET(IntvCosts!$Q$16,0,$B42)&" "&OFFSET(IntvCosts!$Q$15,0,$B42) -> kg CO2e | AD41: ="Euro/"&AC41 -> Euro/kg CO2e | AE41: As Cash | AF41: Disc't | AG41: 1
A42: Offset | B42: 0 | C42: =C$17 -> 1 | D42: =D$17 -> In-situ tamping of ballast | G42: =OFFSET(G$16,$C42,0)*OFFSET(IntvCosts!$Q$17,$C42,$B42) -> 421 | H42: =OFFSET(H$16,$C42,0)*OFFSET(IntvCosts!$Q$17,$C42,$B42) -> 421 | I42: =OFFSET(I$16,$C42,0)*OFFSET(IntvCosts!$Q$17,$C42,$B42) -> 421 | J42: =OFFSET(J$16,$C42,0)*OFFSET(IntvCosts!$Q$17,$C42,$B42) -> 842 | K42: =OFFSET(K$16,$C42,0)*OFFSET(IntvCosts!$Q$17,$C42,$B42) -> 842 | L42: =OFFSET(L$16,$C42,0)*OFFSET(IntvCosts!$Q$17,$C42,$B42) -> 421 | M42: =OFFSET(M$16,$C42,0)*OFFSET(IntvCosts!$Q$17,$C42,$B42) -> 842 | N42: =OFFSET(N$16,$C42,0)*OFFSET(IntvCosts!$Q$17,$C42,$B42) -> 0 | O42: =OFFSET(O$16,$C42,0)*OFFSET(IntvCosts!$Q$17,$C42,$B42) -> 421 | P42: =OFFSET(P$16,$C42,0)*OFFSET(IntvCosts!$Q$17,$C42,$B42) -> 0 | Q42: =OFFSET(Q$16,$C42,0)*OFFSET(IntvCosts!$Q$17,$C42,$B42) -> 421 | R42: =OFFSET(R$16,$C42,0)*OFFSET(IntvCosts!$Q$17,$C42,$B42) -> 0 | S42: =OFFSET(S$16,$C42,0)*OFFSET(IntvCosts!$Q$17,$C42,$B42) -> 421 | T42: =OFFSET(T$16,$C42,0)*OFFSET(IntvCosts!$Q$17,$C42,$B42) -> 0 | U42: =OFFSET(U$16,$C42,0)*OFFSET(IntvCosts!$Q$17,$C42,$B42) -> 421 | V42: =OFFSET(V$16,$C42,0)*OFFSET(IntvCosts!$Q$17,$C42,$B42) -> 0 | W42: =OFFSET(W$16,$C42,0)*OFFSET(IntvCosts!$Q$17,$C42,$B42) -> 421 | X42: =OFFSET(X$16,$C42,0)*OFFSET(IntvCosts!$Q$17,$C42,$B42) -> 0 | Y42: =OFFSET(Y$16,$C42,0)*OFFSET(IntvCosts!$Q$17,$C42,$B42) -> 0 | Z42: =OFFSET(Z$16,$C42,0)*OFFSET(IntvCosts!$Q$17,$C42,$B42) -> 421 | AA42: =OFFSET(AA$16,$C42,0)*OFFSET(IntvCosts!$Q$17,$C42,$B42) -> 421 | AC42: =SUM(G42:AA42) -> 7157 | AD42: =AD43 -> 1 | AE42: =AC42*AD42 -> 7157 | AF42: =SUMPRODUCT(G42:AA42,OFFSET(G$81:AA$81,AG$41,0))*AD42 -> 3850.674103
B43: 0 | C43: =C$18 -> 2 | D43: =D$18 -> Renew track structure | G43: =OFFSET(G$16,$C43,0)*OFFSET(IntvCosts!$Q$17,$C43,$B43) -> 296745.7 | H43: =OFFSET(H$16,$C43,0)*OFFSET(IntvCosts!$Q$17,$C43,$B43) -> 0 | I43: =OFFSET(I$16,$C43,0)*OFFSET(IntvCosts!$Q$17,$C43,$B43) -> 0 | J43: =OFFSET(J$16,$C43,0)*OFFSET(IntvCosts!$Q$17,$C43,$B43) -> 0 | K43: =OFFSET(K$16,$C43,0)*OFFSET(IntvCosts!$Q$17,$C43,$B43) -> 0 | L43: =OFFSET(L$16,$C43,0)*OFFSET(IntvCosts!$Q$17,$C43,$B43) -> 0 | M43: =OFFSET(M$16,$C43,0)*OFFSET(IntvCosts!$Q$17,$C43,$B43) -> 0 | N43: =OFFSET(N$16,$C43,0)*OFFSET(IntvCosts!$Q$17,$C43,$B43) -> 296745.7 | O43: =OFFSET(O$16,$C43,0)*OFFSET(IntvCosts!$Q$17,$C43,$B43) -> 0 | P43: =OFFSET(P$16,$C43,0)*OFFSET(IntvCosts!$Q$17,$C43,$B43) -> 0 | Q43: =OFFSET(Q$16,$C43,0)*OFFSET(IntvCosts!$Q$17,$C43,$B43) -> 0 | R43: =OFFSET(R$16,$C43,0)*OFFSET(IntvCosts!$Q$17,$C43,$B43) -> 0 | S43: =OFFSET(S$16,$C43,0)*OFFSET(IntvCosts!$Q$17,$C43,$B43) -> 0 | T43: =OFFSET(T$16,$C43,0)*OFFSET(IntvCosts!$Q$17,$C43,$B43) -> 0 | U43: =OFFSET(U$16,$C43,0)*OFFSET(IntvCosts!$Q$17,$C43,$B43) -> 0 | V43: =OFFSET(V$16,$C43,0)*OFFSET(IntvCosts!$Q$17,$C43,$B43) -> 0 | W43: =OFFSET(W$16,$C43,0)*OFFSET(IntvCosts!$Q$17,$C43,$B43) -> 0 | X43: =OFFSET(X$16,$C43,0)*OFFSET(IntvCosts!$Q$17,$C43,$B43) -> 296745.7 | Y43: =OFFSET(Y$16,$C43,0)*OFFSET(IntvCosts!$Q$17,$C43,$B43) -> 0 | Z43: =OFFSET(Z$16,$C43,0)*OFFSET(IntvCosts!$Q$17,$C43,$B43) -> 0 | AA43: =OFFSET(AA$16,$C43,0)*OFFSET(IntvCosts!$Q$17,$C43,$B43) -> 0 | AC43: =SUM(G43:AA43) -> 890237.1 | AD43: =AD45 -> 1 | AE43: =AC43*AD43 -> 890237.1 | AF43: =SUMPRODUCT(G43:AA43,OFFSET(G$81:AA$81,AG$41,0))*AD43 -> 500254.4392
B44: 0 | C44: =IntvCosts!Q14 -> Carbon Dioxide equivalent | F44: =IntvCosts!Q15 -> CO2e | G44: =SUM(G42:G43) -> 297166.7 | H44: 421 | I44: 421 | J44: 842 | K44: 842 | L44: 421 | M44: 842 | N44: 296745.7 | O44: 421 | P44: 0 | Q44: 421 | R44: 0 | S44: 421 | T44: 0 | U44: 421 | V44: 0 | W44: 421 | X44: 296745.7 | Y44: 0 | Z44: 421 | AA44: 421 | AC44: =SUM(AC42:AC43) -> 897394.1
B45: 0 | C45: Cash equivalent | F45: Euro | G45: =G44*$AD45 -> 297166.7 | H45: =H44*$AD45 -> 421 | I45: 421 | J45: 842 | K45: 842 | L45: 421 | M45: 842 | N45: 296745.7 | O45: 421 | P45: 0 | Q45: 421 | R45: 0 | S45: 421 | T45: 0 | U45: 421 | V45: 0 | W45: 421 | X45: 296745.7 | Y45: 0 | Z45: 421 | AA45: 421 | AC45: =SUM(G45:AA45) -> 897394.1 | AD45: =OFFSET(IntvCosts!$Q$21,0,$B45) -> 1 | AE45: =SUM(AE42:AE43) -> 897394.1 | AF45: =SUM(AF42:AF43) -> 504105.1133
G48: =IntvCosts!R14&" ["&IntvCosts!R16&"]" -> User-defined impact (2) [unit2] | AC48: =OFFSET(IntvCosts!$Q$16,0,$B49)&" "&OFFSET(IntvCosts!$Q$15,0,$B49) -> unit2 EI-2 | AD48: ="Euro/"&AC48 -> Euro/unit2 EI-2 | AE48: As Cash | AF48: Disc't
A49: Offset | B49: 1 | C49: =C$17 -> 1 | D49: =D$17 -> In-situ tamping of ballast | G49: =OFFSET(G$16,$C49,0)*OFFSET(IntvCosts!$Q$17,$C49,$B49) -> 0 | H49: =OFFSET(H$16,$C49,0)*OFFSET(IntvCosts!$Q$17,$C49,$B49) -> 0 | I49: =OFFSET(I$16,$C49,0)*OFFSET(IntvCosts!$Q$17,$C49,$B49) -> 0 | J49: =OFFSET(J$16,$C49,0)*OFFSET(IntvCosts!$Q$17,$C49,$B49) -> 0 | K49: =OFFSET(K$16,$C49,0)*OFFSET(IntvCosts!$Q$17,$C49,$B49) -> 0 | L49: =OFFSET(L$16,$C49,0)*OFFSET(IntvCosts!$Q$17,$C49,$B49) -> 0 | M49: =OFFSET(M$16,$C49,0)*OFFSET(IntvCosts!$Q$17,$C49,$B49) -> 0 | N49: =OFFSET(N$16,$C49,0)*OFFSET(IntvCosts!$Q$17,$C49,$B49) -> 0 | O49: =OFFSET(O$16,$C49,0)*OFFSET(IntvCosts!$Q$17,$C49,$B49) -> 0 | P49: =OFFSET(P$16,$C49,0)*OFFSET(IntvCosts!$Q$17,$C49,$B49) -> 0 | Q49: =OFFSET(Q$16,$C49,0)*OFFSET(IntvCosts!$Q$17,$C49,$B49) -> 0 | R49: =OFFSET(R$16,$C49,0)*OFFSET(IntvCosts!$Q$17,$C49,$B49) -> 0 | S49: =OFFSET(S$16,$C49,0)*OFFSET(IntvCosts!$Q$17,$C49,$B49) -> 0 | T49: =OFFSET(T$16,$C49,0)*OFFSET(IntvCosts!$Q$17,$C49,$B49) -> 0 | U49: =OFFSET(U$16,$C49,0)*OFFSET(IntvCosts!$Q$17,$C49,$B49) -> 0 | V49: =OFFSET(V$16,$C49,0)*OFFSET(IntvCosts!$Q$17,$C49,$B49) -> 0 | W49: =OFFSET(W$16,$C49,0)*OFFSET(IntvCosts!$Q$17,$C49,$B49) -> 0 | X49: =OFFSET(X$16,$C49,0)*OFFSET(IntvCosts!$Q$17,$C49,$B49) -> 0 | Y49: =OFFSET(Y$16,$C49,0)*OFFSET(IntvCosts!$Q$17,$C49,$B49) -> 0 | Z49: =OFFSET(Z$16,$C49,0)*OFFSET(IntvCosts!$Q$17,$C49,$B49) -> 0 | AA49: =OFFSET(AA$16,$C49,0)*OFFSET(IntvCosts!$Q$17,$C49,$B49) -> 0 | AC49: =SUM(G49:AA49) -> 0 | AD49: =AD50 -> 0.2 | AE49: =AC49*AD49 -> 0 | AF49: =SUMPRODUCT(G49:AA49,OFFSET(G$81:AA$81,AG$41,0))*AD49 -> 0
B50: 1 | C50: =C$18 -> 2 | D50: =D$18 -> Renew track structure | G50: =OFFSET(G$16,$C50,0)*OFFSET(IntvCosts!$Q$17,$C50,$B50) -> 0 | H50: =OFFSET(H$16,$C50,0)*OFFSET(IntvCosts!$Q$17,$C50,$B50) -> 0 | I50: =OFFSET(I$16,$C50,0)*OFFSET(IntvCosts!$Q$17,$C50,$B50) -> 0 | J50: =OFFSET(J$16,$C50,0)*OFFSET(IntvCosts!$Q$17,$C50,$B50) -> 0 | K50: =OFFSET(K$16,$C50,0)*OFFSET(IntvCosts!$Q$17,$C50,$B50) -> 0 | L50: =OFFSET(L$16,$C50,0)*OFFSET(IntvCosts!$Q$17,$C50,$B50) -> 0 | M50: =OFFSET(M$16,$C50,0)*OFFSET(IntvCosts!$Q$17,$C50,$B50) -> 0 | N50: =OFFSET(N$16,$C50,0)*OFFSET(IntvCosts!$Q$17,$C50,$B50) -> 0 | O50: =OFFSET(O$16,$C50,0)*OFFSET(IntvCosts!$Q$17,$C50,$B50) -> 0 | P50: =OFFSET(P$16,$C50,0)*OFFSET(IntvCosts!$Q$17,$C50,$B50) -> 0 | Q50: =OFFSET(Q$16,$C50,0)*OFFSET(IntvCosts!$Q$17,$C50,$B50) -> 0 | R50: =OFFSET(R$16,$C50,0)*OFFSET(IntvCosts!$Q$17,$C50,$B50) -> 0 | S50: =OFFSET(S$16,$C50,0)*OFFSET(IntvCosts!$Q$17,$C50,$B50) -> 0 | T50: =OFFSET(T$16,$C50,0)*OFFSET(IntvCosts!$Q$17,$C50,$B50) -> 0 | U50: =OFFSET(U$16,$C50,0)*OFFSET(IntvCosts!$Q$17,$C50,$B50) -> 0 | V50: =OFFSET(V$16,$C50,0)*OFFSET(IntvCosts!$Q$17,$C50,$B50) -> 0 | W50: =OFFSET(W$16,$C50,0)*OFFSET(IntvCosts!$Q$17,$C50,$B50) -> 0 | X50: =OFFSET(X$16,$C50,0)*OFFSET(IntvCosts!$Q$17,$C50,$B50) -> 0 | Y50: =OFFSET(Y$16,$C50,0)*OFFSET(IntvCosts!$Q$17,$C50,$B50) -> 0 | Z50: =OFFSET(Z$16,$C50,0)*OFFSET(IntvCosts!$Q$17,$C50,$B50) -> 0 | AA50: =OFFSET(AA$16,$C50,0)*OFFSET(IntvCosts!$Q$17,$C50,$B50) -> 0 | AC50: =SUM(G50:AA50) -> 0 | AD50: =AD52 -> 0.2 | AE50: =AC50*AD50 -> 0 | AF50: =SUMPRODUCT(G50:AA50,OFFSET(G$81:AA$81,AG$41,0))*AD50 -> 0
B51: 1 | C51: =IntvCosts!R14 -> User-defined impact (2) | F51: =IntvCosts!R15 -> EI-2 | G51: =SUM(G49:G50) -> 0 | H51: 0 | I51: 0 | J51: 0 | K51: 0 | L51: 0 | M51: 0 | N51: 0 | O51: 0 | P51: 0 | Q51: 0 | R51: 0 | S51: 0 | T51: 0 | U51: 0 | V51: 0 | W51: 0 | X51: 0 | Y51: 0 | Z51: 0 | AA51: 0 | AC51: =SUM(AC49:AC50) -> 0
B52: 1 | C52: Cash equivalent | F52: Euro | G52: =G51*$AD52 -> 0 | H52: =H51*$AD52 -> 0 | I52: 0 | J52: 0 | K52: 0 | L52: 0 | M52: 0 | N52: 0 | O52: 0 | P52: 0 | Q52: 0 | R52: 0 | S52: 0 | T52: 0 | U52: 0 | V52: 0 | W52: 0 | X52: 0 | Y52: 0 | Z52: 0 | AA52: 0 | AC52: =SUM(G52:AA52) -> 0 | AD52: =OFFSET(IntvCosts!$Q$21,0,$B52) -> 0.2 | AE52: =SUM(AE49:AE50) -> 0 | AF52: =SUM(AF49:AF50) -> 0
G55: =IntvCosts!S14&" ["&IntvCosts!S16&"]" -> User-defined impact (3) [unit3] | AC55: =OFFSET(IntvCosts!$Q$16,0,$B56)&" "&OFFSET(IntvCosts!$Q$15,0,$B56) -> unit3 EI-3 | AD55: ="Euro/"&AC55 -> Euro/unit3 EI-3 | AE55: As Cash | AF55: Disc't
A56: Offset | B56: 2 | C56: =C$17 -> 1 | D56: =D$17 -> In-situ tamping of ballast | G56: =OFFSET(G$16,$C56,0)*OFFSET(IntvCosts!$Q$17,$C56,$B56) -> 0 | H56: =OFFSET(H$16,$C56,0)*OFFSET(IntvCosts!$Q$17,$C56,$B56) -> 0 | I56: =OFFSET(I$16,$C56,0)*OFFSET(IntvCosts!$Q$17,$C56,$B56) -> 0 | J56: =OFFSET(J$16,$C56,0)*OFFSET(IntvCosts!$Q$17,$C56,$B56) -> 0 | K56: =OFFSET(K$16,$C56,0)*OFFSET(IntvCosts!$Q$17,$C56,$B56) -> 0 | L56: =OFFSET(L$16,$C56,0)*OFFSET(IntvCosts!$Q$17,$C56,$B56) -> 0 | M56: =OFFSET(M$16,$C56,0)*OFFSET(IntvCosts!$Q$17,$C56,$B56) -> 0 | N56: =OFFSET(N$16,$C56,0)*OFFSET(IntvCosts!$Q$17,$C56,$B56) -> 0 | O56: =OFFSET(O$16,$C56,0)*OFFSET(IntvCosts!$Q$17,$C56,$B56) -> 0 | P56: =OFFSET(P$16,$C56,0)*OFFSET(IntvCosts!$Q$17,$C56,$B56) -> 0 | Q56: =OFFSET(Q$16,$C56,0)*OFFSET(IntvCosts!$Q$17,$C56,$B56) -> 0 | R56: =OFFSET(R$16,$C56,0)*OFFSET(IntvCosts!$Q$17,$C56,$B56) -> 0 | S56: =OFFSET(S$16,$C56,0)*OFFSET(IntvCosts!$Q$17,$C56,$B56) -> 0 | T56: =OFFSET(T$16,$C56,0)*OFFSET(IntvCosts!$Q$17,$C56,$B56) -> 0 | U56: =OFFSET(U$16,$C56,0)*OFFSET(IntvCosts!$Q$17,$C56,$B56) -> 0 | V56: =OFFSET(V$16,$C56,0)*OFFSET(IntvCosts!$Q$17,$C56,$B56) -> 0 | W56: =OFFSET(W$16,$C56,0)*OFFSET(IntvCosts!$Q$17,$C56,$B56) -> 0 | X56: =OFFSET(X$16,$C56,0)*OFFSET(IntvCosts!$Q$17,$C56,$B56) -> 0 | Y56: =OFFSET(Y$16,$C56,0)*OFFSET(IntvCosts!$Q$17,$C56,$B56) -> 0 | Z56: =OFFSET(Z$16,$C56,0)*OFFSET(IntvCosts!$Q$17,$C56,$B56) -> 0 | AA56: =OFFSET(AA$16,$C56,0)*OFFSET(IntvCosts!$Q$17,$C56,$B56) -> 0 | AC56: =SUM(G56:AA56) -> 0 | AD56: =AD57 -> 0.3 | AE56: =AC56*AD56 -> 0 | AF56: =SUMPRODUCT(G56:AA56,OFFSET(G$81:AA$81,AG$41,0))*AD56 -> 0
B57: 2 | C57: =C$18 -> 2 | D57: =D$18 -> Renew track structure | G57: =OFFSET(G$16,$C57,0)*OFFSET(IntvCosts!$Q$17,$C57,$B57) -> 0 | H57: =OFFSET(H$16,$C57,0)*OFFSET(IntvCosts!$Q$17,$C57,$B57) -> 0 | I57: =OFFSET(I$16,$C57,0)*OFFSET(IntvCosts!$Q$17,$C57,$B57) -> 0 | J57: =OFFSET(J$16,$C57,0)*OFFSET(IntvCosts!$Q$17,$C57,$B57) -> 0 | K57: =OFFSET(K$16,$C57,0)*OFFSET(IntvCosts!$Q$17,$C57,$B57) -> 0 | L57: =OFFSET(L$16,$C57,0)*OFFSET(IntvCosts!$Q$17,$C57,$B57) -> 0 | M57: =OFFSET(M$16,$C57,0)*OFFSET(IntvCosts!$Q$17,$C57,$B57) -> 0 | N57: =OFFSET(N$16,$C57,0)*OFFSET(IntvCosts!$Q$17,$C57,$B57) -> 0 | O57: =OFFSET(O$16,$C57,0)*OFFSET(IntvCosts!$Q$17,$C57,$B57) -> 0 | P57: =OFFSET(P$16,$C57,0)*OFFSET(IntvCosts!$Q$17,$C57,$B57) -> 0 | Q57: =OFFSET(Q$16,$C57,0)*OFFSET(IntvCosts!$Q$17,$C57,$B57) -> 0 | R57: =OFFSET(R$16,$C57,0)*OFFSET(IntvCosts!$Q$17,$C57,$B57) -> 0 | S57: =OFFSET(S$16,$C57,0)*OFFSET(IntvCosts!$Q$17,$C57,$B57) -> 0 | T57: =OFFSET(T$16,$C57,0)*OFFSET(IntvCosts!$Q$17,$C57,$B57) -> 0 | U57: =OFFSET(U$16,$C57,0)*OFFSET(IntvCosts!$Q$17,$C57,$B57) -> 0 | V57: =OFFSET(V$16,$C57,0)*OFFSET(IntvCosts!$Q$17,$C57,$B57) -> 0 | W57: =OFFSET(W$16,$C57,0)*OFFSET(IntvCosts!$Q$17,$C57,$B57) -> 0 | X57: =OFFSET(X$16,$C57,0)*OFFSET(IntvCosts!$Q$17,$C57,$B57) -> 0 | Y57: =OFFSET(Y$16,$C57,0)*OFFSET(IntvCosts!$Q$17,$C57,$B57) -> 0 | Z57: =OFFSET(Z$16,$C57,0)*OFFSET(IntvCosts!$Q$17,$C57,$B57) -> 0 | AA57: =OFFSET(AA$16,$C57,0)*OFFSET(IntvCosts!$Q$17,$C57,$B57) -> 0 | AC57: =SUM(G57:AA57) -> 0 | AD57: =AD59 -> 0.3 | AE57: =AC57*AD57 -> 0 | AF57: =SUMPRODUCT(G57:AA57,OFFSET(G$81:AA$81,AG$41,0))*AD57 -> 0
B58: 2 | C58: =IntvCosts!S14 -> User-defined impact (3) | F58: =IntvCosts!S15 -> EI-3 | G58: =SUM(G56:G57) -> 0 | H58: 0 | I58: 0 | J58: 0 | K58: 0 | L58: 0 | M58: 0 | N58: 0 | O58: 0 | P58: 0 | Q58: 0 | R58: 0 | S58: 0 | T58: 0 | U58: 0 | V58: 0 | W58: 0 | X58: 0 | Y58: 0 | Z58: 0 | AA58: 0 | AC58: =SUM(AC56:AC57) -> 0
B59: 2 | C59: Cash equivalent | F59: Euro | G59: =G58*$AD59 -> 0 | H59: =H58*$AD59 -> 0 | I59: 0 | J59: 0 | K59: 0 | L59: 0 | M59: 0 | N59: 0 | O59: 0 | P59: 0 | Q59: 0 | R59: 0 | S59: 0 | T59: 0 | U59: 0 | V59: 0 | W59: 0 | X59: 0 | Y59: 0 | Z59: 0 | AA59: 0 | AC59: =SUM(G59:AA59) -> 0 | AD59: =OFFSET(IntvCosts!$Q$21,0,$B59) -> 0.3 | AE59: =SUM(AE56:AE57) -> 0 | AF59: =SUM(AF56:AF57) -> 0
AH61: Ops Impacts by Intervention
C62: Operational Costs
AE63: As Cash | AF63: Disc't | AG63: 2 | AH63: =IntvCosts!V15 -> Poss(N) | AI63: =IntvCosts!W15 -> Poss(D) | AJ63: =IntvCosts!X15 -> TSR
C64: =C$17 -> 1 | D64: =D$17 -> In-situ tamping of ballast | G64: =G17*IntvCosts!$Y18 -> 1000 | H64: =H17*IntvCosts!$Y18 -> 1000 | I64: =I17*IntvCosts!$Y18 -> 1000 | J64: =J17*IntvCosts!$Y18 -> 2000 | K64: =K17*IntvCosts!$Y18 -> 2000 | L64: =L17*IntvCosts!$Y18 -> 1000 | M64: =M17*IntvCosts!$Y18 -> 2000 | N64: =N17*IntvCosts!$Y18 -> 0 | O64: =O17*IntvCosts!$Y18 -> 1000 | P64: =P17*IntvCosts!$Y18 -> 0 | Q64: =Q17*IntvCosts!$Y18 -> 1000 | R64: =R17*IntvCosts!$Y18 -> 0 | S64: =S17*IntvCosts!$Y18 -> 1000 | T64: =T17*IntvCosts!$Y18 -> 0 | U64: =U17*IntvCosts!$Y18 -> 1000 | V64: =V17*IntvCosts!$Y18 -> 0 | W64: =W17*IntvCosts!$Y18 -> 1000 | X64: =X17*IntvCosts!$Y18 -> 0 | Y64: =Y17*IntvCosts!$Y18 -> 0 | Z64: =Z17*IntvCosts!$Y18 -> 1000 | AA64: =AA17*IntvCosts!$Y18 -> 1000 | AE64: =SUM(G64:AA64) -> 17000 | AF64: =SUMPRODUCT(G64:AA64,OFFSET(G$81:AA$81,AG$63,0)) -> 8520.640896 | AH64: =$AC17*IntvCosts!V18 -> 17 | AI64: =$AC17*IntvCosts!W18 -> 0 | AJ64: =$AC17*IntvCosts!X18 -> 0
C65: =C$18 -> 2 | D65: =D$18 -> Renew track structure | G65: =G18*IntvCosts!$Y19 -> 4000 | H65: =H18*IntvCosts!$Y19 -> 0 | I65: =I18*IntvCosts!$Y19 -> 0 | J65: =J18*IntvCosts!$Y19 -> 0 | K65: =K18*IntvCosts!$Y19 -> 0 | L65: =L18*IntvCosts!$Y19 -> 0 | M65: =M18*IntvCosts!$Y19 -> 0 | N65: =N18*IntvCosts!$Y19 -> 4000 | O65: =O18*IntvCosts!$Y19 -> 0 | P65: =P18*IntvCosts!$Y19 -> 0 | Q65: =Q18*IntvCosts!$Y19 -> 0 | R65: =R18*IntvCosts!$Y19 -> 0 | S65: =S18*IntvCosts!$Y19 -> 0 | T65: =T18*IntvCosts!$Y19 -> 0 | U65: =U18*IntvCosts!$Y19 -> 0 | V65: =V18*IntvCosts!$Y19 -> 0 | W65: =W18*IntvCosts!$Y19 -> 0 | X65: =X18*IntvCosts!$Y19 -> 4000 | Y65: =Y18*IntvCosts!$Y19 -> 0 | Z65: =Z18*IntvCosts!$Y19 -> 0 | AA65: =AA18*IntvCosts!$Y19 -> 0 | AE65: 12000 | AF65: =SUMPRODUCT(G65:AA65,OFFSET(G$81:AA$81,AG$63,0)) -> 6383.669144 | AH65: =$AC18*IntvCosts!V19 -> 9 | AI65: =$AC18*IntvCosts!W19 -> 0 | AJ65: =$AC18*IntvCosts!X19 -> 6
C66: Operational costs | E66: Cash Equiv. | G66: =SUM(G64:G65) -> 5000 | H66: 1000 | I66: 1000 | J66: 2000 | K66: 2000 | L66: 1000 | M66: 2000 | N66: 4000 | O66: 1000 | P66: 0 | Q66: 1000 | R66: 0 | S66: 1000 | T66: 0 | U66: 1000 | V66: 0 | W66: 1000 | X66: 4000 | Y66: 0 | Z66: 1000 | AA66: 1000 | AE66: =SUM(AE64:AE65) -> 29000 | AF66: =SUM(AF64:AF65) -> 14904.31004 | AH66: =SUM(AH64:AH65) -> 26 | AI66: =SUM(AI64:AI65) -> 0 | AJ66: =SUM(AJ64:AJ65) -> 6
C68: Numbers of operational impacts | AC68: Number | AD68: Convert | AE68: As Cash | AF68: Disc't
C69: 1 | D69: =INDEX(IntvCosts!$V$14:$X$15,1,$C69) -> Over-night possession [Nr] | F69: =INDEX(IntvCosts!$V$14:$X$15,2,$C69) -> Poss(N) | G69: =SUMPRODUCT(G$17:G$18,OFFSET(IntvCosts!$V$18:$V$19,0,$C69-1)) -> 4 | H69: =SUMPRODUCT(H$17:H$18,OFFSET(IntvCosts!$V$18:$V$19,0,$C69-1)) -> 1 | I69: =SUMPRODUCT(I$17:I$18,OFFSET(IntvCosts!$V$18:$V$19,0,$C69-1)) -> 1 | J69: =SUMPRODUCT(J$17:J$18,OFFSET(IntvCosts!$V$18:$V$19,0,$C69-1)) -> 2 | K69: =SUMPRODUCT(K$17:K$18,OFFSET(IntvCosts!$V$18:$V$19,0,$C69-1)) -> 2 | L69: =SUMPRODUCT(L$17:L$18,OFFSET(IntvCosts!$V$18:$V$19,0,$C69-1)) -> 1 | M69: =SUMPRODUCT(M$17:M$18,OFFSET(IntvCosts!$V$18:$V$19,0,$C69-1)) -> 2 | N69: =SUMPRODUCT(N$17:N$18,OFFSET(IntvCosts!$V$18:$V$19,0,$C69-1)) -> 3 | O69: =SUMPRODUCT(O$17:O$18,OFFSET(IntvCosts!$V$18:$V$19,0,$C69-1)) -> 1 | P69: =SUMPRODUCT(P$17:P$18,OFFSET(IntvCosts!$V$18:$V$19,0,$C69-1)) -> 0 | Q69: =SUMPRODUCT(Q$17:Q$18,OFFSET(IntvCosts!$V$18:$V$19,0,$C69-1)) -> 1 | R69: =SUMPRODUCT(R$17:R$18,OFFSET(IntvCosts!$V$18:$V$19,0,$C69-1)) -> 0 | S69: =SUMPRODUCT(S$17:S$18,OFFSET(IntvCosts!$V$18:$V$19,0,$C69-1)) -> 1 | T69: =SUMPRODUCT(T$17:T$18,OFFSET(IntvCosts!$V$18:$V$19,0,$C69-1)) -> 0 | U69: =SUMPRODUCT(U$17:U$18,OFFSET(IntvCosts!$V$18:$V$19,0,$C69-1)) -> 1 | V69: =SUMPRODUCT(V$17:V$18,OFFSET(IntvCosts!$V$18:$V$19,0,$C69-1)) -> 0 | W69: =SUMPRODUCT(W$17:W$18,OFFSET(IntvCosts!$V$18:$V$19,0,$C69-1)) -> 1 | X69: =SUMPRODUCT(X$17:X$18,OFFSET(IntvCosts!$V$18:$V$19,0,$C69-1)) -> 3 | Y69: =SUMPRODUCT(Y$17:Y$18,OFFSET(IntvCosts!$V$18:$V$19,0,$C69-1)) -> 0 | Z69: =SUMPRODUCT(Z$17:Z$18,OFFSET(IntvCosts!$V$18:$V$19,0,$C69-1)) -> 1 | AA69: =SUMPRODUCT(AA$17:AA$18,OFFSET(IntvCosts!$V$18:$V$19,0,$C69-1)) -> 1 | AC69: =SUM(G69:AA69) -> 26 | AD69: =IntvCosts!V21 -> 1000 | AE69: =AC69*AD69 -> 26000 | AF69: =SUMPRODUCT(G69:AA69,OFFSET(G$81:AA$81,AG$63,0))*AD69 -> 13308.39275
C70: 2 | D70: =INDEX(IntvCosts!$V$14:$X$15,1,$C70) -> Day possessions [Nr] | F70: =INDEX(IntvCosts!$V$14:$X$15,2,$C70) -> Poss(D) | G70: =SUMPRODUCT(G$17:G$18,OFFSET(IntvCosts!$V$18:$V$19,0,$C70-1)) -> 0 | H70: =SUMPRODUCT(H$17:H$18,OFFSET(IntvCosts!$V$18:$V$19,0,$C70-1)) -> 0 | I70: =SUMPRODUCT(I$17:I$18,OFFSET(IntvCosts!$V$18:$V$19,0,$C70-1)) -> 0 | J70: =SUMPRODUCT(J$17:J$18,OFFSET(IntvCosts!$V$18:$V$19,0,$C70-1)) -> 0 | K70: =SUMPRODUCT(K$17:K$18,OFFSET(IntvCosts!$V$18:$V$19,0,$C70-1)) -> 0 | L70: =SUMPRODUCT(L$17:L$18,OFFSET(IntvCosts!$V$18:$V$19,0,$C70-1)) -> 0 | M70: =SUMPRODUCT(M$17:M$18,OFFSET(IntvCosts!$V$18:$V$19,0,$C70-1)) -> 0 | N70: =SUMPRODUCT(N$17:N$18,OFFSET(IntvCosts!$V$18:$V$19,0,$C70-1)) -> 0 | O70: =SUMPRODUCT(O$17:O$18,OFFSET(IntvCosts!$V$18:$V$19,0,$C70-1)) -> 0 | P70: =SUMPRODUCT(P$17:P$18,OFFSET(IntvCosts!$V$18:$V$19,0,$C70-1)) -> 0 | Q70: =SUMPRODUCT(Q$17:Q$18,OFFSET(IntvCosts!$V$18:$V$19,0,$C70-1)) -> 0 | R70: =SUMPRODUCT(R$17:R$18,OFFSET(IntvCosts!$V$18:$V$19,0,$C70-1)) -> 0 | S70: =SUMPRODUCT(S$17:S$18,OFFSET(IntvCosts!$V$18:$V$19,0,$C70-1)) -> 0 | T70: =SUMPRODUCT(T$17:T$18,OFFSET(IntvCosts!$V$18:$V$19,0,$C70-1)) -> 0 | U70: =SUMPRODUCT(U$17:U$18,OFFSET(IntvCosts!$V$18:$V$19,0,$C70-1)) -> 0 | V70: =SUMPRODUCT(V$17:V$18,OFFSET(IntvCosts!$V$18:$V$19,0,$C70-1)) -> 0 | W70: =SUMPRODUCT(W$17:W$18,OFFSET(IntvCosts!$V$18:$V$19,0,$C70-1)) -> 0 | X70: =SUMPRODUCT(X$17:X$18,OFFSET(IntvCosts!$V$18:$V$19,0,$C70-1)) -> 0 | Y70: =SUMPRODUCT(Y$17:Y$18,OFFSET(IntvCosts!$V$18:$V$19,0,$C70-1)) -> 0 | Z70: =SUMPRODUCT(Z$17:Z$18,OFFSET(IntvCosts!$V$18:$V$19,0,$C70-1)) -> 0 | AA70: =SUMPRODUCT(AA$17:AA$18,OFFSET(IntvCosts!$V$18:$V$19,0,$C70-1)) -> 0 | AC70: =SUM(G70:AA70) -> 0 | AD70: =IntvCosts!W21 -> 5000 | AE70: =AC70*AD70 -> 0 | AF70: =SUMPRODUCT(G70:AA70,OFFSET(G$81:AA$81,AG$63,0))*AD70 -> 0
C71: 3 | D71: =INDEX(IntvCosts!$V$14:$X$15,1,$C71) -> Speed restriction [days] | F71: =INDEX(IntvCosts!$V$14:$X$15,2,$C71) -> TSR | G71: =SUMPRODUCT(G$17:G$18,OFFSET(IntvCosts!$V$18:$V$19,0,$C71-1)) -> 2 | H71: =SUMPRODUCT(H$17:H$18,OFFSET(IntvCosts!$V$18:$V$19,0,$C71-1)) -> 0 | I71: =SUMPRODUCT(I$17:I$18,OFFSET(IntvCosts!$V$18:$V$19,0,$C71-1)) -> 0 | J71: =SUMPRODUCT(J$17:J$18,OFFSET(IntvCosts!$V$18:$V$19,0,$C71-1)) -> 0 | K71: =SUMPRODUCT(K$17:K$18,OFFSET(IntvCosts!$V$18:$V$19,0,$C71-1)) -> 0 | L71: =SUMPRODUCT(L$17:L$18,OFFSET(IntvCosts!$V$18:$V$19,0,$C71-1)) -> 0 | M71: =SUMPRODUCT(M$17:M$18,OFFSET(IntvCosts!$V$18:$V$19,0,$C71-1)) -> 0 | N71: =SUMPRODUCT(N$17:N$18,OFFSET(IntvCosts!$V$18:$V$19,0,$C71-1)) -> 2 | O71: =SUMPRODUCT(O$17:O$18,OFFSET(IntvCosts!$V$18:$V$19,0,$C71-1)) -> 0 | P71: =SUMPRODUCT(P$17:P$18,OFFSET(IntvCosts!$V$18:$V$19,0,$C71-1)) -> 0 | Q71: =SUMPRODUCT(Q$17:Q$18,OFFSET(IntvCosts!$V$18:$V$19,0,$C71-1)) -> 0 | R71: =SUMPRODUCT(R$17:R$18,OFFSET(IntvCosts!$V$18:$V$19,0,$C71-1)) -> 0 | S71: =SUMPRODUCT(S$17:S$18,OFFSET(IntvCosts!$V$18:$V$19,0,$C71-1)) -> 0 | T71: =SUMPRODUCT(T$17:T$18,OFFSET(IntvCosts!$V$18:$V$19,0,$C71-1)) -> 0 | U71: =SUMPRODUCT(U$17:U$18,OFFSET(IntvCosts!$V$18:$V$19,0,$C71-1)) -> 0 | V71: =SUMPRODUCT(V$17:V$18,OFFSET(IntvCosts!$V$18:$V$19,0,$C71-1)) -> 0 | W71: =SUMPRODUCT(W$17:W$18,OFFSET(IntvCosts!$V$18:$V$19,0,$C71-1)) -> 0 | X71: =SUMPRODUCT(X$17:X$18,OFFSET(IntvCosts!$V$18:$V$19,0,$C71-1)) -> 2 | Y71: =SUMPRODUCT(Y$17:Y$18,OFFSET(IntvCosts!$V$18:$V$19,0,$C71-1)) -> 0 | Z71: =SUMPRODUCT(Z$17:Z$18,OFFSET(IntvCosts!$V$18:$V$19,0,$C71-1)) -> 0 | AA71: =SUMPRODUCT(AA$17:AA$18,OFFSET(IntvCosts!$V$18:$V$19,0,$C71-1)) -> 0 | AC71: =SUM(G71:AA71) -> 6 | AD71: =IntvCosts!X21 -> 500 | AE71: =AC71*AD71 -> 3000 | AF71: =SUMPRODUCT(G71:AA71,OFFSET(G$81:AA$81,AG$63,0))*AD71 -> 1595.917286
AE72: =SUM(AE69:AE71) -> 29000 | AF72: =SUM(AF69:AF71) -> 14904.31004
C73: Cash Equivalents
F75: Finance | G75: =G23 -> 747000 | H75: =H23 -> 17000 | I75: 17000 | J75: 34000 | K75: 34000 | L75: 17000 | M75: 34000 | N75: 730000 | O75: 17000 | P75: 0 | Q75: 17000 | R75: 0 | S75: 17000 | T75: 0 | U75: 17000 | V75: 0 | W75: 17000 | X75: 730000 | Y75: 0 | Z75: 17000 | AA75: 17000 | AE75: =SUM(G75:AA75) -> 2479000 | AF75: =SUMPRODUCT(G75:AA75,G81:AA81) -> 1309870.514
